Workbook

Sheet Proportionale Quadrate
C6: Der regionale Arbeitsmarkt in Flächenrelationen
C7: =IF(COUNTIF(Unplausible_Regionen_LST,Quell_propquad!C3)>0,CONCATENATE(INDEX(Akt_Regionenliste_Titelblock,Auswahl_Region)," ¹"),INDEX(Akt_Regionenliste_Titelblock,Auswahl_Region)) & " (Gebietsstand " & TEXT(Gebietsstand,"MMMM JJJJ") & ")" -> Deutschland (Gebietsstand Januar 2023)
C8: =CONCATENATE(IF(AND(INDEX(Jahresliste_Propquad,Auswahl_Berichtsjahr_Propquad)=Akt_Jahr,Version_Frühjahr_Herbst="Frühjahr"),IF(OR(Fußnote_plausi=0,Fußnote_plausi=2,Fußnote_plausi=3),Akt_Jahr&" ²",Akt_Jahr&" ¹"),INDEX(Jahresliste_Propquad,Auswahl_Berichtsjahr_Propquad)))&", Datenstand: "&TEXT(Datenstand,"MMMM JJJJ") -> 2022, Datenstand: Dezember 2023
C9: =CONCATENATE(IF(AND(INDEX(Jahresliste_Propquad,Auswahl_Berichtsjahr_Propquad)=Akt_Jahr,Version_Frühjahr_Herbst="Frühjahr"),IF(OR(Fußnote_plausi=0,Fußnote_plausi=2),Akt_Jahr&" ²",Akt_Jahr&" ¹"),INDEX(Jahresliste_Propquad,Auswahl_Berichtsjahr_Propquad))) -> 2022
J41: © Statistik der Bundesagentur für Arbeit

Sheet Equalizer
L4: ="Spannweite "&M4 -> Spannweite Deutschland | M4: =INDEX(IF(Auswahl_Gebietsstruktur=1,Zuordnung_RD_AA_Equalizer,Zuordnung_Bundesländer_Kreise),Auswahl_Region,1) -> Deutschland | N4: =CONCATENATE(IF(Auswahl_Gebietsstruktur=1,"Agenturen in ",IF(M4="Berlin","Bezirke ","Kreise ")),M4) -> Kreise Deutschland | O4: =IF(Auswahl_Gebietsstruktur=1,"Minimalwert aller Agenturen Deutschlands","Minimalwert aller Kreise Deutschlands (inkl. Berliner Bezirke)") -> Minimalwert aller Kreise Deutschlands (inkl. Berliner Bezirke) | P4: =IF(Auswahl_Gebietsstruktur=1,"Maximalwert aller Agenturen Deutschlands","Maximalwert aller Kreise Deutschlands (inkl. Berliner Bezirke)") -> Maximalwert aller Kreise Deutschlands (inkl. Berliner Bezirke) | R4: =CONCATENATE("Alle "&IF(Auswahl_Gebietsstruktur=1,"Agenturen der RD anzeigen",IF(M4="Berlin","Bezirke Berlins anzeigen","Kreise des Landes anzeigen"))) -> Alle Kreise des Landes anzeigen
C6: Struktur des regionalen Arbeitsmarktes
C7: =IFERROR(IF(AND(Quell_Equalizer!C1="Berlin",Quell_Equalizer!B1<>"Berlin"),CONCATENATE(INDEX(Akt_Regionenliste_Titelblock,Auswahl_Region)," ¹"),INDEX(Akt_Regionenliste_Titelblock,Auswahl_Region)),"") & " (Gebietsstand " & TEXT(Gebietsstand,"MMMM JJJJ") & ")" -> Deutschland (Gebietsstand Januar 2023)
C8: =IFERROR(IF(AND(Quell_Equalizer!C1="Berlin",Quell_Equalizer!B1<>"Berlin",Auswahl_Themenbereich<>3),CONCATENATE(INDEX(Jahresliste,Auswahl_Berichtsjahr),IF(AND(Version_Frühjahr_Herbst="Frühjahr",INDEX(Jahresliste,Auswahl_Berichtsjahr)=Akt_Jahr,Auswahl_Themenbereich<>4)," ²",IF(AND(Version_Frühjahr_Herbst="Frühjahr",INDEX(Jahresliste,Auswahl_Berichtsjahr)=Akt_Jahr-1,OR(Auswahl_Themenbereich=1,Auswahl_Themenbereich=2))," ²",IF(AND(Version_Frühjahr_Herbst="Herbst",INDEX(Jahresliste,Auswahl_Berichtsjahr)=Akt_Jahr,OR(Auswahl_Themenbereich=1,Auswahl_Themenbereich=2))," ²",""))))&", Datenstand: "&TEXT(Datenstand,"MMMM JJJJ"),CONCATENATE(INDEX(Jahresliste,Auswahl_Berichtsjahr),IF(AND(Version_Frühjahr_Herbst="Frühjahr",INDEX(Jahresliste,Auswahl_Berichtsjahr)=Akt_Jahr,Auswahl_Themenbereich<>4)," ¹",IF(AND(Version_Frühjahr_Herbst="Frühjahr",INDEX(Jahresliste,Auswahl_Berichtsjahr)=Akt_Jahr-1,OR(Auswahl_Themenbereich=1,Auswahl_Themenbereich=2))," ¹",IF(AND(Version_Frühjahr_Herbst="Herbst",INDEX(Jahresliste,Auswahl_Berichtsjahr)=Akt_Jahr,OR(Auswahl_Themenbereich=1,Auswahl_Themenbereich=2))," ¹",""))))&", Datenstand: "&TEXT(Datenstand,"MMMM JJJJ")),"") -> 2022 ¹, Datenstand: Dezember 2023 | P8: =N4 -> Kreise Deutschland
C9: =IF(AND(Quell_Equalizer!C1="Berlin",Quell_Equalizer!B1<>"Berlin",Auswahl_Themenbereich<>3),CONCATENATE(INDEX(Jahresliste,Auswahl_Berichtsjahr),IF(AND(Version_Frühjahr_Herbst="Frühjahr",INDEX(Jahresliste,Auswahl_Berichtsjahr)=Akt_Jahr,Auswahl_Themenbereich<>4)," ²",IF(AND(Version_Frühjahr_Herbst="Frühjahr",INDEX(Jahresliste,Auswahl_Berichtsjahr)=Akt_Jahr-1,OR(Auswahl_Themenbereich=1,Auswahl_Themenbereich=2))," ²",IF(AND(Version_Frühjahr_Herbst="Herbst",INDEX(Jahresliste,Auswahl_Berichtsjahr)=Akt_Jahr,OR(Auswahl_Themenbereich=1,Auswahl_Themenbereich=2,Auswahl_Themenbereich=5))," ²","")))),CONCATENATE(INDEX(Jahresliste,Auswahl_Berichtsjahr),IF(AND(Version_Frühjahr_Herbst="Frühjahr",INDEX(Jahresliste,Auswahl_Berichtsjahr)=Akt_Jahr,Auswahl_Themenbereich<>4)," ¹",IF(AND(Version_Frühjahr_Herbst="Frühjahr",INDEX(Jahresliste,Auswahl_Berichtsjahr)=Akt_Jahr-1,OR(Auswahl_Themenbereich=1,Auswahl_Themenbereich=2))," ¹",IF(AND(Version_Frühjahr_Herbst="Herbst",INDEX(Jahresliste,Auswahl_Berichtsjahr)=Akt_Jahr,OR(Auswahl_Themenbereich=1,Auswahl_Themenbereich=2))," ¹",""))))) -> 2022 ¹
C43: Datenquelle: Statistische Ämter des Bundes und der Länder, Statistik der BA | P43: © Statistik der Bundesagentur für Arbeit
C44: ¹ Der Indikator W10 liegt für 2022 noch nicht vor und wird mit Berichtsjahr 2021 abgebildet.

Sheet Karten
C6: =INDEX(Indikatoren_lang,Auswahl_Indikator) -> Beschäftigungsquote (SvB) Insgesamt %
C7: =IF(Auswahl_Region_Karten_direkt=1,IF(Auswahl_Gebietsstruktur=2,"Deutschland nach Ländern","Deutschland nach Regionaldirektionen"),IF(AND(Auswahl_Region_Karten_direkt=4,Auswahl_Gebietsstruktur=2),"Berlin nach Stadtbezirken",INDEX(Regionenliste_Karte,Auswahl_Region_Karten_direkt)&IF(Auswahl_Gebietsstruktur=1," nach Agentur-Bezirken"," nach Kreisen"))) & " (Gebietsstand " & TEXT(Gebietsstand,"MMMM JJJJ") & ")" -> Deutschland nach Ländern (Gebietsstand Januar 2023) | M7: =Quartil_1 -> bis unter 60,2
C8: =IF(Quell_Karten!A1<>Quell_Karten!A2,Quell_Karten!A1 & " ¹",Quell_Karten!A1) &", Datenstand: "&TEXT(Datenstand,"MMMM JJJJ") -> 2022, Datenstand: Dezember 2023
C9: =INDEX(Jahresliste,Auswahl_Berichtsjahr) -> 2022 | M9: =Quartil_2 -> 60,2 bis unter 62,3
M11: =Quartil_3 -> 62,3 bis unter 64,4
M12: =Quartil_4 -> 64,4 bis einschließlich 66,5
C39: Datenquelle: Statistische Ämter des Bundes und der Länder, Statistik der BA | N39: © Statistik der Bundesagentur für Arbeit

Sheet Dia_1
C6: ="Strukturindikatoren im Zeitverlauf - "&INDEX(Indikatoren_lang,Auswahl_Indikator) -> Strukturindikatoren im Zeitverlauf - Beschäftigungsquote (SvB) Insgesamt %
C7: =INDEX(Akt_Regionenliste_Titelblock,Auswahl_Region) & " (Gebietsstand " & TEXT(Gebietsstand,"MMMM JJJJ") & ")" -> Deutschland (Gebietsstand Januar 2023)
C8: =IFERROR(INDEX(Akt_Regionenliste_Titelblock,IF(Auswahl_Region_2-1=0,"",Auswahl_Region_2-1))& " (Gebietsstand " & TEXT(Gebietsstand,"MMMM JJJJ") & ")","") -> 
C9: =Zeitspanne_Dia_1& IF(Zeitspanne_Dia_1="","",", Datenstand: "&TEXT(Datenstand,"MMMM JJJJ")) -> 2005 bis 2022, Datenstand: Dezember 2023
C37: Datenquelle: Statistische Ämter des Bundes und der Länder, Statistik der BA | N37: © Statistik der Bundesagentur für Arbeit

Sheet Dia_2
C6: ="Strukturindikatoren nach Themenbereichen"& " - " &Auswahl_Themenbereich_Dia_2_Name -> Strukturindikatoren nach Themenbereichen - Wirtschaftliche Situation
C7: =INDEX(Akt_Regionenliste_Titelblock,Auswahl_Region) & " (Gebietsstand " & TEXT(Gebietsstand,"MMMM JJJJ") & ")" -> Deutschland (Gebietsstand Januar 2023)
C8: =IFERROR(INDEX(Akt_Regionenliste_Titelblock,IF(Auswahl_Region_2-1=0,"",Auswahl_Region_2-1)) & " (Gebietsstand " & TEXT(Gebietsstand,"MMMM JJJJ") & ")","") -> 
C9: =IF(OR(AND(INDEX(Jahresliste,Auswahl_Berichtsjahr)=Akt_Jahr,OR(Auswahl_Themenbereich=1,Auswahl_Themenbereich=2)),AND(INDEX(Jahresliste,Auswahl_Berichtsjahr)<=2008,OR(Auswahl_Themenbereich=1,Auswahl_Themenbereich=2)),AND(INDEX(Jahresliste,Auswahl_Berichtsjahr)<2007,Auswahl_Themenbereich=4),AND(OR(Auswahl_Themenbereich=1,Auswahl_Themenbereich=2,Auswahl_Themenbereich=3,Auswahl_Themenbereich=5),INDEX(Jahresliste,Auswahl_Berichtsjahr)=Akt_Jahr-1,Version_Frühjahr_Herbst="Frühjahr")),CONCATENATE(INDEX(Jahresliste,Auswahl_Berichtsjahr)," ¹"),INDEX(Jahresliste,Auswahl_Berichtsjahr))&", Datenstand: "&TEXT(Datenstand,"MMMM JJJJ") -> 2022 ¹, Datenstand: Dezember 2023
C10: =INDEX(Jahresliste,Auswahl_Berichtsjahr) -> 2022
C41: Datenquelle: Statistische Ämter des Bundes und der Länder, Statistik der BA | N41: © Statistik der Bundesagentur für Arbeit
C42: ¹ Die Indikatoren W10 und B2 liegen für 2022 nicht vor und werden mit Berichtsjahr 2021 abgebildet.

Sheet Dia_3
C6: ="Strukturindikatoren im Regionenvergleich - "&INDEX(Indikatoren_lang,Auswahl_Indikator) -> Strukturindikatoren im Regionenvergleich - Beschäftigungsquote (SvB) Insgesamt %
C7: ="Ausgewählte Regionen (Gebietsstand " & TEXT(Gebietsstand,"MMMM JJJJ") & ")" -> Ausgewählte Regionen (Gebietsstand Januar 2023)
C8: =IF(Quell_Dia_3!A2<>Quell_Dia_3!F2,Quell_Dia_3!A2& " ¹",Quell_Dia_3!A2)&", Datenstand: "&TEXT(Datenstand,"MMMM JJJJ") -> 2022, Datenstand: Dezember 2023
C9: =INDEX(Jahresliste,Auswahl_Berichtsjahr) -> 2022
C37: Datenquelle: Statistische Ämter des Bundes und der Länder, Statistik der BA | N37: © Statistik der Bundesagentur für Arbeit

Sheet Streudiagramm
R3: =CONCATENATE("Mittelwert über alle "&IF(Auswahl_Gebietsstruktur=1,"Agenturen Deutschlands:","Kreise Deutschlands:")) -> Mittelwert über alle Kreise Deutschlands:
C6: =INDEX(Indikatoren_lang,Auswahl_Indikator)&" und "&INDEX(Indikatoren_lang,Auswahl_Indikator_y_Streudiagramm) -> Beschäftigungsquote (SvB) Insgesamt % und Beschäftigungsquote (SvB) 55 Jahre bis unter Regelaltersgrenze in %
C7: =Titelblock_Region_Streudiagramme & " (Gebietsstand " & TEXT(Gebietsstand,"MMMM JJJJ") & ")" &Auswahl_Vergleichstyp_Streudiagramm -> Deutschland nach Kreisen (Gebietsstand Januar 2023)
C8: =IF(INDEX(Jahresliste,Auswahl_Berichtsjahr)<>Quell_Streudiagramm!C1,Quell_Streudiagramm!C1& " ¹",Quell_Streudiagramm!C1)&", Datenstand: "&TEXT(Datenstand,"MMMM JJJJ") -> 2022, Datenstand: Dezember 2023
H12: =IFERROR(Mittelwert_xAchse,"") -> 62.9104923
L23: =IFERROR(Mittelwert_yAchse,"") -> 55.20716662
I37: =INDEX(IF(Auswahl_Gebietsstruktur=1,Agenturliste_mit_RD,Kreisliste_ohne_Einrücken),Auswahl_Region,0) -> Deutschland | K37: =IF(Auswahl_Gebietsstruktur=1," Agenturen"," Kreise") -> Kreise
C40: Datenquelle: Statistische Ämter des Bundes und der Länder, Statistik der BA | N40: © Statistik der Bundesagentur für Arbeit
C41: =IF(AND(ISERROR(Quell_Streudiagramm!$D$4),ISERROR(Quell_Streudiagramm!$E$4)),"¹ Die ausgewählten Indikatoren liegen für "&Quell_Streudiagramm!$B$1&" nicht vor.",IF(ISERROR(OR(Quell_Streudiagramm!$D$4,Quell_Streudiagramm!$E$4)),"¹ Mindestens einer der ausgewählten Indikatoren liegt für "&Quell_Streudiagramm!$B$1&" nicht vor. Daher wird hier kein Indikator abgebildet.",IF(Quell_Streudiagramm!$C$1<>Quell_Streudiagramm!$B$1,"¹ Mindestens ein Indikator liegt für "&Quell_Streudiagramm!$B$1&" nicht vor. Daher wird für beide Indikatoren Berichtsjahr "&Quell_Streudiagramm!$C$1&" abgebildet.",""))) -> 

Sheet Steuerung (hidden)
A1: Ind_Nr | B1: Indikatoren_lang | C1: Indikatoren_kurz | D1: Jahresliste | E1: MultiThreadedCalculation | H1: Propquad | I1: Equalizer | J1: Karten | K1: Dia_1 | L1: Dia_2 | M1: Dia_3 | N1: Streudiagramm | Q1: Dateiname_PPTExport | R1: Dateiname_XLSExport | T1: 1 | Z1: 1
A2: W1 | B2: Beschäftigungsquote (SvB) Insgesamt % | C2: W1 Beschäftigungsquote (SvB) insges. | D2: 2005 | E2: 1 | J2: 1 | S2: 1 | T2: 1 | Z2: 1
A3: W2 | B3: Beschäftigungsquote (SvB) 55 Jahre bis unter Regelaltersgrenze in % | C3: W2 Beschäftigungsquote (SvB) 55 J. bis Regelaltersgrenze | D3: 2006 | E3: Versionsnummer | G3: Auswahl_Diagramm | H3: Auswahl_Berichtsjahr_Propquad | Z3: 1
A4: W3 | B4: Anteil älterer Beschäftigter (55 Jahre und älter) in % | C4: W3 Anteil Beschäftigter 55 J. und älter | D4: 2007 | E4: Version_1.27 | G4: Dia_1 | H4: 14 | J4: 14 | S4: 1 | Z4: 1
A5: W4 | B5: Beschäftigungsquote (SvB) Frauen in % | C5: W4 Beschäftigungsquote (SvB) Frauen | D5: 2008 | I5: 1 | J5: 1 | N5: 21 | R5: 1
A6: W5 | B6: Entwicklung der Beschäftigung in % | C6: W5 Beschäftigungsentwicklung | D6: 2009 | G6: Auswahl_Region | I6: TRUE | J6: TRUE | M6: =INDEX(Info_Nr,Auswahl_Indikator) -> 003 | N6: 2
A7: W6 | B7: Arbeitslosenquote (alle zivilen Erwerbspersonen) in % | C7: W6 Arbeitslosenquote | D7: 2010 | G7: 1 | J7: 5 | K7: =INDEX(Info_Nr,Auswahl_Indikator) -> 003 | L7: =INDEX(Themenbereich,Auswahl_Themenbereich,1) -> Wirtschaftliche Situation | M7: =LEN(INDEX(Indikatoren_lang,Auswahl_Indikator,0))+8 -> 45 | N7: 1 | S7: 1
A8: W7 | B8: Unterbeschäftigungsquote (ohne Kurzarbeit) in % | C8: W7 Unterbeschäftigungsquote | D8: 2011 | J8: =INDEX(Info_Nr,Auswahl_Indikator) -> 003 | N8: 3
A9: W8 | B9: Unterbeschäftigungsquote unter 25 Jährige (ohne Kurzarbeit) in % | C9: W8 Unterbeschäftigungsquote U25 | D9: 2012 | E9: Version_Frühjahr_Herbst | G9: Auswahl_Region_2 | L9: Anzahl_Indikatoren_je_Bereich | N9: =INDEX(Jahresliste,Auswahl_Berichtsjahr) -> 2022 | R9: 1 | S9: 1
A10: W9 | B10: Tertiarisierungsgrad in % | C10: W9 Tertiarisierungsgrad | D10: 2013 | E10: Herbst | G10: 1 | J10: TRUE | L10: =COUNTIF(Ind_Nr,"W*") -> 18 | S10: 1 | T10: 1
A11: W10 | B11: Bruttoinlandsprodukt je Einwohner in Tausend Euro | C11: W10 BIP pro Kopf (in Tsd. €) | D11: 2014 | J11: Wertebereich_Quartilsgrenzen | L11: =COUNTIF(Ind_Nr,"D*") -> 5 | S11: 1 | T11: 1
A12: W11 | B12: Teilzeitquote in % | C12: W11 Teilzeitquote | D12: 2015 | E12: Akt_Jahr | G12: Auswahl_Gebietsstruktur | J12: Ausgewählte Region | L12: =COUNTIF(Ind_Nr,"S*") -> 4 | N12: =IF(Auswahl_Gebietsstruktur=1,INDEX(Vergleichstypen_SGBIII_Titelblock,Auswahl_VT_Streudiagramm),INDEX(Vergleichstypen_SGBII,Auswahl_VT_Streudiagramm)) -> keine Einschränkung
A13: W12 | B13: Einpendlerquote in % | C13: W12 Einpendlerquote | D13: 2016 | E13: =MAX(Jahresliste) -> 2022 | G13: 2 | J13: Deutschland | L13: =COUNTIF(Ind_Nr,"B*") -> 4 | N13: =N8+1 -> 4
A14: W13 | B14: Auspendlerquote in % | C14: W13 Auspendlerquote | D14: 2017 | G14: Auswahl_Berichtsjahr | L14: =SUM(L10:L13) -> 31 | S14: 1 | T14: 1
A15: W14 | B15: Saisonspanne der Arbeitslosigkeit in % | C15: W14 Saisonspanne der Arbeitslosigkeit | D15: 2018 | E15: Datenstand | G15: 18
A16: W15 | B16: Anteil SvB in Großbetrieben (250+) in % | C16: W15 Anteil SvB in Großbetrieben | D16: 2019 | E16: 2023-12-08 | G16: Auswahl_Themenbereich | N16: ="Deutschland nach "&IF(Auswahl_Gebietsstruktur=1,"Agenturen","Kreisen") -> Deutschland nach Kreisen
A17: W16 | B17: Bruttoarbeitsentgelt (Median in Hundert Euro) | C17: W16 Bruttoarbeitsentgelt (in 100 €) | D17: 2020 | E17: Gebietsstand | G17: 2 | N17: =INDEX(Ind_Nr,Auswahl_Indikator,0) -> W1
A18: W17 | B18: Anteil SvB (AO) im unteren Entgeltbereich in % | C18: W17 SvB im unteren Entgeltbereich | D18: 2021 | E18: 2023-01-01 | G18: Auswahl_Indikator | N18: =INDEX(Ind_Nr,Auswahl_Indikator_y_Streudiagramm,0) -> W2
A19: W18 | B19: Anteil Langzeitarbeitslose in % | C19: W18 Anteil Langzeitarbeitslose | D19: 2022 | G19: 1 | N19: =LEN(Auswahl_Vergleichstyp_Streudiagramm) -> 0
A20: D1 | B20: Bevölkerungsentwicklung seit 2005 in % | C20: D1 Bevölkerungsentwicklung | G20: Zeichenzahl_Indikator | N20: Wertebereich_Streudiagramm
A21: D2 | B21: Anteil der Bevölkerung unter 25 Jahren in % | C21: D2 Anteil Bevölkerung unter 25 J. | D21: Themenbereich | G21: =LEN(INDEX(Indikatoren_lang,Auswahl_Indikator,0)) -> 37 | N21: Mittelwert ± 2 Standardabweich.
A22: D3 | B22: Anteil der Bevölkerung ab 55 Jahren in % | C22: D3 Anteil Bevölkerung ab 55 J. | D22: Alle Bereiche | E22: Auswahl_Region_Karten | N22: Mittelwert ± 3 Standardabweich.
A23: D4 | B23: Jugend-Alter-Relation in der Bevölkerung in % | C23: D4 Jugend-Alter-Relation | D23: Wirtschaftliche Situation | E23: Deutschland | F23: Deutschland | G23: Auswahl_Region_Karten_indirekt | N23: Mittelwert ± 4 Standardabweich.
A24: D5 | B24: Ausländeranteil in der Bevölkerung in % | C24: D5 Ausländeranteil | D24: Demographische Entwicklung | E24: Baden-Württemberg | F24: Baden-Württemberg | G24: =MATCH(G28,Regionenliste_Karte,0) -> 1 | N24: =IF(Auswahl_VT_Streudiagramm_lang="keine Einschränkung",""," - Vergleichstyp "&Auswahl_VT_Streudiagramm_lang) -> 
A25: S1 | B25: SGB II-Quote in % | C25: S1 SGB II-Quote | D25: Soziale Lage | E25: Bayern | F25: Bayern | G25: Auswahl_Region_Karten_direkt | M25: Vb Ger. verd. Bez. in Ost m. h. ALO,Grenzl. | N25: =IF(Auswahl_Gebietsstruktur=1,INDEX(Vergleichstypen_SGBIII,Auswahl_VT_Streudiagramm),INDEX(Vergleichstypen_SGBII,Auswahl_VT_Streudiagramm)) -> keine Einschränkung
A26: S2 | B26: ELB-Quote in % | C26: S2 ELB-Quote | D26: Bildungslage | E26: Berlin | F26: Berlin | G26: 1
A27: S3 | B27: NEF-Quote (unter 15 Jahre) in % | C27: S3 NEF-Quote unter 15 J. | E27: Brandenburg | F27: Brandenburg und Berlin | G27: =IFERROR(VLOOKUP(IF(MID(INDEX(Akt_Regionenliste_Titelblock,Auswahl_Region),1,17)="Regionaldirektion",MID(INDEX(Akt_Regionenliste_Titelblock,Auswahl_Region),19,50),IF(MID(INDEX(Akt_Regionenliste_Titelblock,Auswahl_Region),1,4)="Land",MID(INDEX(Akt_Regionenliste_Titelblock,Auswahl_Region),6,50),(INDEX(Akt_Regionenliste_Titelblock,Auswahl_Region)))),IF(Auswahl_Gebietsstruktur=1,Zuordnung_Agenturen_Bundesländer,Zuordnung_Kreise_Bundesländer),2,FALSE),MID(IF(MID(INDEX(Akt_Regionenliste_Titelblock,Auswahl_Region),1,17)="Regionaldirektion",MID(INDEX(Akt_Regionenliste_Titelblock,Auswahl_Region),19,50),(INDEX(Akt_Regionenliste_Titelblock,Auswahl_Region))),1,10)) -> Deutschland
A28: S4 | B28: Betreuungsquote Kinder unter 6 Jahre in % | C28: S4 Betreungsquote Kinder u. 6 J. | E28: Hessen | F28: Hessen | G28: =VLOOKUP(G27,Auswahl_Region_Karten,2,FALSE) -> Deutschland
A29: B1 | B29: Anteil Beschäftigter mit (hoch) komplexer Tätigkeit an den Beschäftigten in % | C29: B1 SvB mit (hoch) komplexer Tätigkeit | E29: Mecklenburg-Vorpommern | F29: Mecklenburg-Vorpommern
A30: B2 | B30: Anteil der Schulabgänger ohne Hauptschulabschluss in % | C30: B2 Absolventen o. Schulabschluss | E30: Niedersachsen | F30: Niedersachsen und Bremen | G30: Auswahl_Region_Memory
A31: B3 | B31: Relativer Wanderungssaldo der 18-24-Jährigen in % | C31: B3 Rel. Wanderungssaldo 18-24 J. | E31: Bremen | F31: Niedersachsen und Bremen | G31: 154
A32: B4 | B32: Ausbildungsquote in % | C32: B4 Ausbildungsquote | E32: Nordrhein-Westfalen | F32: Nordrhein-Westfalen
E33: Rheinland-Pfalz | F33: Rheinland-Pfalz und Saarland | G33: Auswahl_Region_2_Memory
E34: Saarland | F34: Rheinland-Pfalz und Saarland | G34: 1
A35: Info_Nr | E35: Sachsen | F35: Sachsen
A36: 003 | E36: Sachsen-Anhalt | F36: Sachsen-Anhalt
A37: 004 | E37: Schleswig-Holstein | F37: Schleswig-Holstein und Hamburg
A38: 005 | E38: Hamburg | F38: Schleswig-Holstein und Hamburg
A39: 006 | E39: Thüringen | F39: Thüringen
A40: 007 | E40: Westdeutschland | F40: Deutschland
A41: 008 | E41: Ostdeutschland | F41: Deutschland
A42: 009 | E42: Niedersach | F42: Niedersachsen und Bremen
A43: 010 | E43: Nord | F43: Schleswig-Holstein und Hamburg
A44: 011 | E44: Rheinland- | F44: Rheinland-Pfalz und Saarland
A45: 012 | E45: Sachsen-An | F45: Sachsen-Anhalt
A46: 013
A47: 014
A48: 015 | E48: Versionsnummerncheck
A49: 016 | E49: Version_1.26
A50: 017
A51: 018 | E51: Änderungen
A52: 019 | E52: In der aktuellen Version wurden folgende Änderungen vorgenommen:
A53: 020 | E53: 1. | F53: Aktualisierung diverser Jahreswerte (v.a. BA-Daten 2022)
A54: 021 | E54: 2. | F54: Zusammenlegungen Agenturen für Arbeit in der Regionaldirektion Sachsen-Anhalt-Thüringen
A55: 022
A56: 023
A57: 024
A58: 025
A59: 026
A60: 027
A61: 028
A62: 029
A63: 030
A64: 031
A65: 032
A66: 033
Z424: 1
Z425: 1
Z426: 1
Z427: 1
Z431: 1
Z432: 1
Z433: 1

Sheet Regionenauswahl (hidden)
A1: AANr | B1: Agenturliste | C1: Agenturen für Arbeit | E1: VT SGB III | F1: VT SGB III | G1: Dst_Nr | H1: Agenturliste_mit_RD | I1: Agenturliste_mit_RD_Titelblock | J1: Agenturliste_mit_RD_eingerückt | K1: BLKrNr | L1: BL und Kreise | M1: Kreisliste | N1: Kreisliste_ohne_Einrücken | O1: Kreisliste_ohne_Einrücken_Titelblock | P1: KrNr | Q1: nur_Kreise | R1: nur_Kreise | S1: Zuordnung_Bundesländer_Kreise | T1: Regionenliste_Karte | U1: RDen_Karte | V1: Regionenschlüssel für Karten | W1: Regionenzuordnung Karten Deutschland | AD1: Regionenzuordnung Agenturen für Karten | AK1: Regionenzuordnung Kreise für Karten | AY1: Vergleichstypen_SGBIII_Titelblock | AZ1: VT_SGBII | BA1: Vergleichstypen_SGBII_Titelblock | BB1: nur Kreise | BC1: VT_SGBII | BE1: Zuordnung_Bundesländer | BF1: Kreisliste_2.Region | BG1: Agenturliste_mit_RD_eingerückt | BH1: nur_Kreise | BI1: Zuordnung_Bundesländer | BJ1: Agenturliste_Titelblock | BK1: Zuordnung_Bundesländer_AA | BL1: Bundesländer | BM1: Agenturliste_mit_Land_eingerückt | BN1: Agenturliste_mit_Land | BO1: Agenturliste_mit_Land_Titelblock | BP1: Zuordnung_Bundesländer_AA | BQ1: Zuordnung_RD_AA | BS1: Unplausible_Regionen_LST
B2: bitte Agentur auswählen | J2: bitte Region auswählen | M2: bitte Region auswählen | Q2: bitte Kreis auswählen | T2: Deutschland | U2: Deutschland | W2: AA_Deutschland | X2: AA_Baden-Württemberg | Y2: AA_Bayern | Z2: AA_Berlin | AA2: AA_Brandenburg und Berlin | AB2: AA_Hessen | AC2: AA_Mecklenburg-Vorpommern | AD2: AA_Niedersachsen und Bremen | AE2: AA_Nordrhein-Westfalen | AF2: AA_Rheinland-Pfalz und Saarland | AG2: AA_Sachsen | AH2: AA_Sachsen-Anhalt | AI2: AA_Schleswig-Holstein und Hamburg | AJ2: AA_Thüringen | AK2: Kreise_Deutschland | AL2: Kreise_Baden-Württemberg | AM2: Kreise_Bayern | AN2: Kreise_Berlin | AO2: Kreise_Brandenburg und Berlin | AP2: Kreise_Hessen | AQ2: Kreise_Mecklenburg-Vorpommern | AR2: Kreise_Niedersachsen und Bremen | AS2: Kreise_Nordrhein-Westfalen | AT2: Kreise_Rheinland-Pfalz und Saarland | AU2: Kreise_Sachsen | AV2: Kreise_Sachsen-Anhalt | AW2: Kreise_Schleswig-Holstein und Hamburg | AX2: Kreise_Thüringen | BD2: bitte Region auswählen | BF2: keine 2. Region ------------------------ | BG2: keine 2. Region ------------------------ | BM2: bitte Region auswählen | BN2: bitte Region auswählen | BS2: 2017_AA Emden – Leer
A3: 311 | B3: AA Aachen – Düren | C3: Aachen – Düren | D3: Nordrhein-Westfalen | E3: IIc Städt. gepr. B. m. leicht überdurch. ALO | F3: keine Einschränkung | G3: 011 | H3: Deutschland | I3: Deutschland | J3: Deutschland | K3: 000 | L3: Deutschland | M3: Deutschland | N3: Deutschland | O3: Deutschland | P3: 05334 | Q3: Städteregion Aachen | R3: Städteregion Aachen | S3: Deutschland | T3: Baden-Württemberg | U3: BW | V3: 08 | W3: 100 RD Nord | X3: 611 AA Aalen | Y3: 711 AA Ansbach – Weißenburg | Z3: 922 AA Berlin Süd | AA3: 035 AA Cottbus | AB3: 411 AA Bad Hersfeld – Fulda | AC3: 030 AA Greifswald | AD3: 214 AA Bremen – Bremerhaven | AE3: 311 AA Aachen – Düren | AF3: 511 AA Bad Kreuznach | AG3: 071 AA Annaberg-Buchholz | AH3: 042 AA Sachsen-Anhalt Ost | AI3: 111 AA Bad Oldesloe | AJ3: 093 AA Thüringen Mitte | AK3: 01 Schleswig-Holstein | AL3: 08111 Stuttgart, Landeshauptstadt | AM3: 09161 Ingolstadt, Stadt | AN3: 92208 Steglitz-Zehlendorf | AO3: 12051 Brandenburg an der Havel, Stadt | AP3: 06411 Darmstadt, Wissenschaftsstadt | AQ3: 13003 Rostock, Hanse- und Universitätsstadt | AR3: 03101 Braunschweig, Stadt | AS3: 05111 Düsseldorf, Stadt | AT3: 07111 Koblenz, kreisfreie Stadt | AU3: 14511 Chemnitz, Stadt | AV3: 15001 Dessau-Roßlau, Stadt | AW3: 01001 Flensburg, Stadt | AX3: 16051 Erfurt, Stadt | AY3: keine Einschränkung | AZ3: keine Einschränkung | BA3: keine Einschränkung | BB3: Vorpommern-Greifswald | BC3: IIId Lkr. in den neuen BL (…) | BD3: Deutschland | BE3: Deutschland | BF3: Deutschland | BG3: Deutschland | BH3: Städteregion Aachen | BI3: Nordrhein-Westfalen | BJ3: Agentur für Arbeit Aachen – Düren | BK3: Nordrhein-Westfalen | BL3: Deutschland | BM3: Deutschland | BN3: Deutschland | BO3: Deutschland | BP3: Deutschland | BQ3: Deutschland | BR3: Deutschland | BS3: 2017_Leer
A4: 611 | B4: AA Aalen | C4: Aalen | D4: Baden-Württemberg | E4: IVa Verd. Bez. m. ind. Orient., g. AM-Lage | F4: I Überw. großst. Bez. im W m. günst. AM-Lage | G4: 600 | H4: RD Baden-Württemberg | I4: Regionaldirektion Baden-Württemberg | J4: RD Baden-Württemberg | L4: Westdeutschland | M4: Westdeutschland | N4: Westdeutschland | O4: Westdeutschland | P4: 07131 | Q4: Ahrweiler | R4: Ahrweiler | S4: Westdeutschland | T4: Bayern | U4: Bayern | V4: 09 | W4: 200 RD Niedersachsen-Bremen | X4: 614 AA Balingen | Y4: 715 AA Aschaffenburg | Z4: 955 AA Berlin Nord | AA4: 036 AA Eberswalde | AB4: 415 AA Darmstadt | AC4: 031 AA Neubrandenburg | AD4: 211 AA Braunschweig – Goslar | AE4: 315 AA Bergisch Gladbach | AF4: 515 AA Kaiserslautern – Pirmasens | AG4: 072 AA Bautzen | AH4: 043 AA Sachsen-Anhalt West | AI4: 115 AA Elmshorn | AJ4: 094 AA Thüringen Ost | AK4: 02 Hamburg | AL4: 08115 Böblingen | AM4: 09162 München, Landeshauptstadt | AN4: 92210 Tempelhof-Schöneberg | AO4: 12052 Cottbus, Stadt | AP4: 06412 Frankfurt am Main, Stadt | AQ4: 13004 Schwerin, Landeshauptstadt | AR4: 03102 Salzgitter, Stadt | AS4: 05112 Duisburg, Stadt | AT4: 07131 Ahrweiler | AU4: 14521 Erzgebirgskreis | AV4: 15002 Halle (Saale), Stadt | AW4: 01002 Kiel, Landeshauptstadt | AX4: 16052 Gera, Stadt | AY4: I: Überwiegend großstädtisch geprägte Bezirke im Westen mit günstiger Arbeitsmarktlage | AZ4: Ia Lkr. m. kleinbetr. gepr. AM (…) | BA4: Ia Landkreise überwiegend in Bayern mit kleinbetrieblich geprägten Arbeitsmärkten, niedrigem Anteil an Geringqualifizierten, hohen Wohnkosten und hohem Bevölkerungszuwachs | BB4: Mecklenburgische Seenplatte | BC4: IIId Lkr. in den neuen BL (…) | BD4: Westdeutschland | BE4: Westdeutschland | BF4: Westdeutschland | BG4: RD Baden-Württemberg | BH4: Ahrweiler | BI4: Rheinland-Pfalz | BJ4: Agentur für Arbeit Aalen | BK4: Baden-Württemberg | BL4: Westdeutschland | BM4: Westdeutschland | BN4: Westdeutschland | BO4: Westdeutschland | BP4: Westdeutschland | BQ4: RD Baden-Württemberg | BR4: RD Baden-Württemberg | BS4: 2014_AA Emden – Leer
A5: 367 | B5: AA Ahlen – Münster | C5: Ahlen – Münster | D5: Nordrhein-Westfalen | E5: IIIa Verd. Bez. m. leicht unterdurchschn. ALO | F5: IIa Großstädtische Bezirke mit erhöhter ALO | G5: 611 | H5: AA Aalen | I5: Agentur für Arbeit Aalen | J5: AA Aalen | L5: Ostdeutschland | M5: Ostdeutschland | N5: Ostdeutschland | O5: Ostdeutschland | P5: 09771 | Q5: Aichach-Friedberg | R5: Aichach-Friedberg | S5: Ostdeutschland | T5: Berlin | U5: Berlin | V5: 95 | W5: 300 RD Nordrhein-Westfalen | X5: 617 AA Freiburg | Y5: 723 AA Bayreuth – Hof | Z5: 962 AA Berlin Mitte | AA5: 037 AA Frankfurt (Oder) | AB5: 419 AA Frankfurt | AC5: 032 AA Rostock | AD5: 221 AA Celle | AE5: 317 AA Bielefeld | AF5: 519 AA Koblenz – Mayen | AG5: 073 AA Chemnitz | AH5: 044 AA Sachsen-Anhalt Süd | AI5: 119 AA Flensburg | AJ5: 097 AA Thüringen Nord | AK5: 03 Niedersachsen | AL5: 08116 Esslingen | AM5: 09163 Rosenheim, Stadt | AN5: 92202 Neukölln | AO5: 12053 Frankfurt (Oder), Stadt | AP5: 06413 Offenbach am Main, Stadt | AQ5: 13071 Mecklenburgische Seenplatte | AR5: 03103 Wolfsburg, Stadt | AS5: 05113 Essen, Stadt | AT5: 07132 Altenkirchen (Westerwald) | AU5: 14522 Mittelsachsen | AV5: 15003 Magdeburg, Landeshauptstadt | AW5: 01003 Lübeck, Hansestadt | AX5: 16053 Jena, Stadt | AY5: IIa: Großstädtische Bezirke mit erhöhter Arbeitslosigkeit | AZ5: Ib Lkr. mit gewerblich gepr. AM (…) | BA5: Ib Landkreise überwiegend in Bayern mit gewerblich geprägtem Arbeitsmarkt, hoher Saisonalität, hoher Arbeitsplatzdichte und hohem Anteil an Kleinbetrieben | BB5: Rostock, Hanse- und Universitätsstadt | BC5: IIIe Überw. Städte in den neuen BL (…) | BD5: Ostdeutschland | BE5: Ostdeutschland | BF5: Ostdeutschland | BG5: AA Aalen | BH5: Aichach-Friedberg | BI5: Bayern | BJ5: Agentur für Arbeit Ahlen – Münster | BK5: Nordrhein-Westfalen | BL5: Ostdeutschland | BM5: Ostdeutschland | BN5: Ostdeutschland | BO5: Ostdeutschland | BP5: Ostdeutschland | BQ5: AA Aalen | BR5: RD Baden-Württemberg | BS5: 2014_AA Nordhorn
A6: 071 | B6: AA Annaberg-Buchholz | C6: Annaberg-Buchholz | D6: Sachsen | E6: Vb Ger. verd. Bez. m. h. ALO | F6: IIb Großstädtische Bezirke m. sehr hoher ALO | G6: 614 | H6: AA Balingen | I6: Agentur für Arbeit Balingen | J6: AA Balingen | K6: 08000 | L6: 08 Baden-Württemberg | M6: Baden-Württemberg | N6: Baden-Württemberg | O6: Land Baden-Württemberg | P6: 08425 | Q6: Alb-Donau-Kreis | R6: Alb-Donau-Kreis | S6: Baden-Württemberg | T6: Brandenburg und Berlin | U6: BB | V6: 12 | W6: 400 RD Hessen | X6: 621 AA Göppingen | Y6: 727 AA Bamberg – Coburg | AA6: 038 AA Neuruppin | AB6: 427 AA Gießen | AC6: 033 AA Schwerin | AD6: 224 AA Emden – Leer | AE6: 321 AA Bochum | AF6: 523 AA Ludwigshafen | AG6: 074 AA Dresden | AH6: 045 AA Sachsen-Anhalt Nord | AI6: 127 AA Heide | AJ6: 098 AA Thüringen Südwest | AK6: 04 Bremen | AL6: 08117 Göppingen | AM6: 09171 Altötting | AN6: 92204 Treptow-Köpenick | AO6: 12054 Potsdam, Stadt | AP6: 06414 Wiesbaden, Landeshauptstadt | AQ6: 13072 Landkreis Rostock | AR6: 03151 Gifhorn | AS6: 05114 Krefeld, Stadt | AT6: 07133 Bad Kreuznach | AU6: 14523 Vogtlandkreis | AV6: 15081 Altmarkkreis Salzwedel | AW6: 01004 Neumünster, Stadt | AX6: 16054 Suhl, Stadt | AY6: IIb: Großstädtische Bezirke mit sehr hoher Arbeitslosigkeit | AZ6: Ic Überw. Lkr. in Süddeutschland (…) | BA6: Ic Überwiegend Landkreise in Süddeutschland mit gewerblich geprägtem Arbeitsmarkt, hohem Beschäftigungspotenzial in einfachen Tätigkeiten und hohem Anteil Geringqualifizierter | BB6: Landkreis Rostock | BC6: IIIa Überw. Lkr. in den neuen BL (…) | BD6: Baden-Württemberg | BE6: Baden-Württemberg | BF6: Baden-Württemberg | BG6: AA Balingen | BH6: Alb-Donau-Kreis | BI6: Baden-Württemberg | BJ6: Agentur für Arbeit Annaberg-Buchholz | BK6: Sachsen | BL6: Schleswig Holstein | BM6: Baden-Württemberg | BN6: Baden-Württemberg | BO6: Baden-Württemberg | BP6: Baden-Württemberg | BQ6: AA Balingen | BR6: RD Baden-Württemberg | BS6: 2014_Emsland
A7: 711 | B7: AA Ansbach – Weißenburg | C7: Ansbach – Weißenburg | D7: Bayern | E7: IVb Ländl. Bez. m. günst. AM-Lage, sais. Dyn | F7: IIc Städt. gepr. B. m. leicht überdurch. ALO | G7: 617 | H7: AA Freiburg | I7: Agentur für Arbeit Freiburg | J7: AA Freiburg | K7: 08425 | L7: 08425 Alb-Donau-Kreis | M7: Alb-Donau-Kreis | N7: Alb-Donau-Kreis | O7: Alb-Donau-Kreis | P7: 16077 | Q7: Altenburger Land | R7: Altenburger Land | S7: Baden-Württemberg | T7: Hessen | U7: Hessen | V7: 06 | W7: 500 RD Rheinland-Pfalz-Saarland | X7: 624 AA Heidelberg | Y7: 729 AA Fürth | AA7: 039 AA Potsdam | AB7: 431 AA Hanau | AC7: 034 AA Stralsund | AD7: 231 AA Göttingen | AE7: 323 AA Bonn | AF7: 527 AA Mainz | AG7: 075 AA Leipzig | AI7: 131 AA Kiel | AK7: 05 Nordrhein-Westfalen | AL7: 08118 Ludwigsburg | AM7: 09172 Berchtesgadener Land | AN7: 95504 Pankow | AO7: 12060 Barnim | AP7: 06431 Bergstraße | AQ7: 13073 Vorpommern-Rügen | AR7: 03159 Göttingen | AS7: 05116 Mönchengladbach, Stadt | AT7: 07134 Birkenfeld | AU7: 14524 Zwickau | AV7: 15082 Anhalt-Bitterfeld | AW7: 01051 Dithmarschen | AX7: 16055 Weimar, Stadt | AY7: IIc: Städtisch geprägte Bezirke mit leicht überdurchschnittlicher Arbeitslosigkeit | AZ7: Id Überw. Lkr. in Baden-Württemberg (…) | BA7: Id Überwiegend Landkreise in Baden-Württemberg mit gewerblich geprägtem Arbeitsmarkt, hohem Beschäftigungspotenzial in einfachen Tätigkeiten und hohem Migrantenanteil | BB7: Schwerin, Landeshauptstadt | BC7: IIIe Überw. Städte in den neuen BL (…) | BD7: Alb-Donau-Kreis | BE7: Baden-Württemberg | BF7: Alb-Donau-Kreis | BG7: AA Freiburg | BH7: Altenburger Land | BI7: Thüringen | BJ7: Agentur für Arbeit Ansbach – Weißenburg | BK7: Bayern | BL7: Hamburg | BM7: AA Aalen | BN7: AA Aalen | BO7: Agentur für Arbeit Aalen | BP7: Baden-Württemberg | BQ7: AA Freiburg | BR7: RD Baden-Württemberg | BS7: 2014_Leer
A8: 715 | B8: AA Aschaffenburg | C8: Aschaffenburg | D8: Bayern | E8: IVb Ländl. Bez. m. günst. AM-Lage, sais. Dyn | F8: IIIa Verd. Bez. m. leicht unterdurchschn. ALO | G8: 621 | H8: AA Göppingen | I8: Agentur für Arbeit Göppingen | J8: AA Göppingen | K8: 08211 | L8: 08211 Baden-Baden, Stadt | M8: Baden-Baden, Stadt | N8: Baden-Baden, Stadt | O8: Baden-Baden, Stadt | P8: 07132 | Q8: Altenkirchen (Westerwald) | R8: Altenkirchen (Westerwald) | S8: Baden-Württemberg | T8: Mecklenburg-Vorpommern | U8: Nord | V8: 13 | W8: 600 RD Baden-Württemberg | X8: 627 AA Heilbronn | Y8: 735 AA Nürnberg | AA8: 922 AA Berlin Süd | AB8: 433 AA Bad Homburg | AD8: 234 AA Hameln | AE8: 325 AA Brühl | AF8: 535 AA Montabaur | AG8: 076 AA Oschatz | AI8: 135 AA Lübeck | AK8: 06 Hessen | AL8: 08119 Rems-Murr-Kreis | AM8: 09173 Bad Tölz-Wolfratshausen | AN8: 95502 Charlottenburg-Wilmersdorf | AO8: 12061 Dahme-Spreewald | AP8: 06432 Darmstadt-Dieburg | AQ8: 13074 Nordwestmecklenburg | AR8: 03153 Goslar | AS8: 05117 Mülheim an der Ruhr, Stadt | AT8: 07135 Cochem-Zell | AU8: 14612 Dresden, Stadt | AV8: 15083 Börde | AW8: 01053 Herzogtum Lauenburg | AX8: 16061 Eichsfeld | AY8: IIIa: Verdichtete Bezirke mit leicht unterdurchschnittlicher Arbeitslosigkeit | AZ8: Ie Regionen abseits der Ballungsräume (…) | BA8: Ie Regionen abseits der Ballungsräume, oftmals an der früheren innerdeutschen Grenze, mit gewerblich geprägtem Arbeitsmarkt und hohem Anteil älterer eLb | BB8: Nordwestmecklenburg | BC8: IIIa Überw. Lkr. in den neuen BL (…) | BD8: Baden-Baden, Stadt | BE8: Baden-Württemberg | BF8: Baden-Baden, Stadt | BG8: AA Göppingen | BH8: Altenkirchen (Westerwald) | BI8: Rheinland-Pfalz | BJ8: Agentur für Arbeit Aschaffenburg | BK8: Bayern | BL8: Niedersachsen | BM8: AA Balingen | BN8: AA Balingen | BO8: Agentur für Arbeit Balingen | BP8: Baden-Württemberg | BQ8: AA Göppingen | BR8: RD Baden-Württemberg | BS8: 2014_AA Rheine
A9: 811 | B9: AA Augsburg | C9: Augsburg | D9: Bayern | E9: IVb Ländl. Bez. m. günst. AM-Lage, sais. Dyn | F9: IIIb Ger. verd. u. länd. B. m. durchschn. ALO | G9: 624 | H9: AA Heidelberg | I9: Agentur für Arbeit Heidelberg | J9: AA Heidelberg | K9: 08426 | L9: 08426 Biberach | M9: Biberach | N9: Biberach | O9: Biberach | P9: 15081 | Q9: Altmarkkreis Salzwedel | R9: Altmarkkreis Salzwedel | S9: Baden-Württemberg | T9: Niedersachsen und Bremen | U9: NSB | V9: 03 | W9: 700 RD Bayern | X9: 631 AA Karlsruhe – Rastatt | Y9: 739 AA Regensburg | AA9: 955 AA Berlin Nord | AB9: 435 AA Kassel | AD9: 237 AA Hannover | AE9: 327 AA Coesfeld | AF9: 543 AA Landau | AG9: 077 AA Pirna | AI9: 139 AA Neumünster | AK9: 07 Rheinland-Pfalz | AL9: 08121 Heilbronn, Universitätsstadt | AM9: 09174 Dachau | AN9: 95508 Spandau | AO9: 12062 Elbe-Elster | AP9: 06433 Groß-Gerau | AQ9: 13075 Vorpommern-Greifswald | AR9: 03154 Helmstedt | AS9: 05119 Oberhausen, Stadt | AT9: 07137 Mayen-Koblenz | AU9: 14625 Bautzen | AV9: 15084 Burgenlandkreis | AW9: 01054 Nordfriesland | AX9: 16062 Nordhausen | AY9: IIIb: Gering verdichtete und ländlich geprägte Bezirke mit durchschnittlicher Arbeitslosigkeit | AZ9: IIa Überw. Lkr. mit ausgepr. Ind.sektor (…) | BA9: IIa Überwiegend Landkreise mit einem ausgeprägten Industriesektor und Niedriglohnbereich bei gleichzeitig hohem Anteil Geringqualifizierter und unterdurchschnittlichen Wohnkosten | BB9: Ludwigslust-Parchim | BC9: IIId Lkr. in den neuen BL (…) | BD9: Biberach | BE9: Baden-Württemberg | BF9: Biberach | BG9: AA Heidelberg | BH9: Altmarkkreis Salzwedel | BI9: Sachsen-Anhalt | BJ9: Agentur für Arbeit Augsburg | BK9: Bayern | BL9: Bremen | BM9: AA Freiburg | BN9: AA Freiburg | BO9: Agentur für Arbeit Freiburg | BP9: Baden-Württemberg | BQ9: AA Heidelberg | BR9: RD Baden-Württemberg | BS9: 2014_Steinfurt
A10: 411 | B10: AA Bad Hersfeld – Fulda | C10: Bad Hersfeld – Fulda | D10: Hessen | E10: IVb Ländl. Bez. m. günst. AM-Lage, sais. Dyn | F10: IVa Verd. Bez. m. ind. Orient., g. AM-Lage | G10: 627 | H10: AA Heilbronn | I10: Agentur für Arbeit Heilbronn | J10: AA Heilbronn | K10: 08115 | L10: 08115 Böblingen | M10: Böblingen | N10: Böblingen | O10: Böblingen | P10: 09171 | Q10: Altötting | R10: Altötting | S10: Baden-Württemberg | T10: Nordrhein-Westfalen | U10: NRW | V10: 05 | W10: 900 RD Berlin-Brandenburg | X10: 634 AA Konstanz – Ravensburg | Y10: 743 AA Schwandorf | AA10: 962 AA Berlin Mitte | AB10: 439 AA Korbach | AD10: 241 AA Helmstedt | AE10: 331 AA Detmold | AF10: 547 AA Neuwied | AG10: 078 AA Plauen | AI10: 123 AA Hamburg | AK10: 08 Baden-Württemberg | AL10: 08125 Heilbronn | AM10: 09175 Ebersberg | AN10: 95506 Reinickendorf | AO10: 12063 Havelland | AP10: 06434 Hochtaunuskreis | AQ10: 13076 Ludwigslust-Parchim | AR10: 03155 Northeim | AS10: 05120 Remscheid, Stadt | AT10: 07138 Neuwied | AU10: 14626 Görlitz | AV10: 15085 Harz | AW10: 01055 Ostholstein | AX10: 16063 Wartburgkreis | AY10: IVa: Verdichtete Bezirke mit industrieller Orientierung und guter Arbeitsmarktlage | AZ10: IIb Städte mit eher ger. SGB II-Quote (…) | BA10: IIb Städte mit eher geringer SGB II-Quote im Vergleich zu anderen Städten, hohem Beschäftigungspotenzial in einfachen Tätigkeiten, günstigen allgemeinen Arbeitsmarktbedingungen im Umland sowie hohen Wohnkosten und hohem Migrantenanteil | BB10: Vorpommern-Rügen | BC10: IIId Lkr. in den neuen BL (…) | BD10: Böblingen | BE10: Baden-Württemberg | BF10: Böblingen | BG10: AA Heilbronn | BH10: Altötting | BI10: Bayern | BJ10: Agentur für Arbeit Bad Hersfeld – Fulda | BK10: Hessen | BL10: Nordrhein-Westfalen | BM10: AA Göppingen | BN10: AA Göppingen | BO10: Agentur für Arbeit Göppingen | BP10: Baden-Württemberg | BQ10: AA Heilbronn | BR10: RD Baden-Württemberg | BS10: 2014_AA Halberstadt
A11: 433 | B11: AA Bad Homburg | C11: Bad Homburg | D11: Hessen | E11: IIIa Verd. Bez. m. leicht unterdurchschn. ALO | F11: IVb Ländl. Bez. m. günst. AM-Lage, sais. Dyn | G11: 631 | H11: AA Karlsruhe – Rastatt | I11: Agentur für Arbeit Karlsruhe – Rastatt | J11: AA Karlsruhe – Rastatt | K11: 08435 | L11: 08435 Bodenseekreis | M11: Bodenseekreis | N11: Bodenseekreis | O11: Bodenseekreis | P11: 07331 | Q11: Alzey-Worms | R11: Alzey-Worms | S11: Baden-Württemberg | T11: Rheinland-Pfalz und Saarland | U11: RPS | V11: 07 | W11: 966 RD Sachsen-Anhalt-Thüringen | X11: 637 AA Lörrach | Y11: 747 AA Schweinfurt | AB11: 443 AA Limburg – Wetzlar | AD11: 244 AA Hildesheim | AE11: 333 AA Dortmund | AF11: 563 AA Trier | AG11: 079 AA Riesa | AK11: 09 Bayern | AL11: 08126 Hohenlohekreis | AM11: 09176 Eichstätt | AN11: 96204 Mitte | AO11: 12064 Märkisch-Oderland | AP11: 06435 Main-Kinzig-Kreis | AR11: 03157 Peine | AS11: 05122 Solingen, Klingenstadt | AT11: 07140 Rhein-Hunsrück-Kreis | AU11: 14627 Meißen | AV11: 15086 Jerichower Land | AW11: 01056 Pinneberg | AX11: 16064 Unstrut-Hainich-Kreis | AY11: IVb: Ländliche Bezirke mit günstiger Arbeitsmarktlage und saisonaler Dynamik | AZ11: IIc Regionen in Schl.-Hols. und Nied.s. (…) | BA11: IIc Regionen schwerpunktmäßig in Schleswig-Holstein und Niedersachsen mit einem sehr ausgeprägtem Niedriglohnbereich und einem hohen Anteil an Kleinbetrieben | BB11: Cottbus, Stadt | BC11: IIIe Überw. Städte in den neuen BL (…) | BD11: Bodenseekreis | BE11: Baden-Württemberg | BF11: Bodenseekreis | BG11: AA Karlsruhe – Rastatt | BH11: Alzey-Worms | BI11: Rheinland-Pfalz | BJ11: Agentur für Arbeit Bad Homburg | BK11: Hessen | BL11: Hessen | BM11: AA Heidelberg | BN11: AA Heidelberg | BO11: Agentur für Arbeit Heidelberg | BP11: Baden-Württemberg | BQ11: AA Karlsruhe – Rastatt | BR11: RD Baden-Württemberg | BS11: 2014_AA Nordhausen
A12: 511 | B12: AA Bad Kreuznach | C12: Bad Kreuznach | D12: Rheinland-Pfalz | E12: IIIb Ger. verd. u. länd. B. m. durchschn. ALO | F12: IVc Ländl. Bez. m. sais. Dyn. u. niedr. ALO | G12: 634 | H12: AA Konstanz – Ravensburg | I12: Agentur für Arbeit Konstanz – Ravensburg | J12: AA Konstanz – Ravensburg | K12: 08315 | L12: 08315 Breisgau-Hochschwarzwald | M12: Breisgau-Hochschwarzwald | N12: Breisgau-Hochschwarzwald | O12: Breisgau-Hochschwarzwald | P12: 09361 | Q12: Amberg, Stadt | R12: Amberg, Stadt | S12: Baden-Württemberg | T12: Sachsen | U12: Sachsen | V12: 14 | W12: 968 RD Sachsen | X12: 641 AA Ludwigsburg | Y12: 751 AA Weiden | AB12: 447 AA Marburg | AD12: 251 AA Lüneburg – Uelzen | AE12: 337 AA Düsseldorf | AF12: 555 AA Saarland | AG12: 080 AA Freiberg | AK12: 10 Saarland | AL12: 08127 Schwäbisch Hall | AM12: 09177 Erding | AN12: 96202 Friedrichshain-Kreuzberg | AO12: 12065 Oberhavel | AP12: 06436 Main-Taunus-Kreis | AR12: 03158 Wolfenbüttel | AS12: 05124 Wuppertal, Stadt | AT12: 07141 Rhein-Lahn-Kreis | AU12: 14628 Sächsische Schweiz-Osterzgebirge | AV12: 15087 Mansfeld-Südharz | AW12: 01057 Plön | AX12: 16065 Kyffhäuserkreis | AY12: IVc: Ländliche Bezirke mit saisonaler Dynamik und niedriger Arbeitslosigkeit | AZ12: IId Überw. Lkr. mit Schwerpunkt in NRW (…) | BA12: IId Überwiegend Landkreise mit Schwerpunkt in Nordrhein-Westfalen mit eher durchschnittlichen Rahmenbedingungen und geringer saisonaler Dynamik | BB12: Elbe-Elster | BC12: IIId Lkr. in den neuen BL (…) | BD12: Breisgau-Hochschwarzwald | BE12: Baden-Württemberg | BF12: Breisgau-Hochschwarzwald | BG12: AA Konstanz – Ravensburg | BH12: Amberg, Stadt | BI12: Bayern | BJ12: Agentur für Arbeit Bad Kreuznach | BK12: Rheinland-Pfalz | BL12: Rheinland-Pfalz | BM12: AA Heilbronn | BN12: AA Heilbronn | BO12: Agentur für Arbeit Heilbronn | BP12: Baden-Württemberg | BQ12: AA Konstanz – Ravensburg | BR12: RD Baden-Württemberg | BS12: 2014_Harz
A13: 111 | B13: AA Bad Oldesloe | C13: Bad Oldesloe | D13: Schleswig-Holstein | E13: IIIa Verd. Bez. m. leicht unterdurchschn. ALO | F13: Va meist großst. B. mit hoher ALO | G13: 637 | H13: AA Lörrach | I13: Agentur für Arbeit Lörrach | J13: AA Lörrach | K13: 08235 | L13: 08235 Calw | M13: Calw | N13: Calw | O13: Calw | P13: 09371 | Q13: Amberg-Sulzbach | R13: Amberg-Sulzbach | S13: Baden-Württemberg | T13: Sachsen-Anhalt | U13: SAT | V13: 15 | X13: 644 AA Mannheim | Y13: 759 AA Würzburg | AB13: 451 AA Offenbach | AD13: 257 AA Nordhorn | AE13: 341 AA Duisburg | AG13: 092 AA Zwickau | AK13: 11 Berlin | AL13: 08128 Main-Tauber-Kreis | AM13: 09178 Freising | AN13: 96206 Marzahn-Hellersdorf | AO13: 12066 Oberspreewald-Lausitz | AP13: 06437 Odenwaldkreis | AR13: 03241 Region Hannover | AS13: 05154 Kleve | AT13: 07143 Westerwaldkreis | AU13: 14713 Leipzig, Stadt | AV13: 15088 Saalekreis | AW13: 01058 Rendsburg-Eckernförde | AX13: 16066 Schmalkalden-Meiningen | AY13: Va: Meist großstädtische Bezirke im Osten mit hoher Arbeitslosigkeit | AZ13: IIe Städte u. verd. Lkr m. ger. SGB II-Quote (…) | BA13: IIe Städte u. (hoch-)verdichtete Lkr m. eher geringer SGB II-Quote i. Vergl. z. ähnl. verdichteten Räumen, sehr hoh. Wohnkosten u. sehr hoh. Migrantenant. sowie durch Großbetriebe gekennzeichneten Arbeitsmärkten m. gering ausgeprägtem Niedriglohnbereich | BB13: Oberspreewald-Lausitz | BC13: IIId Lkr. in den neuen BL (…) | BD13: Calw | BE13: Baden-Württemberg | BF13: Calw | BG13: AA Lörrach | BH13: Amberg-Sulzbach | BI13: Bayern | BJ13: Agentur für Arbeit Bad Oldesloe | BK13: Schleswig-Holstein | BL13: Baden-Württemberg | BM13: AA Karlsruhe – Rastatt | BN13: AA Karlsruhe – Rastatt | BO13: Agentur für Arbeit Karlsruhe – Rastatt | BP13: Baden-Württemberg | BQ13: AA Lörrach | BR13: RD Baden-Württemberg | BS13: 2014_Eichsfeld
A14: 614 | B14: AA Balingen | C14: Balingen | D14: Baden-Württemberg | E14: IVa Verd. Bez. m. ind. Orient., g. AM-Lage | F14: Vb Ger. verd. Bez. m. h. ALO | G14: 641 | H14: AA Ludwigsburg | I14: Agentur für Arbeit Ludwigsburg | J14: AA Ludwigsburg | K14: 08316 | L14: 08316 Emmendingen | M14: Emmendingen | N14: Emmendingen | O14: Emmendingen | P14: 03451 | Q14: Ammerland | R14: Ammerland | S14: Baden-Württemberg | T14: Schleswig-Holstein und Hamburg | U14: Nord | V14: 01 | X14: 647 AA Nagold – Pforzheim | Y14: 811 AA Augsburg | AB14: 459 AA Wiesbaden | AD14: 261 AA Oldenburg – Wilhelmshaven | AE14: 343 AA Essen | AK14: 12 Brandenburg | AL14: 08135 Heidenheim | AM14: 09179 Fürstenfeldbruck | AN14: 96208 Lichtenberg | AO14: 12067 Oder-Spree | AP14: 06438 Offenbach | AR14: 03251 Diepholz | AS14: 05158 Mettmann | AT14: 07211 Trier, kreisfreie Stadt | AU14: 14729 Leipzig | AV14: 15089 Salzlandkreis | AW14: 01059 Schleswig-Flensburg | AX14: 16067 Gotha | AY14: Vb: Gering verdichtete Bezirke im Osten mit hoher Arbeitslosigkeit; zum Teil Grenzlage zum Westen | AZ14: IIIa Überw. Lkr. in den neuen BL (…) | BA14: IIIa Überwiegend Landkreise, meist im Einzugsbereich größerer Städte in den neuen Bundesländern, mit einem sehr hohem Anteil an erwerbstätigen SGB II-Beziehern bei gleichzeitig geringem Beschäftigungspotential in einfachen Tätigkeiten | BB14: Dahme-Spreewald | BC14: IIIe Überw. Städte in den neuen BL (…) | BD14: Emmendingen | BE14: Baden-Württemberg | BF14: Emmendingen | BG14: AA Ludwigsburg | BH14: Ammerland | BI14: Niedersachsen | BJ14: Agentur für Arbeit Balingen | BK14: Baden-Württemberg | BL14: Bayern | BM14: AA Konstanz – Ravensburg | BN14: AA Konstanz – Ravensburg | BO14: Agentur für Arbeit Konstanz – Ravensburg | BP14: Baden-Württemberg | BQ14: AA Ludwigsburg | BR14: RD Baden-Württemberg | BS14: 2012_AA Stuttgart
A15: 727 | B15: AA Bamberg – Coburg | C15: Bamberg – Coburg | D15: Bayern | E15: IVb Ländl. Bez. m. günst. AM-Lage, sais. Dyn | F15: Vc Ländl. Bez. in Ost m. schl. AM-Lage | G15: 644 | H15: AA Mannheim | I15: Agentur für Arbeit Mannheim | J15: AA Mannheim | K15: 08236 | L15: 08236 Enzkreis | M15: Enzkreis | N15: Enzkreis | O15: Enzkreis | P15: 15082 | Q15: Anhalt-Bitterfeld | R15: Anhalt-Bitterfeld | S15: Baden-Württemberg | T15: Thüringen | U15: SAT | V15: 16 | X15: 651 AA Offenburg | Y15: 815 AA Deggendorf | AD15: 264 AA Osnabrück | AE15: 345 AA Gelsenkirchen | AK15: 13 Mecklenburg-Vorpommern | AL15: 08136 Ostalbkreis | AM15: 09180 Garmisch-Partenkirchen | AO15: 12068 Ostprignitz-Ruppin | AP15: 06439 Rheingau-Taunus-Kreis | AR15: 03252 Hameln-Pyrmont | AS15: 05162 Rhein-Kreis Neuss | AT15: 07231 Bernkastel-Wittlich | AU15: 14730 Nordsachsen | AV15: 15090 Stendal | AW15: 01060 Segeberg | AX15: 16068 Sömmerda | AY15: Vc: Ländliche Bezirke im Osten mit schlechter Arbeitsmarktlage | AZ15: IIIb Überw. städt. bzw. verstädt. Reg. (…) | BA15: IIIb Überwiegend städtische bzw. verstädterten Regionen mit hohen Wohnkosten, Dienstleistungsarbeitsmärkten und geringer Arbeitsplatzdichte | BB15: Spree-Neiße | BC15: IIIa Überw. Lkr. in den neuen BL (…) | BD15: Enzkreis | BE15: Baden-Württemberg | BF15: Enzkreis | BG15: AA Mannheim | BH15: Anhalt-Bitterfeld | BI15: Sachsen-Anhalt | BJ15: Agentur für Arbeit Bamberg – Coburg | BK15: Bayern | BL15: Saarland | BM15: AA Lörrach | BN15: AA Lörrach | BO15: Agentur für Arbeit Lörrach | BP15: Baden-Württemberg | BQ15: AA Mannheim | BR15: RD Baden-Württemberg | BS15: 2012_Stuttgart, Landeshauptstadt
A16: 072 | B16: AA Bautzen | C16: Bautzen | D16: Sachsen | E16: Vc Ländl. Bez. in Ost m. schl. AM-Lage | G16: 647 | H16: AA Nagold – Pforzheim | I16: Agentur für Arbeit Nagold – Pforzheim | J16: AA Nagold – Pforzheim | K16: 08116 | L16: 08116 Esslingen | M16: Esslingen | N16: Esslingen | O16: Esslingen | P16: 09571 | Q16: Ansbach | R16: Ansbach | S16: Baden-Württemberg | X16: 664 AA Reutlingen | Y16: 819 AA Donauwörth | AD16: 267 AA Stade | AE16: 347 AA Hagen | AK16: 14 Sachsen | AL16: 08211 Baden-Baden, Stadt | AM16: 09181 Landsberg am Lech | AO16: 12069 Potsdam-Mittelmark | AP16: 06440 Wetteraukreis | AR16: 03254 Hildesheim | AS16: 05166 Viersen | AT16: 07232 Eifelkreis Bitburg-Prüm | AV16: 15091 Wittenberg | AW16: 01061 Steinburg | AX16: 16069 Hildburghausen | AZ16: IIIc Städte bzw. verd. Lkr. in Rhein-Ruhr (…) | BA16: IIIc Städte bzw. (hoch-)verdichtete Landkreise überwiegend im Agglomerationsraum Rhein-Ruhr mit sehr geringer Arbeitsplatzdichte, geringer saisonaler Dynamik bei gleichzeitig hohem Beschäftigungspotential in einfachen Tätigkeiten und hohem Migrantenanteil | BB16: Barnim | BC16: IIIa Überw. Lkr. in den neuen BL (…) | BD16: Esslingen | BE16: Baden-Württemberg | BF16: Esslingen | BG16: AA Nagold – Pforzheim | BH16: Ansbach | BI16: Bayern | BJ16: Agentur für Arbeit Bautzen | BK16: Sachsen | BL16: Berlin | BM16: AA Ludwigsburg | BN16: AA Ludwigsburg | BO16: Agentur für Arbeit Ludwigsburg | BP16: Baden-Württemberg | BQ16: AA Nagold – Pforzheim | BR16: RD Baden-Württemberg
A17: 723 | B17: AA Bayreuth – Hof | C17: Bayreuth – Hof | D17: Bayern | E17: IVb Ländl. Bez. m. günst. AM-Lage, sais. Dyn | G17: 651 | H17: AA Offenburg | I17: Agentur für Arbeit Offenburg | J17: AA Offenburg | K17: 08311 | L17: 08311 Freiburg im Breisgau, Stadt | M17: Freiburg im Breisgau, Stadt | N17: Freiburg im Breisgau, Stadt | O17: Freiburg im Breisgau, Stadt | P17: 09561 | Q17: Ansbach, Stadt | R17: Ansbach, Stadt | S17: Baden-Württemberg | X17: 671 AA Waiblingen | Y17: 823 AA Freising | AD17: 274 AA Vechta | AE17: 351 AA Hamm | AK17: 15 Sachsen-Anhalt | AL17: 08212 Karlsruhe, Stadt | AM17: 09182 Miesbach | AO17: 12070 Prignitz | AP17: 06531 Gießen | AR17: 03255 Holzminden | AS17: 05170 Wesel | AT17: 07233 Vulkaneifel | AW17: 01062 Stormarn | AX17: 16070 Ilm-Kreis | AZ17: IIId Lkr. in den neuen BL (…) | BA17: IIId Landkreise in den neuen Bundesländern mit sehr geringem Beschäftigungspotential in einfachen Tätigkeiten bei gleichzeitig hoher saisonaler Dynamik und sehr hoher Tendenz zur Verfestigung des Langzeitleistungsbezugs | BB17: Uckermark | BC17: IIId Lkr. in den neuen BL (…) | BD17: Freiburg im Breisgau, Stadt | BE17: Baden-Württemberg | BF17: Freiburg im Breisgau, Stadt | BG17: AA Offenburg | BH17: Ansbach, Stadt | BI17: Bayern | BJ17: Agentur für Arbeit Bayreuth – Hof | BK17: Bayern | BL17: Brandenburg | BM17: AA Mannheim | BN17: AA Mannheim | BO17: Agentur für Arbeit Mannheim | BP17: Baden-Württemberg | BQ17: AA Offenburg | BR17: RD Baden-Württemberg
A18: 315 | B18: AA Bergisch Gladbach | C18: Bergisch Gladbach | D18: Nordrhein-Westfalen | E18: IIc Städt. gepr. B. m. leicht überdurch. ALO | G18: 664 | H18: AA Reutlingen | I18: Agentur für Arbeit Reutlingen | J18: AA Reutlingen | K18: 08237 | L18: 08237 Freudenstadt | M18: Freudenstadt | N18: Freudenstadt | O18: Freudenstadt | P18: 09671 | Q18: Aschaffenburg | R18: Aschaffenburg | S18: Baden-Württemberg | X18: 674 AA Schwäbisch Hall – Tauberbischofsheim | Y18: 827 AA Ingolstadt | AD18: 277 AA Nienburg – Verden | AE18: 353 AA Herford | AK18: 16 Thüringen | AL18: 08215 Karlsruhe | AM18: 09183 Mühldorf a.Inn | AO18: 12071 Spree-Neiße | AP18: 06532 Lahn-Dill-Kreis | AR18: 03256 Nienburg (Weser) | AS18: 05314 Bonn, Stadt | AT18: 07235 Trier-Saarburg | AW18: 02000 Hamburg, Freie und Hansestadt | AX18: 16071 Weimarer Land | AZ18: IIIe Überw. Städte in den neuen BL (…) | BA18: IIIe Überwiegend Städte in den neuen Bundesländern mit geringem Beschäftigungspotenzial in einfachen Tätigkeiten und hohem Risiko zur Verfestigung des Langzeitleistungsbezugs | BB18: Frankfurt (Oder), Stadt | BC18: IIIe Überw. Städte in den neuen BL (…) | BD18: Freudenstadt | BE18: Baden-Württemberg | BF18: Freudenstadt | BG18: AA Reutlingen | BH18: Aschaffenburg | BI18: Bayern | BJ18: Agentur für Arbeit Bergisch Gladbach | BK18: Nordrhein-Westfalen | BL18: Mecklenburg-Vorpommern | BM18: AA Nagold – Pforzheim | BN18: AA Nagold – Pforzheim | BO18: Agentur für Arbeit Nagold – Pforzheim | BP18: Baden-Württemberg | BQ18: AA Reutlingen | BR18: RD Baden-Württemberg
A19: 962 | B19: AA Berlin Mitte | C19: Berlin Mitte | D19: Berlin | E19: IIb Großstädtische Bezirke m. sehr hoher ALO | G19: 687 | H19: AA Rottweil – Villingen-Schwenningen | I19: Agentur für Arbeit Rottweil – Villingen-Schwenningen | J19: AA Rottweil – Villingen-Schwenningen | K19: 08117 | L19: 08117 Göppingen | M19: Göppingen | N19: Göppingen | O19: Göppingen | P19: 09661 | Q19: Aschaffenburg, Stadt | R19: Aschaffenburg, Stadt | S19: Baden-Württemberg | X19: 677 AA Stuttgart | Y19: 831 AA Kempten – Memmingen | AE19: 355 AA Iserlohn | AL19: 08216 Rastatt | AM19: 09184 München | AO19: 12072 Teltow-Fläming | AP19: 06533 Limburg-Weilburg | AR19: 03257 Schaumburg | AS19: 05315 Köln, Stadt | AT19: 07311 Frankenthal (Pfalz), kreisfreie Stadt | AX19: 16072 Sonneberg | BB19: Oder-Spree | BC19: IIIa Überw. Lkr. in den neuen BL (…) | BD19: Göppingen | BE19: Baden-Württemberg | BF19: Göppingen | BG19: AA Rottweil – Villingen-Schwenningen | BH19: Aschaffenburg, Stadt | BI19: Bayern | BJ19: Agentur für Arbeit Berlin Mitte | BK19: Berlin | BL19: Sachsen | BM19: AA Offenburg | BN19: AA Offenburg | BO19: Agentur für Arbeit Offenburg | BP19: Baden-Württemberg | BQ19: AA Rottweil – Villingen-Schwenningen | BR19: RD Baden-Württemberg
A20: 955 | B20: AA Berlin Nord | C20: Berlin Nord | D20: Berlin | E20: IIb Großstädtische Bezirke m. sehr hoher ALO | G20: 674 | H20: AA Schwäbisch Hall – Tauberbischofsheim | I20: Agentur für Arbeit Schwäbisch Hall – Tauberbischofsheim | J20: AA Schwäbisch Hall – Tauberbischofsheim | K20: 08221 | L20: 08221 Heidelberg, Stadt | M20: Heidelberg, Stadt | N20: Heidelberg, Stadt | O20: Heidelberg, Stadt | P20: 09772 | Q20: Augsburg | R20: Augsburg | S20: Baden-Württemberg | X20: 684 AA Ulm | Y20: 835 AA Landshut – Pfarrkirchen | AE20: 357 AA Köln | AL20: 08221 Heidelberg, Stadt | AM20: 09185 Neuburg-Schrobenhausen | AO20: 12073 Uckermark | AP20: 06534 Marburg-Biedenkopf | AR20: 03351 Celle | AS20: 05316 Leverkusen, Stadt | AT20: 07312 Kaiserslautern, kreisfreie Stadt | AX20: 16073 Saalfeld-Rudolstadt | BB20: Märkisch-Oderland | BC20: IIIa Überw. Lkr. in den neuen BL (…) | BD20: Heidelberg, Stadt | BE20: Baden-Württemberg | BF20: Heidelberg, Stadt | BG20: AA Schwäbisch Hall – Tauberbischofsheim | BH20: Augsburg | BI20: Bayern | BJ20: Agentur für Arbeit Berlin Nord | BK20: Berlin | BL20: Sachsen-Anhalt | BM20: AA Reutlingen | BN20: AA Reutlingen | BO20: Agentur für Arbeit Reutlingen | BP20: Baden-Württemberg | BQ20: AA Schwäbisch Hall – Tauberbischofsheim | BR20: RD Baden-Württemberg
A21: 922 | B21: AA Berlin Süd | C21: Berlin Süd | D21: Berlin | E21: IIb Großstädtische Bezirke m. sehr hoher ALO | G21: 677 | H21: AA Stuttgart | I21: Agentur für Arbeit Stuttgart | J21: AA Stuttgart | K21: 08135 | L21: 08135 Heidenheim | M21: Heidenheim | N21: Heidenheim | O21: Heidenheim | P21: 09761 | Q21: Augsburg, Stadt | R21: Augsburg, Stadt | S21: Baden-Württemberg | X21: 687 AA Rottweil – Villingen-Schwenningen | Y21: 843 AA München | AE21: 361 AA Krefeld | AL21: 08222 Mannheim, Universitätsstadt | AM21: 09186 Pfaffenhofen a.d.Ilm | AO21: 11000 Berlin | AP21: 06535 Vogelsbergkreis | AR21: 03352 Cuxhaven | AS21: 05334 Städteregion Aachen | AT21: 07313 Landau in der Pfalz, kreisfreie Stadt | AX21: 16074 Saale-Holzland-Kreis | BB21: Ostprignitz-Ruppin | BC21: IIId Lkr. in den neuen BL (…) | BD21: Heidenheim | BE21: Baden-Württemberg | BF21: Heidenheim | BG21: AA Stuttgart | BH21: Augsburg, Stadt | BI21: Bayern | BJ21: Agentur für Arbeit Berlin Süd | BK21: Berlin | BL21: Thüringen | BM21: AA Rottweil – Villingen-Schwenningen | BN21: AA Rottweil – Villingen-Schwenningen | BO21: Agentur für Arbeit Rottweil – Villingen – Schwenningen | BP21: Baden-Württemberg | BQ21: AA Stuttgart | BR21: RD Baden-Württemberg
A22: 317 | B22: AA Bielefeld | C22: Bielefeld | D22: Nordrhein-Westfalen | E22: IIIa Verd. Bez. m. leicht unterdurchschn. ALO | G22: 684 | H22: AA Ulm | I22: Agentur für Arbeit Ulm | J22: AA Ulm | K22: 08125 | L22: 08125 Heilbronn | M22: Heilbronn | N22: Heilbronn | O22: Heilbronn | P22: 03452 | Q22: Aurich | R22: Aurich | S22: Baden-Württemberg | Y22: 847 AA Passau | AE22: 364 AA Mettmann | AL22: 08225 Neckar-Odenwald-Kreis | AM22: 09187 Rosenheim | AP22: 06611 Kassel, documenta-Stadt | AR22: 03353 Harburg | AS22: 05358 Düren | AT22: 07314 Ludwigshafen am Rhein, kreisfreie Stadt | AX22: 16075 Saale-Orla-Kreis | BB22: Prignitz | BC22: IIId Lkr. in den neuen BL (…) | BD22: Heilbronn | BE22: Baden-Württemberg | BF22: Heilbronn | BG22: AA Ulm | BH22: Aurich | BI22: Niedersachsen | BJ22: Agentur für Arbeit Bielefeld | BK22: Nordrhein-Westfalen | BM22: AA Schwäbisch Hall – Tauberbischofsheim | BN22: AA Schwäbisch Hall – Tauberbischofsheim | BO22: Agentur für Arbeit Schwäbisch Hall – Tauberbischofsheim | BP22: Baden-Württemberg | BQ22: AA Ulm | BR22: RD Baden-Württemberg
A23: 321 | B23: AA Bochum | C23: Bochum | D23: Nordrhein-Westfalen | E23: IIb Großstädtische Bezirke m. sehr hoher ALO | G23: 671 | H23: AA Waiblingen | I23: Agentur für Arbeit Waiblingen | J23: AA Waiblingen | K23: 08121 | L23: 08121 Heilbronn, Universitätsstadt | M23: Heilbronn, Universitätsstadt | N23: Heilbronn, Universitätsstadt | O23: Heilbronn, Universitätsstadt | P23: 07332 | Q23: Bad Dürkheim | R23: Bad Dürkheim | S23: Baden-Württemberg | Y23: 855 AA Rosenheim | AE23: 365 AA Mönchengladbach | AL23: 08226 Rhein-Neckar-Kreis | AM23: 09188 Starnberg | AP23: 06631 Fulda | AR23: 03354 Lüchow-Dannenberg | AS23: 05362 Rhein-Erft-Kreis | AT23: 07315 Mainz, kreisfreie Stadt | AX23: 16076 Greiz | BB23: Oberhavel | BC23: IIIa Überw. Lkr. in den neuen BL (…) | BD23: Heilbronn, Universitätsstadt | BE23: Baden-Württemberg | BF23: Heilbronn, Universitätsstadt | BG23: AA Waiblingen | BH23: Bad Dürkheim | BI23: Rheinland-Pfalz | BJ23: Agentur für Arbeit Bochum | BK23: Nordrhein-Westfalen | BM23: AA Stuttgart | BN23: AA Stuttgart | BO23: Agentur für Arbeit Stuttgart | BP23: Baden-Württemberg | BQ23: AA Waiblingen | BR23: RD Baden-Württemberg
A24: 323 | B24: AA Bonn | C24: Bonn | D24: Nordrhein-Westfalen | E24: IIIa Verd. Bez. m. leicht unterdurchschn. ALO | G24: 700 | H24: RD Bayern | I24: Regionaldirektion Bayern | J24: RD Bayern | K24: 08126 | L24: 08126 Hohenlohekreis | M24: Hohenlohekreis | N24: Hohenlohekreis | O24: Hohenlohekreis | P24: 09672 | Q24: Bad Kissingen | R24: Bad Kissingen | S24: Baden-Württemberg | Y24: 859 AA Traunstein | AE24: 367 AA Ahlen – Münster | AL24: 08231 Pforzheim, Stadt | AM24: 09189 Traunstein | AP24: 06632 Hersfeld-Rotenburg | AR24: 03355 Lüneburg | AS24: 05366 Euskirchen | AT24: 07316 Neustadt an der Weinstraße, kreisfreie Stadt | AX24: 16077 Altenburger Land | BB24: Havelland | BC24: IIIa Überw. Lkr. in den neuen BL (…) | BD24: Hohenlohekreis | BE24: Baden-Württemberg | BF24: Hohenlohekreis | BG24: RD Bayern | BH24: Bad Kissingen | BI24: Bayern | BJ24: Agentur für Arbeit Bonn | BK24: Nordrhein-Westfalen | BM24: AA Ulm | BN24: AA Ulm | BO24: Agentur für Arbeit Ulm | BP24: Baden-Württemberg | BQ24: RD Bayern | BR24: RD Bayern
A25: 211 | B25: AA Braunschweig – Goslar | C25: Braunschweig – Goslar | D25: Niedersachsen | E25: IIIa Verd. Bez. m. leicht unterdurchschn. ALO | G25: 711 | H25: AA Ansbach – Weißenburg | I25: Agentur für Arbeit Ansbach – Weißenburg | J25: AA Ansbach – Weißenburg | K25: 08215 | L25: 08215 Karlsruhe | M25: Karlsruhe | N25: Karlsruhe | O25: Karlsruhe | P25: 07133 | Q25: Bad Kreuznach | R25: Bad Kreuznach | S25: Baden-Württemberg | Y25: 863 AA Weilheim | AE25: 371 AA Oberhausen | AL25: 08235 Calw | AM25: 09190 Weilheim-Schongau | AP25: 06633 Kassel | AR25: 03356 Osterholz | AS25: 05370 Heinsberg | AT25: 07317 Pirmasens, kreisfreie Stadt | BB25: Brandenburg an der Havel, Stadt | BC25: IIIe Überw. Städte in den neuen BL (…) | BD25: Karlsruhe | BE25: Baden-Württemberg | BF25: Karlsruhe | BG25: AA Ansbach – Weißenburg | BH25: Bad Kreuznach | BI25: Rheinland-Pfalz | BJ25: Agentur für Arbeit Braunschweig – Goslar | BK25: Niedersachsen | BM25: AA Waiblingen | BN25: AA Waiblingen | BO25: Agentur für Arbeit Waiblingen | BP25: Baden-Württemberg | BQ25: AA Ansbach – Weißenburg | BR25: RD Bayern
A26: 214 | B26: AA Bremen – Bremerhaven | C26: Bremen – Bremerhaven | D26: Bremen | E26: IIb Großstädtische Bezirke m. sehr hoher ALO | G26: 715 | H26: AA Aschaffenburg | I26: Agentur für Arbeit Aschaffenburg | J26: AA Aschaffenburg | K26: 08212 | L26: 08212 Karlsruhe, Stadt | M26: Karlsruhe, Stadt | N26: Karlsruhe, Stadt | O26: Karlsruhe, Stadt | P26: 09173 | Q26: Bad Tölz-Wolfratshausen | R26: Bad Tölz-Wolfratshausen | S26: Baden-Württemberg | AE26: 373 AA Paderborn | AL26: 08236 Enzkreis | AM26: 09261 Landshut, Stadt | AP26: 06634 Schwalm-Eder-Kreis | AR26: 03357 Rotenburg (Wümme) | AS26: 05374 Oberbergischer Kreis | AT26: 07318 Speyer, kreisfreie Stadt | BB26: Potsdam, Stadt | BC26: IIIe Überw. Städte in den neuen BL (…) | BD26: Karlsruhe, Stadt | BE26: Baden-Württemberg | BF26: Karlsruhe, Stadt | BG26: AA Aschaffenburg | BH26: Bad Tölz-Wolfratshausen | BI26: Bayern | BJ26: Agentur für Arbeit Bremen – Bremerhaven | BK26: Bremen | BM26: Bayern | BN26: Bayern | BO26: Bayern | BP26: Bayern | BQ26: AA Aschaffenburg | BR26: RD Bayern
A27: 325 | B27: AA Brühl | C27: Brühl | D27: Nordrhein-Westfalen | E27: IIc Städt. gepr. B. m. leicht überdurch. ALO | G27: 811 | H27: AA Augsburg | I27: Agentur für Arbeit Augsburg | J27: AA Augsburg | K27: 08335 | L27: 08335 Konstanz | M27: Konstanz | N27: Konstanz | O27: Konstanz | P27: 08211 | Q27: Baden-Baden, Stadt | R27: Baden-Baden, Stadt | S27: Baden-Württemberg | AE27: 375 AA Recklinghausen | AL27: 08237 Freudenstadt | AM27: 09262 Passau, Stadt | AP27: 06635 Waldeck-Frankenberg | AR27: 03358 Heidekreis | AS27: 05378 Rheinisch-Bergischer Kreis | AT27: 07319 Worms, kreisfreie Stadt | BB27: Teltow-Fläming | BC27: IIIa Überw. Lkr. in den neuen BL (…) | BD27: Konstanz | BE27: Baden-Württemberg | BF27: Konstanz | BG27: AA Augsburg | BH27: Baden-Baden, Stadt | BI27: Baden-Württemberg | BJ27: Agentur für Arbeit Brühl | BK27: Nordrhein-Westfalen | BM27: AA Ansbach – Weißenburg | BN27: AA Ansbach – Weißenburg | BO27: Agentur für Arbeit Ansbach – Weißenburg | BP27: Bayern | BQ27: AA Augsburg | BR27: RD Bayern
A28: 221 | B28: AA Celle | C28: Celle | D28: Niedersachsen | E28: IIIb Ger. verd. u. länd. B. m. durchschn. ALO | G28: 727 | H28: AA Bamberg – Coburg | I28: Agentur für Arbeit Bamberg – Coburg | J28: AA Bamberg – Coburg | K28: 08336 | L28: 08336 Lörrach | M28: Lörrach | N28: Lörrach | O28: Lörrach | P28: 09471 | Q28: Bamberg | R28: Bamberg | S28: Baden-Württemberg | AE28: 377 AA Rheine | AL28: 08311 Freiburg im Breisgau, Stadt | AM28: 09263 Straubing, Stadt | AP28: 06636 Werra-Meißner-Kreis | AR28: 03359 Stade | AS28: 05382 Rhein-Sieg-Kreis | AT28: 07320 Zweibrücken, kreisfreie Stadt | BB28: Potsdam-Mittelmark | BC28: IIIa Überw. Lkr. in den neuen BL (…) | BD28: Lörrach | BE28: Baden-Württemberg | BF28: Lörrach | BG28: AA Bamberg – Coburg | BH28: Bamberg | BI28: Bayern | BJ28: Agentur für Arbeit Celle | BK28: Niedersachsen | BM28: AA Aschaffenburg | BN28: AA Aschaffenburg | BO28: Agentur für Arbeit Aschaffenburg | BP28: Bayern | BQ28: AA Bamberg – Coburg | BR28: RD Bayern
A29: 073 | B29: AA Chemnitz | C29: Chemnitz | D29: Sachsen | E29: Va meist großst. B. mit hoher ALO | G29: 723 | H29: AA Bayreuth – Hof | I29: Agentur für Arbeit Bayreuth – Hof | J29: AA Bayreuth – Hof | K29: 08118 | L29: 08118 Ludwigsburg | M29: Ludwigsburg | N29: Ludwigsburg | O29: Ludwigsburg | P29: 09461 | Q29: Bamberg, Stadt | R29: Bamberg, Stadt | S29: Baden-Württemberg | AE29: 381 AA Siegen | AL29: 08315 Breisgau-Hochschwarzwald | AM29: 09271 Deggendorf | AR29: 03360 Uelzen | AS29: 05512 Bottrop, Stadt | AT29: 07331 Alzey-Worms | BB29: Salzlandkreis | BC29: IIId Lkr. in den neuen BL (…) | BD29: Ludwigsburg | BE29: Baden-Württemberg | BF29: Ludwigsburg | BG29: AA Bayreuth – Hof | BH29: Bamberg, Stadt | BI29: Bayern | BJ29: Agentur für Arbeit Chemnitz | BK29: Sachsen | BM29: AA Augsburg | BN29: AA Augsburg | BO29: Agentur für Arbeit Augsburg | BP29: Bayern | BQ29: AA Bayreuth – Hof | BR29: RD Bayern
A30: 327 | B30: AA Coesfeld | C30: Coesfeld | D30: Nordrhein-Westfalen | E30: IVa Verd. Bez. m. ind. Orient., g. AM-Lage | G30: 815 | H30: AA Deggendorf | I30: Agentur für Arbeit Deggendorf | J30: AA Deggendorf | K30: 08128 | L30: 08128 Main-Tauber-Kreis | M30: Main-Tauber-Kreis | N30: Main-Tauber-Kreis | O30: Main-Tauber-Kreis | P30: 12060 | Q30: Barnim | R30: Barnim | S30: Baden-Württemberg | AE30: 383 AA Meschede – Soest | AL30: 08316 Emmendingen | AM30: 09272 Freyung-Grafenau | AR30: 03361 Verden | AS30: 05513 Gelsenkirchen, Stadt | AT30: 07332 Bad Dürkheim | BB30: Dessau-Roßlau, Stadt | BC30: IIId Lkr. in den neuen BL (…) | BD30: Main-Tauber-Kreis | BE30: Baden-Württemberg | BF30: Main-Tauber-Kreis | BG30: AA Deggendorf | BH30: Barnim | BI30: Brandenburg | BJ30: Agentur für Arbeit Coesfeld | BK30: Nordrhein-Westfalen | BM30: AA Bamberg – Coburg | BN30: AA Bamberg – Coburg | BO30: Agentur für Arbeit Bamberg – Coburg | BP30: Bayern | BQ30: AA Deggendorf | BR30: RD Bayern
A31: 035 | B31: AA Cottbus | C31: Cottbus | D31: Brandenburg | E31: Vc Ländl. Bez. in Ost m. schl. AM-Lage | G31: 819 | H31: AA Donauwörth | I31: Agentur für Arbeit Donauwörth | J31: AA Donauwörth | K31: 08222 | L31: 08222 Mannheim, Universitätsstadt | M31: Mannheim, Universitätsstadt | N31: Mannheim, Universitätsstadt | O31: Mannheim, Universitätsstadt | P31: 14625 | Q31: Bautzen | R31: Bautzen | S31: Baden-Württemberg | AE31: 387 AA Wesel | AL31: 08317 Ortenaukreis | AM31: 09273 Kelheim | AR31: 03401 Delmenhorst, Stadt | AS31: 05515 Münster, Stadt | AT31: 07333 Donnersbergkreis | BB31: Anhalt-Bitterfeld | BC31: IIId Lkr. in den neuen BL (…) | BD31: Mannheim, Universitätsstadt | BE31: Baden-Württemberg | BF31: Mannheim, Universitätsstadt | BG31: AA Donauwörth | BH31: Bautzen | BI31: Sachsen | BJ31: Agentur für Arbeit Cottbus | BK31: Brandenburg | BM31: AA Bayreuth – Hof | BN31: AA Bayreuth – Hof | BO31: Agentur für Arbeit Bayreuth – Hof | BP31: Bayern | BQ31: AA Donauwörth | BR31: RD Bayern
A32: 415 | B32: AA Darmstadt | C32: Darmstadt | D32: Hessen | E32: IIIa Verd. Bez. m. leicht unterdurchschn. ALO | G32: 823 | H32: AA Freising | I32: Agentur für Arbeit Freising | J32: AA Freising | K32: 08225 | L32: 08225 Neckar-Odenwald-Kreis | M32: Neckar-Odenwald-Kreis | N32: Neckar-Odenwald-Kreis | O32: Neckar-Odenwald-Kreis | P32: 09472 | Q32: Bayreuth | R32: Bayreuth | S32: Baden-Württemberg | AE32: 391 AA Solingen – Wuppertal | AL32: 08325 Rottweil | AM32: 09274 Landshut | AR32: 03402 Emden, Stadt | AS32: 05554 Borken | AT32: 07334 Germersheim | BB32: Wittenberg | BC32: IIId Lkr. in den neuen BL (…) | BD32: Neckar-Odenwald-Kreis | BE32: Baden-Württemberg | BF32: Neckar-Odenwald-Kreis | BG32: AA Freising | BH32: Bayreuth | BI32: Bayern | BJ32: Agentur für Arbeit Darmstadt | BK32: Hessen | BM32: AA Deggendorf | BN32: AA Deggendorf | BO32: Agentur für Arbeit Deggendorf | BP32: Bayern | BQ32: AA Freising | BR32: RD Bayern
A33: 815 | B33: AA Deggendorf | C33: Deggendorf | D33: Bayern | E33: IVc Ländl. Bez. m. sais. Dyn. u. niedr. ALO | G33: 729 | H33: AA Fürth | I33: Agentur für Arbeit Fürth | J33: AA Fürth | K33: 08317 | L33: 08317 Ortenaukreis | M33: Ortenaukreis | N33: Ortenaukreis | O33: Ortenaukreis | P33: 09462 | Q33: Bayreuth, Stadt | R33: Bayreuth, Stadt | S33: Baden-Württemberg | AL33: 08326 Schwarzwald-Baar-Kreis | AM33: 09275 Passau | AR33: 03403 Oldenburg (Oldenburg), Stadt | AS33: 05558 Coesfeld | AT33: 07335 Kaiserslautern | BB33: Harz | BC33: IIId Lkr. in den neuen BL (…) | BD33: Ortenaukreis | BE33: Baden-Württemberg | BF33: Ortenaukreis | BG33: AA Fürth | BH33: Bayreuth, Stadt | BI33: Bayern | BJ33: Agentur für Arbeit Deggendorf | BK33: Bayern | BM33: AA Donauwörth | BN33: AA Donauwörth | BO33: Agentur für Arbeit Donauwörth | BP33: Bayern | BQ33: AA Fürth | BR33: RD Bayern
A34: 331 | B34: AA Detmold | C34: Detmold | D34: Nordrhein-Westfalen | E34: IIIa Verd. Bez. m. leicht unterdurchschn. ALO | G34: 827 | H34: AA Ingolstadt | I34: Agentur für Arbeit Ingolstadt | J34: AA Ingolstadt | K34: 08136 | L34: 08136 Ostalbkreis | M34: Ostalbkreis | N34: Ostalbkreis | O34: Ostalbkreis | P34: 09172 | Q34: Berchtesgadener Land | R34: Berchtesgadener Land | S34: Baden-Württemberg | AL34: 08327 Tuttlingen | AM34: 09276 Regen | AR34: 03404 Osnabrück, Stadt | AS34: 05562 Recklinghausen | AT34: 07336 Kusel | BB34: Halle (Saale), Stadt | BC34: IIIe Überw. Städte in den neuen BL (…) | BD34: Ostalbkreis | BE34: Baden-Württemberg | BF34: Ostalbkreis | BG34: AA Ingolstadt | BH34: Berchtesgadener Land | BI34: Bayern | BJ34: Agentur für Arbeit Detmold | BK34: Nordrhein-Westfalen | BM34: AA Freising | BN34: AA Freising | BO34: Agentur für Arbeit Freising | BP34: Bayern | BQ34: AA Ingolstadt | BR34: RD Bayern
A35: 819 | B35: AA Donauwörth | C35: Donauwörth | D35: Bayern | E35: IVb Ländl. Bez. m. günst. AM-Lage, sais. Dyn | G35: 831 | H35: AA Kempten – Memmingen | I35: Agentur für Arbeit Kempten – Memmingen | J35: AA Kempten – Memmingen | K35: 08231 | L35: 08231 Pforzheim, Stadt | M35: Pforzheim, Stadt | N35: Pforzheim, Stadt | O35: Pforzheim, Stadt | P35: 06431 | Q35: Bergstraße | R35: Bergstraße | S35: Baden-Württemberg | AL35: 08335 Konstanz | AM35: 09277 Rottal-Inn | AR35: 03405 Wilhelmshaven, Stadt | AS35: 05566 Steinfurt | AT35: 07337 Südliche Weinstraße | BB35: Saalekreis | BC35: IIId Lkr. in den neuen BL (…) | BD35: Pforzheim, Stadt | BE35: Baden-Württemberg | BF35: Pforzheim, Stadt | BG35: AA Kempten – Memmingen | BH35: Bergstraße | BI35: Hessen | BJ35: Agentur für Arbeit Donauwörth | BK35: Bayern | BM35: AA Fürth | BN35: AA Fürth | BO35: Agentur für Arbeit Fürth | BP35: Bayern | BQ35: AA Kempten – Memmingen | BR35: RD Bayern
A36: 333 | B36: AA Dortmund | C36: Dortmund | D36: Nordrhein-Westfalen | E36: IIb Großstädtische Bezirke m. sehr hoher ALO | G36: 835 | H36: AA Landshut – Pfarrkirchen | I36: Agentur für Arbeit Landshut – Pfarrkirchen | J36: AA Landshut – Pfarrkirchen | K36: 08216 | L36: 08216 Rastatt | M36: Rastatt | N36: Rastatt | O36: Rastatt | P36: 07231 | Q36: Bernkastel-Wittlich | R36: Bernkastel-Wittlich | S36: Baden-Württemberg | AL36: 08336 Lörrach | AM36: 09278 Straubing-Bogen | AR36: 03451 Ammerland | AS36: 05570 Warendorf | AT36: 07338 Rhein-Pfalz-Kreis | BB36: Magdeburg, Landeshauptstadt | BC36: IIIe Überw. Städte in den neuen BL (…) | BD36: Rastatt | BE36: Baden-Württemberg | BF36: Rastatt | BG36: AA Landshut – Pfarrkirchen | BH36: Bernkastel-Wittlich | BI36: Rheinland-Pfalz | BJ36: Agentur für Arbeit Dortmund | BK36: Nordrhein-Westfalen | BM36: AA Ingolstadt | BN36: AA Ingolstadt | BO36: Agentur für Arbeit Ingolstadt | BP36: Bayern | BQ36: AA Landshut – Pfarrkirchen | BR36: RD Bayern
A37: 074 | B37: AA Dresden | C37: Dresden | D37: Sachsen | E37: Va meist großst. B. mit hoher ALO | G37: 843 | H37: AA München | I37: Agentur für Arbeit München | J37: AA München | K37: 08436 | L37: 08436 Ravensburg | M37: Ravensburg | N37: Ravensburg | O37: Ravensburg | P37: 08426 | Q37: Biberach | R37: Biberach | S37: Baden-Württemberg | AL37: 08337 Waldshut | AM37: 09279 Dingolfing-Landau | AR37: 03452 Aurich | AS37: 05711 Bielefeld, Stadt | AT37: 07339 Mainz-Bingen | BB37: Jerichower Land | BC37: IIId Lkr. in den neuen BL (…) | BD37: Ravensburg | BE37: Baden-Württemberg | BF37: Ravensburg | BG37: AA München | BH37: Biberach | BI37: Baden-Württemberg | BJ37: Agentur für Arbeit Dresden | BK37: Sachsen | BM37: AA Kempten – Memmingen | BN37: AA Kempten – Memmingen | BO37: Agentur für Arbeit Kempten – Memmingen | BP37: Bayern | BQ37: AA München | BR37: RD Bayern
A38: 341 | B38: AA Duisburg | C38: Duisburg | D38: Nordrhein-Westfalen | E38: IIb Großstädtische Bezirke m. sehr hoher ALO | G38: 735 | H38: AA Nürnberg | I38: Agentur für Arbeit Nürnberg | J38: AA Nürnberg | K38: 08119 | L38: 08119 Rems-Murr-Kreis | M38: Rems-Murr-Kreis | N38: Rems-Murr-Kreis | O38: Rems-Murr-Kreis | P38: 05711 | Q38: Bielefeld, Stadt | R38: Bielefeld, Stadt | S38: Baden-Württemberg | AL38: 08415 Reutlingen | AM38: 09361 Amberg, Stadt | AR38: 03453 Cloppenburg | AS38: 05754 Gütersloh | AT38: 07340 Südwestpfalz | BB38: Börde | BC38: IIId Lkr. in den neuen BL (…) | BD38: Rems-Murr-Kreis | BE38: Baden-Württemberg | BF38: Rems-Murr-Kreis | BG38: AA Nürnberg | BH38: Bielefeld, Stadt | BI38: Nordrhein-Westfalen | BJ38: Agentur für Arbeit Duisburg | BK38: Nordrhein-Westfalen | BM38: AA Landshut – Pfarrkirchen | BN38: AA Landshut – Pfarrkirchen | BO38: Agentur für Arbeit Landshut – Pfarrkirchen | BP38: Bayern | BQ38: AA Nürnberg | BR38: RD Bayern
A39: 337 | B39: AA Düsseldorf | C39: Düsseldorf | D39: Nordrhein-Westfalen | E39: IIa Großstädtische Bezirke mit erhöhter ALO | G39: 847 | H39: AA Passau | I39: Agentur für Arbeit Passau | J39: AA Passau | K39: 08415 | L39: 08415 Reutlingen | M39: Reutlingen | N39: Reutlingen | O39: Reutlingen | P39: 07134 | Q39: Birkenfeld | R39: Birkenfeld | S39: Baden-Württemberg | AL39: 08416 Tübingen | AM39: 09362 Regensburg, Stadt | AR39: 03454 Emsland | AS39: 05758 Herford | AT39: 10041 Regionalverband Saarbrücken | BB39: Burgenlandkreis | BC39: IIId Lkr. in den neuen BL (…) | BD39: Reutlingen | BE39: Baden-Württemberg | BF39: Reutlingen | BG39: AA Passau | BH39: Birkenfeld | BI39: Rheinland-Pfalz | BJ39: Agentur für Arbeit Düsseldorf | BK39: Nordrhein-Westfalen | BM39: AA München | BN39: AA München | BO39: Agentur für Arbeit München | BP39: Bayern | BQ39: AA Passau | BR39: RD Bayern
A40: 036 | B40: AA Eberswalde | C40: Eberswalde | D40: Brandenburg | E40: Vc Ländl. Bez. in Ost m. schl. AM-Lage | G40: 739 | H40: AA Regensburg | I40: Agentur für Arbeit Regensburg | J40: AA Regensburg | K40: 08226 | L40: 08226 Rhein-Neckar-Kreis | M40: Rhein-Neckar-Kreis | N40: Rhein-Neckar-Kreis | O40: Rhein-Neckar-Kreis | P40: 08115 | Q40: Böblingen | R40: Böblingen | S40: Baden-Württemberg | AL40: 08417 Zollernalbkreis | AM40: 09363 Weiden i.d.OPf., Stadt | AR40: 03455 Friesland | AS40: 05762 Höxter | AT40: 10042 Merzig-Wadern | BB40: Mansfeld-Südharz | BC40: IIId Lkr. in den neuen BL (…) | BD40: Rhein-Neckar-Kreis | BE40: Baden-Württemberg | BF40: Rhein-Neckar-Kreis | BG40: AA Regensburg | BH40: Böblingen | BI40: Baden-Württemberg | BJ40: Agentur für Arbeit Eberswalde | BK40: Brandenburg | BM40: AA Nürnberg | BN40: AA Nürnberg | BO40: Agentur für Arbeit Nürnberg | BP40: Bayern | BQ40: AA Regensburg | BR40: RD Bayern
A41: 115 | B41: AA Elmshorn | C41: Elmshorn | D41: Schleswig-Holstein | E41: IIIb Ger. verd. u. länd. B. m. durchschn. ALO | G41: 855 | H41: AA Rosenheim | I41: Agentur für Arbeit Rosenheim | J41: AA Rosenheim | K41: 08325 | L41: 08325 Rottweil | M41: Rottweil | N41: Rottweil | O41: Rottweil | P41: 05911 | Q41: Bochum, Stadt | R41: Bochum, Stadt | S41: Baden-Württemberg | AL41: 08421 Ulm, Universitätsstadt | AM41: 09371 Amberg-Sulzbach | AR41: 03456 Grafschaft Bentheim | AS41: 05766 Lippe | AT41: 10043 Neunkirchen | BB41: Stendal | BC41: IIId Lkr. in den neuen BL (…) | BD41: Rottweil | BE41: Baden-Württemberg | BF41: Rottweil | BG41: AA Rosenheim | BH41: Bochum, Stadt | BI41: Nordrhein-Westfalen | BJ41: Agentur für Arbeit Elmshorn | BK41: Schleswig-Holstein | BM41: AA Passau | BN41: AA Passau | BO41: Agentur für Arbeit Passau | BP41: Bayern | BQ41: AA Rosenheim | BR41: RD Bayern
A42: 224 | B42: AA Emden – Leer | C42: Emden – Leer | D42: Niedersachsen | E42: IIIb Ger. verd. u. länd. B. m. durchschn. ALO | G42: 743 | H42: AA Schwandorf | I42: Agentur für Arbeit Schwandorf | J42: AA Schwandorf | K42: 08127 | L42: 08127 Schwäbisch Hall | M42: Schwäbisch Hall | N42: Schwäbisch Hall | O42: Schwäbisch Hall | P42: 08435 | Q42: Bodenseekreis | R42: Bodenseekreis | S42: Baden-Württemberg | AL42: 08425 Alb-Donau-Kreis | AM42: 09372 Cham | AR42: 03457 Leer | AS42: 05770 Minden-Lübbecke | AT42: 10044 Saarlouis | BB42: Altmarkkreis Salzwedel | BC42: IIIa Überw. Lkr. in den neuen BL (…) | BD42: Schwäbisch Hall | BE42: Baden-Württemberg | BF42: Schwäbisch Hall | BG42: AA Schwandorf | BH42: Bodenseekreis | BI42: Baden-Württemberg | BJ42: Agentur für Arbeit Emden – Leer | BK42: Niedersachsen | BM42: AA Regensburg | BN42: AA Regensburg | BO42: Agentur für Arbeit Regensburg | BP42: Bayern | BQ42: AA Schwandorf | BR42: RD Bayern
A43: 343 | B43: AA Essen | C43: Essen | D43: Nordrhein-Westfalen | E43: IIb Großstädtische Bezirke m. sehr hoher ALO | G43: 747 | H43: AA Schweinfurt | I43: Agentur für Arbeit Schweinfurt | J43: AA Schweinfurt | K43: 08326 | L43: 08326 Schwarzwald-Baar-Kreis | M43: Schwarzwald-Baar-Kreis | N43: Schwarzwald-Baar-Kreis | O43: Schwarzwald-Baar-Kreis | P43: 05314 | Q43: Bonn, Stadt | R43: Bonn, Stadt | S43: Baden-Württemberg | AL43: 08426 Biberach | AM43: 09373 Neumarkt i.d.OPf. | AR43: 03458 Oldenburg | AS43: 05774 Paderborn | AT43: 10045 Saarpfalz-Kreis | BB43: Erzgebirgskreis | BC43: IIIa Überw. Lkr. in den neuen BL (…) | BD43: Schwarzwald-Baar-Kreis | BE43: Baden-Württemberg | BF43: Schwarzwald-Baar-Kreis | BG43: AA Schweinfurt | BH43: Bonn, Stadt | BI43: Nordrhein-Westfalen | BJ43: Agentur für Arbeit Essen | BK43: Nordrhein-Westfalen | BM43: AA Rosenheim | BN43: AA Rosenheim | BO43: Agentur für Arbeit Rosenheim | BP43: Bayern | BQ43: AA Schweinfurt | BR43: RD Bayern
A44: 119 | B44: AA Flensburg | C44: Flensburg | D44: Schleswig-Holstein | E44: IIIb Ger. verd. u. länd. B. m. durchschn. ALO | G44: 859 | H44: AA Traunstein | I44: Agentur für Arbeit Traunstein | J44: AA Traunstein | K44: 08437 | L44: 08437 Sigmaringen | M44: Sigmaringen | N44: Sigmaringen | O44: Sigmaringen | P44: 15083 | Q44: Börde | R44: Börde | S44: Baden-Württemberg | AL44: 08435 Bodenseekreis | AM44: 09374 Neustadt a.d.Waldnaab | AR44: 03459 Osnabrück | AS44: 05911 Bochum, Stadt | AT44: 10046 St. Wendel | BB44: Bautzen | BC44: IIId Lkr. in den neuen BL (…) | BD44: Sigmaringen | BE44: Baden-Württemberg | BF44: Sigmaringen | BG44: AA Traunstein | BH44: Börde | BI44: Sachsen-Anhalt | BJ44: Agentur für Arbeit Flensburg | BK44: Schleswig-Holstein | BM44: AA Schwandorf | BN44: AA Schwandorf | BO44: Agentur für Arbeit Schwandorf | BP44: Bayern | BQ44: AA Traunstein | BR44: RD Bayern
A45: 419 | B45: AA Frankfurt | C45: Frankfurt | D45: Hessen | E45: IIa Großstädtische Bezirke mit erhöhter ALO | G45: 751 | H45: AA Weiden | I45: Agentur für Arbeit Weiden | J45: AA Weiden | K45: 08111 | L45: 08111 Stuttgart, Landeshauptstadt | M45: Stuttgart, Landeshauptstadt | N45: Stuttgart, Landeshauptstadt | O45: Stuttgart, Landeshauptstadt | P45: 05554 | Q45: Borken | R45: Borken | S45: Baden-Württemberg | AL45: 08436 Ravensburg | AM45: 09375 Regensburg | AR45: 03460 Vechta | AS45: 05913 Dortmund, Stadt | BB45: Görlitz | BC45: IIId Lkr. in den neuen BL (…) | BD45: Stuttgart, Landeshauptstadt | BE45: Baden-Württemberg | BF45: Stuttgart, Landeshauptstadt | BG45: AA Weiden | BH45: Borken | BI45: Nordrhein-Westfalen | BJ45: Agentur für Arbeit Frankfurt | BK45: Hessen | BM45: AA Schweinfurt | BN45: AA Schweinfurt | BO45: Agentur für Arbeit Schweinfurt | BP45: Bayern | BQ45: AA Weiden | BR45: RD Bayern
A46: 037 | B46: AA Frankfurt (Oder) | C46: Frankfurt (Oder) | D46: Brandenburg | E46: Vc Ländl. Bez. in Ost m. schl. AM-Lage | G46: 863 | H46: AA Weilheim | I46: Agentur für Arbeit Weilheim | J46: AA Weilheim | K46: 08416 | L46: 08416 Tübingen | M46: Tübingen | N46: Tübingen | O46: Tübingen | P46: 05512 | Q46: Bottrop, Stadt | R46: Bottrop, Stadt | S46: Baden-Württemberg | AL46: 08437 Sigmaringen | AM46: 09376 Schwandorf | AR46: 03461 Wesermarsch | AS46: 05914 Hagen, Stadt der FernUniversität | BB46: Chemnitz, Stadt | BC46: IIIe Überw. Städte in den neuen BL (…) | BD46: Tübingen | BE46: Baden-Württemberg | BF46: Tübingen | BG46: AA Weilheim | BH46: Bottrop, Stadt | BI46: Nordrhein-Westfalen | BJ46: Agentur für Arbeit Frankfurt (Oder) | BK46: Brandenburg | BM46: AA Traunstein | BN46: AA Traunstein | BO46: Agentur für Arbeit Traunstein | BP46: Bayern | BQ46: AA Weilheim | BR46: RD Bayern
A47: 080 | B47: AA Freiberg | C47: Freiberg | D47: Sachsen | E47: Vb Ger. verd. Bez. m. h. ALO | G47: 759 | H47: AA Würzburg | I47: Agentur für Arbeit Würzburg | J47: AA Würzburg | K47: 08327 | L47: 08327 Tuttlingen | M47: Tuttlingen | N47: Tuttlingen | O47: Tuttlingen | P47: 12051 | Q47: Brandenburg an der Havel, Stadt | R47: Brandenburg an der Havel, Stadt | S47: Baden-Württemberg | AM47: 09377 Tirschenreuth | AR47: 03462 Wittmund | AS47: 05915 Hamm, Stadt | BB47: Dresden, Stadt | BC47: IIIe Überw. Städte in den neuen BL (…) | BD47: Tuttlingen | BE47: Baden-Württemberg | BF47: Tuttlingen | BG47: AA Würzburg | BH47: Brandenburg an der Havel, Stadt | BI47: Brandenburg | BJ47: Agentur für Arbeit Freiburg | BK47: Baden-Württemberg | BM47: AA Weiden | BN47: AA Weiden | BO47: Agentur für Arbeit Weiden | BP47: Bayern | BQ47: AA Würzburg | BR47: RD Bayern
A48: 617 | B48: AA Freiburg | C48: Freiburg | D48: Baden-Württemberg | E48: IIIa Verd. Bez. m. leicht unterdurchschn. ALO | G48: 900 | H48: RD Berlin-Brandenburg | I48: Regionaldirektion Berlin-Brandenburg | J48: RD Berlin-Brandenburg | K48: 08421 | L48: 08421 Ulm, Universitätsstadt | M48: Ulm, Universitätsstadt | N48: Ulm, Universitätsstadt | O48: Ulm, Universitätsstadt | P48: 03101 | Q48: Braunschweig, Stadt | R48: Braunschweig, Stadt | S48: Baden-Württemberg | AM48: 09461 Bamberg, Stadt | AR48: 04011 Bremen, Stadt | AS48: 05916 Herne, Stadt | BB48: Leipzig, Stadt | BC48: IIIe Überw. Städte in den neuen BL (…) | BD48: Ulm, Universitätsstadt | BE48: Baden-Württemberg | BF48: Ulm, Universitätsstadt | BG48: RD Berlin-Brandenburg | BH48: Braunschweig, Stadt | BI48: Niedersachsen | BJ48: Agentur für Arbeit Freising | BK48: Bayern | BM48: AA Weilheim | BN48: AA Weilheim | BO48: Agentur für Arbeit Weilheim | BP48: Bayern | BQ48: RD Berlin-Brandenburg | BR48: RD Berlin-Brandenburg
A49: 823 | B49: AA Freising | C49: Freising | D49: Bayern | E49: IVb Ländl. Bez. m. günst. AM-Lage, sais. Dyn | G49: 962 | H49: AA Berlin Mitte | I49: Agentur für Arbeit Berlin Mitte | J49: AA Berlin Mitte | K49: 08337 | L49: 08337 Waldshut | M49: Waldshut | N49: Waldshut | O49: Waldshut | P49: 08315 | Q49: Breisgau-Hochschwarzwald | R49: Breisgau-Hochschwarzwald | S49: Baden-Württemberg | AM49: 09462 Bayreuth, Stadt | AR49: 04012 Bremerhaven, Stadt | AS49: 05954 Ennepe-Ruhr-Kreis | BB49: Nordsachsen | BC49: IIId Lkr. in den neuen BL (…) | BD49: Waldshut | BE49: Baden-Württemberg | BF49: Waldshut | BG49: AA Berlin Mitte | BH49: Breisgau-Hochschwarzwald | BI49: Baden-Württemberg | BJ49: Agentur für Arbeit Fürth | BK49: Bayern | BM49: AA Würzburg | BN49: AA Würzburg | BO49: Agentur für Arbeit Würzburg | BP49: Bayern | BQ49: AA Berlin Mitte | BR49: RD Berlin-Brandenburg
A50: 729 | B50: AA Fürth | C50: Fürth | D50: Bayern | E50: IVa Verd. Bez. m. ind. Orient., g. AM-Lage | G50: 955 | H50: AA Berlin Nord | I50: Agentur für Arbeit Berlin Nord | J50: AA Berlin Nord | K50: 08417 | L50: 08417 Zollernalbkreis | M50: Zollernalbkreis | N50: Zollernalbkreis | O50: Zollernalbkreis | P50: 04011 | Q50: Bremen, Stadt | R50: Bremen, Stadt | S50: Baden-Württemberg | AM50: 09463 Coburg, Stadt | AS50: 05958 Hochsauerlandkreis | BB50: Leipzig | BC50: IIIa Überw. Lkr. in den neuen BL (…) | BD50: Zollernalbkreis | BE50: Baden-Württemberg | BF50: Zollernalbkreis | BG50: AA Berlin Nord | BH50: Bremen, Stadt | BI50: Bremen | BJ50: Agentur für Arbeit Gelsenkirchen | BK50: Nordrhein-Westfalen | BM50: Berlin | BN50: Berlin | BO50: Berlin | BP50: Berlin | BQ50: AA Berlin Nord | BR50: RD Berlin-Brandenburg
A51: 345 | B51: AA Gelsenkirchen | C51: Gelsenkirchen | D51: Nordrhein-Westfalen | E51: IIb Großstädtische Bezirke m. sehr hoher ALO | G51: 922 | H51: AA Berlin Süd | I51: Agentur für Arbeit Berlin Süd | J51: AA Berlin Süd | K51: 09000 | L51: 09 Bayern | M51: Bayern | N51: Bayern | O51: Land Bayern | P51: 04012 | Q51: Bremerhaven, Stadt | R51: Bremerhaven, Stadt | S51: Bayern | AM51: 09464 Hof, Stadt | AS51: 05962 Märkischer Kreis | BB51: Sächsische Schweiz-Osterzgebirge | BC51: IIIa Überw. Lkr. in den neuen BL (…) | BD51: Bayern | BE51: Bayern | BF51: Bayern | BG51: AA Berlin Süd | BH51: Bremerhaven, Stadt | BI51: Bremen | BJ51: Agentur für Arbeit Gießen | BK51: Hessen | BM51: AA Berlin Mitte | BN51: AA Berlin Mitte | BO51: Agentur für Arbeit Berlin Mitte | BP51: Berlin | BQ51: AA Berlin Süd | BR51: RD Berlin-Brandenburg
A52: 427 | B52: AA Gießen | C52: Gießen | D52: Hessen | E52: IIIa Verd. Bez. m. leicht unterdurchschn. ALO | G52: 035 | H52: AA Cottbus | I52: Agentur für Arbeit Cottbus | J52: AA Cottbus | K52: 09771 | L52: 09771 Aichach-Friedberg | M52: Aichach-Friedberg | N52: Aichach-Friedberg | O52: Aichach-Friedberg | P52: 15084 | Q52: Burgenlandkreis | R52: Burgenlandkreis | S52: Bayern | AM52: 09471 Bamberg | AS52: 05966 Olpe | BB52: Vogtlandkreis | BC52: IIIa Überw. Lkr. in den neuen BL (…) | BD52: Aichach-Friedberg | BE52: Bayern | BF52: Aichach-Friedberg | BG52: AA Cottbus | BH52: Burgenlandkreis | BI52: Sachsen-Anhalt | BJ52: Agentur für Arbeit Göppingen | BK52: Baden-Württemberg | BM52: AA Berlin Nord | BN52: AA Berlin Nord | BO52: Agentur für Arbeit Berlin Nord | BP52: Berlin | BQ52: AA Cottbus | BR52: RD Berlin-Brandenburg
A53: 621 | B53: AA Göppingen | C53: Göppingen | D53: Baden-Württemberg | E53: IVa Verd. Bez. m. ind. Orient., g. AM-Lage | G53: 036 | H53: AA Eberswalde | I53: Agentur für Arbeit Eberswalde | J53: AA Eberswalde | K53: 09171 | L53: 09171 Altötting | M53: Altötting | N53: Altötting | O53: Altötting | P53: 08235 | Q53: Calw | R53: Calw | S53: Bayern | AM53: 09472 Bayreuth | AS53: 05970 Siegen-Wittgenstein | BB53: Meißen | BC53: IIIa Überw. Lkr. in den neuen BL (…) | BD53: Altötting | BE53: Bayern | BF53: Altötting | BG53: AA Eberswalde | BH53: Calw | BI53: Baden-Württemberg | BJ53: Agentur für Arbeit Göttingen | BK53: Niedersachsen | BM53: AA Berlin Süd | BN53: AA Berlin Süd | BO53: Agentur für Arbeit Berlin Süd | BP53: Berlin | BQ53: AA Eberswalde | BR53: RD Berlin-Brandenburg
A54: 231 | B54: AA Göttingen | C54: Göttingen | D54: Niedersachsen | E54: IIIb Ger. verd. u. länd. B. m. durchschn. ALO | G54: 037 | H54: AA Frankfurt (Oder) | I54: Agentur für Arbeit Frankfurt (Oder) | J54: AA Frankfurt (Oder) | K54: 09361 | L54: 09361 Amberg, Stadt | M54: Amberg, Stadt | N54: Amberg, Stadt | O54: Amberg, Stadt | P54: 03351 | Q54: Celle | R54: Celle | S54: Bayern | AM54: 09473 Coburg | AS54: 05974 Soest | BB54: Mittelsachsen | BC54: IIIa Überw. Lkr. in den neuen BL (…) | BD54: Amberg, Stadt | BE54: Bayern | BF54: Amberg, Stadt | BG54: AA Frankfurt (Oder) | BH54: Celle | BI54: Niedersachsen | BJ54: Agentur für Arbeit Greifswald | BK54: Mecklenburg-Vorpommern | BM54: Brandenburg | BN54: Brandenburg | BO54: Brandenburg | BP54: Brandenburg | BQ54: AA Frankfurt (Oder) | BR54: RD Berlin-Brandenburg
A55: 030 | B55: AA Greifswald | C55: Greifswald | D55: Mecklenburg-Vorpommern | E55: Vc Ländl. Bez. in Ost m. schl. AM-Lage | G55: 038 | H55: AA Neuruppin | I55: Agentur für Arbeit Neuruppin | J55: AA Neuruppin | K55: 09371 | L55: 09371 Amberg-Sulzbach | M55: Amberg-Sulzbach | N55: Amberg-Sulzbach | O55: Amberg-Sulzbach | P55: 09372 | Q55: Cham | R55: Cham | S55: Bayern | AM55: 09474 Forchheim | AS55: 05978 Unna | BB55: Zwickau | BC55: IIIa Überw. Lkr. in den neuen BL (…) | BD55: Amberg-Sulzbach | BE55: Bayern | BF55: Amberg-Sulzbach | BG55: AA Neuruppin | BH55: Cham | BI55: Bayern | BJ55: Agentur für Arbeit Hagen | BK55: Nordrhein-Westfalen | BM55: AA Cottbus | BN55: AA Cottbus | BO55: Agentur für Arbeit Cottbus | BP55: Brandenburg | BQ55: AA Neuruppin | BR55: RD Berlin-Brandenburg
A56: 347 | B56: AA Hagen | C56: Hagen | D56: Nordrhein-Westfalen | E56: IIc Städt. gepr. B. m. leicht überdurch. ALO | G56: 039 | H56: AA Potsdam | I56: Agentur für Arbeit Potsdam | J56: AA Potsdam | K56: 09571 | L56: 09571 Ansbach | M56: Ansbach | N56: Ansbach | O56: Ansbach | P56: 95502 | Q56: Charlottenburg-Wilmersdorf | R56: Charlottenburg-Wilmersdorf | S56: Bayern | AM56: 09475 Hof | BB56: Erfurt, Stadt | BC56: IIIe Überw. Städte in den neuen BL (…) | BD56: Ansbach | BE56: Bayern | BF56: Ansbach | BG56: AA Potsdam | BH56: Charlottenburg-Wilmersdorf | BI56: Berlin | BJ56: Agentur für Arbeit Freiberg | BK56: Sachsen | BM56: AA Eberswalde | BN56: AA Eberswalde | BO56: Agentur für Arbeit Eberswalde | BP56: Brandenburg | BQ56: AA Potsdam | BR56: RD Berlin-Brandenburg
A57: 123 | B57: AA Hamburg | C57: Hamburg | D57: Hamburg | E57: IIa Großstädtische Bezirke mit erhöhter ALO | G57: 400 | H57: RD Hessen | I57: Regionaldirektion Hessen | J57: RD Hessen | K57: 09561 | L57: 09561 Ansbach, Stadt | M57: Ansbach, Stadt | N57: Ansbach, Stadt | O57: Ansbach, Stadt | P57: 14511 | Q57: Chemnitz, Stadt | R57: Chemnitz, Stadt | S57: Bayern | AM57: 09476 Kronach | BB57: Ilm-Kreis | BC57: IIIa Überw. Lkr. in den neuen BL (…) | BD57: Ansbach, Stadt | BE57: Bayern | BF57: Ansbach, Stadt | BG57: RD Hessen | BH57: Chemnitz, Stadt | BI57: Sachsen | BJ57: Agentur für Arbeit Hamburg | BK57: Hamburg | BM57: AA Frankfurt (Oder) | BN57: AA Frankfurt (Oder) | BO57: Agentur für Arbeit Frankfurt (Oder) | BP57: Brandenburg | BQ57: RD Hessen | BR57: RD Hessen
A58: 234 | B58: AA Hameln | C58: Hameln | D58: Niedersachsen | E58: IIIb Ger. verd. u. länd. B. m. durchschn. ALO | G58: 411 | H58: AA Bad Hersfeld – Fulda | I58: Agentur für Arbeit Bad Hersfeld – Fulda | J58: AA Bad Hersfeld – Fulda | K58: 09671 | L58: 09671 Aschaffenburg | M58: Aschaffenburg | N58: Aschaffenburg | O58: Aschaffenburg | P58: 03453 | Q58: Cloppenburg | R58: Cloppenburg | S58: Bayern | AM58: 09477 Kulmbach | BB58: Sömmerda | BC58: IIId Lkr. in den neuen BL (…) | BD58: Aschaffenburg | BE58: Bayern | BF58: Aschaffenburg | BG58: AA Bad Hersfeld – Fulda | BH58: Cloppenburg | BI58: Niedersachsen | BJ58: Agentur für Arbeit Hameln | BK58: Niedersachsen | BM58: AA Neuruppin | BN58: AA Neuruppin | BO58: Agentur für Arbeit Neuruppin | BP58: Brandenburg | BQ58: AA Bad Hersfeld – Fulda | BR58: RD Hessen
A59: 351 | B59: AA Hamm | C59: Hamm | D59: Nordrhein-Westfalen | E59: IIb Großstädtische Bezirke m. sehr hoher ALO | G59: 433 | H59: AA Bad Homburg | I59: Agentur für Arbeit Bad Homburg | J59: AA Bad Homburg | K59: 09661 | L59: 09661 Aschaffenburg, Stadt | M59: Aschaffenburg, Stadt | N59: Aschaffenburg, Stadt | O59: Aschaffenburg, Stadt | P59: 09473 | Q59: Coburg | R59: Coburg | S59: Bayern | AM59: 09478 Lichtenfels | BB59: Weimar, Stadt | BC59: IIIe Überw. Städte in den neuen BL (…) | BD59: Aschaffenburg, Stadt | BE59: Bayern | BF59: Aschaffenburg, Stadt | BG59: AA Bad Homburg | BH59: Coburg | BI59: Bayern | BJ59: Agentur für Arbeit Hamm | BK59: Nordrhein-Westfalen | BM59: AA Potsdam | BN59: AA Potsdam | BO59: Agentur für Arbeit Potsdam | BP59: Brandenburg | BQ59: AA Bad Homburg | BR59: RD Hessen
A60: 431 | B60: AA Hanau | C60: Hanau | D60: Hessen | E60: IIIa Verd. Bez. m. leicht unterdurchschn. ALO | G60: 415 | H60: AA Darmstadt | I60: Agentur für Arbeit Darmstadt | J60: AA Darmstadt | K60: 09772 | L60: 09772 Augsburg | M60: Augsburg | N60: Augsburg | O60: Augsburg | P60: 09463 | Q60: Coburg, Stadt | R60: Coburg, Stadt | S60: Bayern | AM60: 09479 Wunsiedel i.Fichtelgebirge | BB60: Weimarer Land | BC60: IIIa Überw. Lkr. in den neuen BL (…) | BD60: Augsburg | BE60: Bayern | BF60: Augsburg | BG60: AA Darmstadt | BH60: Coburg, Stadt | BI60: Bayern | BJ60: Agentur für Arbeit Hanau | BK60: Hessen | BM60: Bremen | BN60: Bremen | BO60: Bremen | BP60: Bremen | BQ60: AA Darmstadt | BR60: RD Hessen
A61: 237 | B61: AA Hannover | C61: Hannover | D61: Niedersachsen | E61: IIa Großstädtische Bezirke mit erhöhter ALO | G61: 419 | H61: AA Frankfurt | I61: Agentur für Arbeit Frankfurt | J61: AA Frankfurt | K61: 09761 | L61: 09761 Augsburg, Stadt | M61: Augsburg, Stadt | N61: Augsburg, Stadt | O61: Augsburg, Stadt | P61: 07135 | Q61: Cochem-Zell | R61: Cochem-Zell | S61: Bayern | AM61: 09561 Ansbach, Stadt | BB61: Gera, Stadt | BC61: IIIe Überw. Städte in den neuen BL (…) | BD61: Augsburg, Stadt | BE61: Bayern | BF61: Augsburg, Stadt | BG61: AA Frankfurt | BH61: Cochem-Zell | BI61: Rheinland-Pfalz | BJ61: Agentur für Arbeit Hannover | BK61: Niedersachsen | BM61: AA Bremen – Bremerhaven | BN61: AA Bremen – Bremerhaven | BO61: Agentur für Arbeit Bremen – Bremerhaven | BP61: Bremen | BQ61: AA Frankfurt | BR61: RD Hessen
A62: 127 | B62: AA Heide | C62: Heide | D62: Schleswig-Holstein | E62: IIIb Ger. verd. u. länd. B. m. durchschn. ALO | G62: 427 | H62: AA Gießen | I62: Agentur für Arbeit Gießen | J62: AA Gießen | K62: 09672 | L62: 09672 Bad Kissingen | M62: Bad Kissingen | N62: Bad Kissingen | O62: Bad Kissingen | P62: 05558 | Q62: Coesfeld | R62: Coesfeld | S62: Bayern | AM62: 09562 Erlangen, Stadt | BB62: Saale-Orla-Kreis | BC62: IIIa Überw. Lkr. in den neuen BL (…) | BD62: Bad Kissingen | BE62: Bayern | BF62: Bad Kissingen | BG62: AA Gießen | BH62: Coesfeld | BI62: Nordrhein-Westfalen | BJ62: Agentur für Arbeit Heide | BK62: Schleswig-Holstein | BM62: Hamburg | BN62: Hamburg | BO62: Hamburg | BP62: Hamburg | BQ62: AA Gießen | BR62: RD Hessen
A63: 624 | B63: AA Heidelberg | C63: Heidelberg | D63: Baden-Württemberg | E63: IIIa Verd. Bez. m. leicht unterdurchschn. ALO | G63: 431 | H63: AA Hanau | I63: Agentur für Arbeit Hanau | J63: AA Hanau | K63: 09173 | L63: 09173 Bad Tölz-Wolfratshausen | M63: Bad Tölz-Wolfratshausen | N63: Bad Tölz-Wolfratshausen | O63: Bad Tölz-Wolfratshausen | P63: 12052 | Q63: Cottbus, Stadt | R63: Cottbus, Stadt | S63: Bayern | AM63: 09563 Fürth, Stadt | BB63: Altenburger Land | BC63: IIId Lkr. in den neuen BL (…) | BD63: Bad Tölz-Wolfratshausen | BE63: Bayern | BF63: Bad Tölz-Wolfratshausen | BG63: AA Hanau | BH63: Cottbus, Stadt | BI63: Brandenburg | BJ63: Agentur für Arbeit Heidelberg | BK63: Baden-Württemberg | BM63: AA Hamburg | BN63: AA Hamburg | BO63: Agentur für Arbeit Hamburg | BP63: Hamburg | BQ63: AA Hanau | BR63: RD Hessen
A64: 627 | B64: AA Heilbronn | C64: Heilbronn | D64: Baden-Württemberg | E64: IVa Verd. Bez. m. ind. Orient., g. AM-Lage | G64: 435 | H64: AA Kassel | I64: Agentur für Arbeit Kassel | J64: AA Kassel | K64: 09471 | L64: 09471 Bamberg | M64: Bamberg | N64: Bamberg | O64: Bamberg | P64: 03352 | Q64: Cuxhaven | R64: Cuxhaven | S64: Bayern | AM64: 09564 Nürnberg, Stadt | BB64: Greiz | BC64: IIIa Überw. Lkr. in den neuen BL (…) | BD64: Bamberg | BE64: Bayern | BF64: Bamberg | BG64: AA Kassel | BH64: Cuxhaven | BI64: Niedersachsen | BJ64: Agentur für Arbeit Heilbronn | BK64: Baden-Württemberg | BM64: Hessen | BN64: Hessen | BO64: Hessen | BP64: Hessen | BQ64: AA Kassel | BR64: RD Hessen
A65: 241 | B65: AA Helmstedt | C65: Helmstedt | D65: Niedersachsen | E65: I Überw. großst. Bez. im W m. günst. AM-Lage | G65: 439 | H65: AA Korbach | I65: Agentur für Arbeit Korbach | J65: AA Korbach | K65: 09461 | L65: 09461 Bamberg, Stadt | M65: Bamberg, Stadt | N65: Bamberg, Stadt | O65: Bamberg, Stadt | P65: 09174 | Q65: Dachau | R65: Dachau | S65: Bayern | AM65: 09565 Schwabach, Stadt | BB65: Gotha | BC65: IIIa Überw. Lkr. in den neuen BL (…) | BD65: Bamberg, Stadt | BE65: Bayern | BF65: Bamberg, Stadt | BG65: AA Korbach | BH65: Dachau | BI65: Bayern | BJ65: Agentur für Arbeit Helmstedt | BK65: Niedersachsen | BM65: AA Bad Hersfeld – Fulda | BN65: AA Bad Hersfeld – Fulda | BO65: Agentur für Arbeit Bad Hersfeld – Fulda | BP65: Hessen | BQ65: AA Korbach | BR65: RD Hessen
A66: 353 | B66: AA Herford | C66: Herford | D66: Nordrhein-Westfalen | E66: IIIa Verd. Bez. m. leicht unterdurchschn. ALO | G66: 443 | H66: AA Limburg – Wetzlar | I66: Agentur für Arbeit Limburg – Wetzlar | J66: AA Limburg – Wetzlar | K66: 09472 | L66: 09472 Bayreuth | M66: Bayreuth | N66: Bayreuth | O66: Bayreuth | P66: 12061 | Q66: Dahme-Spreewald | R66: Dahme-Spreewald | S66: Bayern | AM66: 09571 Ansbach | BB66: Unstrut-Hainich-Kreis | BC66: IIId Lkr. in den neuen BL (…) | BD66: Bayreuth | BE66: Bayern | BF66: Bayreuth | BG66: AA Limburg – Wetzlar | BH66: Dahme-Spreewald | BI66: Brandenburg | BJ66: Agentur für Arbeit Herford | BK66: Nordrhein-Westfalen | BM66: AA Bad Homburg | BN66: AA Bad Homburg | BO66: Agentur für Arbeit Bad Homburg | BP66: Hessen | BQ66: AA Limburg – Wetzlar | BR66: RD Hessen
A67: 244 | B67: AA Hildesheim | C67: Hildesheim | D67: Niedersachsen | E67: IIIa Verd. Bez. m. leicht unterdurchschn. ALO | G67: 447 | H67: AA Marburg | I67: Agentur für Arbeit Marburg | J67: AA Marburg | K67: 09462 | L67: 09462 Bayreuth, Stadt | M67: Bayreuth, Stadt | N67: Bayreuth, Stadt | O67: Bayreuth, Stadt | P67: 06411 | Q67: Darmstadt, Wissenschaftsstadt | R67: Darmstadt, Wissenschaftsstadt | S67: Bayern | AM67: 09572 Erlangen-Höchstadt | BB67: Jena, Stadt | BC67: IIIe Überw. Städte in den neuen BL (…) | BD67: Bayreuth, Stadt | BE67: Bayern | BF67: Bayreuth, Stadt | BG67: AA Marburg | BH67: Darmstadt, Wissenschaftsstadt | BI67: Hessen | BJ67: Agentur für Arbeit Hildesheim | BK67: Niedersachsen | BM67: AA Darmstadt | BN67: AA Darmstadt | BO67: Agentur für Arbeit Darmstadt | BP67: Hessen | BQ67: AA Marburg | BR67: RD Hessen
A68: 827 | B68: AA Ingolstadt | C68: Ingolstadt | D68: Bayern | E68: IVb Ländl. Bez. m. günst. AM-Lage, sais. Dyn | G68: 451 | H68: AA Offenbach | I68: Agentur für Arbeit Offenbach | J68: AA Offenbach | K68: 09172 | L68: 09172 Berchtesgadener Land | M68: Berchtesgadener Land | N68: Berchtesgadener Land | O68: Berchtesgadener Land | P68: 06432 | Q68: Darmstadt-Dieburg | R68: Darmstadt-Dieburg | S68: Bayern | AM68: 09573 Fürth | BB68: Saale-Holzland-Kreis | BC68: IIIa Überw. Lkr. in den neuen BL (…) | BD68: Berchtesgadener Land | BE68: Bayern | BF68: Berchtesgadener Land | BG68: AA Offenbach | BH68: Darmstadt-Dieburg | BI68: Hessen | BJ68: Agentur für Arbeit Ingolstadt | BK68: Bayern | BM68: AA Frankfurt | BN68: AA Frankfurt | BO68: Agentur für Arbeit Frankfurt | BP68: Hessen | BQ68: AA Offenbach | BR68: RD Hessen
A69: 355 | B69: AA Iserlohn | C69: Iserlohn | D69: Nordrhein-Westfalen | E69: IIc Städt. gepr. B. m. leicht überdurch. ALO | G69: 459 | H69: AA Wiesbaden | I69: Agentur für Arbeit Wiesbaden | J69: AA Wiesbaden | K69: 09372 | L69: 09372 Cham | M69: Cham | N69: Cham | O69: Cham | P69: 09271 | Q69: Deggendorf | R69: Deggendorf | S69: Bayern | AM69: 09574 Nürnberger Land | BB69: Saalfeld-Rudolstadt | BC69: IIIa Überw. Lkr. in den neuen BL (…) | BD69: Cham | BE69: Bayern | BF69: Cham | BG69: AA Wiesbaden | BH69: Deggendorf | BI69: Bayern | BJ69: Agentur für Arbeit Iserlohn | BK69: Nordrhein-Westfalen | BM69: AA Gießen | BN69: AA Gießen | BO69: Agentur für Arbeit Gießen | BP69: Hessen | BQ69: AA Wiesbaden | BR69: RD Hessen
A70: 515 | B70: AA Kaiserslautern – Pirmasens | C70: Kaiserslautern – Pirmasens | D70: Rheinland-Pfalz | E70: IIIa Verd. Bez. m. leicht unterdurchschn. ALO | G70: 200 | H70: RD Niedersachsen-Bremen | I70: Regionaldirektion Niedersachsen-Bremen | J70: RD Niedersachsen-Bremen | K70: 09473 | L70: 09473 Coburg | M70: Coburg | N70: Coburg | O70: Coburg | P70: 03401 | Q70: Delmenhorst, Stadt | R70: Delmenhorst, Stadt | S70: Bayern | AM70: 09575 Neustadt a.d.Aisch-Bad Windsheim | BB70: Nordhausen | BC70: IIId Lkr. in den neuen BL (…) | BD70: Coburg | BE70: Bayern | BF70: Coburg | BG70: RD Niedersachsen-Bremen | BH70: Delmenhorst, Stadt | BI70: Niedersachsen | BJ70: Agentur für Arbeit Kaiserslautern – Pirmasens | BK70: Rheinland-Pfalz | BM70: AA Hanau | BN70: AA Hanau | BO70: Agentur für Arbeit Hanau | BP70: Hessen | BQ70: RD Niedersachsen-Bremen | BR70: RD Niedersachsen-Bremen
A71: 631 | B71: AA Karlsruhe – Rastatt | C71: Karlsruhe – Rastatt | D71: Baden-Württemberg | E71: IVa Verd. Bez. m. ind. Orient., g. AM-Lage | G71: 211 | H71: AA Braunschweig – Goslar | I71: Agentur für Arbeit Braunschweig – Goslar | J71: AA Braunschweig – Goslar | K71: 09463 | L71: 09463 Coburg, Stadt | M71: Coburg, Stadt | N71: Coburg, Stadt | O71: Coburg, Stadt | P71: 15001 | Q71: Dessau-Roßlau, Stadt | R71: Dessau-Roßlau, Stadt | S71: Bayern | AM71: 09576 Roth | BB71: Eichsfeld | BC71: Ie Regionen abseits der Ballungsräume (…) | BD71: Coburg, Stadt | BE71: Bayern | BF71: Coburg, Stadt | BG71: AA Braunschweig – Goslar | BH71: Dessau-Roßlau, Stadt | BI71: Sachsen-Anhalt | BJ71: Agentur für Arbeit Karlsruhe – Rastatt | BK71: Baden-Württemberg | BM71: AA Kassel | BN71: AA Kassel | BO71: Agentur für Arbeit Kassel | BP71: Hessen | BQ71: AA Braunschweig – Goslar | BR71: RD Niedersachsen-Bremen
A72: 435 | B72: AA Kassel | C72: Kassel | D72: Hessen | E72: IIIb Ger. verd. u. länd. B. m. durchschn. ALO | G72: 214 | H72: AA Bremen – Bremerhaven | I72: Agentur für Arbeit Bremen – Bremerhaven | J72: AA Bremen – Bremerhaven | K72: 09174 | L72: 09174 Dachau | M72: Dachau | N72: Dachau | O72: Dachau | P72: 03251 | Q72: Diepholz | R72: Diepholz | S72: Bayern | AM72: 09577 Weißenburg-Gunzenhausen | BB72: Kyffhäuserkreis | BC72: IIId Lkr. in den neuen BL (…) | BD72: Dachau | BE72: Bayern | BF72: Dachau | BG72: AA Bremen – Bremerhaven | BH72: Diepholz | BI72: Niedersachsen | BJ72: Agentur für Arbeit Kassel | BK72: Hessen | BM72: AA Korbach | BN72: AA Korbach | BO72: Agentur für Arbeit Korbach | BP72: Hessen | BQ72: AA Bremen – Bremerhaven | BR72: RD Niedersachsen-Bremen
A73: 831 | B73: AA Kempten – Memmingen | C73: Kempten – Memmingen | D73: Bayern | E73: IVb Ländl. Bez. m. günst. AM-Lage, sais. Dyn | G73: 221 | H73: AA Celle | I73: Agentur für Arbeit Celle | J73: AA Celle | K73: 09271 | L73: 09271 Deggendorf | M73: Deggendorf | N73: Deggendorf | O73: Deggendorf | P73: 09773 | Q73: Dillingen a.d.Donau | R73: Dillingen a.d.Donau | S73: Bayern | AM73: 09661 Aschaffenburg, Stadt | BB73: Suhl, Stadt | BC73: IIIa Überw. Lkr. in den neuen BL (…) | BD73: Deggendorf | BE73: Bayern | BF73: Deggendorf | BG73: AA Celle | BH73: Dillingen a.d.Donau | BI73: Bayern | BJ73: Agentur für Arbeit Kempten – Memmingen | BK73: Bayern | BM73: AA Limburg – Wetzlar | BN73: AA Limburg – Wetzlar | BO73: Agentur für Arbeit Limburg – Wetzlar | BP73: Hessen | BQ73: AA Celle | BR73: RD Niedersachsen-Bremen
A74: 131 | B74: AA Kiel | C74: Kiel | D74: Schleswig-Holstein | E74: IIa Großstädtische Bezirke mit erhöhter ALO | G74: 224 | H74: AA Emden – Leer | I74: Agentur für Arbeit Emden – Leer | J74: AA Emden – Leer | K74: 09773 | L74: 09773 Dillingen a.d.Donau | M74: Dillingen a.d.Donau | N74: Dillingen a.d.Donau | O74: Dillingen a.d.Donau | P74: 09279 | Q74: Dingolfing-Landau | R74: Dingolfing-Landau | S74: Bayern | AM74: 09662 Schweinfurt, Stadt | BB74: Hildburghausen | BC74: Ie Regionen abseits der Ballungsräume (…) | BD74: Dillingen a.d.Donau | BE74: Bayern | BF74: Dillingen a.d.Donau | BG74: AA Emden – Leer | BH74: Dingolfing-Landau | BI74: Bayern | BJ74: Agentur für Arbeit Kiel | BK74: Schleswig-Holstein | BM74: AA Marburg | BN74: AA Marburg | BO74: Agentur für Arbeit Marburg | BP74: Hessen | BQ74: AA Emden – Leer | BR74: RD Niedersachsen-Bremen
A75: 519 | B75: AA Koblenz – Mayen | C75: Koblenz – Mayen | D75: Rheinland-Pfalz | E75: IVb Ländl. Bez. m. günst. AM-Lage, sais. Dyn | G75: 231 | H75: AA Göttingen | I75: Agentur für Arbeit Göttingen | J75: AA Göttingen | K75: 09279 | L75: 09279 Dingolfing-Landau | M75: Dingolfing-Landau | N75: Dingolfing-Landau | O75: Dingolfing-Landau | P75: 01051 | Q75: Dithmarschen | R75: Dithmarschen | S75: Bayern | AM75: 09663 Würzburg, Stadt | BB75: Sonneberg | BC75: Ie Regionen abseits der Ballungsräume (…) | BD75: Dingolfing-Landau | BE75: Bayern | BF75: Dingolfing-Landau | BG75: AA Göttingen | BH75: Dithmarschen | BI75: Schleswig-Holstein | BJ75: Agentur für Arbeit Koblenz – Mayen | BK75: Rheinland-Pfalz | BM75: AA Offenbach | BN75: AA Offenbach | BO75: Agentur für Arbeit Offenbach | BP75: Hessen | BQ75: AA Göttingen | BR75: RD Niedersachsen-Bremen
A76: 357 | B76: AA Köln | C76: Köln | D76: Nordrhein-Westfalen | E76: IIa Großstädtische Bezirke mit erhöhter ALO | G76: 234 | H76: AA Hameln | I76: Agentur für Arbeit Hameln | J76: AA Hameln | K76: 09779 | L76: 09779 Donau-Ries | M76: Donau-Ries | N76: Donau-Ries | O76: Donau-Ries | P76: 09779 | Q76: Donau-Ries | R76: Donau-Ries | S76: Bayern | AM76: 09671 Aschaffenburg | BB76: Wartburgkreis | BC76: Ie Regionen abseits der Ballungsräume (…) | BD76: Donau-Ries | BE76: Bayern | BF76: Donau-Ries | BG76: AA Hameln | BH76: Donau-Ries | BI76: Bayern | BJ76: Agentur für Arbeit Köln | BK76: Nordrhein-Westfalen | BM76: AA Wiesbaden | BN76: AA Wiesbaden | BO76: Agentur für Arbeit Wiesbaden | BP76: Hessen | BQ76: AA Hameln | BR76: RD Niedersachsen-Bremen
A77: 634 | B77: AA Konstanz – Ravensburg | C77: Konstanz – Ravensburg | D77: Baden-Württemberg | E77: IVb Ländl. Bez. m. günst. AM-Lage, sais. Dyn | G77: 237 | H77: AA Hannover | I77: Agentur für Arbeit Hannover | J77: AA Hannover | K77: 09175 | L77: 09175 Ebersberg | M77: Ebersberg | N77: Ebersberg | O77: Ebersberg | P77: 07333 | Q77: Donnersbergkreis | R77: Donnersbergkreis | S77: Bayern | AM77: 09672 Bad Kissingen | BB77: Schmalkalden-Meiningen | BC77: Ie Regionen abseits der Ballungsräume (…) | BD77: Ebersberg | BE77: Bayern | BF77: Ebersberg | BG77: AA Hannover | BH77: Donnersbergkreis | BI77: Rheinland-Pfalz | BJ77: Agentur für Arbeit Konstanz – Ravensburg | BK77: Baden-Württemberg | BM77: Mecklenburg-Vorpommern | BN77: Mecklenburg-Vorpommern | BO77: Mecklenburg-Vorpommern | BP77: Mecklenburg-Vorpommern | BQ77: AA Hannover | BR77: RD Niedersachsen-Bremen
A78: 439 | B78: AA Korbach | C78: Korbach | D78: Hessen | E78: IVb Ländl. Bez. m. günst. AM-Lage, sais. Dyn | G78: 241 | H78: AA Helmstedt | I78: Agentur für Arbeit Helmstedt | J78: AA Helmstedt | K78: 09176 | L78: 09176 Eichstätt | M78: Eichstätt | N78: Eichstätt | O78: Eichstätt | P78: 05913 | Q78: Dortmund, Stadt | R78: Dortmund, Stadt | S78: Bayern | AM78: 09673 Rhön-Grabfeld | BB78: Stormarn | BC78: IIc Regionen in Schl.-Hols. und Nied.s. (…) | BD78: Eichstätt | BE78: Bayern | BF78: Eichstätt | BG78: AA Helmstedt | BH78: Dortmund, Stadt | BI78: Nordrhein-Westfalen | BJ78: Agentur für Arbeit Korbach | BK78: Hessen | BM78: AA Greifswald | BN78: AA Greifswald | BO78: Agentur für Arbeit Greifswald | BP78: Mecklenburg-Vorpommern | BQ78: AA Helmstedt | BR78: RD Niedersachsen-Bremen
A79: 361 | B79: AA Krefeld | C79: Krefeld | D79: Nordrhein-Westfalen | E79: IIc Städt. gepr. B. m. leicht überdurch. ALO | G79: 244 | H79: AA Hildesheim | I79: Agentur für Arbeit Hildesheim | J79: AA Hildesheim | K79: 09177 | L79: 09177 Erding | M79: Erding | N79: Erding | O79: Erding | P79: 14612 | Q79: Dresden, Stadt | R79: Dresden, Stadt | S79: Bayern | AM79: 09674 Haßberge | BB79: Herzogtum Lauenburg | BC79: IIc Regionen in Schl.-Hols. und Nied.s. (…) | BD79: Erding | BE79: Bayern | BF79: Erding | BG79: AA Hildesheim | BH79: Dresden, Stadt | BI79: Sachsen | BJ79: Agentur für Arbeit Krefeld | BK79: Nordrhein-Westfalen | BM79: AA Neubrandenburg | BN79: AA Neubrandenburg | BO79: Agentur für Arbeit Neubrandenburg | BP79: Mecklenburg-Vorpommern | BQ79: AA Hildesheim | BR79: RD Niedersachsen-Bremen
A80: 543 | B80: AA Landau | C80: Landau | D80: Rheinland-Pfalz | E80: IVa Verd. Bez. m. ind. Orient., g. AM-Lage | G80: 251 | H80: AA Lüneburg – Uelzen | I80: Agentur für Arbeit Lüneburg – Uelzen | J80: AA Lüneburg – Uelzen | K80: 09562 | L80: 09562 Erlangen, Stadt | M80: Erlangen, Stadt | N80: Erlangen, Stadt | O80: Erlangen, Stadt | P80: 05112 | Q80: Duisburg, Stadt | R80: Duisburg, Stadt | S80: Bayern | AM80: 09675 Kitzingen | BB80: Pinneberg | BC80: IIc Regionen in Schl.-Hols. und Nied.s. (…) | BD80: Erlangen, Stadt | BE80: Bayern | BF80: Erlangen, Stadt | BG80: AA Lüneburg – Uelzen | BH80: Duisburg, Stadt | BI80: Nordrhein-Westfalen | BJ80: Agentur für Arbeit Landau | BK80: Rheinland-Pfalz | BM80: AA Rostock | BN80: AA Rostock | BO80: Agentur für Arbeit Rostock | BP80: Mecklenburg-Vorpommern | BQ80: AA Lüneburg – Uelzen | BR80: RD Niedersachsen-Bremen
A81: 835 | B81: AA Landshut – Pfarrkirchen | C81: Landshut – Pfarrkirchen | D81: Bayern | E81: IVc Ländl. Bez. m. sais. Dyn. u. niedr. ALO | G81: 277 | H81: AA Nienburg – Verden | I81: Agentur für Arbeit Nienburg – Verden | J81: AA Nienburg – Verden | K81: 09572 | L81: 09572 Erlangen-Höchstadt | M81: Erlangen-Höchstadt | N81: Erlangen-Höchstadt | O81: Erlangen-Höchstadt | P81: 05358 | Q81: Düren | R81: Düren | S81: Bayern | AM81: 09676 Miltenberg | BB81: Segeberg | BC81: IIc Regionen in Schl.-Hols. und Nied.s. (…) | BD81: Erlangen-Höchstadt | BE81: Bayern | BF81: Erlangen-Höchstadt | BG81: AA Nienburg – Verden | BH81: Düren | BI81: Nordrhein-Westfalen | BJ81: Agentur für Arbeit Landshut – Pfarrkirchen | BK81: Bayern | BM81: AA Schwerin | BN81: AA Schwerin | BO81: Agentur für Arbeit Schwerin | BP81: Mecklenburg-Vorpommern | BQ81: AA Nienburg – Verden | BR81: RD Niedersachsen-Bremen
A82: 075 | B82: AA Leipzig | C82: Leipzig | D82: Sachsen | E82: Va meist großst. B. mit hoher ALO | G82: 257 | H82: AA Nordhorn | I82: Agentur für Arbeit Nordhorn | J82: AA Nordhorn | K82: 09474 | L82: 09474 Forchheim | M82: Forchheim | N82: Forchheim | O82: Forchheim | P82: 05111 | Q82: Düsseldorf, Stadt | R82: Düsseldorf, Stadt | S82: Bayern | AM82: 09677 Main-Spessart | BB82: Flensburg, Stadt | BC82: IIIb Überw. städt. bzw. verstädt. Reg. (…) | BD82: Forchheim | BE82: Bayern | BF82: Forchheim | BG82: AA Nordhorn | BH82: Düsseldorf, Stadt | BI82: Nordrhein-Westfalen | BJ82: Agentur für Arbeit Leipzig | BK82: Sachsen | BM82: AA Stralsund | BN82: AA Stralsund | BO82: Agentur für Arbeit Stralsund | BP82: Mecklenburg-Vorpommern | BQ82: AA Nordhorn | BR82: RD Niedersachsen-Bremen
A83: 443 | B83: AA Limburg – Wetzlar | C83: Limburg – Wetzlar | D83: Hessen | E83: IIIa Verd. Bez. m. leicht unterdurchschn. ALO | G83: 261 | H83: AA Oldenburg – Wilhelmshaven | I83: Agentur für Arbeit Oldenburg – Wilhelmshaven | J83: AA Oldenburg – Wilhelmshaven | K83: 09178 | L83: 09178 Freising | M83: Freising | N83: Freising | O83: Freising | P83: 09175 | Q83: Ebersberg | R83: Ebersberg | S83: Bayern | AM83: 09678 Schweinfurt | BB83: Schleswig-Flensburg | BC83: IIc Regionen in Schl.-Hols. und Nied.s. (…) | BD83: Freising | BE83: Bayern | BF83: Freising | BG83: AA Oldenburg – Wilhelmshaven | BH83: Ebersberg | BI83: Bayern | BJ83: Agentur für Arbeit Limburg – Wetzlar | BK83: Hessen | BM83: Niedersachsen | BN83: Niedersachsen | BO83: Niedersachsen | BP83: Niedersachsen | BQ83: AA Oldenburg – Wilhelmshaven | BR83: RD Niedersachsen-Bremen
A84: 637 | B84: AA Lörrach | C84: Lörrach | D84: Baden-Württemberg | E84: IVa Verd. Bez. m. ind. Orient., g. AM-Lage | G84: 264 | H84: AA Osnabrück | I84: Agentur für Arbeit Osnabrück | J84: AA Osnabrück | K84: 09272 | L84: 09272 Freyung-Grafenau | M84: Freyung-Grafenau | N84: Freyung-Grafenau | O84: Freyung-Grafenau | P84: 16061 | Q84: Eichsfeld | R84: Eichsfeld | S84: Bayern | AM84: 09679 Würzburg | BB84: Nordfriesland | BC84: IIc Regionen in Schl.-Hols. und Nied.s. (…) | BD84: Freyung-Grafenau | BE84: Bayern | BF84: Freyung-Grafenau | BG84: AA Osnabrück | BH84: Eichsfeld | BI84: Thüringen | BJ84: Agentur für Arbeit Lörrach | BK84: Baden-Württemberg | BM84: AA Braunschweig – Goslar | BN84: AA Braunschweig – Goslar | BO84: Agentur für Arbeit Braunschweig – Goslar | BP84: Niedersachsen | BQ84: AA Osnabrück | BR84: RD Niedersachsen-Bremen
A85: 135 | B85: AA Lübeck | C85: Lübeck | D85: Schleswig-Holstein | E85: IIIb Ger. verd. u. länd. B. m. durchschn. ALO | G85: 267 | H85: AA Stade | I85: Agentur für Arbeit Stade | J85: AA Stade | K85: 09179 | L85: 09179 Fürstenfeldbruck | M85: Fürstenfeldbruck | N85: Fürstenfeldbruck | O85: Fürstenfeldbruck | P85: 09176 | Q85: Eichstätt | R85: Eichstätt | S85: Bayern | AM85: 09761 Augsburg, Stadt | BB85: Hamburg, Freie und Hansestadt | BC85: IIIb Überw. städt. bzw. verstädt. Reg. (…) | BD85: Fürstenfeldbruck | BE85: Bayern | BF85: Fürstenfeldbruck | BG85: AA Stade | BH85: Eichstätt | BI85: Bayern | BJ85: Agentur für Arbeit Lübeck | BK85: Schleswig-Holstein | BM85: AA Celle | BN85: AA Celle | BO85: Agentur für Arbeit Celle | BP85: Niedersachsen | BQ85: AA Stade | BR85: RD Niedersachsen-Bremen
A86: 641 | B86: AA Ludwigsburg | C86: Ludwigsburg | D86: Baden-Württemberg | E86: IVa Verd. Bez. m. ind. Orient., g. AM-Lage | G86: 274 | H86: AA Vechta | I86: Agentur für Arbeit Vechta | J86: AA Vechta | K86: 09573 | L86: 09573 Fürth | M86: Fürth | N86: Fürth | O86: Fürth | P86: 07232 | Q86: Eifelkreis Bitburg-Prüm | R86: Eifelkreis Bitburg-Prüm | S86: Bayern | AM86: 09762 Kaufbeuren, Stadt | BB86: Dithmarschen | BC86: IIc Regionen in Schl.-Hols. und Nied.s. (…) | BD86: Fürth | BE86: Bayern | BF86: Fürth | BG86: AA Vechta | BH86: Eifelkreis Bitburg-Prüm | BI86: Rheinland-Pfalz | BJ86: Agentur für Arbeit Ludwigsburg | BK86: Baden-Württemberg | BM86: AA Emden – Leer | BN86: AA Emden – Leer | BO86: Agentur für Arbeit Emden – Leer | BP86: Niedersachsen | BQ86: AA Vechta | BR86: RD Niedersachsen-Bremen
A87: 523 | B87: AA Ludwigshafen | C87: Ludwigshafen | D87: Rheinland-Pfalz | E87: IIIa Verd. Bez. m. leicht unterdurchschn. ALO | G87: 100 | H87: RD Nord | I87: Regionaldirektion Nord | J87: RD Nord | K87: 09563 | L87: 09563 Fürth, Stadt | M87: Fürth, Stadt | N87: Fürth, Stadt | O87: Fürth, Stadt | P87: 12062 | Q87: Elbe-Elster | R87: Elbe-Elster | S87: Bayern | AM87: 09763 Kempten (Allgäu), Stadt | BB87: Steinburg | BC87: IIc Regionen in Schl.-Hols. und Nied.s. (…) | BD87: Fürth, Stadt | BE87: Bayern | BF87: Fürth, Stadt | BG87: RD Nord | BH87: Elbe-Elster | BI87: Brandenburg | BJ87: Agentur für Arbeit Ludwigshafen | BK87: Rheinland-Pfalz | BM87: AA Göttingen | BN87: AA Göttingen | BO87: Agentur für Arbeit Göttingen | BP87: Niedersachsen | BQ87: RD Nord | BR87: RD Nord
A88: 251 | B88: AA Lüneburg – Uelzen | C88: Lüneburg – Uelzen | D88: Niedersachsen | E88: IIIb Ger. verd. u. länd. B. m. durchschn. ALO | G88: 111 | H88: AA Bad Oldesloe | I88: Agentur für Arbeit Bad Oldesloe | J88: AA Bad Oldesloe | K88: 09180 | L88: 09180 Garmisch-Partenkirchen | M88: Garmisch-Partenkirchen | N88: Garmisch-Partenkirchen | O88: Garmisch-Partenkirchen | P88: 03402 | Q88: Emden, Stadt | R88: Emden, Stadt | S88: Bayern | AM88: 09764 Memmingen, Stadt | BB88: Kiel, Landeshauptstadt | BC88: IIIb Überw. städt. bzw. verstädt. Reg. (…) | BD88: Garmisch-Partenkirchen | BE88: Bayern | BF88: Garmisch-Partenkirchen | BG88: AA Bad Oldesloe | BH88: Emden, Stadt | BI88: Niedersachsen | BJ88: Agentur für Arbeit Lüneburg – Uelzen | BK88: Niedersachsen | BM88: AA Hameln | BN88: AA Hameln | BO88: Agentur für Arbeit Hameln | BP88: Niedersachsen | BQ88: AA Bad Oldesloe | BR88: RD Nord
A89: 527 | B89: AA Mainz | C89: Mainz | D89: Rheinland-Pfalz | E89: IIIa Verd. Bez. m. leicht unterdurchschn. ALO | G89: 115 | H89: AA Elmshorn | I89: Agentur für Arbeit Elmshorn | J89: AA Elmshorn | K89: 09774 | L89: 09774 Günzburg | M89: Günzburg | N89: Günzburg | O89: Günzburg | P89: 08316 | Q89: Emmendingen | R89: Emmendingen | S89: Bayern | AM89: 09771 Aichach-Friedberg | BB89: Plön | BC89: IIc Regionen in Schl.-Hols. und Nied.s. (…) | BD89: Günzburg | BE89: Bayern | BF89: Günzburg | BG89: AA Elmshorn | BH89: Emmendingen | BI89: Baden-Württemberg | BJ89: Agentur für Arbeit Mainz | BK89: Rheinland-Pfalz | BM89: AA Hannover | BN89: AA Hannover | BO89: Agentur für Arbeit Hannover | BP89: Niedersachsen | BQ89: AA Elmshorn | BR89: RD Nord
A90: 644 | B90: AA Mannheim | C90: Mannheim | D90: Baden-Württemberg | E90: I Überw. großst. Bez. im W m. günst. AM-Lage | G90: 119 | H90: AA Flensburg | I90: Agentur für Arbeit Flensburg | J90: AA Flensburg | K90: 09674 | L90: 09674 Haßberge | M90: Haßberge | N90: Haßberge | O90: Haßberge | P90: 03454 | Q90: Emsland | R90: Emsland | S90: Bayern | AM90: 09772 Augsburg | BB90: Lübeck, Hansestadt | BC90: IIIb Überw. städt. bzw. verstädt. Reg. (…) | BD90: Haßberge | BE90: Bayern | BF90: Haßberge | BG90: AA Flensburg | BH90: Emsland | BI90: Niedersachsen | BJ90: Agentur für Arbeit Mannheim | BK90: Baden-Württemberg | BM90: AA Helmstedt | BN90: AA Helmstedt | BO90: Agentur für Arbeit Helmstedt | BP90: Niedersachsen | BQ90: AA Flensburg | BR90: RD Nord
A91: 447 | B91: AA Marburg | C91: Marburg | D91: Hessen | E91: IVb Ländl. Bez. m. günst. AM-Lage, sais. Dyn | G91: 030 | H91: AA Greifswald | I91: Agentur für Arbeit Greifswald | J91: AA Greifswald | K91: 09475 | L91: 09475 Hof | M91: Hof | N91: Hof | O91: Hof | P91: 05954 | Q91: Ennepe-Ruhr-Kreis | R91: Ennepe-Ruhr-Kreis | S91: Bayern | AM91: 09773 Dillingen a.d.Donau | BB91: Ostholstein | BC91: IIc Regionen in Schl.-Hols. und Nied.s. (…) | BD91: Hof | BE91: Bayern | BF91: Hof | BG91: AA Greifswald | BH91: Ennepe-Ruhr-Kreis | BI91: Nordrhein-Westfalen | BJ91: Agentur für Arbeit Marburg | BK91: Hessen | BM91: AA Hildesheim | BN91: AA Hildesheim | BO91: Agentur für Arbeit Hildesheim | BP91: Niedersachsen | BQ91: AA Greifswald | BR91: RD Nord
A92: 383 | B92: AA Meschede – Soest | C92: Meschede – Soest | D92: Nordrhein-Westfalen | E92: IVa Verd. Bez. m. ind. Orient., g. AM-Lage | G92: 123 | H92: AA Hamburg | I92: Agentur für Arbeit Hamburg | J92: AA Hamburg | K92: 09464 | L92: 09464 Hof, Stadt | M92: Hof, Stadt | N92: Hof, Stadt | O92: Hof, Stadt | P92: 08236 | Q92: Enzkreis | R92: Enzkreis | S92: Bayern | AM92: 09774 Günzburg | BB92: Neumünster, Stadt | BC92: IIIb Überw. städt. bzw. verstädt. Reg. (…) | BD92: Hof, Stadt | BE92: Bayern | BF92: Hof, Stadt | BG92: AA Hamburg | BH92: Enzkreis | BI92: Baden-Württemberg | BJ92: Agentur für Arbeit Meschede – Soest | BK92: Nordrhein-Westfalen | BM92: AA Lüneburg – Uelzen | BN92: AA Lüneburg – Uelzen | BO92: Agentur für Arbeit Lüneburg – Uelzen | BP92: Niedersachsen | BQ92: AA Hamburg | BR92: RD Nord
A93: 364 | B93: AA Mettmann | C93: Mettmann | D93: Nordrhein-Westfalen | E93: IIc Städt. gepr. B. m. leicht überdurch. ALO | G93: 127 | H93: AA Heide | I93: Agentur für Arbeit Heide | J93: AA Heide | K93: 09161 | L93: 09161 Ingolstadt, Stadt | M93: Ingolstadt, Stadt | N93: Ingolstadt, Stadt | O93: Ingolstadt, Stadt | P93: 09177 | Q93: Erding | R93: Erding | S93: Bayern | AM93: 09775 Neu-Ulm | BB93: Rendsburg-Eckernförde | BC93: IIc Regionen in Schl.-Hols. und Nied.s. (…) | BD93: Ingolstadt, Stadt | BE93: Bayern | BF93: Ingolstadt, Stadt | BG93: AA Heide | BH93: Erding | BI93: Bayern | BJ93: Agentur für Arbeit Mettmann | BK93: Nordrhein-Westfalen | BM93: AA Nienburg – Verden | BN93: AA Nienburg – Verden | BO93: Agentur für Arbeit Nienburg – Verden | BP93: Niedersachsen | BQ93: AA Heide | BR93: RD Nord
A94: 365 | B94: AA Mönchengladbach | C94: Mönchengladbach | D94: Nordrhein-Westfalen | E94: IIc Städt. gepr. B. m. leicht überdurch. ALO | G94: 131 | H94: AA Kiel | I94: Agentur für Arbeit Kiel | J94: AA Kiel | K94: 09762 | L94: 09762 Kaufbeuren, Stadt | M94: Kaufbeuren, Stadt | N94: Kaufbeuren, Stadt | O94: Kaufbeuren, Stadt | P94: 16051 | Q94: Erfurt, Stadt | R94: Erfurt, Stadt | S94: Bayern | AM94: 09776 Lindau (Bodensee) | BB94: Braunschweig, Stadt | BC94: IIIb Überw. städt. bzw. verstädt. Reg. (…) | BD94: Kaufbeuren, Stadt | BE94: Bayern | BF94: Kaufbeuren, Stadt | BG94: AA Kiel | BH94: Erfurt, Stadt | BI94: Thüringen | BJ94: Agentur für Arbeit Mönchengladbach | BK94: Nordrhein-Westfalen | BM94: AA Nordhorn | BN94: AA Nordhorn | BO94: Agentur für Arbeit Nordhorn | BP94: Niedersachsen | BQ94: AA Kiel | BR94: RD Nord
A95: 535 | B95: AA Montabaur | C95: Montabaur | D95: Rheinland-Pfalz | E95: IVb Ländl. Bez. m. günst. AM-Lage, sais. Dyn | G95: 135 | H95: AA Lübeck | I95: Agentur für Arbeit Lübeck | J95: AA Lübeck | K95: 09273 | L95: 09273 Kelheim | M95: Kelheim | N95: Kelheim | O95: Kelheim | P95: 09562 | Q95: Erlangen, Stadt | R95: Erlangen, Stadt | S95: Bayern | AM95: 09777 Ostallgäu | BB95: Salzgitter, Stadt | BC95: IIIc Städte bzw. verd. Lkr. in Rhein-Ruhr (…) | BD95: Kelheim | BE95: Bayern | BF95: Kelheim | BG95: AA Lübeck | BH95: Erlangen, Stadt | BI95: Bayern | BJ95: Agentur für Arbeit Montabaur | BK95: Rheinland-Pfalz | BM95: AA Oldenburg – Wilhelmshaven | BN95: AA Oldenburg – Wilhelmshaven | BO95: Agentur für Arbeit Oldenburg – Wilhelmshaven | BP95: Niedersachsen | BQ95: AA Lübeck | BR95: RD Nord
A96: 843 | B96: AA München | C96: München | D96: Bayern | E96: I Überw. großst. Bez. im W m. günst. AM-Lage | G96: 031 | H96: AA Neubrandenburg | I96: Agentur für Arbeit Neubrandenburg | J96: AA Neubrandenburg | K96: 09763 | L96: 09763 Kempten (Allgäu), Stadt | M96: Kempten (Allgäu), Stadt | N96: Kempten (Allgäu), Stadt | O96: Kempten (Allgäu), Stadt | P96: 09572 | Q96: Erlangen-Höchstadt | R96: Erlangen-Höchstadt | S96: Bayern | AM96: 09778 Unterallgäu | BB96: Wolfenbüttel | BC96: IIc Regionen in Schl.-Hols. und Nied.s. (…) | BD96: Kempten (Allgäu), Stadt | BE96: Bayern | BF96: Kempten (Allgäu), Stadt | BG96: AA Neubrandenburg | BH96: Erlangen-Höchstadt | BI96: Bayern | BJ96: Agentur für Arbeit München | BK96: Bayern | BM96: AA Osnabrück | BN96: AA Osnabrück | BO96: Agentur für Arbeit Osnabrück | BP96: Niedersachsen | BQ96: AA Neubrandenburg | BR96: RD Nord
A97: 647 | B97: AA Nagold – Pforzheim | C97: Nagold – Pforzheim | D97: Baden-Württemberg | E97: IVa Verd. Bez. m. ind. Orient., g. AM-Lage | G97: 139 | H97: AA Neumünster | I97: Agentur für Arbeit Neumünster | J97: AA Neumünster | K97: 09675 | L97: 09675 Kitzingen | M97: Kitzingen | N97: Kitzingen | O97: Kitzingen | P97: 14521 | Q97: Erzgebirgskreis | R97: Erzgebirgskreis | S97: Bayern | AM97: 09779 Donau-Ries | BB97: Goslar | BC97: IIc Regionen in Schl.-Hols. und Nied.s. (…) | BD97: Kitzingen | BE97: Bayern | BF97: Kitzingen | BG97: AA Neumünster | BH97: Erzgebirgskreis | BI97: Sachsen | BJ97: Agentur für Arbeit Nagold – Pforzheim | BK97: Baden-Württemberg | BM97: AA Stade | BN97: AA Stade | BO97: Agentur für Arbeit Stade | BP97: Niedersachsen | BQ97: AA Neumünster | BR97: RD Nord
A98: 031 | B98: AA Neubrandenburg | C98: Neubrandenburg | D98: Mecklenburg-Vorpommern | E98: Vc Ländl. Bez. in Ost m. schl. AM-Lage | G98: 032 | H98: AA Rostock | I98: Agentur für Arbeit Rostock | J98: AA Rostock | K98: 09476 | L98: 09476 Kronach | M98: Kronach | N98: Kronach | O98: Kronach | P98: 05113 | Q98: Essen, Stadt | R98: Essen, Stadt | S98: Bayern | AM98: 09780 Oberallgäu | BB98: Bremen, Stadt | BC98: IIIb Überw. städt. bzw. verstädt. Reg. (…) | BD98: Kronach | BE98: Bayern | BF98: Kronach | BG98: AA Rostock | BH98: Essen, Stadt | BI98: Nordrhein-Westfalen | BJ98: Agentur für Arbeit Neubrandenburg | BK98: Mecklenburg-Vorpommern | BM98: AA Vechta | BN98: AA Vechta | BO98: Agentur für Arbeit Vechta | BP98: Niedersachsen | BQ98: AA Rostock | BR98: RD Nord
A99: 139 | B99: AA Neumünster | C99: Neumünster | D99: Schleswig-Holstein | E99: IIIb Ger. verd. u. länd. B. m. durchschn. ALO | G99: 033 | H99: AA Schwerin | I99: Agentur für Arbeit Schwerin | J99: AA Schwerin | K99: 09477 | L99: 09477 Kulmbach | M99: Kulmbach | N99: Kulmbach | O99: Kulmbach | P99: 08116 | Q99: Esslingen | R99: Esslingen | S99: Bayern | BB99: Osterholz | BC99: IIc Regionen in Schl.-Hols. und Nied.s. (…) | BD99: Kulmbach | BE99: Bayern | BF99: Kulmbach | BG99: AA Schwerin | BH99: Esslingen | BI99: Baden-Württemberg | BJ99: Agentur für Arbeit Neumünster | BK99: Schleswig-Holstein | BM99: Nordrhein-Westfalen | BN99: Nordrhein-Westfalen | BO99: Nordrhein-Westfalen | BP99: Nordrhein-Westfalen | BQ99: AA Schwerin | BR99: RD Nord
A100: 038 | B100: AA Neuruppin | C100: Neuruppin | D100: Brandenburg | E100: Vc Ländl. Bez. in Ost m. schl. AM-Lage | G100: 034 | H100: AA Stralsund | I100: Agentur für Arbeit Stralsund | J100: AA Stralsund | K100: 09181 | L100: 09181 Landsberg am Lech | M100: Landsberg am Lech | N100: Landsberg am Lech | O100: Landsberg am Lech | P100: 05366 | Q100: Euskirchen | R100: Euskirchen | S100: Bayern | BB100: Bremerhaven, Stadt | BC100: IIIc Städte bzw. verd. Lkr. in Rhein-Ruhr (…) | BD100: Landsberg am Lech | BE100: Bayern | BF100: Landsberg am Lech | BG100: AA Stralsund | BH100: Euskirchen | BI100: Nordrhein-Westfalen | BJ100: Agentur für Arbeit Neuruppin | BK100: Brandenburg | BM100: AA Aachen – Düren | BN100: AA Aachen – Düren | BO100: Agentur für Arbeit Aachen – Düren | BP100: Nordrhein-Westfalen | BQ100: AA Stralsund | BR100: RD Nord
A101: 547 | B101: AA Neuwied | C101: Neuwied | D101: Rheinland-Pfalz | E101: IVa Verd. Bez. m. ind. Orient., g. AM-Lage | G101: 300 | H101: RD Nordrhein-Westfalen | I101: Regionaldirektion Nordrhein-Westfalen | J101: RD Nordrhein-Westfalen | K101: 09274 | L101: 09274 Landshut | M101: Landshut | N101: Landshut | O101: Landshut | P101: 01001 | Q101: Flensburg, Stadt | R101: Flensburg, Stadt | S101: Bayern | BB101: Celle | BC101: IId Überw. Lkr. mit Schwerpunkt in NRW (…) | BD101: Landshut | BE101: Bayern | BF101: Landshut | BG101: RD Nordrhein-Westfalen | BH101: Flensburg, Stadt | BI101: Schleswig-Holstein | BJ101: Agentur für Arbeit Neuwied | BK101: Rheinland-Pfalz | BM101: AA Ahlen – Münster | BN101: AA Ahlen – Münster | BO101: Agentur für Arbeit Ahlen – Münster | BP101: Nordrhein-Westfalen | BQ101: RD Nordrhein-Westfalen | BR101: RD Nordrhein-Westfalen
A102: 277 | B102: AA Nienburg – Verden | C102: Nienburg – Verden | D102: Niedersachsen | E102: IIIa Verd. Bez. m. leicht unterdurchschn. ALO | G102: 311 | H102: AA Aachen – Düren | I102: Agentur für Arbeit Aachen – Düren | J102: AA Aachen – Düren | K102: 09261 | L102: 09261 Landshut, Stadt | M102: Landshut, Stadt | N102: Landshut, Stadt | O102: Landshut, Stadt | P102: 09474 | Q102: Forchheim | R102: Forchheim | S102: Bayern | BB102: Heidekreis | BC102: IIc Regionen in Schl.-Hols. und Nied.s. (…) | BD102: Landshut, Stadt | BE102: Bayern | BF102: Landshut, Stadt | BG102: AA Aachen – Düren | BH102: Forchheim | BI102: Bayern | BJ102: Agentur für Arbeit Nienburg – Verden | BK102: Niedersachsen | BM102: AA Bergisch Gladbach | BN102: AA Bergisch Gladbach | BO102: Agentur für Arbeit Bergisch Gladbach | BP102: Nordrhein-Westfalen | BQ102: AA Aachen – Düren | BR102: RD Nordrhein-Westfalen
A103: 257 | B103: AA Nordhorn | C103: Nordhorn | D103: Niedersachsen | E103: IVb Ländl. Bez. m. günst. AM-Lage, sais. Dyn | G103: 367 | H103: AA Ahlen – Münster | I103: Agentur für Arbeit Ahlen – Münster | J103: AA Ahlen – Münster | K103: 09478 | L103: 09478 Lichtenfels | M103: Lichtenfels | N103: Lichtenfels | O103: Lichtenfels | P103: 07311 | Q103: Frankenthal (Pfalz), kreisfreie Stadt | R103: Frankenthal (Pfalz), kreisfreie Stadt | S103: Bayern | BB103: Emden, Stadt | BC103: IIIb Überw. städt. bzw. verstädt. Reg. (…) | BD103: Lichtenfels | BE103: Bayern | BF103: Lichtenfels | BG103: AA Ahlen – Münster | BH103: Frankenthal (Pfalz), kreisfreie Stadt | BI103: Rheinland-Pfalz | BJ103: Agentur für Arbeit Nordhorn | BK103: Niedersachsen | BM103: AA Bielefeld | BN103: AA Bielefeld | BO103: Agentur für Arbeit Bielefeld | BP103: Nordrhein-Westfalen | BQ103: AA Ahlen – Münster | BR103: RD Nordrhein-Westfalen
A104: 735 | B104: AA Nürnberg | C104: Nürnberg | D104: Bayern | E104: I Überw. großst. Bez. im W m. günst. AM-Lage | G104: 315 | H104: AA Bergisch Gladbach | I104: Agentur für Arbeit Bergisch Gladbach | J104: AA Bergisch Gladbach | K104: 09776 | L104: 09776 Lindau (Bodensee) | M104: Lindau (Bodensee) | N104: Lindau (Bodensee) | O104: Lindau (Bodensee) | P104: 12053 | Q104: Frankfurt (Oder), Stadt | R104: Frankfurt (Oder), Stadt | S104: Bayern | BB104: Leer | BC104: IIc Regionen in Schl.-Hols. und Nied.s. (…) | BD104: Lindau (Bodensee) | BE104: Bayern | BF104: Lindau (Bodensee) | BG104: AA Bergisch Gladbach | BH104: Frankfurt (Oder), Stadt | BI104: Brandenburg | BJ104: Agentur für Arbeit Nürnberg | BK104: Bayern | BM104: AA Bochum | BN104: AA Bochum | BO104: Agentur für Arbeit Bochum | BP104: Nordrhein-Westfalen | BQ104: AA Bergisch Gladbach | BR104: RD Nordrhein-Westfalen
A105: 371 | B105: AA Oberhausen | C105: Oberhausen | D105: Nordrhein-Westfalen | E105: IIb Großstädtische Bezirke m. sehr hoher ALO | G105: 317 | H105: AA Bielefeld | I105: Agentur für Arbeit Bielefeld | J105: AA Bielefeld | K105: 09677 | L105: 09677 Main-Spessart | M105: Main-Spessart | N105: Main-Spessart | O105: Main-Spessart | P105: 06412 | Q105: Frankfurt am Main, Stadt | R105: Frankfurt am Main, Stadt | S105: Bayern | BB105: Wittmund | BC105: IIc Regionen in Schl.-Hols. und Nied.s. (…) | BD105: Main-Spessart | BE105: Bayern | BF105: Main-Spessart | BG105: AA Bielefeld | BH105: Frankfurt am Main, Stadt | BI105: Hessen | BJ105: Agentur für Arbeit Oberhausen | BK105: Nordrhein-Westfalen | BM105: AA Bonn | BN105: AA Bonn | BO105: Agentur für Arbeit Bonn | BP105: Nordrhein-Westfalen | BQ105: AA Bielefeld | BR105: RD Nordrhein-Westfalen
A106: 451 | B106: AA Offenbach | C106: Offenbach | D106: Hessen | E106: IIIa Verd. Bez. m. leicht unterdurchschn. ALO | G106: 321 | H106: AA Bochum | I106: Agentur für Arbeit Bochum | J106: AA Bochum | K106: 09764 | L106: 09764 Memmingen, Stadt | M106: Memmingen, Stadt | N106: Memmingen, Stadt | O106: Memmingen, Stadt | P106: 08311 | Q106: Freiburg im Breisgau, Stadt | R106: Freiburg im Breisgau, Stadt | S106: Bayern | BB106: Aurich | BC106: IIc Regionen in Schl.-Hols. und Nied.s. (…) | BD106: Memmingen, Stadt | BE106: Bayern | BF106: Memmingen, Stadt | BG106: AA Bochum | BH106: Freiburg im Breisgau, Stadt | BI106: Baden-Württemberg | BJ106: Agentur für Arbeit Offenbach | BK106: Hessen | BM106: AA Brühl | BN106: AA Brühl | BO106: Agentur für Arbeit Brühl | BP106: Nordrhein-Westfalen | BQ106: AA Bochum | BR106: RD Nordrhein-Westfalen
A107: 651 | B107: AA Offenburg | C107: Offenburg | D107: Baden-Württemberg | E107: IVa Verd. Bez. m. ind. Orient., g. AM-Lage | G107: 323 | H107: AA Bonn | I107: Agentur für Arbeit Bonn | J107: AA Bonn | K107: 09182 | L107: 09182 Miesbach | M107: Miesbach | N107: Miesbach | O107: Miesbach | P107: 09178 | Q107: Freising | R107: Freising | S107: Bayern | BB107: Göttingen | BC107: IId Überw. Lkr. mit Schwerpunkt in NRW (…) | BD107: Miesbach | BE107: Bayern | BF107: Miesbach | BG107: AA Bonn | BH107: Freising | BI107: Bayern | BJ107: Agentur für Arbeit Offenburg | BK107: Baden-Württemberg | BM107: AA Coesfeld | BN107: AA Coesfeld | BO107: Agentur für Arbeit Coesfeld | BP107: Nordrhein-Westfalen | BQ107: AA Bonn | BR107: RD Nordrhein-Westfalen
A108: 261 | B108: AA Oldenburg – Wilhelmshaven | C108: Oldenburg – Wilhelmshaven | D108: Niedersachsen | E108: IIIb Ger. verd. u. länd. B. m. durchschn. ALO | G108: 325 | H108: AA Brühl | I108: Agentur für Arbeit Brühl | J108: AA Brühl | K108: 09676 | L108: 09676 Miltenberg | M108: Miltenberg | N108: Miltenberg | O108: Miltenberg | P108: 08237 | Q108: Freudenstadt | R108: Freudenstadt | S108: Bayern | BB108: Northeim | BC108: IIa Überw. Lkr. mit ausgepr. Ind.sektor (…) | BD108: Miltenberg | BE108: Bayern | BF108: Miltenberg | BG108: AA Brühl | BH108: Freudenstadt | BI108: Baden-Württemberg | BJ108: Agentur für Arbeit Oldenburg – Wilhelmshaven | BK108: Niedersachsen | BM108: AA Detmold | BN108: AA Detmold | BO108: Agentur für Arbeit Detmold | BP108: Nordrhein-Westfalen | BQ108: AA Brühl | BR108: RD Nordrhein-Westfalen
A109: 076 | B109: AA Oschatz | C109: Oschatz | D109: Sachsen | E109: Vc Ländl. Bez. in Ost m. schl. AM-Lage | G109: 327 | H109: AA Coesfeld | I109: Agentur für Arbeit Coesfeld | J109: AA Coesfeld | K109: 09183 | L109: 09183 Mühldorf a.Inn | M109: Mühldorf a.Inn | N109: Mühldorf a.Inn | O109: Mühldorf a.Inn | P109: 09272 | Q109: Freyung-Grafenau | R109: Freyung-Grafenau | S109: Bayern | BB109: Holzminden | BC109: IId Überw. Lkr. mit Schwerpunkt in NRW (…) | BD109: Mühldorf a.Inn | BE109: Bayern | BF109: Mühldorf a.Inn | BG109: AA Coesfeld | BH109: Freyung-Grafenau | BI109: Bayern | BJ109: Agentur für Arbeit Oschatz | BK109: Sachsen | BM109: AA Dortmund | BN109: AA Dortmund | BO109: Agentur für Arbeit Dortmund | BP109: Nordrhein-Westfalen | BQ109: AA Coesfeld | BR109: RD Nordrhein-Westfalen
A110: 264 | B110: AA Osnabrück | C110: Osnabrück | D110: Niedersachsen | E110: IIIa Verd. Bez. m. leicht unterdurchschn. ALO | G110: 331 | H110: AA Detmold | I110: Agentur für Arbeit Detmold | J110: AA Detmold | K110: 09184 | L110: 09184 München | M110: München | N110: München | O110: München | P110: 96202 | Q110: Friedrichshain-Kreuzberg | R110: Friedrichshain-Kreuzberg | S110: Bayern | BB110: Hameln-Pyrmont | BC110: IIc Regionen in Schl.-Hols. und Nied.s. (…) | BD110: München | BE110: Bayern | BF110: München | BG110: AA Detmold | BH110: Friedrichshain-Kreuzberg | BI110: Berlin | BJ110: Agentur für Arbeit Osnabrück | BK110: Niedersachsen | BM110: AA Duisburg | BN110: AA Duisburg | BO110: Agentur für Arbeit Duisburg | BP110: Nordrhein-Westfalen | BQ110: AA Detmold | BR110: RD Nordrhein-Westfalen
A111: 373 | B111: AA Paderborn | C111: Paderborn | D111: Nordrhein-Westfalen | E111: IIIa Verd. Bez. m. leicht unterdurchschn. ALO | G111: 333 | H111: AA Dortmund | I111: Agentur für Arbeit Dortmund | J111: AA Dortmund | K111: 09162 | L111: 09162 München, Landeshauptstadt | M111: München, Landeshauptstadt | N111: München, Landeshauptstadt | O111: München, Landeshauptstadt | P111: 03455 | Q111: Friesland | R111: Friesland | S111: Bayern | BB111: Schaumburg | BC111: IIc Regionen in Schl.-Hols. und Nied.s. (…) | BD111: München, Landeshauptstadt | BE111: Bayern | BF111: München, Landeshauptstadt | BG111: AA Dortmund | BH111: Friesland | BI111: Niedersachsen | BJ111: Agentur für Arbeit Paderborn | BK111: Nordrhein-Westfalen | BM111: AA Düsseldorf | BN111: AA Düsseldorf | BO111: Agentur für Arbeit Düsseldorf | BP111: Nordrhein-Westfalen | BQ111: AA Dortmund | BR111: RD Nordrhein-Westfalen
A112: 847 | B112: AA Passau | C112: Passau | D112: Bayern | E112: IVc Ländl. Bez. m. sais. Dyn. u. niedr. ALO | G112: 341 | H112: AA Duisburg | I112: Agentur für Arbeit Duisburg | J112: AA Duisburg | K112: 09185 | L112: 09185 Neuburg-Schrobenhausen | M112: Neuburg-Schrobenhausen | N112: Neuburg-Schrobenhausen | O112: Neuburg-Schrobenhausen | P112: 06631 | Q112: Fulda | R112: Fulda | S112: Bayern | BB112: Region Hannover | BC112: IIIb Überw. städt. bzw. verstädt. Reg. (…) | BD112: Neuburg-Schrobenhausen | BE112: Bayern | BF112: Neuburg-Schrobenhausen | BG112: AA Duisburg | BH112: Fulda | BI112: Hessen | BJ112: Agentur für Arbeit Passau | BK112: Bayern | BM112: AA Essen | BN112: AA Essen | BO112: Agentur für Arbeit Essen | BP112: Nordrhein-Westfalen | BQ112: AA Duisburg | BR112: RD Nordrhein-Westfalen
A113: 077 | B113: AA Pirna | C113: Pirna | D113: Sachsen | E113: Vb Ger. verd. Bez. m. h. ALO | G113: 337 | H113: AA Düsseldorf | I113: Agentur für Arbeit Düsseldorf | J113: AA Düsseldorf | K113: 09373 | L113: 09373 Neumarkt i.d.OPf. | M113: Neumarkt i.d.OPf. | N113: Neumarkt i.d.OPf. | O113: Neumarkt i.d.OPf. | P113: 09179 | Q113: Fürstenfeldbruck | R113: Fürstenfeldbruck | S113: Bayern | BB113: Helmstedt | BC113: IIa Überw. Lkr. mit ausgepr. Ind.sektor (…) | BD113: Neumarkt i.d.OPf. | BE113: Bayern | BF113: Neumarkt i.d.OPf. | BG113: AA Düsseldorf | BH113: Fürstenfeldbruck | BI113: Bayern | BJ113: Agentur für Arbeit Pirna | BK113: Sachsen | BM113: AA Gelsenkirchen | BN113: AA Gelsenkirchen | BO113: Agentur für Arbeit Gelsenkirchen | BP113: Nordrhein-Westfalen | BQ113: AA Düsseldorf | BR113: RD Nordrhein-Westfalen
A114: 078 | B114: AA Plauen | C114: Plauen | D114: Sachsen | E114: Vb Ger. verd. Bez. m. h. ALO | G114: 343 | H114: AA Essen | I114: Agentur für Arbeit Essen | J114: AA Essen | K114: 09575 | L114: 09575 Neustadt a.d.Aisch-Bad Windsheim | M114: Neustadt a.d.Aisch-Bad Windsheim | N114: Neustadt a.d.Aisch-Bad Windsheim | O114: Neustadt a.d.Aisch-Bad Windsheim | P114: 09573 | Q114: Fürth | R114: Fürth | S114: Bayern | BB114: Gifhorn | BC114: IIc Regionen in Schl.-Hols. und Nied.s. (…) | BD114: Neustadt a.d.Aisch-Bad Windsheim | BE114: Bayern | BF114: Neustadt a.d.Aisch-Bad Windsheim | BG114: AA Essen | BH114: Fürth | BI114: Bayern | BJ114: Agentur für Arbeit Plauen | BK114: Sachsen | BM114: AA Hagen | BN114: AA Hagen | BO114: Agentur für Arbeit Hagen | BP114: Nordrhein-Westfalen | BQ114: AA Essen | BR114: RD Nordrhein-Westfalen
A115: 039 | B115: AA Potsdam | C115: Potsdam | D115: Brandenburg | E115: Va meist großst. B. mit hoher ALO | G115: 345 | H115: AA Gelsenkirchen | I115: Agentur für Arbeit Gelsenkirchen | J115: AA Gelsenkirchen | K115: 09374 | L115: 09374 Neustadt a.d.Waldnaab | M115: Neustadt a.d.Waldnaab | N115: Neustadt a.d.Waldnaab | O115: Neustadt a.d.Waldnaab | P115: 09563 | Q115: Fürth, Stadt | R115: Fürth, Stadt | S115: Bayern | BB115: Wolfsburg, Stadt | BC115: IIe Städte u. verd. Lkr m. ger. SGB II-Quote (…) | BD115: Neustadt a.d.Waldnaab | BE115: Bayern | BF115: Neustadt a.d.Waldnaab | BG115: AA Gelsenkirchen | BH115: Fürth, Stadt | BI115: Bayern | BJ115: Agentur für Arbeit Potsdam | BK115: Brandenburg | BM115: AA Hamm | BN115: AA Hamm | BO115: Agentur für Arbeit Hamm | BP115: Nordrhein-Westfalen | BQ115: AA Gelsenkirchen | BR115: RD Nordrhein-Westfalen
A116: 375 | B116: AA Recklinghausen | C116: Recklinghausen | D116: Nordrhein-Westfalen | E116: IIb Großstädtische Bezirke m. sehr hoher ALO | G116: 347 | H116: AA Hagen | I116: Agentur für Arbeit Hagen | J116: AA Hagen | K116: 09775 | L116: 09775 Neu-Ulm | M116: Neu-Ulm | N116: Neu-Ulm | O116: Neu-Ulm | P116: 09180 | Q116: Garmisch-Partenkirchen | R116: Garmisch-Partenkirchen | S116: Bayern | BB116: Hildesheim | BC116: IId Überw. Lkr. mit Schwerpunkt in NRW (…) | BD116: Neu-Ulm | BE116: Bayern | BF116: Neu-Ulm | BG116: AA Hagen | BH116: Garmisch-Partenkirchen | BI116: Bayern | BJ116: Agentur für Arbeit Recklinghausen | BK116: Nordrhein-Westfalen | BM116: AA Herford | BN116: AA Herford | BO116: Agentur für Arbeit Herford | BP116: Nordrhein-Westfalen | BQ116: AA Hagen | BR116: RD Nordrhein-Westfalen
A117: 739 | B117: AA Regensburg | C117: Regensburg | D117: Bayern | E117: IVc Ländl. Bez. m. sais. Dyn. u. niedr. ALO | G117: 351 | H117: AA Hamm | I117: Agentur für Arbeit Hamm | J117: AA Hamm | K117: 09564 | L117: 09564 Nürnberg, Stadt | M117: Nürnberg, Stadt | N117: Nürnberg, Stadt | O117: Nürnberg, Stadt | P117: 05513 | Q117: Gelsenkirchen, Stadt | R117: Gelsenkirchen, Stadt | S117: Bayern | BB117: Peine | BC117: IIc Regionen in Schl.-Hols. und Nied.s. (…) | BD117: Nürnberg, Stadt | BE117: Bayern | BF117: Nürnberg, Stadt | BG117: AA Hamm | BH117: Gelsenkirchen, Stadt | BI117: Nordrhein-Westfalen | BJ117: Agentur für Arbeit Regensburg | BK117: Bayern | BM117: AA Iserlohn | BN117: AA Iserlohn | BO117: Agentur für Arbeit Iserlohn | BP117: Nordrhein-Westfalen | BQ117: AA Hamm | BR117: RD Nordrhein-Westfalen
A118: 664 | B118: AA Reutlingen | C118: Reutlingen | D118: Baden-Württemberg | E118: IVa Verd. Bez. m. ind. Orient., g. AM-Lage | G118: 353 | H118: AA Herford | I118: Agentur für Arbeit Herford | J118: AA Herford | K118: 09574 | L118: 09574 Nürnberger Land | M118: Nürnberger Land | N118: Nürnberger Land | O118: Nürnberger Land | P118: 16052 | Q118: Gera, Stadt | R118: Gera, Stadt | S118: Bayern | BB118: Lüneburg | BC118: IIc Regionen in Schl.-Hols. und Nied.s. (…) | BD118: Nürnberger Land | BE118: Bayern | BF118: Nürnberger Land | BG118: AA Herford | BH118: Gera, Stadt | BI118: Thüringen | BJ118: Agentur für Arbeit Reutlingen | BK118: Baden-Württemberg | BM118: AA Köln | BN118: AA Köln | BO118: Agentur für Arbeit Köln | BP118: Nordrhein-Westfalen | BQ118: AA Herford | BR118: RD Nordrhein-Westfalen
A119: 377 | B119: AA Rheine | C119: Rheine | D119: Nordrhein-Westfalen | E119: IVa Verd. Bez. m. ind. Orient., g. AM-Lage | G119: 355 | H119: AA Iserlohn | I119: Agentur für Arbeit Iserlohn | J119: AA Iserlohn | K119: 09780 | L119: 09780 Oberallgäu | M119: Oberallgäu | N119: Oberallgäu | O119: Oberallgäu | P119: 07334 | Q119: Germersheim | R119: Germersheim | S119: Bayern | BB119: Harburg | BC119: IIc Regionen in Schl.-Hols. und Nied.s. (…) | BD119: Oberallgäu | BE119: Bayern | BF119: Oberallgäu | BG119: AA Iserlohn | BH119: Germersheim | BI119: Rheinland-Pfalz | BJ119: Agentur für Arbeit Rheine | BK119: Nordrhein-Westfalen | BM119: AA Krefeld | BN119: AA Krefeld | BO119: Agentur für Arbeit Krefeld | BP119: Nordrhein-Westfalen | BQ119: AA Iserlohn | BR119: RD Nordrhein-Westfalen
A120: 079 | B120: AA Riesa | C120: Riesa | D120: Sachsen | E120: Va meist großst. B. mit hoher ALO | G120: 357 | H120: AA Köln | I120: Agentur für Arbeit Köln | J120: AA Köln | K120: 09777 | L120: 09777 Ostallgäu | M120: Ostallgäu | N120: Ostallgäu | O120: Ostallgäu | P120: 06531 | Q120: Gießen | R120: Gießen | S120: Bayern | BB120: Lüchow-Dannenberg | BC120: IIc Regionen in Schl.-Hols. und Nied.s. (…) | BD120: Ostallgäu | BE120: Bayern | BF120: Ostallgäu | BG120: AA Köln | BH120: Gießen | BI120: Hessen | BJ120: Agentur für Arbeit Riesa | BK120: Sachsen | BM120: AA Meschede – Soest | BN120: AA Meschede – Soest | BO120: Agentur für Arbeit Meschede – Soest | BP120: Nordrhein-Westfalen | BQ120: AA Köln | BR120: RD Nordrhein-Westfalen
A121: 855 | B121: AA Rosenheim | C121: Rosenheim | D121: Bayern | E121: IVb Ländl. Bez. m. günst. AM-Lage, sais. Dyn | G121: 361 | H121: AA Krefeld | I121: Agentur für Arbeit Krefeld | J121: AA Krefeld | K121: 09275 | L121: 09275 Passau | M121: Passau | N121: Passau | O121: Passau | P121: 03151 | Q121: Gifhorn | R121: Gifhorn | S121: Bayern | BB121: Uelzen | BC121: IIa Überw. Lkr. mit ausgepr. Ind.sektor (…) | BD121: Passau | BE121: Bayern | BF121: Passau | BG121: AA Krefeld | BH121: Gifhorn | BI121: Niedersachsen | BJ121: Agentur für Arbeit Rosenheim | BK121: Bayern | BM121: AA Mettmann | BN121: AA Mettmann | BO121: Agentur für Arbeit Mettmann | BP121: Nordrhein-Westfalen | BQ121: AA Krefeld | BR121: RD Nordrhein-Westfalen
A122: 032 | B122: AA Rostock | C122: Rostock | D122: Mecklenburg-Vorpommern | E122: Vc Ländl. Bez. in Ost m. schl. AM-Lage | G122: 383 | H122: AA Meschede – Soest | I122: Agentur für Arbeit Meschede – Soest | J122: AA Meschede – Soest | K122: 09262 | L122: 09262 Passau, Stadt | M122: Passau, Stadt | N122: Passau, Stadt | O122: Passau, Stadt | P122: 08117 | Q122: Göppingen | R122: Göppingen | S122: Bayern | BB122: Grafschaft Bentheim | BC122: Id Überw. Lkr. in Baden-Württemberg (…) | BD122: Passau, Stadt | BE122: Bayern | BF122: Passau, Stadt | BG122: AA Meschede – Soest | BH122: Göppingen | BI122: Baden-Württemberg | BJ122: Agentur für Arbeit Rostock | BK122: Mecklenburg-Vorpommern | BM122: AA Mönchengladbach | BN122: AA Mönchengladbach | BO122: Agentur für Arbeit Mönchengladbach | BP122: Nordrhein-Westfalen | BQ122: AA Meschede – Soest | BR122: RD Nordrhein-Westfalen
A123: 687 | B123: AA Rottweil – Villingen-Schwenningen | C123: Rottweil – Villingen-Schwenningen | D123: Baden-Württemberg | E123: IVa Verd. Bez. m. ind. Orient., g. AM-Lage | G123: 364 | H123: AA Mettmann | I123: Agentur für Arbeit Mettmann | J123: AA Mettmann | K123: 09186 | L123: 09186 Pfaffenhofen a.d.Ilm | M123: Pfaffenhofen a.d.Ilm | N123: Pfaffenhofen a.d.Ilm | O123: Pfaffenhofen a.d.Ilm | P123: 14626 | Q123: Görlitz | R123: Görlitz | S123: Bayern | BB123: Emsland | BC123: Id Überw. Lkr. in Baden-Württemberg (…) | BD123: Pfaffenhofen a.d.Ilm | BE123: Bayern | BF123: Pfaffenhofen a.d.Ilm | BG123: AA Mettmann | BH123: Görlitz | BI123: Sachsen | BJ123: Agentur für Arbeit Rottweil – Villingen-Schwenningen | BK123: Baden-Württemberg | BM123: AA Oberhausen | BN123: AA Oberhausen | BO123: Agentur für Arbeit Oberhausen | BP123: Nordrhein-Westfalen | BQ123: AA Mettmann | BR123: RD Nordrhein-Westfalen
A124: 555 | B124: AA Saarland | C124: Saarland | D124: Saarland | E124: IIIa Verd. Bez. m. leicht unterdurchschn. ALO | G124: 365 | H124: AA Mönchengladbach | I124: Agentur für Arbeit Mönchengladbach | J124: AA Mönchengladbach | K124: 09276 | L124: 09276 Regen | M124: Regen | N124: Regen | O124: Regen | P124: 03153 | Q124: Goslar | R124: Goslar | S124: Bayern | BB124: Delmenhorst, Stadt | BC124: IIIc Städte bzw. verd. Lkr. in Rhein-Ruhr (…) | BD124: Regen | BE124: Bayern | BF124: Regen | BG124: AA Mönchengladbach | BH124: Goslar | BI124: Niedersachsen | BJ124: Agentur für Arbeit Saarland | BK124: Saarland | BM124: AA Paderborn | BN124: AA Paderborn | BO124: Agentur für Arbeit Paderborn | BP124: Nordrhein-Westfalen | BQ124: AA Mönchengladbach | BR124: RD Nordrhein-Westfalen
A125: 042 | B125: AA Sachsen-Anhalt Ost | C125: Sachsen-Anhalt Ost | D125: Sachsen-Anhalt | E125: Vc Ländl. Bez. in Ost m. schl. AM-Lage | G125: 371 | H125: AA Oberhausen | I125: Agentur für Arbeit Oberhausen | J125: AA Oberhausen | K125: 09375 | L125: 09375 Regensburg | M125: Regensburg | N125: Regensburg | O125: Regensburg | P125: 16067 | Q125: Gotha | R125: Gotha | S125: Bayern | BB125: Oldenburg (Oldenburg), Stadt | BC125: IIIb Überw. städt. bzw. verstädt. Reg. (…) | BD125: Regensburg | BE125: Bayern | BF125: Regensburg | BG125: AA Oberhausen | BH125: Gotha | BI125: Thüringen | BJ125: Agentur für Arbeit Sachsen-Anhalt Ost | BK125: Sachsen-Anhalt | BM125: AA Recklinghausen | BN125: AA Recklinghausen | BO125: Agentur für Arbeit Recklinghausen | BP125: Nordrhein-Westfalen | BQ125: AA Oberhausen | BR125: RD Nordrhein-Westfalen
A126: 043 | B126: AA Sachsen-Anhalt West | C126: Sachsen-Anhalt West | D126: Sachsen-Anhalt | E126: Vb Ger. verd. Bez. m. h. ALO | G126: 373 | H126: AA Paderborn | I126: Agentur für Arbeit Paderborn | J126: AA Paderborn | K126: 09362 | L126: 09362 Regensburg, Stadt | M126: Regensburg, Stadt | N126: Regensburg, Stadt | O126: Regensburg, Stadt | P126: 03159 | Q126: Göttingen | R126: Göttingen | S126: Bayern | BB126: Wesermarsch | BC126: IId Überw. Lkr. mit Schwerpunkt in NRW (…) | BD126: Regensburg, Stadt | BE126: Bayern | BF126: Regensburg, Stadt | BG126: AA Paderborn | BH126: Göttingen | BI126: Niedersachsen | BJ126: Agentur für Arbeit Sachsen-Anhalt West | BK126: Sachsen-Anhalt | BM126: AA Rheine | BN126: AA Rheine | BO126: Agentur für Arbeit Rheine | BP126: Nordrhein-Westfalen | BQ126: AA Paderborn | BR126: RD Nordrhein-Westfalen
A127: 044 | B127: AA Sachsen-Anhalt Süd | C127: Sachsen-Anhalt Süd | D127: Sachsen-Anhalt | E127: Vc Ländl. Bez. in Ost m. schl. AM-Lage | G127: 375 | H127: AA Recklinghausen | I127: Agentur für Arbeit Recklinghausen | J127: AA Recklinghausen | K127: 09673 | L127: 09673 Rhön-Grabfeld | M127: Rhön-Grabfeld | N127: Rhön-Grabfeld | O127: Rhön-Grabfeld | P127: 03456 | Q127: Grafschaft Bentheim | R127: Grafschaft Bentheim | S127: Bayern | BB127: Ammerland | BC127: IIc Regionen in Schl.-Hols. und Nied.s. (…) | BD127: Rhön-Grabfeld | BE127: Bayern | BF127: Rhön-Grabfeld | BG127: AA Recklinghausen | BH127: Grafschaft Bentheim | BI127: Niedersachsen | BJ127: Agentur für Arbeit Sachsen-Anhalt Süd | BK127: Sachsen-Anhalt | BM127: AA Siegen | BN127: AA Siegen | BO127: Agentur für Arbeit Siegen | BP127: Nordrhein-Westfalen | BQ127: AA Recklinghausen | BR127: RD Nordrhein-Westfalen
A128: 045 | B128: AA Sachsen-Anhalt Nord | C128: Sachsen-Anhalt Nord | D128: Sachsen-Anhalt | E128: Va meist großst. B. mit hoher ALO | G128: 377 | H128: AA Rheine | I128: Agentur für Arbeit Rheine | J128: AA Rheine | K128: 09187 | L128: 09187 Rosenheim | M128: Rosenheim | N128: Rosenheim | O128: Rosenheim | P128: 16076 | Q128: Greiz | R128: Greiz | S128: Bayern | BB128: Oldenburg | BC128: IIc Regionen in Schl.-Hols. und Nied.s. (…) | BD128: Rosenheim | BE128: Bayern | BF128: Rosenheim | BG128: AA Rheine | BH128: Greiz | BI128: Thüringen | BJ128: Agentur für Arbeit Sachsen-Anhalt Nord | BK128: Sachsen-Anhalt | BM128: AA Solingen – Wuppertal | BN128: AA Solingen – Wuppertal | BO128: Agentur für Arbeit Solingen – Wuppertal | BP128: Nordrhein-Westfalen | BQ128: AA Rheine | BR128: RD Nordrhein-Westfalen
A129: 674 | B129: AA Schwäbisch Hall – Tauberbischofsheim | C129: Schwäbisch Hall – Tauberbischofsheim | D129: Baden-Württemberg | E129: IVa Verd. Bez. m. ind. Orient., g. AM-Lage | G129: 381 | H129: AA Siegen | I129: Agentur für Arbeit Siegen | J129: AA Siegen | K129: 09163 | L129: 09163 Rosenheim, Stadt | M129: Rosenheim, Stadt | N129: Rosenheim, Stadt | O129: Rosenheim, Stadt | P129: 06433 | Q129: Groß-Gerau | R129: Groß-Gerau | S129: Bayern | BB129: Wilhelmshaven, Stadt | BC129: IIIb Überw. städt. bzw. verstädt. Reg. (…) | BD129: Rosenheim, Stadt | BE129: Bayern | BF129: Rosenheim, Stadt | BG129: AA Siegen | BH129: Groß-Gerau | BI129: Hessen | BJ129: Agentur für Arbeit Schwäbisch Hall – Tauberbischofsheim | BK129: Baden-Württemberg | BM129: AA Wesel | BN129: AA Wesel | BO129: Agentur für Arbeit Wesel | BP129: Nordrhein-Westfalen | BQ129: AA Siegen | BR129: RD Nordrhein-Westfalen
A130: 743 | B130: AA Schwandorf | C130: Schwandorf | D130: Bayern | E130: IVc Ländl. Bez. m. sais. Dyn. u. niedr. ALO | G130: 391 | H130: AA Solingen – Wuppertal | I130: Agentur für Arbeit Solingen – Wuppertal | J130: AA Solingen – Wuppertal | K130: 09576 | L130: 09576 Roth | M130: Roth | N130: Roth | O130: Roth | P130: 09774 | Q130: Günzburg | R130: Günzburg | S130: Bayern | BB130: Friesland | BC130: IIc Regionen in Schl.-Hols. und Nied.s. (…) | BD130: Roth | BE130: Bayern | BF130: Roth | BG130: AA Solingen – Wuppertal | BH130: Günzburg | BI130: Bayern | BJ130: Agentur für Arbeit Schwandorf | BK130: Bayern | BM130: Rheinland-Pfalz | BN130: Rheinland-Pfalz | BO130: Rheinland-Pfalz | BP130: Rheinland-Pfalz | BQ130: AA Solingen – Wuppertal | BR130: RD Nordrhein-Westfalen
A131: 747 | B131: AA Schweinfurt | C131: Schweinfurt | D131: Bayern | E131: IVb Ländl. Bez. m. günst. AM-Lage, sais. Dyn | G131: 387 | H131: AA Wesel | I131: Agentur für Arbeit Wesel | J131: AA Wesel | K131: 09277 | L131: 09277 Rottal-Inn | M131: Rottal-Inn | N131: Rottal-Inn | O131: Rottal-Inn | P131: 05754 | Q131: Gütersloh | R131: Gütersloh | S131: Bayern | BB131: Osnabrück, Stadt | BC131: IIIb Überw. städt. bzw. verstädt. Reg. (…) | BD131: Rottal-Inn | BE131: Bayern | BF131: Rottal-Inn | BG131: AA Wesel | BH131: Gütersloh | BI131: Nordrhein-Westfalen | BJ131: Agentur für Arbeit Schweinfurt | BK131: Bayern | BM131: AA Bad Kreuznach | BN131: AA Bad Kreuznach | BO131: Agentur für Arbeit Bad Kreuznach | BP131: Rheinland-Pfalz | BQ131: AA Wesel | BR131: RD Nordrhein-Westfalen
A132: 033 | B132: AA Schwerin | C132: Schwerin | D132: Mecklenburg-Vorpommern | E132: Vc Ländl. Bez. in Ost m. schl. AM-Lage | G132: 500 | H132: RD Rheinland-Pfalz-Saarland | I132: Regionaldirektion Rheinland-Pfalz-Saarland | J132: RD Rheinland-Pfalz-Saarland | K132: 09565 | L132: 09565 Schwabach, Stadt | M132: Schwabach, Stadt | N132: Schwabach, Stadt | O132: Schwabach, Stadt | P132: 05914 | Q132: Hagen, Stadt der FernUniversität | R132: Hagen, Stadt der FernUniversität | S132: Bayern | BB132: Osnabrück | BC132: IIa Überw. Lkr. mit ausgepr. Ind.sektor (…) | BD132: Schwabach, Stadt | BE132: Bayern | BF132: Schwabach, Stadt | BG132: RD Rheinland-Pfalz-Saarland | BH132: Hagen, Stadt der FernUniversität | BI132: Nordrhein-Westfalen | BJ132: Agentur für Arbeit Schwerin | BK132: Mecklenburg-Vorpommern | BM132: AA Kaiserslautern – Pirmasens | BN132: AA Kaiserslautern – Pirmasens | BO132: Agentur für Arbeit Kaiserslautern – Pirmasens | BP132: Rheinland-Pfalz | BQ132: RD Rheinland-Pfalz-Saarland | BR132: RD Rheinland-Pfalz-Saarland
A133: 381 | B133: AA Siegen | C133: Siegen | D133: Nordrhein-Westfalen | E133: IVa Verd. Bez. m. ind. Orient., g. AM-Lage | G133: 511 | H133: AA Bad Kreuznach | I133: Agentur für Arbeit Bad Kreuznach | J133: AA Bad Kreuznach | K133: 09376 | L133: 09376 Schwandorf | M133: Schwandorf | N133: Schwandorf | O133: Schwandorf | P133: 15002 | Q133: Halle (Saale), Stadt | R133: Halle (Saale), Stadt | S133: Bayern | BB133: Stade | BC133: IId Überw. Lkr. mit Schwerpunkt in NRW (…) | BD133: Schwandorf | BE133: Bayern | BF133: Schwandorf | BG133: AA Bad Kreuznach | BH133: Halle (Saale), Stadt | BI133: Sachsen-Anhalt | BJ133: Agentur für Arbeit Siegen | BK133: Nordrhein-Westfalen | BM133: AA Koblenz – Mayen | BN133: AA Koblenz – Mayen | BO133: Agentur für Arbeit Koblenz – Mayen | BP133: Rheinland-Pfalz | BQ133: AA Bad Kreuznach | BR133: RD Rheinland-Pfalz-Saarland
A134: 391 | B134: AA Solingen – Wuppertal | C134: Solingen – Wuppertal | D134: Nordrhein-Westfalen | E134: IIb Großstädtische Bezirke m. sehr hoher ALO | G134: 515 | H134: AA Kaiserslautern – Pirmasens | I134: Agentur für Arbeit Kaiserslautern – Pirmasens | J134: AA Kaiserslautern – Pirmasens | K134: 09678 | L134: 09678 Schweinfurt | M134: Schweinfurt | N134: Schweinfurt | O134: Schweinfurt | P134: 02001 | Q134: Hamburg, Freie und Hansestadt | R134: Hamburg, Freie und Hansestadt | S134: Bayern | BB134: Cuxhaven | BC134: IIc Regionen in Schl.-Hols. und Nied.s. (…) | BD134: Schweinfurt | BE134: Bayern | BF134: Schweinfurt | BG134: AA Kaiserslautern – Pirmasens | BH134: Hamburg, Freie und Hansestadt | BI134: Hamburg | BJ134: Agentur für Arbeit Solingen – Wuppertal | BK134: Nordrhein-Westfalen | BM134: AA Landau | BN134: AA Landau | BO134: Agentur für Arbeit Landau | BP134: Rheinland-Pfalz | BQ134: AA Kaiserslautern – Pirmasens | BR134: RD Rheinland-Pfalz-Saarland
A135: 267 | B135: AA Stade | C135: Stade | D135: Niedersachsen | E135: IIIb Ger. verd. u. länd. B. m. durchschn. ALO | G135: 519 | H135: AA Koblenz – Mayen | I135: Agentur für Arbeit Koblenz – Mayen | J135: AA Koblenz – Mayen | K135: 09662 | L135: 09662 Schweinfurt, Stadt | M135: Schweinfurt, Stadt | N135: Schweinfurt, Stadt | O135: Schweinfurt, Stadt | P135: 03252 | Q135: Hameln-Pyrmont | R135: Hameln-Pyrmont | S135: Bayern | BB135: Rotenburg (Wümme) | BC135: IIc Regionen in Schl.-Hols. und Nied.s. (…) | BD135: Schweinfurt, Stadt | BE135: Bayern | BF135: Schweinfurt, Stadt | BG135: AA Koblenz – Mayen | BH135: Hameln-Pyrmont | BI135: Niedersachsen | BJ135: Agentur für Arbeit Stade | BK135: Niedersachsen | BM135: AA Ludwigshafen | BN135: AA Ludwigshafen | BO135: Agentur für Arbeit Ludwigshafen | BP135: Rheinland-Pfalz | BQ135: AA Koblenz – Mayen | BR135: RD Rheinland-Pfalz-Saarland
A136: 034 | B136: AA Stralsund | C136: Stralsund | D136: Mecklenburg-Vorpommern | E136: Vc Ländl. Bez. in Ost m. schl. AM-Lage | G136: 543 | H136: AA Landau | I136: Agentur für Arbeit Landau | J136: AA Landau | K136: 09188 | L136: 09188 Starnberg | M136: Starnberg | N136: Starnberg | O136: Starnberg | P136: 05915 | Q136: Hamm, Stadt | R136: Hamm, Stadt | S136: Bayern | BB136: Vechta | BC136: Id Überw. Lkr. in Baden-Württemberg (…) | BD136: Starnberg | BE136: Bayern | BF136: Starnberg | BG136: AA Landau | BH136: Hamm, Stadt | BI136: Nordrhein-Westfalen | BJ136: Agentur für Arbeit Stendal | BK136: Sachsen-Anhalt | BM136: AA Mainz | BN136: AA Mainz | BO136: Agentur für Arbeit Mainz | BP136: Rheinland-Pfalz | BQ136: AA Landau | BR136: RD Rheinland-Pfalz-Saarland
A137: 677 | B137: AA Stuttgart | C137: Stuttgart | D137: Baden-Württemberg | E137: I Überw. großst. Bez. im W m. günst. AM-Lage | G137: 523 | H137: AA Ludwigshafen | I137: Agentur für Arbeit Ludwigshafen | J137: AA Ludwigshafen | K137: 09263 | L137: 09263 Straubing, Stadt | M137: Straubing, Stadt | N137: Straubing, Stadt | O137: Straubing, Stadt | P137: 03353 | Q137: Harburg | R137: Harburg | S137: Bayern | BB137: Cloppenburg | BC137: IIa Überw. Lkr. mit ausgepr. Ind.sektor (…) | BD137: Straubing, Stadt | BE137: Bayern | BF137: Straubing, Stadt | BG137: AA Ludwigshafen | BH137: Harburg | BI137: Niedersachsen | BJ137: Agentur für Arbeit Stralsund | BK137: Mecklenburg-Vorpommern | BM137: AA Montabaur | BN137: AA Montabaur | BO137: Agentur für Arbeit Montabaur | BP137: Rheinland-Pfalz | BQ137: AA Ludwigshafen | BR137: RD Rheinland-Pfalz-Saarland
A138: 093 | B138: AA Thüringen Mitte | C138: Thüringen Mitte | D138: Thüringen | E138: Va meist großst. B. mit hoher ALO | G138: 527 | H138: AA Mainz | I138: Agentur für Arbeit Mainz | J138: AA Mainz | K138: 09278 | L138: 09278 Straubing-Bogen | M138: Straubing-Bogen | N138: Straubing-Bogen | O138: Straubing-Bogen | P138: 15085 | Q138: Harz | R138: Harz | S138: Bayern | BB138: Verden | BC138: IId Überw. Lkr. mit Schwerpunkt in NRW (…) | BD138: Straubing-Bogen | BE138: Bayern | BF138: Straubing-Bogen | BG138: AA Mainz | BH138: Harz | BI138: Sachsen-Anhalt | BJ138: Agentur für Arbeit Stuttgart | BK138: Baden-Württemberg | BM138: AA Neuwied | BN138: AA Neuwied | BO138: Agentur für Arbeit Neuwied | BP138: Rheinland-Pfalz | BQ138: AA Mainz | BR138: RD Rheinland-Pfalz-Saarland
A139: 094 | B139: AA Thüringen Ost | C139: Thüringen Ost | D139: Thüringen | E139: Vb Ger. verd. Bez. m. h. ALO | G139: 535 | H139: AA Montabaur | I139: Agentur für Arbeit Montabaur | J139: AA Montabaur | K139: 09377 | L139: 09377 Tirschenreuth | M139: Tirschenreuth | N139: Tirschenreuth | O139: Tirschenreuth | P139: 09674 | Q139: Haßberge | R139: Haßberge | S139: Bayern | BB139: Diepholz | BC139: IIc Regionen in Schl.-Hols. und Nied.s. (…) | BD139: Tirschenreuth | BE139: Bayern | BF139: Tirschenreuth | BG139: AA Montabaur | BH139: Haßberge | BI139: Bayern | BJ139: Agentur für Arbeit Thüringen Mitte | BK139: Thüringen | BM139: AA Trier | BN139: AA Trier | BO139: Agentur für Arbeit Trier | BP139: Rheinland-Pfalz | BQ139: AA Montabaur | BR139: RD Rheinland-Pfalz-Saarland
A140: 097 | B140: AA Thüringen Nord | C140: Thüringen Nord | D140: Thüringen | E140: Vb Ger. verd. Bez. m. h. ALO | G140: 547 | H140: AA Neuwied | I140: Agentur für Arbeit Neuwied | J140: AA Neuwied | K140: 09189 | L140: 09189 Traunstein | M140: Traunstein | N140: Traunstein | O140: Traunstein | P140: 12063 | Q140: Havelland | R140: Havelland | S140: Bayern | BB140: Nienburg (Weser) | BC140: IIc Regionen in Schl.-Hols. und Nied.s. (…) | BD140: Traunstein | BE140: Bayern | BF140: Traunstein | BG140: AA Neuwied | BH140: Havelland | BI140: Brandenburg | BJ140: Agentur für Arbeit Thüringen Ost | BK140: Thüringen | BM140: Saarland | BN140: Saarland | BO140: Saarland | BP140: Saarland | BQ140: AA Neuwied | BR140: RD Rheinland-Pfalz-Saarland
A141: 098 | B141: AA Thüringen Südwest | C141: Thüringen Südwest | D141: Thüringen | E141: Vb Ger. verd. Bez. m. h. ALO | G141: 555 | H141: AA Saarland | I141: Agentur für Arbeit Saarland | J141: AA Saarland | K141: 09778 | L141: 09778 Unterallgäu | M141: Unterallgäu | N141: Unterallgäu | O141: Unterallgäu | P141: 03358 | Q141: Heidekreis | R141: Heidekreis | S141: Bayern | BB141: Heinsberg | BC141: IId Überw. Lkr. mit Schwerpunkt in NRW (…) | BD141: Unterallgäu | BE141: Bayern | BF141: Unterallgäu | BG141: AA Saarland | BH141: Heidekreis | BI141: Niedersachsen | BJ141: Agentur für Arbeit Thüringen Nord | BK141: Thüringen | BM141: AA Saarland | BN141: AA Saarland | BO141: Agentur für Arbeit Saarland | BP141: Saarland | BQ141: AA Saarland | BR141: RD Rheinland-Pfalz-Saarland
A142: 859 | B142: AA Traunstein | C142: Traunstein | D142: Bayern | E142: IVc Ländl. Bez. m. sais. Dyn. u. niedr. ALO | G142: 563 | H142: AA Trier | I142: Agentur für Arbeit Trier | J142: AA Trier | K142: 09363 | L142: 09363 Weiden i.d.OPf., Stadt | M142: Weiden i.d.OPf., Stadt | N142: Weiden i.d.OPf., Stadt | O142: Weiden i.d.OPf., Stadt | P142: 08221 | Q142: Heidelberg, Stadt | R142: Heidelberg, Stadt | S142: Bayern | BB142: Städteregion Aachen | BC142: IIIb Überw. städt. bzw. verstädt. Reg. (…) | BD142: Weiden i.d.OPf., Stadt | BE142: Bayern | BF142: Weiden i.d.OPf., Stadt | BG142: AA Trier | BH142: Heidelberg, Stadt | BI142: Baden-Württemberg | BJ142: Agentur für Arbeit Thüringen Südwest | BK142: Thüringen | BM142: Sachsen | BN142: Sachsen | BO142: Sachsen | BP142: Sachsen | BQ142: AA Trier | BR142: RD Rheinland-Pfalz-Saarland
A143: 563 | B143: AA Trier | C143: Trier | D143: Rheinland-Pfalz | E143: IVb Ländl. Bez. m. günst. AM-Lage, sais. Dyn | G143: 968 | H143: RD Sachsen | I143: Regionaldirektion Sachsen | J143: RD Sachsen | K143: 09190 | L143: 09190 Weilheim-Schongau | M143: Weilheim-Schongau | N143: Weilheim-Schongau | O143: Weilheim-Schongau | P143: 08135 | Q143: Heidenheim | R143: Heidenheim | S143: Bayern | BB143: Düren | BC143: IId Überw. Lkr. mit Schwerpunkt in NRW (…) | BD143: Weilheim-Schongau | BE143: Bayern | BF143: Weilheim-Schongau | BG143: RD Sachsen | BH143: Heidenheim | BI143: Baden-Württemberg | BJ143: Agentur für Arbeit Traunstein | BK143: Bayern | BM143: AA Annaberg-Buchholz | BN143: AA Annaberg-Buchholz | BO143: Agentur für Arbeit Annaberg-Buchholz | BP143: Sachsen | BQ143: RD Sachsen | BR143: RD Sachsen
A144: 684 | B144: AA Ulm | C144: Ulm | D144: Baden-Württemberg | E144: IVa Verd. Bez. m. ind. Orient., g. AM-Lage | G144: 071 | H144: AA Annaberg-Buchholz | I144: Agentur für Arbeit Annaberg-Buchholz | J144: AA Annaberg-Buchholz | K144: 09577 | L144: 09577 Weißenburg-Gunzenhausen | M144: Weißenburg-Gunzenhausen | N144: Weißenburg-Gunzenhausen | O144: Weißenburg-Gunzenhausen | P144: 08125 | Q144: Heilbronn | R144: Heilbronn | S144: Bayern | BB144: Leverkusen, Stadt | BC144: IIe Städte u. verd. Lkr m. ger. SGB II-Quote (…) | BD144: Weißenburg-Gunzenhausen | BE144: Bayern | BF144: Weißenburg-Gunzenhausen | BG144: AA Annaberg-Buchholz | BH144: Heilbronn | BI144: Baden-Württemberg | BJ144: Agentur für Arbeit Trier | BK144: Rheinland-Pfalz | BM144: AA Bautzen | BN144: AA Bautzen | BO144: Agentur für Arbeit Bautzen | BP144: Sachsen | BQ144: AA Annaberg-Buchholz | BR144: RD Sachsen
A145: 274 | B145: AA Vechta | C145: Vechta | D145: Niedersachsen | E145: IVb Ländl. Bez. m. günst. AM-Lage, sais. Dyn | G145: 072 | H145: AA Bautzen | I145: Agentur für Arbeit Bautzen | J145: AA Bautzen | K145: 09479 | L145: 09479 Wunsiedel i.Fichtelgebirge | M145: Wunsiedel i.Fichtelgebirge | N145: Wunsiedel i.Fichtelgebirge | O145: Wunsiedel i.Fichtelgebirge | P145: 08121 | Q145: Heilbronn, Universitätsstadt | R145: Heilbronn, Universitätsstadt | S145: Bayern | BB145: Oberbergischer Kreis | BC145: IId Überw. Lkr. mit Schwerpunkt in NRW (…) | BD145: Wunsiedel i.Fichtelgebirge | BE145: Bayern | BF145: Wunsiedel i.Fichtelgebirge | BG145: AA Bautzen | BH145: Heilbronn, Universitätsstadt | BI145: Baden-Württemberg | BJ145: Agentur für Arbeit Ulm | BK145: Baden-Württemberg | BM145: AA Chemnitz | BN145: AA Chemnitz | BO145: Agentur für Arbeit Chemnitz | BP145: Sachsen | BQ145: AA Bautzen | BR145: RD Sachsen
A146: 671 | B146: AA Waiblingen | C146: Waiblingen | D146: Baden-Württemberg | E146: IVa Verd. Bez. m. ind. Orient., g. AM-Lage | G146: 073 | H146: AA Chemnitz | I146: Agentur für Arbeit Chemnitz | J146: AA Chemnitz | K146: 09679 | L146: 09679 Würzburg | M146: Würzburg | N146: Würzburg | O146: Würzburg | P146: 05370 | Q146: Heinsberg | R146: Heinsberg | S146: Bayern | BB146: Rheinisch-Bergischer Kreis | BC146: IId Überw. Lkr. mit Schwerpunkt in NRW (…) | BD146: Würzburg | BE146: Bayern | BF146: Würzburg | BG146: AA Chemnitz | BH146: Heinsberg | BI146: Nordrhein-Westfalen | BJ146: Agentur für Arbeit Vechta | BK146: Niedersachsen | BM146: AA Dresden | BN146: AA Dresden | BO146: Agentur für Arbeit Dresden | BP146: Sachsen | BQ146: AA Chemnitz | BR146: RD Sachsen
A147: 751 | B147: AA Weiden | C147: Weiden | D147: Bayern | E147: IVc Ländl. Bez. m. sais. Dyn. u. niedr. ALO | G147: 074 | H147: AA Dresden | I147: Agentur für Arbeit Dresden | J147: AA Dresden | K147: 09663 | L147: 09663 Würzburg, Stadt | M147: Würzburg, Stadt | N147: Würzburg, Stadt | O147: Würzburg, Stadt | P147: 03154 | Q147: Helmstedt | R147: Helmstedt | S147: Bayern | BB147: Bielefeld, Stadt | BC147: IIIb Überw. städt. bzw. verstädt. Reg. (…) | BD147: Würzburg, Stadt | BE147: Bayern | BF147: Würzburg, Stadt | BG147: AA Dresden | BH147: Helmstedt | BI147: Niedersachsen | BJ147: Agentur für Arbeit Waiblingen | BK147: Baden-Württemberg | BM147: AA Freiberg | BN147: AA Freiberg | BO147: Agentur für Arbeit Freiberg | BP147: Sachsen | BQ147: AA Dresden | BR147: RD Sachsen
A148: 863 | B148: AA Weilheim | C148: Weilheim | D148: Bayern | E148: IVb Ländl. Bez. m. günst. AM-Lage, sais. Dyn | G148: 080 | H148: AA Freiberg | I148: Agentur für Arbeit Freiberg | J148: AA Freiberg | K148: 11000 | L148: 11 Berlin | M148: Berlin | N148: Berlin | O148: Land Berlin | P148: 05758 | Q148: Herford | R148: Herford | S148: Berlin | BB148: Gütersloh | BC148: IId Überw. Lkr. mit Schwerpunkt in NRW (…) | BD148: Berlin | BE148: Berlin | BF148: Berlin | BG148: AA Freiberg | BH148: Herford | BI148: Nordrhein-Westfalen | BJ148: Agentur für Arbeit Weiden | BK148: Bayern | BM148: AA Leipzig | BN148: AA Leipzig | BO148: Agentur für Arbeit Leipzig | BP148: Sachsen | BQ148: AA Freiberg | BR148: RD Sachsen
A149: 387 | B149: AA Wesel | C149: Wesel | D149: Nordrhein-Westfalen | E149: IIIa Verd. Bez. m. leicht unterdurchschn. ALO | G149: 075 | H149: AA Leipzig | I149: Agentur für Arbeit Leipzig | J149: AA Leipzig | K149: 95502 | L149: 95502 Charlottenburg-Wilmersdorf | M149: Charlottenburg-Wilmersdorf | N149: Charlottenburg-Wilmersdorf | O149: Charlottenburg-Wilmersdorf | P149: 05916 | Q149: Herne, Stadt | R149: Herne, Stadt | S149: Berlin | BB149: Bochum, Stadt | BC149: IIIc Städte bzw. verd. Lkr. in Rhein-Ruhr (…) | BD149: Charlottenburg-Wilmersdorf | BE149: Berlin | BF149: Charlottenburg-Wilmersdorf | BG149: AA Leipzig | BH149: Herne, Stadt | BI149: Nordrhein-Westfalen | BJ149: Agentur für Arbeit Weilheim | BK149: Bayern | BM149: AA Oschatz | BN149: AA Oschatz | BO149: Agentur für Arbeit Oschatz | BP149: Sachsen | BQ149: AA Leipzig | BR149: RD Sachsen
A150: 459 | B150: AA Wiesbaden | C150: Wiesbaden | D150: Hessen | E150: IIIa Verd. Bez. m. leicht unterdurchschn. ALO | G150: 076 | H150: AA Oschatz | I150: Agentur für Arbeit Oschatz | J150: AA Oschatz | K150: 96202 | L150: 96202 Friedrichshain-Kreuzberg | M150: Friedrichshain-Kreuzberg | N150: Friedrichshain-Kreuzberg | O150: Friedrichshain-Kreuzberg | P150: 06632 | Q150: Hersfeld-Rotenburg | R150: Hersfeld-Rotenburg | S150: Berlin | BB150: Herne, Stadt | BC150: IIIc Städte bzw. verd. Lkr. in Rhein-Ruhr (…) | BD150: Friedrichshain-Kreuzberg | BE150: Berlin | BF150: Friedrichshain-Kreuzberg | BG150: AA Oschatz | BH150: Hersfeld-Rotenburg | BI150: Hessen | BJ150: Agentur für Arbeit Wesel | BK150: Nordrhein-Westfalen | BM150: AA Pirna | BN150: AA Pirna | BO150: Agentur für Arbeit Pirna | BP150: Sachsen | BQ150: AA Oschatz | BR150: RD Sachsen
A151: 759 | B151: AA Würzburg | C151: Würzburg | D151: Bayern | E151: IVb Ländl. Bez. m. günst. AM-Lage, sais. Dyn | G151: 077 | H151: AA Pirna | I151: Agentur für Arbeit Pirna | J151: AA Pirna | K151: 96404 | L151: 96404 Lichtenberg | M151: Lichtenberg | N151: Lichtenberg | O151: Lichtenberg | P151: 01053 | Q151: Herzogtum Lauenburg | R151: Herzogtum Lauenburg | S151: Berlin | BB151: Bonn, Stadt | BC151: IIe Städte u. verd. Lkr m. ger. SGB II-Quote (…) | BD151: Lichtenberg | BE151: Berlin | BF151: Lichtenberg | BG151: AA Pirna | BH151: Herzogtum Lauenburg | BI151: Schleswig-Holstein | BJ151: Agentur für Arbeit Wiesbaden | BK151: Hessen | BM151: AA Plauen | BN151: AA Plauen | BO151: Agentur für Arbeit Plauen | BP151: Sachsen | BQ151: AA Pirna | BR151: RD Sachsen
A152: 092 | B152: AA Zwickau | C152: Zwickau | D152: Sachsen | E152: Vb Ger. verd. Bez. m. h. ALO | G152: 078 | H152: AA Plauen | I152: Agentur für Arbeit Plauen | J152: AA Plauen | K152: 96402 | L152: 96402 Marzahn-Hellersdorf | M152: Marzahn-Hellersdorf | N152: Marzahn-Hellersdorf | O152: Marzahn-Hellersdorf | P152: 16069 | Q152: Hildburghausen | R152: Hildburghausen | S152: Berlin | BB152: Rhein-Sieg-Kreis | BC152: IId Überw. Lkr. mit Schwerpunkt in NRW (…) | BD152: Marzahn-Hellersdorf | BE152: Berlin | BF152: Marzahn-Hellersdorf | BG152: AA Plauen | BH152: Hildburghausen | BI152: Thüringen | BJ152: Agentur für Arbeit Würzburg | BK152: Bayern | BM152: AA Riesa | BN152: AA Riesa | BO152: Agentur für Arbeit Riesa | BP152: Sachsen | BQ152: AA Plauen | BR152: RD Sachsen
G153: 079 | H153: AA Riesa | I153: Agentur für Arbeit Riesa | J153: AA Riesa | K153: 96204 | L153: 96204 Mitte | M153: Mitte | N153: Mitte | O153: Mitte | P153: 03254 | Q153: Hildesheim | R153: Hildesheim | S153: Berlin | BB153: Rhein-Erft-Kreis | BC153: IId Überw. Lkr. mit Schwerpunkt in NRW (…) | BD153: Mitte | BE153: Berlin | BF153: Mitte | BG153: AA Riesa | BH153: Hildesheim | BI153: Niedersachsen | BJ153: Agentur für Arbeit Zwickau | BK153: Sachsen | BM153: AA Zwickau | BN153: AA Zwickau | BO153: Agentur für Arbeit Zwickau | BP153: Sachsen | BQ153: AA Riesa | BR153: RD Sachsen
G154: 092 | H154: AA Zwickau | I154: Agentur für Arbeit Zwickau | J154: AA Zwickau | K154: 92202 | L154: 92202 Neukölln | M154: Neukölln | N154: Neukölln | O154: Neukölln | P154: 05958 | Q154: Hochsauerlandkreis | R154: Hochsauerlandkreis | S154: Berlin | BB154: Euskirchen | BC154: IId Überw. Lkr. mit Schwerpunkt in NRW (…) | BD154: Neukölln | BE154: Berlin | BF154: Neukölln | BG154: AA Zwickau | BH154: Hochsauerlandkreis | BI154: Nordrhein-Westfalen | BM154: Sachsen-Anhalt | BN154: Sachsen-Anhalt | BO154: Sachsen-Anhalt | BP154: Sachsen-Anhalt | BQ154: AA Zwickau | BR154: RD Sachsen
G155: 966 | H155: RD Sachsen-Anhalt-Thüringen | I155: Regionaldirektion Sachsen-Anhalt-Thüringen | J155: RD Sachsen-Anhalt-Thüringen | K155: 95504 | L155: 95504 Pankow | M155: Pankow | N155: Pankow | O155: Pankow | P155: 06434 | Q155: Hochtaunuskreis | R155: Hochtaunuskreis | S155: Berlin | BB155: Borken | BC155: IId Überw. Lkr. mit Schwerpunkt in NRW (…) | BD155: Pankow | BE155: Berlin | BF155: Pankow | BG155: RD Sachsen-Anhalt-Thüringen | BH155: Hochtaunuskreis | BI155: Hessen | BM155: AA Sachsen-Anhalt Ost | BN155: AA Sachsen-Anhalt Ost | BO155: Agentur für Arbeit Sachsen-Anhalt Ost | BP155: Sachsen-Anhalt | BQ155: RD Sachsen-Anhalt-Thüringen | BR155: RD Sachsen-Anhalt-Thüringen
G156: 042 | H156: AA Sachsen-Anhalt Ost | I156: Agentur für Arbeit Sachsen-Anhalt Ost | J156: AA Sachsen-Anhalt Ost | K156: 95506 | L156: 95506 Reinickendorf | M156: Reinickendorf | N156: Reinickendorf | O156: Reinickendorf | P156: 09475 | Q156: Hof | R156: Hof | S156: Berlin | BB156: Coesfeld | BC156: IIc Regionen in Schl.-Hols. und Nied.s. (…) | BD156: Reinickendorf | BE156: Berlin | BF156: Reinickendorf | BG156: AA Sachsen-Anhalt Ost | BH156: Hof | BI156: Bayern | BM156: AA Sachsen-Anhalt West | BN156: AA Sachsen-Anhalt West | BO156: Agentur für Arbeit Sachsen-Anhalt West | BP156: Sachsen-Anhalt | BQ156: AA Sachsen-Anhalt Ost | BR156: RD Sachsen-Anhalt-Thüringen
G157: 043 | H157: AA Sachsen-Anhalt West | I157: Agentur für Arbeit Sachsen-Anhalt West | J157: AA Sachsen-Anhalt West | K157: 95508 | L157: 95508 Spandau | M157: Spandau | N157: Spandau | O157: Spandau | P157: 09464 | Q157: Hof, Stadt | R157: Hof, Stadt | S157: Berlin | BB157: Lippe | BC157: IId Überw. Lkr. mit Schwerpunkt in NRW (…) | BD157: Spandau | BE157: Berlin | BF157: Spandau | BG157: AA Sachsen-Anhalt West | BH157: Hof, Stadt | BI157: Bayern | BM157: AA Sachsen-Anhalt Süd | BN157: AA Sachsen-Anhalt Süd | BO157: Agentur für Arbeit Sachsen-Anhalt Süd | BP157: Sachsen-Anhalt | BQ157: AA Sachsen-Anhalt West | BR157: RD Sachsen-Anhalt-Thüringen
G158: 044 | H158: AA Sachsen-Anhalt Süd | I158: Agentur für Arbeit Sachsen-Anhalt Süd | J158: AA Sachsen-Anhalt Süd | K158: 94402 | L158: 94402 Steglitz-Zehlendorf | M158: Steglitz-Zehlendorf | N158: Steglitz-Zehlendorf | O158: Steglitz-Zehlendorf | P158: 08126 | Q158: Hohenlohekreis | R158: Hohenlohekreis | S158: Berlin | BB158: Dortmund, Stadt | BC158: IIIc Städte bzw. verd. Lkr. in Rhein-Ruhr (…) | BD158: Steglitz-Zehlendorf | BE158: Berlin | BF158: Steglitz-Zehlendorf | BG158: AA Sachsen-Anhalt Süd | BH158: Hohenlohekreis | BI158: Baden-Württemberg | BM158: AA Sachsen-Anhalt Nord | BN158: AA Sachsen-Anhalt Nord | BO158: Agentur für Arbeit Sachsen-Anhalt Nord | BP158: Sachsen-Anhalt | BQ158: AA Sachsen-Anhalt Süd | BR158: RD Sachsen-Anhalt-Thüringen
G159: 045 | H159: AA Sachsen-Anhalt Nord | I159: Agentur für Arbeit Sachsen-Anhalt Nord | J159: AA Sachsen-Anhalt Nord | K159: 94406 | L159: 94406 Tempelhof-Schöneberg | M159: Tempelhof-Schöneberg | N159: Tempelhof-Schöneberg | O159: Tempelhof-Schöneberg | P159: 03255 | Q159: Holzminden | R159: Holzminden | S159: Berlin | BB159: Düsseldorf, Stadt | BC159: IIIb Überw. städt. bzw. verstädt. Reg. (…) | BD159: Tempelhof-Schöneberg | BE159: Berlin | BF159: Tempelhof-Schöneberg | BG159: AA Sachsen-Anhalt Nord | BH159: Holzminden | BI159: Niedersachsen | BM159: Schleswig-Holstein | BN159: Schleswig-Holstein | BO159: Schleswig-Holstein | BP159: Schleswig-Holstein | BQ159: AA Sachsen-Anhalt Nord | BR159: RD Sachsen-Anhalt-Thüringen
G160: 093 | H160: AA Thüringen Mitte | I160: Agentur für Arbeit Thüringen Mitte | J160: AA Thüringen Mitte | K160: 92204 | L160: 92204 Treptow-Köpenick | M160: Treptow-Köpenick | N160: Treptow-Köpenick | O160: Treptow-Köpenick | P160: 05762 | Q160: Höxter | R160: Höxter | S160: Berlin | BB160: Duisburg, Stadt | BC160: IIIc Städte bzw. verd. Lkr. in Rhein-Ruhr (…) | BD160: Treptow-Köpenick | BE160: Berlin | BF160: Treptow-Köpenick | BG160: AA Thüringen Mitte | BH160: Höxter | BI160: Nordrhein-Westfalen | BM160: AA Bad Oldesloe | BN160: AA Bad Oldesloe | BO160: Agentur für Arbeit Bad Oldesloe | BP160: Schleswig-Holstein | BQ160: AA Thüringen Mitte | BR160: RD Sachsen-Anhalt-Thüringen
G161: 094 | H161: AA Thüringen Ost | I161: Agentur für Arbeit Thüringen Ost | J161: AA Thüringen Ost | K161: 12000 | L161: 12 Brandenburg | M161: Brandenburg | N161: Brandenburg | O161: Land Brandenburg | P161: 16070 | Q161: Ilm-Kreis | R161: Ilm-Kreis | S161: Brandenburg | BB161: Essen, Stadt | BC161: IIIc Städte bzw. verd. Lkr. in Rhein-Ruhr (…) | BD161: Brandenburg | BE161: Brandenburg | BF161: Brandenburg | BG161: AA Thüringen Ost | BH161: Ilm-Kreis | BI161: Thüringen | BM161: AA Elmshorn | BN161: AA Elmshorn | BO161: Agentur für Arbeit Elmshorn | BP161: Schleswig-Holstein | BQ161: AA Thüringen Ost | BR161: RD Sachsen-Anhalt-Thüringen
G162: 097 | H162: AA Thüringen Nord | I162: Agentur für Arbeit Thüringen Nord | J162: AA Thüringen Nord | K162: 12060 | L162: 12060 Barnim | M162: Barnim | N162: Barnim | O162: Barnim | P162: 09161 | Q162: Ingolstadt, Stadt | R162: Ingolstadt, Stadt | S162: Brandenburg | BB162: Gelsenkirchen, Stadt | BC162: IIIc Städte bzw. verd. Lkr. in Rhein-Ruhr (…) | BD162: Barnim | BE162: Brandenburg | BF162: Barnim | BG162: AA Thüringen Nord | BH162: Ingolstadt, Stadt | BI162: Bayern | BM162: AA Flensburg | BN162: AA Flensburg | BO162: Agentur für Arbeit Flensburg | BP162: Schleswig-Holstein | BQ162: AA Thüringen Nord | BR162: RD Sachsen-Anhalt-Thüringen
G163: 098 | H163: AA Thüringen Südwest | I163: Agentur für Arbeit Thüringen Südwest | J163: AA Thüringen Südwest | K163: 12051 | L163: 12051 Brandenburg an der Havel, Stadt | M163: Brandenburg an der Havel, Stadt | N163: Brandenburg an der Havel, Stadt | O163: Brandenburg an der Havel, Stadt | P163: 16053 | Q163: Jena, Stadt | R163: Jena, Stadt | S163: Brandenburg | BB163: Bottrop, Stadt | BC163: IIIc Städte bzw. verd. Lkr. in Rhein-Ruhr (…) | BD163: Brandenburg an der Havel, Stadt | BE163: Brandenburg | BF163: Brandenburg an der Havel, Stadt | BG163: AA Thüringen Südwest | BH163: Jena, Stadt | BI163: Thüringen | BM163: AA Heide | BN163: AA Heide | BO163: Agentur für Arbeit Heide | BP163: Schleswig-Holstein | BQ163: AA Thüringen Südwest | BR163: RD Sachsen-Anhalt-Thüringen
K164: 12052 | L164: 12052 Cottbus, Stadt | M164: Cottbus, Stadt | N164: Cottbus, Stadt | O164: Cottbus, Stadt | P164: 15086 | Q164: Jerichower Land | R164: Jerichower Land | S164: Brandenburg | BB164: Ennepe-Ruhr-Kreis | BC164: IId Überw. Lkr. mit Schwerpunkt in NRW (…) | BD164: Cottbus, Stadt | BE164: Brandenburg | BF164: Cottbus, Stadt | BH164: Jerichower Land | BI164: Sachsen-Anhalt | BM164: AA Kiel | BN164: AA Kiel | BO164: Agentur für Arbeit Kiel | BP164: Schleswig-Holstein
K165: 12061 | L165: 12061 Dahme-Spreewald | M165: Dahme-Spreewald | N165: Dahme-Spreewald | O165: Dahme-Spreewald | P165: 07335 | Q165: Kaiserslautern | R165: Kaiserslautern | S165: Brandenburg | BB165: Hagen, Stadt der FernUniversität | BC165: IIIc Städte bzw. verd. Lkr. in Rhein-Ruhr (…) | BD165: Dahme-Spreewald | BE165: Brandenburg | BF165: Dahme-Spreewald | BH165: Kaiserslautern | BI165: Rheinland-Pfalz | BM165: AA Lübeck | BN165: AA Lübeck | BO165: Agentur für Arbeit Lübeck | BP165: Schleswig-Holstein
K166: 12062 | L166: 12062 Elbe-Elster | M166: Elbe-Elster | N166: Elbe-Elster | O166: Elbe-Elster | P166: 07312 | Q166: Kaiserslautern, kreisfreie Stadt | R166: Kaiserslautern, kreisfreie Stadt | S166: Brandenburg | BB166: Hamm, Stadt | BC166: IIIc Städte bzw. verd. Lkr. in Rhein-Ruhr (…) | BD166: Elbe-Elster | BE166: Brandenburg | BF166: Elbe-Elster | BH166: Kaiserslautern, kreisfreie Stadt | BI166: Rheinland-Pfalz | BM166: AA Neumünster | BN166: AA Neumünster | BO166: Agentur für Arbeit Neumünster | BP166: Schleswig-Holstein
K167: 12053 | L167: 12053 Frankfurt (Oder), Stadt | M167: Frankfurt (Oder), Stadt | N167: Frankfurt (Oder), Stadt | O167: Frankfurt (Oder), Stadt | P167: 08215 | Q167: Karlsruhe | R167: Karlsruhe | S167: Brandenburg | BB167: Unna | BC167: IIIc Städte bzw. verd. Lkr. in Rhein-Ruhr (…) | BD167: Frankfurt (Oder), Stadt | BE167: Brandenburg | BF167: Frankfurt (Oder), Stadt | BH167: Karlsruhe | BI167: Baden-Württemberg | BM167: Thüringen | BN167: Thüringen | BO167: Thüringen | BP167: Thüringen
K168: 12063 | L168: 12063 Havelland | M168: Havelland | N168: Havelland | O168: Havelland | P168: 08212 | Q168: Karlsruhe, Stadt | R168: Karlsruhe, Stadt | S168: Brandenburg | BB168: Herford | BC168: IId Überw. Lkr. mit Schwerpunkt in NRW (…) | BD168: Havelland | BE168: Brandenburg | BF168: Havelland | BH168: Karlsruhe, Stadt | BI168: Baden-Württemberg | BM168: AA Thüringen Mitte | BN168: AA Thüringen Mitte | BO168: Agentur für Arbeit Thüringen Mitte | BP168: Thüringen
K169: 12064 | L169: 12064 Märkisch-Oderland | M169: Märkisch-Oderland | N169: Märkisch-Oderland | O169: Märkisch-Oderland | P169: 06633 | Q169: Kassel | R169: Kassel | S169: Brandenburg | BB169: Minden-Lübbecke | BC169: IId Überw. Lkr. mit Schwerpunkt in NRW (…) | BD169: Märkisch-Oderland | BE169: Brandenburg | BF169: Märkisch-Oderland | BH169: Kassel | BI169: Hessen | BM169: AA Thüringen Ost | BN169: AA Thüringen Ost | BO169: Agentur für Arbeit Thüringen Ost | BP169: Thüringen
K170: 12065 | L170: 12065 Oberhavel | M170: Oberhavel | N170: Oberhavel | O170: Oberhavel | P170: 06611 | Q170: Kassel, documenta-Stadt | R170: Kassel, documenta-Stadt | S170: Brandenburg | BB170: Märkischer Kreis | BC170: IId Überw. Lkr. mit Schwerpunkt in NRW (…) | BD170: Oberhavel | BE170: Brandenburg | BF170: Oberhavel | BH170: Kassel, documenta-Stadt | BI170: Hessen | BM170: AA Thüringen Nord | BN170: AA Thüringen Nord | BO170: Agentur für Arbeit Thüringen Nord | BP170: Thüringen
K171: 12066 | L171: 12066 Oberspreewald-Lausitz | M171: Oberspreewald-Lausitz | N171: Oberspreewald-Lausitz | O171: Oberspreewald-Lausitz | P171: 09762 | Q171: Kaufbeuren, Stadt | R171: Kaufbeuren, Stadt | S171: Brandenburg | BB171: Köln, Stadt | BC171: IIIb Überw. städt. bzw. verstädt. Reg. (…) | BD171: Oberspreewald-Lausitz | BE171: Brandenburg | BF171: Oberspreewald-Lausitz | BH171: Kaufbeuren, Stadt | BI171: Bayern | BM171: AA Thüringen Südwest | BN171: AA Thüringen Südwest | BO171: Agentur für Arbeit Thüringen Südwest | BP171: Thüringen
K172: 12067 | L172: 12067 Oder-Spree | M172: Oder-Spree | N172: Oder-Spree | O172: Oder-Spree | P172: 09273 | Q172: Kelheim | R172: Kelheim | S172: Brandenburg | BB172: Krefeld, Stadt | BC172: IIIb Überw. städt. bzw. verstädt. Reg. (…) | BD172: Oder-Spree | BE172: Brandenburg | BF172: Oder-Spree | BH172: Kelheim | BI172: Bayern
K173: 12068 | L173: 12068 Ostprignitz-Ruppin | M173: Ostprignitz-Ruppin | N173: Ostprignitz-Ruppin | O173: Ostprignitz-Ruppin | P173: 09763 | Q173: Kempten (Allgäu), Stadt | R173: Kempten (Allgäu), Stadt | S173: Brandenburg | BB173: Viersen | BC173: IId Überw. Lkr. mit Schwerpunkt in NRW (…) | BD173: Ostprignitz-Ruppin | BE173: Brandenburg | BF173: Ostprignitz-Ruppin | BH173: Kempten (Allgäu), Stadt | BI173: Bayern
K174: 12054 | L174: 12054 Potsdam, Stadt | M174: Potsdam, Stadt | N174: Potsdam, Stadt | O174: Potsdam, Stadt | P174: 01002 | Q174: Kiel, Landeshauptstadt | R174: Kiel, Landeshauptstadt | S174: Brandenburg | BB174: Mettmann | BC174: IId Überw. Lkr. mit Schwerpunkt in NRW (…) | BD174: Potsdam, Stadt | BE174: Brandenburg | BF174: Potsdam, Stadt | BH174: Kiel, Landeshauptstadt | BI174: Schleswig-Holstein
K175: 12069 | L175: 12069 Potsdam-Mittelmark | M175: Potsdam-Mittelmark | N175: Potsdam-Mittelmark | O175: Potsdam-Mittelmark | P175: 09675 | Q175: Kitzingen | R175: Kitzingen | S175: Brandenburg | BB175: Mönchengladbach, Stadt | BC175: IIIc Städte bzw. verd. Lkr. in Rhein-Ruhr (…) | BD175: Potsdam-Mittelmark | BE175: Brandenburg | BF175: Potsdam-Mittelmark | BH175: Kitzingen | BI175: Bayern
K176: 12070 | L176: 12070 Prignitz | M176: Prignitz | N176: Prignitz | O176: Prignitz | P176: 05154 | Q176: Kleve | R176: Kleve | S176: Brandenburg | BB176: Rhein-Kreis Neuss | BC176: IId Überw. Lkr. mit Schwerpunkt in NRW (…) | BD176: Prignitz | BE176: Brandenburg | BF176: Prignitz | BH176: Kleve | BI176: Nordrhein-Westfalen
K177: 12071 | L177: 12071 Spree-Neiße | M177: Spree-Neiße | N177: Spree-Neiße | O177: Spree-Neiße | P177: 07111 | Q177: Koblenz, kreisfreie Stadt | R177: Koblenz, kreisfreie Stadt | S177: Brandenburg | BB177: Warendorf | BC177: IId Überw. Lkr. mit Schwerpunkt in NRW (…) | BD177: Spree-Neiße | BE177: Brandenburg | BF177: Spree-Neiße | BH177: Koblenz, kreisfreie Stadt | BI177: Rheinland-Pfalz
K178: 12072 | L178: 12072 Teltow-Fläming | M178: Teltow-Fläming | N178: Teltow-Fläming | O178: Teltow-Fläming | P178: 05315 | Q178: Köln, Stadt | R178: Köln, Stadt | S178: Brandenburg | BB178: Münster, Stadt | BC178: IIe Städte u. verd. Lkr m. ger. SGB II-Quote (…) | BD178: Teltow-Fläming | BE178: Brandenburg | BF178: Teltow-Fläming | BH178: Köln, Stadt | BI178: Nordrhein-Westfalen
K179: 12073 | L179: 12073 Uckermark | M179: Uckermark | N179: Uckermark | O179: Uckermark | P179: 08335 | Q179: Konstanz | R179: Konstanz | S179: Brandenburg | BB179: Mülheim an der Ruhr, Stadt | BC179: IIIc Städte bzw. verd. Lkr. in Rhein-Ruhr (…) | BD179: Uckermark | BE179: Brandenburg | BF179: Uckermark | BH179: Konstanz | BI179: Baden-Württemberg
K180: 04000 | L180: 04 Bremen | M180: Bremen | N180: Bremen | O180: Land Bremen | P180: 05114 | Q180: Krefeld, Stadt | R180: Krefeld, Stadt | S180: Bremen | BB180: Oberhausen, Stadt | BC180: IIIc Städte bzw. verd. Lkr. in Rhein-Ruhr (…) | BD180: Bremen | BE180: Bremen | BF180: Bremen | BH180: Krefeld, Stadt | BI180: Nordrhein-Westfalen
K181: 04011 | L181: 04011 Bremen, Stadt | M181: Bremen, Stadt | N181: Bremen, Stadt | O181: Bremen, Stadt | P181: 09476 | Q181: Kronach | R181: Kronach | S181: Bremen | BB181: Paderborn | BC181: IId Überw. Lkr. mit Schwerpunkt in NRW (…) | BD181: Bremen, Stadt | BE181: Bremen | BF181: Bremen, Stadt | BH181: Kronach | BI181: Bayern
K182: 04012 | L182: 04012 Bremerhaven, Stadt | M182: Bremerhaven, Stadt | N182: Bremerhaven, Stadt | O182: Bremerhaven, Stadt | P182: 09477 | Q182: Kulmbach | R182: Kulmbach | S182: Bremen | BB182: Höxter | BC182: IIa Überw. Lkr. mit ausgepr. Ind.sektor (…) | BD182: Bremerhaven, Stadt | BE182: Bremen | BF182: Bremerhaven, Stadt | BH182: Kulmbach | BI182: Bayern
K183: 02000 | L183: 02 Hamburg | M183: Hamburg | N183: Hamburg | O183: Land Hamburg | P183: 07336 | Q183: Kusel | R183: Kusel | S183: Hamburg | BB183: Recklinghausen | BC183: IIIc Städte bzw. verd. Lkr. in Rhein-Ruhr (…) | BD183: Hamburg | BE183: Hamburg | BF183: Hamburg | BH183: Kusel | BI183: Rheinland-Pfalz
K184: 02001 | L184: 02000 Hamburg, Freie und Hansestadt | M184: Hamburg, Freie und Hansestadt | N184: Hamburg, Freie und Hansestadt | O184: Hamburg, Freie und Hansestadt | P184: 16065 | Q184: Kyffhäuserkreis | R184: Kyffhäuserkreis | S184: Hamburg | BB184: Steinfurt | BC184: IId Überw. Lkr. mit Schwerpunkt in NRW (…) | BD184: Hamburg, Freie und Hansestadt | BE184: Hamburg | BF184: Hamburg, Freie und Hansestadt | BH184: Kyffhäuserkreis | BI184: Thüringen
K185: 06000 | L185: 06 Hessen | M185: Hessen | N185: Hessen | O185: Land Hessen | P185: 06532 | Q185: Lahn-Dill-Kreis | R185: Lahn-Dill-Kreis | S185: Hessen | BB185: Siegen-Wittgenstein | BC185: IId Überw. Lkr. mit Schwerpunkt in NRW (…) | BD185: Hessen | BE185: Hessen | BF185: Hessen | BH185: Lahn-Dill-Kreis | BI185: Hessen
K186: 06431 | L186: 06431 Bergstraße | M186: Bergstraße | N186: Bergstraße | O186: Bergstraße | P186: 07313 | Q186: Landau in der Pfalz, kreisfreie Stadt | R186: Landau in der Pfalz, kreisfreie Stadt | S186: Hessen | BB186: Olpe | BC186: Id Überw. Lkr. in Baden-Württemberg (…) | BD186: Bergstraße | BE186: Hessen | BF186: Bergstraße | BH186: Landau in der Pfalz, kreisfreie Stadt | BI186: Rheinland-Pfalz
K187: 06411 | L187: 06411 Darmstadt, Wissenschaftsstadt | M187: Darmstadt, Wissenschaftsstadt | N187: Darmstadt, Wissenschaftsstadt | O187: Darmstadt, Wissenschaftsstadt | P187: 09181 | Q187: Landsberg am Lech | R187: Landsberg am Lech | S187: Hessen | BB187: Soest | BC187: IId Überw. Lkr. mit Schwerpunkt in NRW (…) | BD187: Darmstadt, Wissenschaftsstadt | BE187: Hessen | BF187: Darmstadt, Wissenschaftsstadt | BH187: Landsberg am Lech | BI187: Bayern
K188: 06432 | L188: 06432 Darmstadt-Dieburg | M188: Darmstadt-Dieburg | N188: Darmstadt-Dieburg | O188: Darmstadt-Dieburg | P188: 09274 | Q188: Landshut | R188: Landshut | S188: Hessen | BB188: Hochsauerlandkreis | BC188: IId Überw. Lkr. mit Schwerpunkt in NRW (…) | BD188: Darmstadt-Dieburg | BE188: Hessen | BF188: Darmstadt-Dieburg | BH188: Landshut | BI188: Bayern
K189: 06412 | L189: 06412 Frankfurt am Main, Stadt | M189: Frankfurt am Main, Stadt | N189: Frankfurt am Main, Stadt | O189: Frankfurt am Main, Stadt | P189: 09261 | Q189: Landshut, Stadt | R189: Landshut, Stadt | S189: Hessen | BB189: Wesel | BC189: IId Überw. Lkr. mit Schwerpunkt in NRW (…) | BD189: Frankfurt am Main, Stadt | BE189: Hessen | BF189: Frankfurt am Main, Stadt | BH189: Landshut, Stadt | BI189: Bayern
K190: 06631 | L190: 06631 Fulda | M190: Fulda | N190: Fulda | O190: Fulda | P190: 03457 | Q190: Leer | R190: Leer | S190: Hessen | BB190: Kleve | BC190: IIc Regionen in Schl.-Hols. und Nied.s. (…) | BD190: Fulda | BE190: Hessen | BF190: Fulda | BH190: Leer | BI190: Niedersachsen
K191: 06531 | L191: 06531 Gießen | M191: Gießen | N191: Gießen | O191: Gießen | P191: 14729 | Q191: Leipzig | R191: Leipzig | S191: Hessen | BB191: Remscheid, Stadt | BC191: IIIc Städte bzw. verd. Lkr. in Rhein-Ruhr (…) | BD191: Gießen | BE191: Hessen | BF191: Gießen | BH191: Leipzig | BI191: Sachsen
K192: 06433 | L192: 06433 Groß-Gerau | M192: Groß-Gerau | N192: Groß-Gerau | O192: Groß-Gerau | P192: 14713 | Q192: Leipzig, Stadt | R192: Leipzig, Stadt | S192: Hessen | BB192: Solingen, Klingenstadt | BC192: IIIc Städte bzw. verd. Lkr. in Rhein-Ruhr (…) | BD192: Groß-Gerau | BE192: Hessen | BF192: Groß-Gerau | BH192: Leipzig, Stadt | BI192: Sachsen
K193: 06632 | L193: 06632 Hersfeld-Rotenburg | M193: Hersfeld-Rotenburg | N193: Hersfeld-Rotenburg | O193: Hersfeld-Rotenburg | P193: 05316 | Q193: Leverkusen, Stadt | R193: Leverkusen, Stadt | S193: Hessen | BB193: Wuppertal, Stadt | BC193: IIIc Städte bzw. verd. Lkr. in Rhein-Ruhr (…) | BD193: Hersfeld-Rotenburg | BE193: Hessen | BF193: Hersfeld-Rotenburg | BH193: Leverkusen, Stadt | BI193: Nordrhein-Westfalen
K194: 06434 | L194: 06434 Hochtaunuskreis | M194: Hochtaunuskreis | N194: Hochtaunuskreis | O194: Hochtaunuskreis | P194: 96404 | Q194: Lichtenberg | R194: Lichtenberg | S194: Hessen | BB194: Hersfeld-Rotenburg | BC194: Ie Regionen abseits der Ballungsräume (…) | BD194: Hochtaunuskreis | BE194: Hessen | BF194: Hochtaunuskreis | BH194: Lichtenberg | BI194: Berlin
K195: 06633 | L195: 06633 Kassel | M195: Kassel | N195: Kassel | O195: Kassel | P195: 09478 | Q195: Lichtenfels | R195: Lichtenfels | S195: Hessen | BB195: Fulda | BC195: Id Überw. Lkr. in Baden-Württemberg (…) | BD195: Kassel | BE195: Hessen | BF195: Kassel | BH195: Lichtenfels | BI195: Bayern
K196: 06611 | L196: 06611 Kassel, documenta-Stadt | M196: Kassel, documenta-Stadt | N196: Kassel, documenta-Stadt | O196: Kassel, documenta-Stadt | P196: 06533 | Q196: Limburg-Weilburg | R196: Limburg-Weilburg | S196: Hessen | BB196: Bergstraße | BC196: IId Überw. Lkr. mit Schwerpunkt in NRW (…) | BD196: Kassel, documenta-Stadt | BE196: Hessen | BF196: Kassel, documenta-Stadt | BH196: Limburg-Weilburg | BI196: Hessen
K197: 06532 | L197: 06532 Lahn-Dill-Kreis | M197: Lahn-Dill-Kreis | N197: Lahn-Dill-Kreis | O197: Lahn-Dill-Kreis | P197: 09776 | Q197: Lindau (Bodensee) | R197: Lindau (Bodensee) | S197: Hessen | BB197: Darmstadt-Dieburg | BC197: IId Überw. Lkr. mit Schwerpunkt in NRW (…) | BD197: Lahn-Dill-Kreis | BE197: Hessen | BF197: Lahn-Dill-Kreis | BH197: Lindau (Bodensee) | BI197: Bayern
K198: 06533 | L198: 06533 Limburg-Weilburg | M198: Limburg-Weilburg | N198: Limburg-Weilburg | O198: Limburg-Weilburg | P198: 05766 | Q198: Lippe | R198: Lippe | S198: Hessen | BB198: Odenwaldkreis | BC198: IIa Überw. Lkr. mit ausgepr. Ind.sektor (…) | BD198: Limburg-Weilburg | BE198: Hessen | BF198: Limburg-Weilburg | BH198: Lippe | BI198: Nordrhein-Westfalen
K199: 06435 | L199: 06435 Main-Kinzig-Kreis | M199: Main-Kinzig-Kreis | N199: Main-Kinzig-Kreis | O199: Main-Kinzig-Kreis | P199: 08336 | Q199: Lörrach | R199: Lörrach | S199: Hessen | BB199: Darmstadt, Wissenschaftsstadt | BC199: IIe Städte u. verd. Lkr m. ger. SGB II-Quote (…) | BD199: Main-Kinzig-Kreis | BE199: Hessen | BF199: Main-Kinzig-Kreis | BH199: Lörrach | BI199: Baden-Württemberg
K200: 06436 | L200: 06436 Main-Taunus-Kreis | M200: Main-Taunus-Kreis | N200: Main-Taunus-Kreis | O200: Main-Taunus-Kreis | P200: 01003 | Q200: Lübeck, Hansestadt | R200: Lübeck, Hansestadt | S200: Hessen | BB200: Frankfurt am Main, Stadt | BC200: IIe Städte u. verd. Lkr m. ger. SGB II-Quote (…) | BD200: Main-Taunus-Kreis | BE200: Hessen | BF200: Main-Taunus-Kreis | BH200: Lübeck, Hansestadt | BI200: Schleswig-Holstein
... 232 more rows

Sheet Quell_propquad (hidden)
E2: Bevölkerung insgesamt | F2: Bevölkerung 15-64 Jahre | G2: Bevölkerung unter 15 Jahre | H2: SvB 15- 64 Jahre | I2: Arbeitslose insgesamt | J2: Regelleistungs-berechtigte II: arbeitslose ELB | K2: Regelleistungs-berechtigte I (nicht arbeitslos, über 15 Jahre) | L2: Regelleistungs-berechtigte III: NEF unter 15 Jahre
A3: =INDEX(Jahresliste_Propquad,Auswahl_Berichtsjahr_Propquad,1) -> 2022 | B3: =IF(Auswahl_Gebietsstruktur=1,INDEX(Agenturliste_mit_RD,Auswahl_Region),INDEX(Kreisliste_ohne_Einrücken,Auswahl_Region)) -> Deutschland | C3: =A3&"_"&B3 -> 2022_Deutschland | E3: BEV01 | F3: BEV08 | G3: BEV11 | H3: BST07 | I3: AST02 | J3: LST06 | K3: Rest_RLB | L3: LST07
B4: Bevölkerungszahlen: | C4: =IF(AND(Version_Frühjahr_Herbst="Frühjahr",A3=Akt_Jahr),Akt_Jahr-1&"_"&B3,A3&"_"&B3) -> 2022_Deutschland | D4: Namensmanager | E4: BEV | F4: BEVii | G4: BEViii | H4: SVB | I4: ALO | J4: RLB II | K4: RLB I | L4: RLB III
D5: Anzahl | E5: =INDEX(Grunddaten_Daten,MATCH($C4,Grunddaten_Regionen,0),MATCH(E3,Grunddaten_Indikatoren,0)) -> 84358845 | F5: =INDEX(Grunddaten_Daten,MATCH($C4,Grunddaten_Regionen,0),MATCH(F3,Grunddaten_Indikatoren,0)) -> 53769842 | G5: =INDEX(Grunddaten_Daten,MATCH($C4,Grunddaten_Regionen,0),MATCH(G3,Grunddaten_Indikatoren,0)) -> 11928977 | H5: =INDEX(Grunddaten_Daten,MATCH($C3,Grunddaten_Regionen,0),MATCH(H3,Grunddaten_Indikatoren,0)) -> 33689980 | I5: =INDEX(Grunddaten_Daten,MATCH($C3,Grunddaten_Regionen,0),MATCH(I3,Grunddaten_Indikatoren,0)) -> 2418132.75 | J5: =INDEX(Grunddaten_Daten,MATCH($C3,Grunddaten_Regionen,0),MATCH(J3,Grunddaten_Indikatoren,0)) -> 1561495.75 | K5: =INDEX(Grunddaten_Daten,MATCH($C3,Grunddaten_Regionen,0),MATCH(K3,Grunddaten_Indikatoren,0)) -> 2199537.083 | L5: =INDEX(Grunddaten_Daten,MATCH($C3,Grunddaten_Regionen,0),MATCH(L3,Grunddaten_Indikatoren,0)) -> 1439335.333
D6: Flächenrelation | E6: =E5/$E5 -> 1 | F6: 0.6373942412 | G6: 0.141407543 | H6: =H5/$E5 -> 0.399365117 | I6: 0.02866483947 | J6: =J5/$E5 -> 0.01851016038 | K6: 0.02607357988 | L6: 0.01706205595
C7: =IF(OR(C3="2012_Stuttgart, Landeshauptstadt",C3="2012_AA Stuttgart"),0,IF(OR(C3="2014_AA Halberstadt",C3="2014_Harz",C3="2014_AA Emden – Leer",C3="2014_AA Nordhorn",C3="2014_Emsland",C3="2014_AA Rheine",C3="2014_Steinfurt",C3="2014_AA Nordhausen",C3="2014_Eichsfeld",C3="2014_Leer"),2,IF(OR(C3="2017_AA Emden – Leer",C3="2017_Leer"),3,1))) -> 1 | D7: Breite in Points | E7: =E11*28.346456 -> 382.677156 | F7: =F11*28.346456 -> 368.503928 | G7: =G11*28.346456 -> 226.771648 | H7: 362.8346368 | I7: 113.9127845 | J7: 86.93282695 | K7: 122.4543689 | L7: 80.13181557
D8: Höhe in Points | E8: =E12*28.346456 -> 382.677156 | F8: =F12*28.346456 -> 253.2976084 | G8: =G12*28.346456 -> 91.3164239 | H8: =H12*28.346456 -> 161.1856833 | I8: 36.8503928 | J8: 31.1811016 | K8: 31.1811016 | L8: 31.1811016
D9: Flächeninhalt in cm² | E9: =E11*E12 -> 182.25 | F9: =$E9*F6 -> 116.1651005 | G9: =$E9*G6 -> 25.77152471 | H9: 72.78429257 | I9: =$E9*I6 -> 5.224166994 | J9: =$E9*J6 -> 3.373476728 | K9: 4.751909932 | L9: 3.109559697
D11: Breite in cm | E11: 13.5 | F11: 13 | G11: 8 | H11: 12.8 | I11: =I9/I12 -> 4.018589995 | J11: =J9/J12 -> 3.066797026 | K11: =K9/K12 -> 4.31991812 | L11: =L9/L12 -> 2.826872452
D12: Höhe in cm | E12: 13.5 | F12: =F9/F11 -> 8.935776959 | G12: =G9/G11 -> 3.221440588 | H12: =H9/H11 -> 5.686272857 | I12: 1.3 | J12: 1.1 | K12: 1.1 | L12: 1.1
C13: Werte für bindende Nebenbedingungen | D13: Breite in cm | G13: =G9/G14 -> 6.618358265 | I13: =$K$11-(2*(8/28.346456)+$K$16) -> -27.42562794 | J13: =I13-(2*(8/28.346456)) -> -27.9900724 | K13: =K9/K14 -> 4.31991812 | L13: =G11-(4/28.346456) -> 7.858888885
D14: Höhe in cm | G14: =E11-(13/28.346456)-F12-(6/28.346456) -> 3.893945247 | I14: =I9/I13 -> -0.1904848635 | J14: =J9/J13 -> -0.1205240444 | K14: 1.1 | L14: =L9/L13 -> 0.3956742158
D15: Breite in Points | G15: =G13*28.346456 -> 187.6070013 | H15: =H13*28.346456 -> 0 | I15: =I13*28.346456 -> -777.4193556 | J15: -793.4193556 | K15: 122.4543689 | L15: 222.771648
D16: Höhe in Points | G16: =G14*28.346456 -> 110.3795476 | H16: 0 | I16: -5.399570802 | J16: -3.416429522 | K16: 31.1811016 | L16: 11.21596175

Sheet Quell_Equalizer (hidden)
A1: Gebietsstruktur | B1: =INDEX(IF(Auswahl_Gebietsstruktur=1,Agenturliste_mit_RD,Kreisliste_ohne_Einrücken),Auswahl_Region,FALSE) -> Deutschland | C1: =IF(VLOOKUP(B1,A11:B443,2,FALSE)="",B1,(VLOOKUP(B1,A11:B443,2,FALSE))) -> Deutschland | D1: W1 | E1: W2 | F1: W3 | G1: W4 | H1: W5 | I1: W6 | J1: W7 | K1: W8 | L1: W9 | M1: W10 | N1: W11 | O1: W12 | P1: W13 | Q1: W14 | R1: W15 | S1: W16 | T1: W17 | U1: W18 | V1: D1 | W1: D2 | X1: D3 | Y1: D4 | Z1: D5 | AA1: S1 | AB1: S2 | AC1: S3 | AD1: S4 | AE1: B1 | AF1: B2 | AG1: B3 | AH1: B4
A2: AA
A3: Kreise | C3: Bund Minimum | D3: =IFERROR(SMALL(IF((D$12:D$443)<>999,D$12:D$443),1),999) -> 46.22811717 | E3: =IFERROR(SMALL(IF((E$12:E$443)<>999,E$12:E$443),1),999) -> 41.38387198 | F3: =IFERROR(SMALL(IF((F$12:F$443)<>999,F$12:F$443),1),999) -> 12.54754101 | G3: =IFERROR(SMALL(IF((G$12:G$443)<>999,G$12:G$443),1),999) -> 46.72969743 | H3: =IFERROR(SMALL(IF((H$12:H$443)<>999,H$12:H$443),1),999) -> -11.90545497 | I3: =IFERROR(SMALL(IF((I$12:I$443)<>999,I$12:I$443),1),999) -> 1.7 | J3: =IFERROR(SMALL(IF((J$12:J$443)<>999,J$12:J$443),1),999) -> 2.2 | K3: =IFERROR(SMALL(IF((K$12:K$443)<>999,K$12:K$443),1),999) -> 1.6 | L3: =IFERROR(SMALL(IF((L$12:L$443)<>999,L$12:L$443),1),999) -> 37.42925546 | M3: =IFERROR(SMALL(IF((M$12:M$443)<>999,M$12:M$443),1),999) -> 17.553 | N3: =IFERROR(SMALL(IF((N$12:N$443)<>999,N$12:N$443),1),999) -> 16.50832861 | O3: =IFERROR(SMALL(IF((O$12:O$443)<>999,O$12:O$443),1),999) -> 0.6907487271 | P3: =IFERROR(SMALL(IF((P$12:P$443)<>999,P$12:P$443),1),999) -> 0.8498540395 | Q3: =IFERROR(SMALL(IF((Q$12:Q$443)<>999,Q$12:Q$443),1),999) -> 4.075746463 | R3: =IFERROR(SMALL(IF((R$12:R$443)<>999,R$12:R$443),1),999) -> 8.861643517 | S3: =IFERROR(SMALL(IF((S$12:S$443)<>999,S$12:S$443),1),999) -> 26.50041833 | T3: =IFERROR(SMALL(IF((T$12:T$443)<>999,T$12:T$443),1),999) -> 6.753345769 | U3: =IFERROR(SMALL(IF((U$12:U$443)<>999,U$12:U$443),1),999) -> 14.52130096 | V3: =IFERROR(SMALL(IF((V$12:V$443)<>999,V$12:V$443),1),999) -> -19.304486 | W3: =IFERROR(SMALL(IF((W$12:W$443)<>999,W$12:W$443),1),999) -> 18.97465804 | X3: =IFERROR(SMALL(IF((X$12:X$443)<>999,X$12:X$443),1),999) -> 20.95701135 | Y3: =IFERROR(SMALL(IF((Y$12:Y$443)<>999,Y$12:Y$443),1),999) -> 38.30616801 | Z3: =IFERROR(SMALL(IF((Z$12:Z$443)<>999,Z$12:Z$443),1),999) -> 3.548426334 | AA3: =IFERROR(SMALL(IF((AA$12:AA$443)<>999,AA$12:AA$443),1),999) -> 1.626453276 | AB3: =IFERROR(SMALL(IF((AB$12:AB$443)<>999,AB$12:AB$443),1),999) -> 1.443308494 | AC3: =IFERROR(SMALL(IF((AC$12:AC$443)<>999,AC$12:AC$443),1),999) -> 2.314146892 | AD3: =IFERROR(SMALL(IF((AD$12:AD$443)<>999,AD$12:AD$443),1),999) -> 47.57312865 | AE3: =IFERROR(SMALL(IF((AE$12:AE$443)<>999,AE$12:AE$443),1),999) -> 15.79945423 | AF3: =IFERROR(SMALL(IF((AF$12:AF$443)<>999,AF$12:AF$443),1),999) -> 1.082055906 | AG3: =IFERROR(SMALL(IF((AG$12:AG$443)<>999,AG$12:AG$443),1),999) -> -3.0890988 | AH3: =IFERROR(SMALL(IF((AH$12:AH$443)<>999,AH$12:AH$443),1),999) -> 2.732757508
A4: =INDEX(Jahresliste,Auswahl_Berichtsjahr) -> 2022 | C4: Bund Maximum | D4: =IFERROR(LARGE(IF((D$12:D$443)<>999,D$12:D$443),1),999) -> 71.30312706 | E4: =IFERROR(LARGE(IF((E$12:E$443)<>999,E$12:E$443),1),999) -> 62.343213 | F4: =IFERROR(LARGE(IF((F$12:F$443)<>999,F$12:F$443),1),999) -> 31.22798994 | G4: =IFERROR(LARGE(IF((G$12:G$443)<>999,G$12:G$443),1),999) -> 69.53602822 | H4: =IFERROR(LARGE(IF((H$12:H$443)<>999,H$12:H$443),1),999) -> 77.49420849 | I4: =IFERROR(LARGE(IF((I$12:I$443)<>999,I$12:I$443),1),999) -> 14.1 | J4: =IFERROR(LARGE(IF((J$12:J$443)<>999,J$12:J$443),1),999) -> 18 | K4: =IFERROR(LARGE(IF((K$12:K$443)<>999,K$12:K$443),1),999) -> 16.8 | L4: =IFERROR(LARGE(IF((L$12:L$443)<>999,L$12:L$443),1),999) -> 92.96353147 | M4: =IFERROR(LARGE(IF((M$12:M$443)<>999,M$12:M$443),1),999) -> 158.749 | N4: =IFERROR(LARGE(IF((N$12:N$443)<>999,N$12:N$443),1),999) -> 40.96550778 | O4: =IFERROR(LARGE(IF((O$12:O$443)<>999,O$12:O$443),1),999) -> 78.66172243 | P4: =IFERROR(LARGE(IF((P$12:P$443)<>999,P$12:P$443),1),999) -> 79.84914624 | Q4: =IFERROR(LARGE(IF((Q$12:Q$443)<>999,Q$12:Q$443),1),999) -> 77.00052262 | R4: =IFERROR(LARGE(IF((R$12:R$443)<>999,R$12:R$443),1),999) -> 74.81367432 | S4: =IFERROR(LARGE(IF((S$12:S$443)<>999,S$12:S$443),1),999) -> 52.81999133 | T4: =IFERROR(LARGE(IF((T$12:T$443)<>999,T$12:T$443),1),999) -> 32.06764141 | U4: =IFERROR(LARGE(IF((U$12:U$443)<>999,U$12:U$443),1),999) -> 55.49222309 | V4: =IFERROR(LARGE(IF((V$12:V$443)<>999,V$12:V$443),1),999) -> 25.8613797 | W4: =IFERROR(LARGE(IF((W$12:W$443)<>999,W$12:W$443),1),999) -> 29.06398951 | X4: =IFERROR(LARGE(IF((X$12:X$443)<>999,X$12:X$443),1),999) -> 49.57286231 | Y4: =IFERROR(LARGE(IF((Y$12:Y$443)<>999,Y$12:Y$443),1),999) -> 111.5829142 | Z4: =IFERROR(LARGE(IF((Z$12:Z$443)<>999,Z$12:Z$443),1),999) -> 38.96921816 | AA4: =IFERROR(LARGE(IF((AA$12:AA$443)<>999,AA$12:AA$443),1),999) -> 23.98617455 | AB4: =IFERROR(LARGE(IF((AB$12:AB$443)<>999,AB$12:AB$443),1),999) -> 20.17907844 | AC4: =IFERROR(LARGE(IF((AC$12:AC$443)<>999,AC$12:AC$443),1),999) -> 37.69181612 | AD4: =IFERROR(LARGE(IF((AD$12:AD$443)<>999,AD$12:AD$443),1),999) -> 82.34222137 | AE4: =IFERROR(LARGE(IF((AE$12:AE$443)<>999,AE$12:AE$443),1),999) -> 52.1517698 | AF4: =IFERROR(LARGE(IF((AF$12:AF$443)<>999,AF$12:AF$443),1),999) -> 13.96551724 | AG4: =IFERROR(LARGE(IF((AG$12:AG$443)<>999,AG$12:AG$443),1),999) -> 20.55335968 | AH4: =IFERROR(LARGE(IF((AH$12:AH$443)<>999,AH$12:AH$443),1),999) -> 8.468612555
C5: Bundesmittel | D5: =D12 -> 62.60824856 | E5: =E12 -> 55.35676182 | F5: 23.15537831 | G5: 59.19158453 | H5: 30.97210372 | I5: 5.3 | J5: 6.9 | K5: 5.6 | L5: 72.0206426 | M5: 43.292 | N5: 29.74475286 | O5: 0.6907487271 | P5: 999 | Q5: =Q12 -> 10.40524988 | R5: 33.83480495 | S5: =S12 -> 36.46009816 | T5: =T12 -> 16.49890248 | U5: =U12 -> 37.89552083 | V5: 2.330054243 | W5: 24.17150211 | X5: 37.60289037 | Y5: 64.2809685 | Z5: 14.60925052 | AA5: 7.959049566 | AB5: 6.831202126 | AC5: 12.23097141 | AD5: =AD12 -> 64.03497879 | AE5: 27.78442428 | AF5: =AF12 -> 6.226947249 | AG5: =AG12 -> 4.186465432 | AH5: 4.524397428
C6: =C1&" Minimum" -> Deutschland Minimum | D6: =IFERROR(SMALL(IF(($B12:$B443=$C1)*(D$12:D$443<>999),D12:D443),1),999) -> 999 | E6: =IFERROR(SMALL(IF(($B12:$B443=$C1)*(E$12:E$443<>999),E12:E443),1),999) -> 999 | F6: =IFERROR(SMALL(IF(($B12:$B443=$C1)*(F$12:F$443<>999),F12:F443),1),999) -> 999 | G6: =IFERROR(SMALL(IF(($B12:$B443=$C1)*(G$12:G$443<>999),G12:G443),1),999) -> 999 | H6: =IFERROR(SMALL(IF(($B12:$B443=$C1)*(H$12:H$443<>999),H12:H443),1),999) -> 999 | I6: =IFERROR(SMALL(IF(($B12:$B443=$C1)*(I$12:I$443<>999),I12:I443),1),999) -> 999 | J6: =IFERROR(SMALL(IF(($B12:$B443=$C1)*(J$12:J$443<>999),J12:J443),1),999) -> 999 | K6: =IFERROR(SMALL(IF(($B12:$B443=$C1)*(K$12:K$443<>999),K12:K443),1),999) -> 999 | L6: =IFERROR(SMALL(IF(($B12:$B443=$C1)*(L$12:L$443<>999),L12:L443),1),999) -> 999 | M6: =IFERROR(SMALL(IF(($B12:$B443=$C1)*(M$12:M$443<>999),M12:M443),1),999) -> 999 | N6: =IFERROR(SMALL(IF(($B12:$B443=$C1)*(N$12:N$443<>999),N12:N443),1),999) -> 999 | O6: =IFERROR(SMALL(IF(($B12:$B443=$C1)*(O$12:O$443<>999),O12:O443),1),999) -> 999 | P6: =IFERROR(SMALL(IF(($B12:$B443=$C1)*(P$12:P$443<>999),P12:P443),1),999) -> 999 | Q6: =IFERROR(SMALL(IF(($B12:$B443=$C1)*(Q$12:Q$443<>999),Q12:Q443),1),999) -> 999 | R6: =IFERROR(SMALL(IF(($B12:$B443=$C1)*(R$12:R$443<>999),R12:R443),1),999) -> 999 | S6: =IFERROR(SMALL(IF(($B12:$B443=$C1)*(S$12:S$443<>999),S12:S443),1),999) -> 999 | T6: =IFERROR(SMALL(IF(($B12:$B443=$C1)*(T$12:T$443<>999),T12:T443),1),999) -> 999 | U6: =IFERROR(SMALL(IF(($B12:$B443=$C1)*(U$12:U$443<>999),U12:U443),1),999) -> 999 | V6: =IFERROR(SMALL(IF(($B12:$B443=$C1)*(V$12:V$443<>999),V12:V443),1),999) -> 999 | W6: =IFERROR(SMALL(IF(($B12:$B443=$C1)*(W$12:W$443<>999),W12:W443),1),999) -> 999 | X6: =IFERROR(SMALL(IF(($B12:$B443=$C1)*(X$12:X$443<>999),X12:X443),1),999) -> 999 | Y6: =IFERROR(SMALL(IF(($B12:$B443=$C1)*(Y$12:Y$443<>999),Y12:Y443),1),999) -> 999 | Z6: =IFERROR(SMALL(IF(($B12:$B443=$C1)*(Z$12:Z$443<>999),Z12:Z443),1),999) -> 999 | AA6: =IFERROR(SMALL(IF(($B12:$B443=$C1)*(AA$12:AA$443<>999),AA12:AA443),1),999) -> 999 | AB6: =IFERROR(SMALL(IF(($B12:$B443=$C1)*(AB$12:AB$443<>999),AB12:AB443),1),999) -> 999 | AC6: =IFERROR(SMALL(IF(($B12:$B443=$C1)*(AC$12:AC$443<>999),AC12:AC443),1),999) -> 999 | AD6: =IFERROR(SMALL(IF(($B12:$B443=$C1)*(AD$12:AD$443<>999),AD12:AD443),1),999) -> 999 | AE6: =IFERROR(SMALL(IF(($B12:$B443=$C1)*(AE$12:AE$443<>999),AE12:AE443),1),999) -> 999 | AF6: =IFERROR(SMALL(IF(($B12:$B443=$C1)*(AF$12:AF$443<>999),AF12:AF443),1),999) -> 999 | AG6: =IFERROR(SMALL(IF(($B12:$B443=$C1)*(AG$12:AG$443<>999),AG12:AG443),1),999) -> 999 | AH6: =IFERROR(SMALL(IF(($B12:$B443=$C1)*(AH$12:AH$443<>999),AH12:AH443),1),999) -> 999
C7: =C1&" Maximum" -> Deutschland Maximum | D7: =IFERROR(LARGE(IF(($B12:$B443=$C1)*(D$12:D$443<>999),D12:D443),1),999) -> 999 | E7: =IFERROR(LARGE(IF(($B12:$B443=$C1)*(E$12:E$443<>999),E12:E443),1),999) -> 999 | F7: =IFERROR(LARGE(IF(($B12:$B443=$C1)*(F$12:F$443<>999),F12:F443),1),999) -> 999 | G7: =IFERROR(LARGE(IF(($B12:$B443=$C1)*(G$12:G$443<>999),G12:G443),1),999) -> 999 | H7: =IFERROR(LARGE(IF(($B12:$B443=$C1)*(H$12:H$443<>999),H12:H443),1),999) -> 999 | I7: =IFERROR(LARGE(IF(($B12:$B443=$C1)*(I$12:I$443<>999),I12:I443),1),999) -> 999 | J7: =IFERROR(LARGE(IF(($B12:$B443=$C1)*(J$12:J$443<>999),J12:J443),1),999) -> 999 | K7: =IFERROR(LARGE(IF(($B12:$B443=$C1)*(K$12:K$443<>999),K12:K443),1),999) -> 999 | L7: =IFERROR(LARGE(IF(($B12:$B443=$C1)*(L$12:L$443<>999),L12:L443),1),999) -> 999 | M7: =IFERROR(LARGE(IF(($B12:$B443=$C1)*(M$12:M$443<>999),M12:M443),1),999) -> 999 | N7: =IFERROR(LARGE(IF(($B12:$B443=$C1)*(N$12:N$443<>999),N12:N443),1),999) -> 999 | O7: =IFERROR(LARGE(IF(($B12:$B443=$C1)*(O$12:O$443<>999),O12:O443),1),999) -> 999 | P7: =IFERROR(LARGE(IF(($B12:$B443=$C1)*(P$12:P$443<>999),P12:P443),1),999) -> 999 | Q7: =IFERROR(LARGE(IF(($B12:$B443=$C1)*(Q$12:Q$443<>999),Q12:Q443),1),999) -> 999 | R7: =IFERROR(LARGE(IF(($B12:$B443=$C1)*(R$12:R$443<>999),R12:R443),1),999) -> 999 | S7: =IFERROR(LARGE(IF(($B12:$B443=$C1)*(S$12:S$443<>999),S12:S443),1),999) -> 999 | T7: =IFERROR(LARGE(IF(($B12:$B443=$C1)*(T$12:T$443<>999),T12:T443),1),999) -> 999 | U7: =IFERROR(LARGE(IF(($B12:$B443=$C1)*(U$12:U$443<>999),U12:U443),1),999) -> 999 | V7: =IFERROR(LARGE(IF(($B12:$B443=$C1)*(V$12:V$443<>999),V12:V443),1),999) -> 999 | W7: =IFERROR(LARGE(IF(($B12:$B443=$C1)*(W$12:W$443<>999),W12:W443),1),999) -> 999 | X7: =IFERROR(LARGE(IF(($B12:$B443=$C1)*(X$12:X$443<>999),X12:X443),1),999) -> 999 | Y7: =IFERROR(LARGE(IF(($B12:$B443=$C1)*(Y$12:Y$443<>999),Y12:Y443),1),999) -> 999 | Z7: =IFERROR(LARGE(IF(($B12:$B443=$C1)*(Z$12:Z$443<>999),Z12:Z443),1),999) -> 999 | AA7: =IFERROR(LARGE(IF(($B12:$B443=$C1)*(AA$12:AA$443<>999),AA12:AA443),1),999) -> 999 | AB7: =IFERROR(LARGE(IF(($B12:$B443=$C1)*(AB$12:AB$443<>999),AB12:AB443),1),999) -> 999 | AC7: =IFERROR(LARGE(IF(($B12:$B443=$C1)*(AC$12:AC$443<>999),AC12:AC443),1),999) -> 999 | AD7: =IFERROR(LARGE(IF(($B12:$B443=$C1)*(AD$12:AD$443<>999),AD12:AD443),1),999) -> 999 | AE7: =IFERROR(LARGE(IF(($B12:$B443=$C1)*(AE$12:AE$443<>999),AE12:AE443),1),999) -> 999 | AF7: =IFERROR(LARGE(IF(($B12:$B443=$C1)*(AF$12:AF$443<>999),AF12:AF443),1),999) -> 999 | AG7: =IFERROR(LARGE(IF(($B12:$B443=$C1)*(AG$12:AG$443<>999),AG12:AG443),1),999) -> 999 | AH7: =IFERROR(LARGE(IF(($B12:$B443=$C1)*(AH$12:AH$443<>999),AH12:AH443),1),999) -> 999
AF11: =IFERROR(INDEX(Datenmatrix_Daten,MATCH(IF(AND($A$4=Akt_Jahr,Version_Frühjahr_Herbst="Frühjahr"),Akt_Jahr-1&"_"&$A11,$C11),Datenmatrix_Regionen,0),MATCH(AF$1,Datenmatrix_Indikatoren,0)),"") -> 
A12: =IFERROR(IF(Auswahl_Gebietsstruktur=1,INDEX(Agenturliste_mit_RD,ROW()-11),INDEX(Kreisliste_ohne_Einrücken,ROW()-11)),"") -> Deutschland | B12: =IF(IFERROR(IF(Auswahl_Gebietsstruktur=1,VLOOKUP(A12,Zuordnung_RD_AA,2,FALSE),VLOOKUP(A12,Zuordnung_BL_Kreise,2,FALSE)),"")=A12,"",IFERROR(IF(Auswahl_Gebietsstruktur=1,VLOOKUP(A12,Zuordnung_RD_AA,2,FALSE),VLOOKUP(A12,Zuordnung_BL_Kreise,2,FALSE)),"")) ->  | C12: =$A$4&"_"&A12 -> 2022_Deutschland | D12: =IFERROR(INDEX(Datenmatrix_Daten,MATCH($C12,Datenmatrix_Regionen,0),MATCH(D$1,Datenmatrix_Indikatoren,0)),"") -> 62.60824856 | E12: =IFERROR(INDEX(Datenmatrix_Daten,MATCH($C12,Datenmatrix_Regionen,0),MATCH(E$1,Datenmatrix_Indikatoren,0)),"") -> 55.35676182 | F12: 23.15537831 | G12: 59.19158453 | H12: 30.97210372 | I12: 5.3 | J12: 6.9 | K12: 5.6 | L12: 72.0206426 | M12: =IFERROR(INDEX(Datenmatrix_Daten,MATCH(IF(Version_Frühjahr_Herbst="Herbst",IF($A$4<Akt_Jahr,$C12,Akt_Jahr-1&"_"&$A12),IF($A$4<Akt_Jahr-1,$C12,Akt_Jahr-2&"_"&$A12)),Datenmatrix_Regionen,0),MATCH(M$1,Datenmatrix_Indikatoren,0)),"") -> 43.292 | N12: =IFERROR(INDEX(Datenmatrix_Daten,MATCH($C12,Datenmatrix_Regionen,0),MATCH(N$1,Datenmatrix_Indikatoren,0)),"") -> 29.74475286 | O12: 0.6907487271 | P12: 999 | Q12: =IFERROR(INDEX(Datenmatrix_Daten,MATCH(IF(AND($A$4=Akt_Jahr,Version_Frühjahr_Herbst="Frühjahr"),Akt_Jahr-1&"_"&$A12,$C12),Datenmatrix_Regionen,0),MATCH(Q$1,Datenmatrix_Indikatoren,0)),"") -> 10.40524988 | R12: 33.83480495 | S12: 36.46009816 | T12: =IFERROR(INDEX(Datenmatrix_Daten,MATCH(IF(AND($A$4=Akt_Jahr,Version_Frühjahr_Herbst="Frühjahr"),Akt_Jahr-1&"_"&$A12,$C12),Datenmatrix_Regionen,0),MATCH(T$1,Datenmatrix_Indikatoren,0)),"") -> 16.49890248 | U12: =IFERROR(INDEX(Datenmatrix_Daten,MATCH($C12,Datenmatrix_Regionen,0),MATCH(U$1,Datenmatrix_Indikatoren,0)),"") -> 37.89552083 | V12: 2.330054243 | W12: 24.17150211 | X12: 37.60289037 | Y12: 64.2809685 | Z12: 14.60925052 | AA12: =IFERROR(INDEX(Datenmatrix_Daten,MATCH($C12,Datenmatrix_Regionen,0),MATCH(AA$1,Datenmatrix_Indikatoren,0)),"") -> 7.959049566 | AB12: 6.831202126 | AC12: 12.23097141 | AD12: 64.03497879 | AE12: 27.78442428 | AF12: =IFERROR(INDEX(Datenmatrix_Daten,MATCH(IF(AND($A$4=Akt_Jahr),Akt_Jahr-1&"_"&$A12,$C12),Datenmatrix_Regionen,0),MATCH(AF$1,Datenmatrix_Indikatoren,0)),"") -> 6.226947249 | AG12: 4.186465432 | AH12: 4.524397428
A13: Westdeutschland | C13: =$A$4&"_"&A13 -> 2022_Westdeutschland | D13: 62.41945638 | E13: 55.15645836 | F13: 22.81444887 | G13: 58.38949896 | H13: 31.8074565 | I13: 5 | J13: 6.5 | K13: 5 | L13: 71.19669975 | M13: 45.289 | N13: 29.13716883 | O13: 2.142287816 | P13: 0.8498540395 | Q13: 10.92053567 | R13: 34.76905517 | S13: 37.52008793 | T13: 16.40613495 | U13: 37.8806938 | V13: 3.507606897 | W13: 24.58085328 | X13: 36.89537905 | Y13: 66.62312167 | Z13: 15.56134162 | AA13: 7.518790367 | AB13: 6.393110117 | AC13: 11.88564421 | AD13: 61.73152243 | AE13: 27.6685402 | AF13: 5.883985216 | AG13: 3.883044633 | AH13: 4.699084239
A14: Ostdeutschland | C14: =$A$4&"_"&A14 -> 2022_Ostdeutschland | D14: 63.42655259 | E14: 56.15743818 | F14: 24.61146538 | G14: 62.71133581 | H14: 27.58261785 | I14: 6.7 | J14: 8.6 | K14: 8.6 | L14: 75.66627865 | M14: 35.006 | N14: 32.42149463 | O14: 4.835283401 | P14: 6.727828793 | Q14: 9.002175816 | R14: 29.72411528 | S14: 31.56972685 | T14: 12.5967294 | U14: 37.94387144 | V14: -2.291388229 | W14: 22.46960747 | X14: 40.54439836 | Y14: 55.41975805 | Z14: 10.65089181 | AA14: 9.868260321 | AB14: 8.728699803 | AC14: 13.73699023 | AD14: 74.55281531 | AE14: 28.27935747 | AF14: 7.86562822 | AG14: 5.74235002 | AH14: 3.750673826
A15: Baden-Württemberg | C15: =$A$4&"_"&A15 -> 2022_Baden-Württemberg | D15: 63.97378607 | E15: 58.11245644 | F15: 22.86403699 | G15: 59.87007314 | H15: 30.35480986 | I15: 3.5 | J15: 4.7 | K15: 3.3 | L15: 64.69492529 | M15: 48.493 | N15: 27.17936676 | O15: 9.124005571 | P15: 6.844319657 | Q15: 14.75671128 | R15: 36.53576238 | S15: 39.77291201 | T15: 13.76365237 | U15: 31.66676938 | V15: 5.072384188 | W15: 25.02932336 | X15: 35.99163565 | Y15: 69.54205582 | Z15: 17.83857407 | AA15: 4.922808354 | AB15: 4.19036078 | AC15: 7.8733863 | AD15: 61.12263921 | AE15: 28.98538089 | AF15: 6.228057857 | AG15: 3.792953328 | AH15: 4.749909724
A16: Alb-Donau-Kreis | B16: Baden-Württemberg | C16: =$A$4&"_"&A16 -> 2022_Alb-Donau-Kreis | D16: 67.20159005 | E16: 60.65290442 | F16: 23.25505618 | G16: 61.87310988 | H16: 35.40606789 | I16: 2.3 | J16: 2.9 | K16: 2.4 | L16: 52.55742464 | M16: 34.107 | N16: 25.72794808 | O16: 36.9857399 | P16: 58.58426966 | Q16: 15.64631428 | R16: 20.54307916 | S16: 36.50026239 | T16: 14.59283195 | U16: 23.27742662 | V16: 6.435791897 | W16: 26.22878761 | X16: 35.50939371 | Y16: 73.8643634 | Z16: 15.52430905 | AA16: 2.633374939 | AB16: 2.098509391 | AC16: 4.559208768 | AD16: 57.63198758 | AE16: 26.14494382 | AF16: 7.352128248 | AG16: 0.4091706177 | AH16: 5.163531406
A17: Baden-Baden, Stadt | B17: Baden-Württemberg | C17: =$A$4&"_"&A17 -> 2022_Baden-Baden, Stadt | D17: 62.14231086 | E17: 56.76958353 | F17: 26.00995116 | G17: 59.01920602 | H17: 16.34922382 | I17: 5.6 | J17: 6.9 | K17: 5.3 | L17: 76.33106233 | M17: 55.158 | N17: 28.54529397 | O17: 67.7327782 | P17: 53.36193911 | Q17: 32.03119157 | R17: 26.1228867 | S17: 37.49598361 | T17: 17.02240578 | U17: 31.47282144 | V17: 4.477748667 | W17: 21.78693555 | X17: 41.90793512 | Y17: 51.98761403 | Z17: 23.85269619 | AA17: 7.06695582 | AB17: 6.135228446 | AC17: 11.19978437 | AD17: 58.49381018 | AE17: 29.09115808 | AF17: 4.063205418 | AG17: 3.943661972 | AH17: 4.825671089
A18: Biberach | B18: Baden-Württemberg | C18: 2022_Biberach | D18: 68.02459101 | E18: 60.48566682 | F18: 22.55422946 | G18: 62.95627886 | H18: 43.51240867 | I18: 2.1 | J18: 2.6 | K18: 2 | L18: 45.2394303 | M18: 57.384 | N18: 24.48244925 | O18: 29.98205675 | P18: 32.04874118 | Q18: 10.29374524 | R18: 41.52293372 | S18: 41.61595101 | T18: 11.24109168 | U18: 27.52253611 | V18: 9.537372966 | W18: 26.21675149 | X18: 34.86995976 | Y18: 75.18434684 | Z18: 12.8282481 | AA18: 2.626457737 | AB18: 2.220996409 | AC18: 4.16216244 | AD18: 60.36735608 | AE18: 26.38949386 | AF18: 6.593406593 | AG18: 0.8242664029 | AH18: 4.943877326
A19: Böblingen | B19: Baden-Württemberg | C19: 2022_Böblingen | D19: 66.77890113 | E19: 60.46072796 | F19: 22.1990871 | G19: 60.50668347 | H19: 19.71411477 | I19: 3.1 | J19: 4.1 | K19: 2.5 | L19: 62.13915538 | M19: 67.35 | N19: 22.00160798 | O19: 47.26752208 | P19: 43.75612614 | Q19: 17.25280833 | R19: 46.82369813 | S19: 47.84781282 | T19: 10.32699528 | U19: 28.51445422 | V19: 7.086563394 | W19: 25.40273205 | X19: 35.28961579 | Y19: 71.98358919 | Z19: 20.62038301 | AA19: 4.39107054 | AB19: 3.659204344 | AC19: 7.243906037 | AD19: 59.71802223 | AE19: 34.25532285 | AF19: 5.386904762 | AG19: 1.019709581 | AH19: 3.756868242
A20: Bodenseekreis | B20: Baden-Württemberg | C20: 2022_Bodenseekreis | D20: 66.74355091 | E20: 60.52168627 | F20: 24.36548223 | G20: 62.10036218 | H20: 39.27929224 | I20: 2.6 | J20: 3.4 | K20: 2.6 | L20: 54.74488742 | M20: 52.178 | N20: 27.93637678 | O20: 27.05432762 | P20: 25.23128769 | Q20: 36.35644957 | R20: 37.04503202 | S20: 44.06687625 | T20: 12.06064589 | U20: 24.08022483 | V20: 8.404154863 | W20: 23.96054097 | X20: 39.00732785 | Y20: 61.42574303 | Z20: 15.97444233 | AA20: 3.819961826 | AB20: 3.246885649 | AC20: 6.123107711 | AD20: 61.25833069 | AE20: 31.69356633 | AF20: 8.649173955 | AG20: 0.6479758773 | AH20: 4.621857491
A21: Breisgau-Hochschwarzwald | B21: Baden-Württemberg | C21: 2022_Breisgau-Hochschwarzwald | D21: 63.17736173 | E21: 56.89168045 | F21: 24.99723421 | G21: 61.50067737 | H21: 40.42608724 | I21: 2.9 | J21: 3.8 | K21: 2.7 | L21: 61.98945216 | M21: 31.965 | N21: 31.50875889 | O21: 35.56990846 | P21: 48.91119962 | Q21: 19.79211313 | R21: 18.50518099 | S21: 35.25114961 | T21: 17.84884584 | U21: 27.06701814 | V21: 8.180415573 | W21: 24.68142013 | X21: 38.78821106 | Y21: 63.63124117 | Z21: 13.96935706 | AA21: 4.158538264 | AB21: 3.519735032 | AC21: 6.628368022 | AD21: 62.13610351 | AE21: 26.32942435 | AF21: 4.178498986 | AG21: 1.388888889 | AH21: 5.392259051
A22: Calw | B22: Baden-Württemberg | C22: 2022_Calw | D22: =IFERROR(INDEX(Datenmatrix_Daten,MATCH($C22,Datenmatrix_Regionen,0),MATCH(D$1,Datenmatrix_Indikatoren,0)),"") -> 66.77326175 | E22: 59.99642005 | F22: 24.80333376 | G22: 61.73420898 | H22: 27.49208457 | I22: 3.4 | J22: 4.5 | K22: 3.3 | L22: 64.8935531 | M22: 30.696 | N22: =IFERROR(INDEX(Datenmatrix_Daten,MATCH($C22,Datenmatrix_Regionen,0),MATCH(N$1,Datenmatrix_Indikatoren,0)),"") -> 30.23372254 | O22: 31.44739741 | P22: 51.52159431 | Q22: 18.9536079 | R22: 23.49041678 | S22: 35.97884306 | T22: 16.79115234 | U22: 27.56430782 | V22: =IFERROR(INDEX(Datenmatrix_Daten,MATCH(IF(AND($A$4=Akt_Jahr,Version_Frühjahr_Herbst="Frühjahr"),Akt_Jahr-1&"_"&$A22,$C22),Datenmatrix_Regionen,0),MATCH(V$1,Datenmatrix_Indikatoren,0)),"") -> 1.107599849 | W22: 24.94642408 | X22: 37.95386023 | Y22: 65.728292 | Z22: 17.32973909 | AA22: 3.731133523 | AB22: 3.224689735 | AC22: 5.627268069 | AD22: 59.85130112 | AE22: 23.81397854 | AF22: 5.650557621 | AG22: 0.6444053896 | AH22: 5.263053365
A23: Emmendingen | B23: Baden-Württemberg | C23: 2022_Emmendingen | D23: 66.2331977 | E23: 60.67742103 | F23: 25.25387346 | G23: 64.09067972 | H23: 43.67441743 | I23: 2.6 | J23: 3.6 | K23: 3 | L23: 56.42967597 | M23: 35.668 | N23: 31.70731707 | O23: 33.71933647 | P23: 48.16440543 | Q23: 12.77138221 | R23: 27.32831939 | S23: 36.14663669 | T23: 15.51343253 | U23: 23.94402864 | V23: 9.103670053 | W23: 24.69063604 | X23: 38.17282276 | Y23: 64.68119006 | Z23: 12.96229152 | AA23: 3.772541379 | AB23: 3.185199393 | AC23: 5.995263825 | AD23: 63.73016646 | AE23: 24.79979085 | AF23: 7.186081694 | AG23: 1.636815494 | AH23: 5.227097498
A24: Enzkreis | B24: Baden-Württemberg | C24: 2022_Enzkreis | D24: 65.81967572 | E24: 59.91183504 | F24: 25.22722518 | G24: 61.31464896 | H24: 27.67107079 | I24: 2.7 | J24: 3.5 | K24: 2.6 | L24: 47.68465602 | M24: 31.553 | N24: 24.57292021 | O24: 46.66213586 | P24: 59.92817127 | Q24: 16.90267556 | R24: 23.59055945 | S24: 36.61430576 | T24: 16.31950388 | U24: 29.09520191 | V24: 3.115310793 | W24: 24.83212861 | X24: 38.44797962 | Y24: 64.58630299 | Z24: 14.74799542 | AA24: 3.493470766 | AB24: 2.92338755 | AC24: 5.561813179 | AD24: 60.2625395 | AE24: 27.76680072 | AF24: 5.144467935 | AG24: 0.6113658469 | AH24: 4.67209863
A25: Esslingen | B25: Baden-Württemberg | C25: 2022_Esslingen | D25: 66.15919085 | E25: 61.11379631 | F25: 23.05939483 | G25: 61.72129393 | H25: 26.4130922 | I25: 3.5 | J25: 4.6 | K25: 3.1 | L25: 62.92071786 | M25: 44.874 | N25: 25.25564025 | O25: 40.02486825 | P25: 43.0485562 | Q25: 14.35137805 | R25: 33.88591128 | S25: 41.63775392 | T25: 13.11315898 | U25: 33.96479503 | V25: 5.052261082 | W25: 24.5404701 | X25: 36.0656466 | Y25: 68.04389333 | Z25: 19.32098788 | AA25: 4.894948015 | AB25: 4.228393553 | AC25: 7.663490989 | AD25: 59.21645199 | AE25: 32.44632959 | AF25: 5.495181464 | AG25: 3.499770256 | AH25: 4.57354649
A26: Freiburg im Breisgau, Stadt | B26: Baden-Württemberg | C26: 2022_Freiburg im Breisgau, Stadt | D26: 54.97360967 | E26: 53.1064894 | F26: 18.98559371 | G26: 53.08369259 | H26: 43.50520261 | I26: 5 | J26: 6.5 | K26: 3.8 | L26: 86.23609167 | M26: 59.259 | N26: 37.81593103 | O26: 53.64306241 | P26: 30.59238146 | Q26: 14.92140885 | R26: 42.92093435 | S26: 40.33461957 | T26: =IFERROR(INDEX(Datenmatrix_Daten,MATCH(IF(AND($A$4=Akt_Jahr,Version_Frühjahr_Herbst="Frühjahr"),Akt_Jahr-1&"_"&$A26,$C26),Datenmatrix_Regionen,0),MATCH(T$1,Datenmatrix_Indikatoren,0)),"") -> 12.63687727 | U26: 33.03571429 | V26: 9.341285202 | W26: 27.29736597 | X26: 29.52612857 | Y26: 92.45155831 | Z26: 18.68129076 | AA26: 7.331962645 | AB26: 6.12960546 | AC26: 12.70460601 | AD26: 71.82849565 | AE26: 40.42710681 | AF26: 7.184466019 | AG26: 12.88204577 | AH26: 5.027320022
A27: Freudenstadt | B27: Baden-Württemberg | C27: 2022_Freudenstadt | D27: 68.059541 | E27: 60.17098657 | F27: 24.46424585 | G27: 62.47746859 | H27: 26.19361713 | I27: 3.1 | J27: 4 | K27: 3.1 | L27: 53.42862312 | M27: 42.484 | N27: 24.33910299 | O27: 27.37470599 | P27: 32.85772751 | Q27: 21.28307984 | R27: 29.45540076 | S27: 38.40462594 | T27: 16.85639807 | U27: 30.67866773 | V27: -1.154357598 | W27: 24.88445413 | X27: 37.87015945 | Y27: 65.70992699 | Z27: 14.55630385 | AA27: 3.593350189 | AB27: 3.164211212 | AC27: 5.166012312 | AD27: 58.53940709 | AE27: 22.24867922 | AF27: 8.21299639 | AG27: 1.897891232 | AH27: 6.210448566
A28: Göppingen | B28: Baden-Württemberg | C28: 2022_Göppingen | D28: 63.69880802 | E28: 57.35594964 | F28: 23.67433392 | G28: 58.21818375 | H28: 17.37310031 | I28: 4.1 | J28: 5.3 | K28: 3.9 | L28: 59.55748716 | M28: 33.468 | N28: 27.62205791 | O28: 24.39464921 | P28: 37.82746832 | Q28: 13.13492018 | R28: 29.01055483 | S28: 37.92087957 | T28: 14.77187345 | U28: 26.80240984 | V28: 1.580399018 | W28: 24.68331952 | X28: 37.66292289 | Y28: 65.5374507 | Z28: 19.07491493 | AA28: 5.594091315 | AB28: 4.683736403 | AC28: 9.048105588 | AD28: 57.90387956 | AE28: 24.91174613 | AF28: 5.776636714 | AG28: 2.260186757 | AH28: 5.101857467
A29: Heidelberg, Stadt | B29: Baden-Württemberg | C29: 2022_Heidelberg, Stadt | D29: 50.30984041 | E29: 49.78224571 | F29: 17.9180325 | G29: 48.15276548 | H29: 30.38182435 | I29: 4.6 | J29: 5.9 | K29: 3 | L29: 86.75876992 | M29: 58.819 | N29: 33.04481711 | O29: 67.74374766 | P29: 46.40026363 | Q29: 14.18846221 | R29: 43.99525613 | S29: 42.3151626 | T29: 11.81963849 | U29: 35.35508725 | V29: 13.4831775 | W29: 28.1291404 | X29: 28.54079237 | Y29: 98.55767155 | Z29: 20.89934863 | AA29: 4.858050376 | AB29: 4.119308151 | AC29: 8.624279375 | AD29: 67.26964387 | AE29: 50.07024299 | AF29: 2.255054432 | AG29: 14.82189816 | AH29: 4.247495749
A30: Heidenheim | B30: Baden-Württemberg | C30: 2022_Heidenheim | D30: 66.73620828 | E30: 58.88165694 | F30: 23.07265091 | G30: 60.74844125 | H30: 19.12524675 | I30: 3.8 | J30: 5.4 | K30: 3.7 | L30: 54.40327686 | M30: 39.145 | N30: 26.80692608 | O30: 27.99664867 | P30: 32.92721025 | Q30: 13.15213996 | R30: 37.17184882 | S30: 38.87393764 | T30: 15.85972793 | U30: 30.00176274 | V30: -0.102830426 | W30: 24.92613026 | X30: 37.41400378 | Y30: 66.6224615 | Z30: 18.48779946 | AA30: 5.090063761 | AB30: 4.361753418 | AC30: 7.814127226 | AD30: 59.38313378 | AE30: 23.64191746 | AF30: 5.656108597 | AG30: 2.342086586 | AH30: 4.556368203
A31: Heilbronn | B31: Baden-Württemberg | C31: 2022_Heilbronn | D31: 67.56530115 | E31: 59.39583629 | F31: 22.69055034 | G31: 61.77509917 | H31: 51.27043691 | I31: 2.9 | J31: 4 | K31: 2.7 | L31: 54.50237928 | M31: 60.922 | N31: 21.68726004 | O31: 41.03782512 | P31: 44.3964417 | Q31: 12.32706961 | R31: 42.98585951 | S31: 41.17785714 | T31: 12.04465774 | U31: 32.32303481 | V31: 7.21692974 | W31: 25.27775183 | X31: 35.60686475 | Y31: 70.99123163 | Z31: 16.64897547 | AA31: 4.154591821 | AB31: 3.545402182 | AC31: 6.500824802 | AD31: 58.75907472 | AE31: 25.74471615 | AF31: 7.372134039 | AG31: 1.905586834 | AH31: 4.553404539
A32: Heilbronn, Universitätsstadt | B32: Baden-Württemberg | C32: 2022_Heilbronn, Universitätsstadt | D32: =IFERROR(INDEX(Datenmatrix_Daten,MATCH($C32,Datenmatrix_Regionen,0),MATCH(D$1,Datenmatrix_Indikatoren,0)),"") -> 66.92520024 | E32: 58.43622177 | F32: 19.11548086 | G32: 61.17863412 | H32: 29.64993601 | I32: 4.9 | J32: 7.1 | K32: 4.5 | L32: 77.32020651 | M32: 60.292 | N32: =IFERROR(INDEX(Datenmatrix_Daten,MATCH($C32,Datenmatrix_Regionen,0),MATCH(N$1,Datenmatrix_Indikatoren,0)),"") -> 26.39105668 | O32: 63.19686237 | P32: 51.13315704 | Q32: 12.53993741 | R32: 33.91230106 | S32: 38.78604839 | T32: 16.45513553 | U32: 29.16123323 | V32: =IFERROR(INDEX(Datenmatrix_Daten,MATCH(IF(AND($A$4=Akt_Jahr,Version_Frühjahr_Herbst="Frühjahr"),Akt_Jahr-1&"_"&$A32,$C32),Datenmatrix_Regionen,0),MATCH(V$1,Datenmatrix_Indikatoren,0)),"") -> 5.526547326 | W32: 26.61025138 | X32: 32.35307869 | Y32: 82.2495183 | Z32: 29.19257562 | AA32: =IFERROR(INDEX(Datenmatrix_Daten,MATCH($C32,Datenmatrix_Regionen,0),MATCH(AA$1,Datenmatrix_Indikatoren,0)),"") -> 7.807649081 | AB32: 6.772177405 | AC32: 11.7728799 | AD32: 59.89101508 | AE32: 24.45028129 | AF32: 5.358490566 | AG32: =IFERROR(INDEX(Datenmatrix_Daten,MATCH(IF(AND($A$4=Akt_Jahr,Version_Frühjahr_Herbst="Frühjahr"),Akt_Jahr-1&"_"&$A32,$C32),Datenmatrix_Regionen,0),MATCH(AG$1,Datenmatrix_Indikatoren,0)),"") -> 8.34889802 | AH32: 5.464732419
A33: Hohenlohekreis | B33: Baden-Württemberg | C33: 2022_Hohenlohekreis | D33: 69.84071976 | E33: 62.02571176 | F33: 23.45032336 | G33: 64.29570799 | H33: 46.89520879 | I33: 2.8 | J33: 3.5 | K33: 2.4 | L33: 51.99986908 | M33: 55.218 | N33: 20.59603299 | O33: 38.63740508 | P33: 29.14791422 | Q33: 16.17536402 | R33: 47.52880335 | S33: 40.00394515 | T33: 10.02881612 | U33: 31.49021663 | V33: 4.871579868 | W33: 25.19576232 | X33: 36.27751753 | Y33: 69.45282928 | Z33: 13.7237861 | AA33: 2.634609542 | AB33: 2.323410377 | AC33: 3.838113637 | AD33: 57.38102023 | AE33: 21.92050225 | AF33: 6.647116325 | AG33: 1.886353051 | AH33: 5.314095521
A34: Karlsruhe | B34: Baden-Württemberg | C34: 2022_Karlsruhe | D34: 65.75932237 | E34: 59.17182705 | F34: 24.21333994 | G34: 61.3449551 | H34: 37.58940087 | I34: 3.2 | J34: 4.2 | K34: 3.6 | L34: 64.80370077 | M34: 38.5 | N34: 26.83608254 | O34: 41.08405868 | P34: 50.14654736 | Q34: 18.47414667 | R34: 33.57234159 | S34: 37.16791344 | T34: 17.90795784 | U34: 25.16240976 | V34: 5.821653946 | W34: 23.87943152 | X34: 38.02069013 | Y34: 62.80641261 | Z34: 15.61723928 | AA34: 3.933107739 | AB34: 3.340868224 | AC34: 6.372025179 | AD34: 62.65695241 | AE34: 28.39922805 | AF34: 6.196038598 | AG34: 1.114665116 | AH34: 4.379455131
A35: Karlsruhe, Stadt | B35: Baden-Württemberg | C35: 2022_Karlsruhe, Stadt | D35: 58.78177172 | E35: 56.00692651 | F35: 19.90271745 | G35: 56.71074292 | H35: 25.4128868 | I35: 4.2 | J35: 5.9 | K35: 4.3 | L35: 85.09681415 | M35: 72.016 | N35: 28.34406054 | O35: 58.53338001 | P35: 39.3923388 | Q35: 9.865301408 | R35: 43.55963698 | S35: 42.14914414 | T35: 11.13417594 | U35: 33.5578133 | V35: 8.218380933 | W35: 24.52714062 | X35: 32.43139935 | Y35: 75.62775924 | Z35: 20.08668414 | AA35: 5.925793282 | AB35: 5.155606743 | AC35: 9.94756766 | AD35: 65.19761706 | AE35: 41.0005755 | AF35: 6.318914334 | AG35: 10.90961705 | AH35: 4.591102449
A36: Konstanz | B36: Baden-Württemberg | C36: 2022_Konstanz | D36: 57.73940753 | E36: 54.11754573 | F36: 23.92870411 | G36: 56.50998627 | H36: 32.14665381 | I36: 3.5 | J36: 4.5 | K36: 3.3 | L36: 71.50901744 | M36: 38.64 | N36: 32.05025069 | O36: 14.90776772 | P36: 17.63549208 | Q36: 16.50560087 | R36: 26.60517848 | S36: 36.88374097 | T36: 17.54796475 | U36: 26.6460875 | V36: 6.507652207 | W36: 25.78409122 | X36: 36.82665227 | Y36: 70.01475734 | Z36: 17.42774329 | AA36: 5.014312271 | AB36: 4.109834354 | AC36: 8.778713834 | AD36: 62.18370675 | AE36: 26.71330319 | AF36: 5.267264924 | AG36: 5.182661367 | AH36: 5.000701951
A37: Lörrach | B37: Baden-Württemberg | C37: 2022_Lörrach | D37: 51.60371795 | E37: 45.92646517 | F37: 24.3037131 | G37: 51.1855898 | H37: 20.54811169 | I37: 4.2 | J37: 5.4 | K37: 3.1 | L37: 62.76338341 | M37: 34.919 | N37: 30.85492489 | O37: 18.51245085 | P37: 17.16717294 | Q37: 11.38032439 | R37: 26.37992741 | S37: 37.83504386 | T37: 16.11294974 | U37: 30.35794218 | V37: 5.272026636 | W37: 24.74863428 | X37: 37.31541838 | Y37: 66.32281065 | Z37: 18.0052097 | AA37: 5.393544772 | AB37: 4.586099167 | AC37: 8.431620026 | AD37: 61.55874597 | AE37: 21.36219736 | AF37: 4.978662873 | AG37: 0.6412291283 | AH37: 5.816725113
A38: Ludwigsburg | B38: Baden-Württemberg | C38: 2022_Ludwigsburg | D38: 66.42536611 | E38: 60.75098667 | F38: 22.49899843 | G38: 61.1242185 | H38: 31.47182475 | I38: 3 | J38: 3.7 | K38: 2.9 | L38: 64.68096009 | M38: 45.692 | N38: 25.77559744 | O38: 37.88673122 | P38: 45.42366374 | Q38: 10.13273906 | R38: 34.88587248 | S38: 41.21315451 | T38: 13.2777146 | U38: 30.9444545 | V38: 7.351013117 | W38: 25.08188897 | X38: 35.26334223 | Y38: 71.12737303 | Z38: 20.03281003 | AA38: 4.210325377 | AB38: 3.528374621 | AC38: 6.748660876 | AD38: 61.44504452 | AE38: 32.11823524 | AF38: 6.143414835 | AG38: 2.444772486 | AH38: 4.247437376
A39: Main-Tauber-Kreis | B39: Baden-Württemberg | C39: 2022_Main-Tauber-Kreis | D39: 67.0880116 | E39: 58.94016557 | F39: 24.75598782 | G39: 62.94935165 | H39: 29.35182243 | I39: 2.8 | J39: 3.9 | K39: 3.1 | L39: 54.26265462 | M39: 41.22 | N39: 27.91823844 | O39: 31.09746469 | P39: 32.0677004 | Q39: 15.4696141 | R39: 29.43591543 | S39: 36.28649002 | T39: 15.14087695 | U39: 26.34794562 | V39: -1.831573886 | W39: 23.65505214 | X39: 39.88051505 | Y39: 59.31481102 | Z39: 11.99821886 | AA39: 3.667726686 | AB39: 3.092256146 | AC39: 6.048818526 | AD39: 62.21247175 | AE39: 21.52845078 | AF39: 4.949784792 | AG39: 0.7579745236 | AH39: 5.477404607
A40: Mannheim, Universitätsstadt | B40: Baden-Württemberg | C40: 2022_Mannheim, Universitätsstadt | D40: 61.60242084 | E40: 55.62697287 | F40: 18.94376164 | G40: 57.17074193 | H40: 25.28337976 | I40: 7 | J40: 9.1 | K40: 5.3 | L40: 73.47084108 | M40: 69.151 | N40: 25.92461665 | O40: 60.83283382 | P40: 43.15232775 | Q40: 13.5942878 | R40: 43.75041626 | S40: 42.19094613 | T40: 13.66457507 | U40: 43.158553 | V40: 2.485872036 | W40: 25.62667562 | X40: 31.3524785 | Y40: 81.73731983 | Z40: 26.1996362 | AA40: 11.08986517 | AB40: 9.468152163 | AC40: 18.8628576 | AD40: 54.78173942 | AE40: 33.0264432 | AF40: 7.304015296 | AG40: 9.51764862 | AH40: 4.325436132
A41: Neckar-Odenwald-Kreis | B41: Baden-Württemberg | C41: 2022_Neckar-Odenwald-Kreis | D41: 64.47479508 | E41: 55.61056106 | F41: 24.69567789 | G41: 59.52243397 | H41: 15.9011038 | I41: 3.4 | J41: 4.3 | K41: 3.1 | L41: 58.41429822 | M41: 32.871 | N41: 29.1388183 | O41: 20.9775576 | P41: 39.25057086 | Q41: 13.53618631 | R41: 24.67382717 | S41: 35.41204388 | T41: 17.34722005 | U41: 33.58954185 | V41: -3.409060732 | W41: 23.98122246 | X41: 39.60534184 | Y41: 60.55047464 | Z41: 12.15453664 | AA41: 3.73472074 | AB41: 3.212133622 | AC41: 5.608914234 | AD41: 60.71341314 | AE41: 20.95346048 | AF41: 7.898773006 | AG41: 0.4030323385 | AH41: 5.303317735
A42: Ortenaukreis | B42: Baden-Württemberg | C42: 2022_Ortenaukreis | D42: =IFERROR(INDEX(Datenmatrix_Daten,MATCH($C42,Datenmatrix_Regionen,0),MATCH(D$1,Datenmatrix_Indikatoren,0)),"") -> 66.97609005 | E42: 59.87839613 | F42: 24.15102244 | G42: 63.02769191 | H42: 32.9324918 | I42: 3.2 | J42: 4.2 | K42: 3.2 | L42: 62.21541293 | M42: 43.589 | N42: =IFERROR(INDEX(Datenmatrix_Daten,MATCH($C42,Datenmatrix_Regionen,0),MATCH(N$1,Datenmatrix_Indikatoren,0)),"") -> 26.94700955 | O42: 18.18690455 | P42: 18.13683136 | Q42: 17.19439017 | R42: 30.76730007 | S42: 35.53942898 | T42: 17.43798496 | U42: 29.21469741 | V42: =IFERROR(INDEX(Datenmatrix_Daten,MATCH(IF(AND($A$4=Akt_Jahr,Version_Frühjahr_Herbst="Frühjahr"),Akt_Jahr-1&"_"&$A42,$C42),Datenmatrix_Regionen,0),MATCH(V$1,Datenmatrix_Indikatoren,0)),"") -> 6.117768545 | W42: 24.91847426 | X42: 37.56316689 | Y42: 66.33752244 | Z42: 14.6015366 | AA42: 4.542136469 | AB42: 3.744913658 | AC42: 7.530409648 | AD42: 63.77865371 | AE42: 22.04959024 | AF42: 5.898810912 | AG42: 2.12799446 | AH42: 4.884900223
A43: Ostalbkreis | B43: Baden-Württemberg | C43: 2022_Ostalbkreis | D43: 64.64236166 | E43: 57.35850022 | F43: 22.99189169 | G43: 58.78866512 | H43: 32.40293703 | I43: 3.1 | J43: 4.2 | K43: 2.7 | L43: 53.73798762 | M43: 47.566 | N43: 25.79709044 | O43: 22.63835606 | P43: 24.28178234 | Q43: 13.76309134 | R43: 38.58776161 | S43: 41.08460326 | T43: 11.57880249 | U43: 35.06020514 | V43: 0.90636444 | W43: 25.26663559 | X43: 36.83622677 | Y43: 68.59181247 | Z43: 13.19020996 | AA43: 4.119623347 | AB43: 3.544951785 | AC43: 6.517659258 | AD43: 59.61134737 | AE43: 26.33340772 | AF43: 6.10619469 | AG43: 1.843539596 | AH43: 5.01386287
A44: Pforzheim, Stadt | B44: Baden-Württemberg | C44: 2022_Pforzheim, Stadt | D44: 63.66972067 | E44: 59.17493051 | F44: 21.38305136 | G44: 58.00046679 | H44: 22.19528871 | I44: 6.1 | J44: 8 | K44: 5.3 | L44: 71.62427942 | M44: 45.08 | N44: 28.82502543 | O44: 53.10952865 | P44: 47.61967984 | Q44: 8.018449311 | R44: 37.87894201 | S44: 36.71650519 | T44: 17.4631994 | U44: 40.21659939 | V44: 7.417178481 | W44: 26.92160283 | X44: 33.57945702 | Y44: 80.17283548 | Z44: 30.08314496 | AA44: 11.06434556 | AB44: 9.279642238 | AC44: 17.42155121 | AD44: 50.40086155 | AE44: 20.93164403 | AF44: 8.333333333 | AG44: 5.645628257 | AH44: 5.28263515
A45: Rastatt | B45: Baden-Württemberg | C45: 2022_Rastatt | D45: 67.21400079 | E45: 60.13334149 | F45: 24.97532565 | G45: 61.39187397 | H45: 15.68359571 | I45: 3.6 | J45: 4.6 | K45: 3.5 | L45: 50.00812594 | M45: 43.57 | N45: 23.23260778 | O45: 35.81589867 | P45: 42.14671709 | Q45: 13.565082 | R45: 40.46718745 | S45: 40.36039216 | T45: 14.69364033 | U45: 26.36187444 | V45: 2.877745088 | W45: 23.66063639 | X45: 39.06230717 | Y45: 60.57152818 | Z45: 16.58687298 | AA45: 4.595603356 | AB45: 3.903895058 | AC45: 7.461352026 | AD45: 62.87942503 | AE45: 23.10984726 | AF45: 6.227667177 | AG45: 0.8200285768 | AH45: 4.118356164
A46: Ravensburg | B46: Baden-Württemberg | C46: 2022_Ravensburg | D46: 65.31036846 | E46: 59.29068301 | F46: 23.01958926 | G46: 61.65412993 | H46: 37.88336981 | I46: 2.4 | J46: 3.1 | K46: 2.2 | L46: 62.57666265 | M46: 50.287 | N46: 30.39549555 | O46: 27.98934499 | P46: 27.54463604 | Q46: 9.942440287 | R46: 32.20110538 | S46: 36.8427193 | T46: 14.2585224 | U46: 31.70171847 | V46: 5.526032277 | W46: 25.78108081 | X46: 35.92026427 | Y46: 71.77308222 | Z46: 13.26385046 | AA46: 3.56728096 | AB46: 3.046924241 | AC46: 5.561258014 | AD46: 59.23128945 | AE46: 26.5462986 | AF46: 6.050852913 | AG46: 2.368990905 | AH46: 5.154239407
A47: Rems-Murr-Kreis | B47: Baden-Württemberg | C47: 2022_Rems-Murr-Kreis | D47: 65.46247432 | E47: 60.34202127 | F47: 24.28490482 | G47: 60.72318215 | H47: 25.70114418 | I47: 3.6 | J47: 4.7 | K47: 3.2 | L47: 61.30754658 | M47: 37.724 | N47: 28.47160949 | O47: 32.11190118 | P47: 43.01467784 | Q47: 10.68827811 | R47: 30.17594851 | S47: 38.44732331 | T47: 14.76743502 | U47: 31.25371532 | V47: 3.519297481 | W47: 24.68333499 | X47: 37.34947282 | Y47: 66.08750573 | Z47: 17.6879118 | AA47: 5.498987633 | AB47: 4.675651611 | AC47: 8.622448436 | AD47: 59.78737438 | AE47: 29.14591756 | AF47: 6.490384615 | AG47: 0.6905943002 | AH47: 4.986366162
A48: Reutlingen | B48: Baden-Württemberg | C48: 2022_Reutlingen | D48: 65.69261881 | E48: 60.44556536 | F48: 24.052491 | G48: 61.50538876 | H48: 25.63509161 | I48: 3.6 | J48: 4.7 | K48: 3.4 | L48: 60.52222779 | M48: 43.229 | N48: 28.44070185 | O48: 29.74202694 | P48: 33.66354106 | Q48: 18.20400967 | R48: 31.37356434 | S48: 38.91872141 | T48: 13.71320491 | U48: 31.70762712 | V48: 3.420327674 | W48: 25.21940651 | X48: 36.90588832 | Y48: 68.33437062 | Z48: 17.62451319 | AA48: 4.858635351 | AB48: 4.081865978 | AC48: 7.997043693 | AD48: 61.15627823 | AE48: 27.83370365 | AF48: 5.849132715 | AG48: 1.273507395 | AH48: 4.874280096
A49: Rhein-Neckar-Kreis | B49: Baden-Württemberg | C49: 2022_Rhein-Neckar-Kreis | D49: 63.82797526 | E49: 57.15500699 | F49: 24.32031701 | G49: 60.1163231 | H49: 36.70440046 | I49: 3.8 | J49: 5 | K49: 3.6 | L49: 72.6822333 | M49: 39.115 | N49: 29.09980845 | O49: 42.753808 | P49: 53.92020504 | Q49: 12.78018547 | R49: 33.79421867 | S49: 40.30504119 | T49: 14.74207942 | U49: 32.9324259 | V49: 3.999865167 | W49: 24.06149613 | X49: 38.40213054 | Y49: 62.65666981 | Z49: 14.45767729 | AA49: 5.154242583 | AB49: 4.496090361 | AC49: 7.735757469 | AD49: 64.07785218 | AE49: 31.63762487 | AF49: 6.465942744 | AG49: 1.219027428 | AH49: 4.308924584
A50: Rottweil | B50: Baden-Württemberg | C50: =$A$4&"_"&A50 -> 2022_Rottweil | D50: 67.30205844 | E50: 59.62893655 | F50: 24.04085012 | G50: 62.52163725 | H50: 28.02180117 | I50: 2.6 | J50: 3.4 | K50: 3 | L50: 48.58536422 | M50: 44.973 | N50: 24.06054105 | O50: 31.33988133 | P50: 33.52275495 | Q50: 23.58529925 | R50: 30.43981093 | S50: 37.38383683 | T50: 14.95393266 | U50: 22.84712818 | V50: 0.3130540001 | W50: 25.40587546 | X50: 37.69259361 | Y50: 67.40283179 | Z50: 14.33730969 | AA50: 2.990790594 | AB50: 2.472822999 | AC50: 4.756933039 | AD50: 58.37511395 | AE50: 23.38978097 | AF50: 6.736526946 | AG50: 1.322020521 | AH50: 5.668626314
A51: Schwäbisch Hall | B51: Baden-Württemberg | C51: 2022_Schwäbisch Hall | D51: 67.50159298 | E51: 59.33438123 | F51: 22.81918031 | G51: 62.1474134 | H51: 41.46400231 | I51: 3.1 | J51: 3.8 | K51: 3.1 | L51: 53.2469597 | M51: 48.079 | N51: 25.23987419 | O51: 22.10135465 | P51: 23.73835728 | Q51: 19.60969818 | R51: 36.37003645 | S51: 37.59041927 | T51: 16.57185987 | U51: 28.62758863 | V51: 6.991243802 | W51: 25.65053196 | X51: 35.57243855 | Y51: 72.10788186 | Z51: 14.53405248 | AA51: 3.761368309 | AB51: 3.185729039 | AC51: 6.011620896 | AD51: 57.31156376 | AE51: 22.23495766 | AF51: 5.990286023 | AG51: 1.801080648 | AH51: 5.418298966
A52: Schwarzwald-Baar-Kreis | B52: Baden-Württemberg | C52: 2022_Schwarzwald-Baar-Kreis | D52: =IFERROR(INDEX(Datenmatrix_Daten,MATCH($C52,Datenmatrix_Regionen,0),MATCH(D$1,Datenmatrix_Indikatoren,0)),"") -> 65.68805412 | E52: 59.15057404 | F52: 24.14302731 | G52: 61.83643938 | H52: 19.82598309 | I52: 3.7 | J52: 4.6 | K52: 4.3 | L52: 56.25700919 | M52: 41.065 | N52: =IFERROR(INDEX(Datenmatrix_Daten,MATCH($C52,Datenmatrix_Regionen,0),MATCH(N$1,Datenmatrix_Indikatoren,0)),"") -> 25.97732139 | O52: 22.80095608 | P52: 24.90183968 | Q52: 13.28021257 | R52: 27.20527431 | S52: 36.4684715 | T52: 17.24255448 | U52: 28.88461611 | V52: =IFERROR(INDEX(Datenmatrix_Daten,MATCH(IF(AND($A$4=Akt_Jahr,Version_Frühjahr_Herbst="Frühjahr"),Akt_Jahr-1&"_"&$A52,$C52),Datenmatrix_Regionen,0),MATCH(V$1,Datenmatrix_Indikatoren,0)),"") -> 2.773518834 | W52: 24.73052431 | X52: 38.05443386 | Y52: 64.98723487 | Z52: 18.67060194 | AA52: =IFERROR(INDEX(Datenmatrix_Daten,MATCH($C52,Datenmatrix_Regionen,0),MATCH(AA$1,Datenmatrix_Indikatoren,0)),"") -> 4.865752305 | AB52: 4.04767946 | AC52: 7.844732253 | AD52: 59.73612728 | AE52: 23.39965589 | AF52: 6.618705036 | AG52: =IFERROR(INDEX(Datenmatrix_Daten,MATCH(IF(AND($A$4=Akt_Jahr,Version_Frühjahr_Herbst="Frühjahr"),Akt_Jahr-1&"_"&$A52,$C52),Datenmatrix_Regionen,0),MATCH(AG$1,Datenmatrix_Indikatoren,0)),"") -> 2.364475202 | AH52: 5.393809721
A53: Sigmaringen | B53: Baden-Württemberg | C53: 2022_Sigmaringen | D53: 65.33132355 | E53: 59.35847421 | F53: 25.15398789 | G53: 61.72469587 | H53: 29.34311524 | I53: 3 | J53: 3.6 | K53: 2.4 | L53: 56.19991522 | M53: 40.84 | N53: 28.23721766 | O53: 26.80002422 | P53: 36.39729753 | Q53: 18.90885948 | R53: 25.85131507 | S53: 36.74428571 | T53: 15.60903736 | U53: 25.13763488 | V53: 0.4948082618 | W53: 25.31164907 | X53: 37.71345444 | Y53: 67.11570035 | Z53: 13.4730874 | AA53: 2.972467792 | AB53: 2.60197364 | AC53: 4.257651381 | AD53: 57.69922879 | AE53: 21.04764412 | AF53: 7.027027027 | AG53: 3.557961907 | AH53: 5.485528481
A54: Stuttgart, Landeshauptstadt | B54: Baden-Württemberg | C54: 2022_Stuttgart, Landeshauptstadt | D54: 61.0443708 | E54: 55.08446673 | F54: 17.85406541 | G54: 58.13032474 | H54: 27.59163224 | I54: 4.5 | J54: 6.5 | K54: 4.5 | L54: 76.66889408 | M54: 87.513 | N54: 25.24300604 | O54: 61.70527897 | P54: 37.87055308 | Q54: 12.08812583 | R54: 52.7024017 | S54: 48.55477728 | T54: 8.720880918 | U54: 42.54213431 | V54: 6.800220734 | W54: 23.8390494 | X54: 30.80578006 | Y54: 77.38498864 | Z54: 27.01271203 | AA54: 7.442006728 | AB54: 6.436145786 | AC54: 12.51199584 | AD54: 64.36445895 | AE54: 41.85445335 | AF54: 6.861575179 | AG54: 9.1940555 | AH54: 3.832922275
A55: Tübingen | B55: Baden-Württemberg | C55: 2022_Tübingen | D55: 58.73770528 | E55: 57.87762934 | F55: 22.65746241 | G55: 55.67563287 | H55: 50.33973856 | I55: 2.9 | J55: 3.7 | K55: 2.2 | L55: 72.83569493 | M55: 37.241 | N55: 36.35010883 | O55: 39.47274908 | P55: 41.75202012 | Q55: 25.92665534 | R55: 40.51992182 | S55: 39.95492582 | T55: 12.15134603 | U55: 25.51094891 | V55: 7.541678793 | W55: 27.59629386 | X55: 32.76675988 | Y55: 84.22039275 | Z55: 15.18021675 | AA55: 3.761891522 | AB55: 3.115617485 | AC55: 6.644924788 | AD55: 65.87786809 | AE55: 37.61331407 | AF55: 6.149035956 | AG55: 7.580933789 | AH55: 4.910252255
A56: Tuttlingen | B56: Baden-Württemberg | C56: 2022_Tuttlingen | D56: 67.2899204 | E56: 60.88712072 | F56: 22.5285938 | G56: 62.58758424 | H56: 37.97325827 | I56: 3.6 | J56: 4.6 | K56: 4.6 | L56: 37.91696419 | M56: 49.56 | N56: 21.06643739 | O56: 29.42830912 | P56: 23.44770854 | Q56: 22.63188587 | R56: 33.37899477 | S56: 38.60790055 | T56: 13.92079419 | U56: 30.78175896 | V56: 7.091066321 | W56: 26.62415195 | X56: 34.77855767 | Y56: 76.55335278 | Z56: 19.68859349 | AA56: 4.138513453 | AB56: 3.43727434 | AC56: 6.595716581 | AD56: 57.58938129 | AE56: 21.45761157 | AF56: 8.383233533 | AG56: 0.7489952503 | AH56: 5.292776543
A57: Ulm, Universitätsstadt | B57: Baden-Württemberg | C57: 2022_Ulm, Universitätsstadt | D57: 63.57370594 | E57: 58.50675629 | F57: 18.45773018 | G57: 59.05090055 | H57: 34.39084263 | I57: 3.5 | J57: 4.8 | K57: 3.8 | L57: 75.19804634 | M57: 81.955 | N57: 25.65370183 | O57: 67.5382691 | P57: 41.48235843 | Q57: 22.73888774 | R57: 45.6340461 | S57: 41.21287832 | T57: 13.38929433 | U57: 21.59504734 | V57: 6.883316062 | W57: 25.99978282 | X57: 31.16080293 | Y57: 83.43746111 | Z57: 22.81661082 | AA57: 5.329941089 | AB57: 4.360272188 | AC57: 9.548734917 | AD57: 64.59203564 | AE57: 36.84191645 | AF57: 6.493506494 | AG57: 7.666263603 | AH57: 5.066905604
A58: Waldshut | B58: Baden-Württemberg | C58: 2022_Waldshut | D58: 51.49194158 | E58: 44.09877835 | F58: 23.77864321 | G58: 52.66489406 | H58: 22.09307445 | I58: 3.6 | J58: 4.3 | K58: 3 | L58: 63.01792218 | M58: 32.435 | N58: 30.89502723 | O58: 15.33121777 | P58: 18.41510484 | Q58: 21.9735938 | R58: 20.70065991 | S58: 35.31728814 | T58: 18.50937069 | U58: 30.55932496 | V58: 3.698124036 | W58: 24.77112879 | X58: 38.24858757 | Y58: 64.7635125 | Z58: 18.24109305 | AA58: 4.198568575 | AB58: 3.458221057 | AC58: 7.006260522 | AD58: 65.69222851 | AE58: 17.7022845 | AF58: 5.938914027 | AG58: -0.4439329168 | AH58: 6.239064952
A59: Zollernalbkreis | B59: Baden-Württemberg | C59: 2022_Zollernalbkreis | D59: 65.66133819 | E59: 58.01655871 | F59: 24.5988847 | G59: 62.16268632 | H59: 23.76464985 | I59: 3.7 | J59: 4.4 | K59: 3.5 | L59: 52.18938977 | M59: 38.834 | N59: 26.95299615 | O59: 21.54343046 | P59: 30.22428215 | Q59: 19.16475741 | R59: 29.59593183 | S59: 36.35686464 | T59: 14.99737162 | U59: 31.76366991 | V59: 0.2661865277 | W59: 24.14469428 | X59: 38.87494502 | Y59: 62.1086262 | Z59: 15.41697933 | AA59: 3.799045851 | AB59: 3.26242984 | AC59: 5.868257556 | AD59: 59.12063953 | AE59: 22.75350976 | AF59: 5.394431555 | AG59: 1.715291013 | AH59: 5.029002955
A60: Bayern | C60: 2022_Bayern | D60: 65.63070823 | E60: 56.19891677 | F60: 21.61892997 | G60: 61.95293284 | H60: 36.8017507 | I60: 3.1 | J60: 4.1 | K60: 3.2 | L60: 68.15833993 | M60: 50.643 | N60: 28.69390818 | O60: 7.463435433 | P60: 5.967534016 | Q60: 19.55652544 | R60: 35.11480444 | S60: 37.92443054 | T60: 15.25084181 | U60: 26.4822066 | V60: 7.22340839 | W60: 24.3623252 | X60: 36.16792475 | Y60: 67.3589247 | Z60: 15.50926059 | AA60: 3.847878307 | AB60: 3.275755838 | AC60: 6.093391569 | AD60: 60.94281646 | AE60: 29.36752448 | AF60: 5.127606922 | AG60: 4.519884857 | AH60: 4.375249187
A61: Aichach-Friedberg | B61: Bayern | C61: 2022_Aichach-Friedberg | D61: 65.00180171 | E61: 55.70423507 | F61: 22.90634013 | G61: 60.87182923 | H61: 41.50249926 | I61: 2.5 | J61: 3.2 | K61: 2.8 | L61: 60.68051948 | M61: 30.97 | N61: 30.92207792 | O61: 44.71428571 | P61: 63.29942488 | Q61: 27.04536234 | R61: 19.68051948 | S61: 33.5602017 | T61: 17.30554116 | U61: 21.73035692 | V61: 7.758580105 | W61: 25.48312872 | X61: 36.66608415 | Y61: 69.50054612 | Z61: 10.40019223 | AA61: 2.279136843 | AB61: 1.961974309 | AC61: 3.444053328 | AD61: 59.04273504 | AE61: 28.46755669 | AF61: 4.918032787 | AG61: 1.073492981 | AH61: 5.658709107
A62: Altötting | B62: Bayern | C62: 2022_Altötting | D62: =IFERROR(INDEX(Datenmatrix_Daten,MATCH($C62,Datenmatrix_Regionen,0),MATCH(D$1,Datenmatrix_Indikatoren,0)),"") -> 66.87490477 | E62: 56.60826761 | F62: 22.82704667 | G62: 60.29048821 | H62: 33.82783785 | I62: 2.9 | J62: 3.8 | K62: 3.1 | L62: 47.8217605 | M62: 60.222 | N62: =IFERROR(INDEX(Datenmatrix_Daten,MATCH($C62,Datenmatrix_Regionen,0),MATCH(N$1,Datenmatrix_Indikatoren,0)),"") -> 31.48446673 | O62: 35.56232213 | P62: 33.62148621 | Q62: 31.760294 | R62: 37.5524907 | S62: 40.02440994 | T62: 13.87612958 | U62: 26.49930887 | V62: =IFERROR(INDEX(Datenmatrix_Daten,MATCH(IF(AND($A$4=Akt_Jahr,Version_Frühjahr_Herbst="Frühjahr"),Akt_Jahr-1&"_"&$A62,$C62),Datenmatrix_Regionen,0),MATCH(V$1,Datenmatrix_Indikatoren,0)),"") -> 4.184862717 | W62: 24.6796956 | X62: 38.13599536 | Y62: 64.71496382 | Z62: 14.15226981 | AA62: 3.465965281 | AB62: 2.915656834 | AC62: 5.486104774 | AD62: 57.03422053 | AE62: 21.17204986 | AF62: 4.481327801 | AG62: 2.938271605 | AH62: 5.084644612
A63: Amberg, Stadt | B63: Bayern | C63: 2022_Amberg, Stadt | D63: 64.42370974 | E63: 58.08551282 | F63: 24.22247446 | G63: 62.30848848 | H63: 29.69138646 | I63: 4.2 | J63: 5.8 | K63: 4.4 | L63: 59.16323341 | M63: 64.142 | N63: 30.89217218 | O63: 64.24207984 | P63: 42.91146425 | Q63: 20.16005264 | R63: 41.36596107 | S63: 37.25785171 | T63: 14.93399876 | U63: 26.46248853 | V63: -4.67076068 | W63: 23.07800818 | X63: 39.44609019 | Y63: 58.50518536 | Z63: 14.14632999 | AA63: 5.923875962 | AB63: 5.048677338 | AC63: 9.522713321 | AD63: 57.45905268 | AE63: 22.7014756 | AF63: 7.936507937 | AG63: 5.865384615 | AH63: 5.266160374
A64: Amberg-Sulzbach | B64: Bayern | C64: 2022_Amberg-Sulzbach | D64: 65.86716276 | E64: 56.25498966 | F64: 25.08130987 | G64: 62.82649254 | H64: 33.43582535 | I64: 2.6 | J64: 3.3 | K64: 2.8 | L64: 57.89057871 | M64: 31.153 | N64: 29.3008098 | O64: 37.62591349 | P64: 57.84139006 | Q64: 28.91475169 | R64: 31.08170386 | S64: 35.18239726 | T64: 14.53097726 | U64: 23.14573845 | V64: -3.442154606 | W64: 23.66233866 | X64: 39.78225899 | Y64: 59.47962548 | Z64: 8.445363668 | AA64: 2.560584489 | AB64: 2.19312208 | AC64: 4.014290991 | AD64: 55.95720538 | AE64: 22.38583203 | AF64: 5.518394649 | AG64: 0.08136696501 | AH64: 4.368261899
A65: Ansbach | B65: Bayern | C65: 2022_Ansbach | D65: 67.39093556 | E65: 57.43245677 | F65: 22.99623131 | G65: 63.58536606 | H65: 30.6213679 | I65: 2.5 | J65: 2.9 | K65: 2.4 | L65: 50.21467239 | M65: 33.95 | N65: 28.26519818 | O65: 26.77026943 | P65: 43.57041696 | Q65: 21.47326925 | R65: 28.11741646 | S65: 32.03303738 | T65: 20.72511063 | U65: 26.63299132 | V65: 2.649179614 | W65: 24.85062797 | X65: 37.25473564 | Y65: 66.70461499 | Z65: 10.67791309 | AA65: 1.751594999 | AB65: 1.521582792 | AC65: 2.521274587 | AD65: 65.85259485 | AE65: 20.40855517 | AF65: 6.208559373 | AG65: 0.2922309337 | AH65: 4.78767369
A66: Ansbach, Stadt | B66: Bayern | C66: 2022_Ansbach, Stadt | D66: 64.79756525 | E66: 56.11172363 | F66: 22.31890609 | G66: 60.1396059 | H66: 20.28734637 | I66: 3.9 | J66: 5.6 | K66: 4.1 | L66: 74.08979709 | M66: 63.112 | N66: 32.61980141 | O66: 64.50928191 | P66: 44.29314047 | Q66: 18.38761692 | R66: 39.95538926 | S66: 36.67038462 | T66: 16.29066412 | U66: 23.83878547 | V66: 3.93117369 | W66: 25.30494304 | X66: 36.9673859 | Y66: 68.45207586 | Z66: 17.67840648 | AA66: 7.005361463 | AB66: 5.738933642 | AC66: 11.94455937 | AD66: 56.08744817 | AE66: 21.84992655 | AF66: 5.23255814 | AG66: 4.293381038 | AH66: 5.374716124
A67: Aschaffenburg | B67: Bayern | C67: 2022_Aschaffenburg | D67: 65.29214161 | E67: 55.40479492 | F67: 24.57447947 | G67: 60.5264717 | H67: 25.49995476 | I67: 3.2 | J67: 3.9 | K67: 3.6 | L67: 59.73754416 | M67: 34.724 | N67: 27.80301392 | O67: 46.18754056 | P67: 60.10009099 | Q67: 23.17378501 | R67: 19.06229721 | S67: 35.07877049 | T67: 20.38053775 | U67: 25.14110883 | V67: 1.133882748 | W67: 23.29196759 | X67: 39.97502232 | Y67: 58.26630289 | Z67: 11.37219001 | AA67: 3.946533938 | AB67: 3.225406631 | AC67: 6.927924246 | AD67: 65.40013781 | AE67: 28.18337526 | AF67: 3.516819572 | AG67: 0.1814882033 | AH67: 4.272633003
A68: Aschaffenburg, Stadt | B68: Bayern | C68: 2022_Aschaffenburg, Stadt | D68: 63.67793709 | E68: 54.3219239 | F68: 21.29356172 | G68: 58.20097589 | H68: 17.99553461 | I68: 5.4 | J68: 7.2 | K68: 6.8 | L68: 74.3293247 | M68: 78.658 | N68: 29.28685561 | O68: 70.77411488 | P68: 54.46938374 | Q68: 14.91121292 | R68: 31.15171138 | S68: 37.2003125 | T68: 17.53925603 | U68: 27.15585294 | V68: 5.5388829 | W68: 23.65137209 | X68: 36.28595881 | Y68: 65.18050748 | Z68: 19.84291315 | AA68: 8.509123495 | AB68: 7.226759595 | AC68: 13.8431131 | AD68: 59.0036452 | AE68: 29.42180219 | AF68: 6.603773585 | AG68: 4.98407345 | AH68: 5.221845135
A69: Augsburg | B69: Bayern | C69: 2022_Augsburg | D69: 65.11420893 | E69: 56.15723531 | F69: 22.8903906 | G69: 61.31469313 | H69: 57.54365049 | I69: 2.7 | J69: 3.5 | K69: 2.9 | L69: 63.42442847 | M69: 33.271 | N69: 29.1203359 | O69: 47.73279303 | P69: 61.01155463 | Q69: 23.35231176 | R69: 22.40110339 | S69: 33.11310811 | T69: 18.59423684 | U69: 20.29072768 | V69: 8.269499256 | W69: 25.17544061 | X69: 37.00323714 | Y69: 68.03577892 | Z69: 11.89054955 | AA69: 3.115648706 | AB69: 2.586067136 | AC69: 5.060597708 | AD69: 59.56553048 | AE69: 27.11918507 | AF69: 4.80369515 | AG69: -0.07740793984 | AH69: 4.785221722
A70: Augsburg, Stadt | B70: Bayern | C70: 2022_Augsburg, Stadt | D70: 62.67835127 | E70: 54.30455474 | F70: 18.15494346 | G70: 58.14862708 | H70: 24.12200168 | I70: 5.3 | J70: 7 | K70: 5.7 | L70: 77.68756024 | M70: 49.771 | N70: 32.30427332 | O70: 51.74908964 | P70: 43.69183364 | Q70: 19.58730945 | R70: 39.67950091 | S70: 38.99895911 | T70: 15.28112608 | U70: 30.79845454 | V70: 14.60239991 | W70: 24.47904383 | X70: 32.39478728 | Y70: 75.56476174 | Z70: 24.78698349 | AA70: 6.972482218 | AB70: 6.050471373 | AC70: 11.04812616 | AD70: 56.00308917 | AE70: 29.39405315 | AF70: 5.22875817 | AG70: 9.163147793 | AH70: 4.925043595
A71: Bad Kissingen | B71: Bayern | C71: 2022_Bad Kissingen | D71: 65.74032556 | E71: 54.4930322 | F71: 25.01563767 | G71: 62.9472143 | H71: 20.67578983 | I71: 3 | J71: 3.8 | K71: 2.9 | L71: 68.86095089 | M71: 35.004 | N71: 33.1746654 | O71: 27.61662093 | P71: 40.14826827 | Q71: 19.6174283 | R71: 21.4873719 | S71: 33.17965753 | T71: 20.65560052 | U71: 29.01692337 | V71: -3.167944586 | W71: 22.24984938 | X71: 42.82708694 | Y71: 51.95274993 | Z71: 8.027389138 | AA71: 3.358047104 | AB71: 2.85085702 | AC71: 5.354132053 | AD71: 64.62178791 | AE71: 21.78385266 | AF71: 5.046948357 | AG71: -0.5116959064 | AH71: 5.305626174
A72: Bad Tölz-Wolfratshausen | B72: Bayern | C72: 2022_Bad Tölz-Wolfratshausen | D72: =IFERROR(INDEX(Datenmatrix_Daten,MATCH($C72,Datenmatrix_Regionen,0),MATCH(D$1,Datenmatrix_Indikatoren,0)),"") -> 64.3157519 | E72: 55.79161884 | F72: 23.30382384 | G72: 62.86035101 | H72: 26.69780113 | I72: 2.1 | J72: 3 | K72: 2.2 | L72: 66.16495162 | M72: 32.567 | N72: =IFERROR(INDEX(Datenmatrix_Daten,MATCH($C72,Datenmatrix_Regionen,0),MATCH(N$1,Datenmatrix_Indikatoren,0)),"") -> 31.15240874 | O72: 27.42282292 | P72: 47.31438774 | Q72: 25.42137851 | R72: 14.72892029 | S72: 35.57117647 | T72: 18.60248345 | U72: 16.9952638 | V72: =IFERROR(INDEX(Datenmatrix_Daten,MATCH(IF(AND($A$4=Akt_Jahr,Version_Frühjahr_Herbst="Frühjahr"),Akt_Jahr-1&"_"&$A72,$C72),Datenmatrix_Regionen,0),MATCH(V$1,Datenmatrix_Indikatoren,0)),"") -> 7.359511908 | W72: 24.51529214 | X72: 37.92805244 | Y72: 64.63630626 | Z72: 14.2574762 | AA72: =IFERROR(INDEX(Datenmatrix_Daten,MATCH($C72,Datenmatrix_Regionen,0),MATCH(AA$1,Datenmatrix_Indikatoren,0)),"") -> 2.956648368 | AB72: 2.514116752 | AC72: 4.657604559 | AD72: 56.57164968 | AE72: 29.45432227 | AF72: 2.704678363 | AG72: =IFERROR(INDEX(Datenmatrix_Daten,MATCH(IF(AND($A$4=Akt_Jahr,Version_Frühjahr_Herbst="Frühjahr"),Akt_Jahr-1&"_"&$A72,$C72),Datenmatrix_Regionen,0),MATCH(AG$1,Datenmatrix_Indikatoren,0)),"") -> 1.175166297 | AH72: 5.064698746
A73: Bamberg | B73: Bayern | C73: 2022_Bamberg | D73: 67.11926512 | E73: 56.26080973 | F73: 23.46225676 | G73: 63.12696047 | H73: 53.26594977 | I73: 2.3 | J73: 3 | K73: 2.4 | L73: 58.62898227 | M73: 27.492 | N73: 28.43684145 | O73: 42.4866741 | P73: 65.12139285 | Q73: 25.63886897 | R73: 25.87083178 | S73: 31.8497205 | T73: 21.37250801 | U73: 23.43731133 | V73: 2.967029173 | W73: 24.29889621 | X73: 37.6691568 | Y73: 64.50607943 | Z73: 6.603318089 | AA73: 2.059493391 | AB73: 1.795002714 | AC73: 3.112913912 | AD73: 68.19290466 | AE73: 23.13693596 | AF73: 8.563899868 | AG73: -0.7325301205 | AH73: 4.498561651
A74: Bamberg, Stadt | B74: Bayern | C74: 2022_Bamberg, Stadt | D74: 57.41748401 | E74: 52.89948945 | F74: 19.52305657 | G74: 54.18667197 | H74: 19.6007029 | I74: 4.3 | J74: 5.8 | K74: 4.4 | L74: 71.13876547 | M74: 66.543 | N74: 34.10985821 | O74: 68.92602361 | P74: 43.46058279 | Q74: 15.20540813 | R74: 41.13398594 | S74: 37.09512346 | T74: 18.06495332 | U74: 29.04470891 | V74: 14.06087242 | W74: 24.07706261 | X74: 32.09232501 | Y74: 75.02436362 | Z74: 19.0192031 | AA74: 5.105753541 | AB74: 4.461791265 | AC74: 8.035356571 | AD74: 55.78828829 | AE74: 34.42511859 | AF74: 3.565640194 | AG74: 15.443577 | AH74: 4.281496933
A75: Bayreuth | B75: Bayern | C75: 2022_Bayreuth | D75: 66.16984894 | E75: 55.36091894 | F75: 24.5506033 | G75: 64.08755511 | H75: 19.73025048 | I75: 2.9 | J75: 3.6 | K75: 2.6 | L75: 58.96363051 | M75: 24.605 | N75: 31.60202768 | O75: 39.90585774 | P75: 66.59801661 | Q75: 30.57514183 | R75: 16.68812359 | S75: 32.45765152 | T75: 21.75315482 | U75: 26.30950676 | V75: -3.699275229 | W75: 22.7903956 | X75: 40.79960268 | Y75: 55.85935671 | Z75: 5.498462303 | AA75: 2.360403356 | AB75: 2.085635719 | AC75: 3.354035789 | AD75: 65.16953666 | AE75: 22.4530456 | AF75: 2.284710018 | AG75: 0.05823263939 | AH75: 4.461476402
A76: =IFERROR(IF(Auswahl_Gebietsstruktur=1,INDEX(Agenturliste_mit_RD,ROW()-11),INDEX(Kreisliste_ohne_Einrücken,ROW()-11)),"") -> Bayreuth, Stadt | B76: =IF(IFERROR(IF(Auswahl_Gebietsstruktur=1,VLOOKUP(A76,Zuordnung_RD_AA,2,FALSE),VLOOKUP(A76,Zuordnung_BL_Kreise,2,FALSE)),"")=A76,"",IFERROR(IF(Auswahl_Gebietsstruktur=1,VLOOKUP(A76,Zuordnung_RD_AA,2,FALSE),VLOOKUP(A76,Zuordnung_BL_Kreise,2,FALSE)),"")) -> Bayern | C76: =$A$4&"_"&A76 -> 2022_Bayreuth, Stadt | D76: 57.86628734 | E76: 53.68551147 | F76: 20.1012882 | G76: 57.10536693 | H76: 29.97810063 | I76: 4.4 | J76: 6 | K76: 4.1 | L76: 77.15588979 | M76: =IFERROR(INDEX(Datenmatrix_Daten,MATCH(IF(Version_Frühjahr_Herbst="Herbst",IF($A$4<Akt_Jahr,$C76,Akt_Jahr-1&"_"&$A76),IF($A$4<Akt_Jahr-1,$C76,Akt_Jahr-2&"_"&$A76)),Datenmatrix_Regionen,0),MATCH(M$1,Datenmatrix_Indikatoren,0)),"") -> 64.82 | N76: 33.54907641 | O76: 59.94986542 | P76: 33.82617858 | Q76: =IFERROR(INDEX(Datenmatrix_Daten,MATCH(IF(AND($A$4=Akt_Jahr,Version_Frühjahr_Herbst="Frühjahr"),Akt_Jahr-1&"_"&$A76,$C76),Datenmatrix_Regionen,0),MATCH(Q$1,Datenmatrix_Indikatoren,0)),"") -> 18.89760993 | R76: 35.71061661 | S76: =IFERROR(INDEX(Datenmatrix_Daten,MATCH(IF(AND($A$4=Akt_Jahr,Version_Frühjahr_Herbst="Frühjahr"),Akt_Jahr-1&"_"&$A76,$C76),Datenmatrix_Regionen,0),MATCH(S$1,Datenmatrix_Indikatoren,0)),"") -> 36.51710654 | T76: 15.82182602 | U76: =IFERROR(INDEX(Datenmatrix_Daten,MATCH($C76,Datenmatrix_Regionen,0),MATCH(U$1,Datenmatrix_Indikatoren,0)),"") -> 23.15958149 | V76: 0.6878657243 | W76: 25.52143452 | X76: 35.09918664 | Y76: 72.71232458 | Z76: 15.5128446 | AA76: 5.824161797 | AB76: 4.996518853 | AC76: 9.727359082 | AD76: 61.66180758 | AE76: 30.21311308 | AF76: =IFERROR(INDEX(Datenmatrix_Daten,MATCH(IF(AND($A$4=Akt_Jahr),Akt_Jahr-1&"_"&$A76,$C76),Datenmatrix_Regionen,0),MATCH(AF$1,Datenmatrix_Indikatoren,0)),"") -> 6.036036036 | AG76: 9.072934974 | AH76: 5.25358617
A77: Berchtesgadener Land | B77: Bayern | C77: 2022_Berchtesgadener Land | D77: 55.86788578 | E77: 48.36529609 | F77: 22.47150165 | G77: 55.53591611 | H77: 30.67473927 | I77: 3.3 | J77: 4.1 | K77: 2.4 | L77: 68.60119446 | M77: 36.551 | N77: 31.34524224 | O77: 18.90516618 | P77: 21.47178728 | Q77: 53.24460138 | R77: 15.22536758 | S77: 33.50632626 | T77: 20.56139297 | U77: 29.0994299 | V77: 4.95189449 | W77: 22.92810239 | X77: 39.10018854 | Y77: 58.63936529 | Z77: 18.18198705 | AA77: 3.424797347 | AB77: 2.865896164 | AC77: 5.816206 | AD77: 54.62387854 | AE77: 19.99688401 | AF77: 5.77136515 | AG77: 2.260327358 | AH77: 4.934644927
A78: Cham | B78: Bayern | C78: 2022_Cham | D78: 65.02236649 | E78: 51.48590997 | F78: 22.28559014 | G78: 60.82352173 | H78: 42.98701631 | I78: 2.7 | J78: 3.3 | K78: 2.7 | L78: 49.78060356 | M78: 39.829 | N78: 30.03492433 | O78: 25.30849825 | P78: 24.54691941 | Q78: 77.00052262 | R78: 27.65827886 | S78: 32.51604746 | T78: 23.19684813 | U78: 20.49115505 | V78: -0.5180674099 | W78: 23.25470647 | X78: 39.09657201 | Y78: 59.48016738 | Z78: 7.938214804 | AA78: 2.599922311 | AB78: 2.181398257 | AC78: 4.323802422 | AD78: 57.30383973 | AE78: 21.21195662 | AF78: 3.228621291 | AG78: 2.361262242 | AH78: 5.280557864
A79: Coburg | B79: Bayern | C79: 2022_Coburg | D79: 69.00653587 | E79: 59.85548473 | F79: 25.56891815 | G79: 66.93971226 | H79: 7.663165791 | I79: 3.4 | J79: 4.4 | K79: 4.2 | L79: 50.84137547 | M79: 29.102 | N79: 27.23757099 | O79: 46.5491412 | P79: 60.24052667 | Q79: 15.62047975 | R79: 27.61732223 | S79: 30.39643731 | T79: 27.8218509 | U79: 27.78692204 | V79: -4.623049548 | W79: 22.18982125 | X79: 41.48996016 | Y79: 53.48238745 | Z79: 6.814920267 | AA79: 3.53991536 | AB79: 3.054830268 | AC79: 5.459632642 | AD79: 69.60865945 | AE79: 20.3410917 | AF79: 8.870967742 | AG79: -0.9811046512 | AH79: 3.864275668
A80: Coburg, Stadt | B80: Bayern | C80: 2022_Coburg, Stadt | D80: 64.31960393 | E80: 56.37166613 | F80: 22.86209887 | G80: 61.57626158 | H80: 21.37819939 | I80: 5.5 | J80: 7.6 | K80: 7.1 | L80: 70.79364143 | M80: 98.551 | N80: 28.88489103 | O80: 70.93815436 | P80: 43.09337959 | Q80: 17.71666698 | R80: 48.96629015 | S80: 39.26026316 | T80: 15.88967411 | U80: 29.739431 | V80: -0.2574493445 | W80: 23.05339133 | X80: 38.9369533 | Y80: 59.20697275 | Z80: 14.44242627 | AA80: 8.128085224 | AB80: 6.890953285 | AC80: 13.44228504 | AD80: 70.99236641 | AE80: 27.04827985 | AF80: 4.860088365 | AG80: 6.150676869 | AH80: 5.255448793
A81: Dachau | B81: Bayern | C81: 2022_Dachau | D81: 68.79977128 | E81: 60.13429192 | F81: 21.35057791 | G81: 65.18649565 | H81: 62.54089034 | I81: 2.4 | J81: 3 | K81: 2.5 | L81: 73.33581257 | M81: 31.327 | N81: 31.0721239 | O81: 45.49252948 | P81: 65.46176928 | Q81: 27.37236388 | R81: 15.14448844 | S81: 34.7066129 | T81: 18.87305167 | U81: 17.58353785 | V81: 16.81772856 | W81: 25.14810615 | X81: 34.38738199 | Y81: 73.13178467 | Z81: 17.5223911 | AA81: 2.198587107 | AB81: 1.856789366 | AC81: 3.518118398 | AD81: 60.6456183 | AE81: 32.45582352 | AF81: 4.446012703 | AG81: 1.874222775 | AH81: 3.929341552
A82: Deggendorf | B82: Bayern | C82: 2022_Deggendorf | D82: =IFERROR(INDEX(Datenmatrix_Daten,MATCH($C82,Datenmatrix_Regionen,0),MATCH(D$1,Datenmatrix_Indikatoren,0)),"") -> 64.63346842 | E82: 52.48236059 | F82: 21.49507797 | G82: 59.79391145 | H82: 39.7020345 | I82: 2.8 | J82: 3.9 | K82: 2.6 | L82: 59.11054201 | M82: 44.232 | N82: =IFERROR(INDEX(Datenmatrix_Daten,MATCH($C82,Datenmatrix_Regionen,0),MATCH(N$1,Datenmatrix_Indikatoren,0)),"") -> 27.30486966 | O82: 32.60645211 | P82: 32.93284335 | Q82: 46.24439881 | R82: 29.26381775 | S82: 34.99572643 | T82: 16.53212918 | U82: 23.61069 | V82: =IFERROR(INDEX(Datenmatrix_Daten,MATCH(IF(AND($A$4=Akt_Jahr,Version_Frühjahr_Herbst="Frühjahr"),Akt_Jahr-1&"_"&$A82,$C82),Datenmatrix_Regionen,0),MATCH(V$1,Datenmatrix_Indikatoren,0)),"") -> 3.939842713 | W82: 24.1236151 | X82: 37.34083409 | Y82: 64.60384641 | Z82: 12.17562909 | AA82: 2.787503708 | AB82: 2.3832106 | AC82: 4.505629435 | AD82: 56.2567505 | AE82: 21.30086254 | AF82: 4.886267902 | AG82: 4.762388302 | AH82: 5.336212215
A83: Dillingen a.d.Donau | B83: Bayern | C83: 2022_Dillingen a.d.Donau | D83: 66.88475636 | E83: 57.70336074 | F83: 22.9849506 | G83: 62.0674222 | H83: 36.60850217 | I83: 2.3 | J83: 3 | K83: 2.3 | L83: 55.66223746 | M83: 38.613 | N83: 31.15302186 | O83: 28.03543363 | P83: 41.91902871 | Q83: 22.51397675 | R83: 32.69609944 | S83: 35.57089674 | T83: 14.94496735 | U83: 21.51116951 | V83: 3.76601893 | W83: 25.08450292 | X83: 37.11368291 | Y83: 67.58828807 | Z83: 11.99083837 | AA83: 3.022874869 | AB83: 2.448257901 | AC83: 5.26958676 | AD83: 58.71862616 | AE83: 21.09685163 | AF83: 6.454720617 | AG83: 0.3563596491 | AH83: 5.107496303
A84: Dingolfing-Landau | B84: Bayern | C84: 2022_Dingolfing-Landau | D84: 70.76319635 | E84: 53.93016367 | F84: 19.73695412 | G84: 62.81242003 | H84: 25.44796975 | I84: 2.6 | J84: 3.2 | K84: 2.4 | L84: 40.58445813 | M84: 69.339 | N84: 20.00112324 | O84: 41.97352903 | P84: 34.10019579 | Q84: 28.72305912 | R84: 56.65799277 | S84: 40.8526431 | T84: 11.75800768 | U84: 24.20687115 | V84: 9.139773247 | W84: 24.39036548 | X84: 35.54423464 | Y84: 68.61975149 | Z84: 15.2991845 | AA84: 2.105482314 | AB84: 1.794380627 | AC84: 3.334043838 | AD84: 55.43642151 | AE84: 18.18762237 | AF84: 4.530011325 | AG84: 4.972912905 | AH84: 4.031490775
A85: Donau-Ries | B85: Bayern | C85: 2022_Donau-Ries | D85: 68.11833373 | E85: 57.97995939 | F85: 22.34032132 | G85: 62.79738726 | H85: 40.36987996 | I85: 1.9 | J85: 2.5 | K85: 2.3 | L85: 53.03323179 | M85: 50.766 | N85: 25.12873645 | O85: 29.68438307 | P85: 25.80982236 | Q85: 29.33142031 | R85: 38.57918258 | S85: 37.42744094 | T85: 13.88867872 | U85: 20.6500027 | V85: 4.709511411 | W85: 24.98231695 | X85: 36.47301604 | Y85: 68.49534168 | Z85: 11.88665349 | AA85: 1.973310063 | AB85: 1.680207867 | AC85: 3.121503504 | AD85: 61.77516244 | AE85: 22.05623041 | AF85: 5.104241553 | AG85: 1.648028252 | AH85: 4.853367014
A86: Ebersberg | B86: Bayern | C86: 2022_Ebersberg | D86: 67.31801174 | E86: 60.11541948 | F86: 21.84946369 | G86: 64.62273372 | H86: 45.7286264 | I86: 2.1 | J86: 2.7 | K86: 1.8 | L86: 76.95116071 | M86: 35.768 | N86: 28.67442768 | O86: 54.3569608 | P86: 69.47877072 | Q86: 20.92576302 | R86: 22.27273771 | S86: 35.23767327 | T86: 16.87036175 | U86: 20.22937548 | V86: 18.51164292 | W86: 26.31682899 | X86: 34.21644078 | Y86: 76.91281847 | Z86: 16.15405571 | AA86: 2.291438517 | AB86: 1.94979469 | AC86: 3.603339203 | AD86: 62.27538309 | AE86: 37.49865345 | AF86: 4.709141274 | AG86: 1.317865429 | AH86: 4.532525495
A87: Eichstätt | B87: Bayern | C87: 2022_Eichstätt | D87: 65.46331079 | E87: 55.66448548 | F87: 21.04597072 | G87: 58.09756666 | H87: 60.17378711 | I87: 1.7 | J87: 2.2 | K87: 2.2 | L87: 63.85742838 | M87: 38.908 | N87: 28.63329209 | O87: 47.61587513 | P87: 62.39225612 | Q87: 32.89838912 | R87: 26.30865138 | S87: 35.95566519 | T87: 14.27613539 | U87: 15.03893783 | V87: 10.02815804 | W87: 26.93541607 | X87: 33.77067799 | Y87: 79.75977288 | Z87: 10.52060977 | AA87: 1.83490779 | AB87: 1.478965042 | AC87: 3.124881042 | AD87: 61.25229804 | AE87: 29.70139554 | AF87: 4.200988468 | AG87: 2.429071123 | AH87: 4.636862224
A88: Erding | B88: Bayern | C88: 2022_Erding | D88: 68.2451424 | E88: 59.60997549 | F88: 21.72061719 | G88: 65.07878029 | H88: 77.49420849 | I88: 2 | J88: 2.7 | K88: 2.1 | L88: 76.80276696 | M88: 32.58 | N88: 31.74392552 | O88: 44.0603859 | P88: 60.83054805 | Q88: 22.42326253 | R88: 26.09036131 | S88: 33.30577369 | T88: 21.24661612 | U88: 19.57457213 | V88: 15.09903001 | W88: 25.76933936 | X88: 33.71823828 | Y88: 76.42552123 | Z88: 13.98715415 | AA88: 2.225419828 | AB88: 1.860805555 | AC88: 3.701698214 | AD88: 59.01508227 | AE88: 29.41409887 | AF88: 2.956785444 | AG88: 2.199833626 | AH88: 4.692207431
A89: Erlangen, Stadt | B89: Bayern | C89: 2022_Erlangen, Stadt | D89: 64.71091301 | E89: 60.33669008 | F89: 18.55173753 | G89: 59.58253777 | H89: 32.63137342 | I89: 3.6 | J89: 4.4 | K89: 2.9 | L89: 74.22977435 | M89: 104.698 | N89: 29.88265231 | O89: 68.03116654 | P89: 41.12405358 | Q89: 10.6471595 | R89: 65.19105802 | S89: 51.99635945 | T89: 7.775016045 | U89: 41.17831619 | V89: 12.95095788 | W89: 26.06424049 | X89: 30.2148213 | Y89: 86.26309662 | Z89: 22.71666581 | AA89: 4.893659641 | AB89: 4.134926789 | AC89: 8.418306207 | AD89: 67.81264785 | AE89: 44.29237041 | AF89: 3.43980344 | AG89: 13.40907135 | AH89: 3.766093753
A90: Erlangen-Höchstadt | B90: Bayern | C90: 2022_Erlangen-Höchstadt | D90: 68.12480648 | E90: 58.9968914 | F90: 23.2122588 | G90: 64.1095092 | H90: 51.68216399 | I90: 2.4 | J90: 3 | K90: 2.1 | L90: 50.78206271 | M90: 39.461 | N90: 25.64274038 | O90: 58.79402586 | P90: 64.11221015 | Q90: 24.45154345 | R90: 47.04450884 | S90: 44.24640625 | T90: =IFERROR(INDEX(Datenmatrix_Daten,MATCH(IF(AND($A$4=Akt_Jahr,Version_Frühjahr_Herbst="Frühjahr"),Akt_Jahr-1&"_"&$A90,$C90),Datenmatrix_Regionen,0),MATCH(T$1,Datenmatrix_Indikatoren,0)),"") -> 12.14463551 | U90: 23.86549423 | V90: 8.050487014 | W90: 24.99822687 | X90: 37.37393081 | Y90: 66.8868014 | Z90: 10.51534108 | AA90: 2.484785678 | AB90: 2.130988095 | AC90: 3.815126439 | AD90: 69.75582056 | AE90: 34.28247122 | AF90: 4.283360791 | AG90: -0.117823479 | AH90: 3.779080485
A91: Forchheim | B91: Bayern | C91: 2022_Forchheim | D91: 66.73318012 | E91: 56.03356843 | F91: 24.17896518 | G91: 62.82307393 | H91: 53.98087027 | I91: 2.7 | J91: 3.5 | K91: 2.5 | L91: 59.25342666 | M91: 34.703 | N91: 32.77048702 | O91: 39.3088364 | P91: 59.57922573 | Q91: 22.09936704 | R91: 29.1717702 | S91: 35.58215134 | T91: 18.10744346 | U91: 25.38595846 | V91: 3.879587469 | W91: 23.99701563 | X91: 38.93325872 | Y91: 61.63628841 | Z91: 8.538508495 | AA91: 3.163585266 | AB91: 2.709015088 | AC91: 4.922882102 | AD91: 66.71014493 | AE91: 30.11530459 | AF91: 2.51450677 | AG91: -0.30723854 | AH91: 4.222320507
A92: Freising | B92: Bayern | C92: 2022_Freising | D92: =IFERROR(INDEX(Datenmatrix_Daten,MATCH($C92,Datenmatrix_Regionen,0),MATCH(D$1,Datenmatrix_Indikatoren,0)),"") -> 69.02177933 | E92: 61.18712753 | F92: 20.28888104 | G92: 64.57301707 | H92: 24.77480853 | I92: 2.4 | J92: 3 | K92: 2.4 | L92: 80.04348296 | M92: 48.716 | N92: =IFERROR(INDEX(Datenmatrix_Daten,MATCH($C92,Datenmatrix_Regionen,0),MATCH(N$1,Datenmatrix_Indikatoren,0)),"") -> 31.34016408 | O92: 55.23417136 | P92: 57.62812261 | Q92: 19.67117676 | R92: 40.07639548 | S92: 38.55378049 | T92: 13.03079631 | U92: 25.84413604 | V92: =IFERROR(INDEX(Datenmatrix_Daten,MATCH(IF(AND($A$4=Akt_Jahr,Version_Frühjahr_Herbst="Frühjahr"),Akt_Jahr-1&"_"&$A92,$C92),Datenmatrix_Regionen,0),MATCH(V$1,Datenmatrix_Indikatoren,0)),"") -> 14.8006598 | W92: 26.09348652 | X92: 31.27422967 | Y92: 83.43446602 | Z92: 20.00997652 | AA92: =IFERROR(INDEX(Datenmatrix_Daten,MATCH($C92,Datenmatrix_Regionen,0),MATCH(AA$1,Datenmatrix_Indikatoren,0)),"") -> 2.14617066 | AB92: 1.82993529 | AC92: 3.482729529 | AD92: 57.47646954 | AE92: 31.9751216 | AF92: 3.914141414 | AG92: =IFERROR(INDEX(Datenmatrix_Daten,MATCH(IF(AND($A$4=Akt_Jahr,Version_Frühjahr_Herbst="Frühjahr"),Akt_Jahr-1&"_"&$A92,$C92),Datenmatrix_Regionen,0),MATCH(AG$1,Datenmatrix_Indikatoren,0)),"") -> 6.715689464 | AH92: 3.373096507
A93: Freyung-Grafenau | B93: Bayern | C93: 2022_Freyung-Grafenau | D93: 63.12763177 | E93: 49.72375691 | F93: 23.44500517 | G93: 58.94893276 | H93: 42.97563504 | I93: 2.7 | J93: 3.3 | K93: 2.3 | L93: 53.7853517 | M93: 34.154 | N93: 30.11240029 | O93: 24.5177665 | P93: 36.7544233 | Q93: 76.65283127 | R93: 25.25380711 | S93: 32.00711864 | T93: 19.23714576 | U93: 21.6175045 | V93: -2.814346302 | W93: 22.5537926 | X93: 41.22795954 | Y93: 54.70509055 | Z93: 6.828443861 | AA93: 2.242727044 | AB93: 1.921094231 | AC93: 3.640364036 | AD93: 57.8246124 | AE93: 18.70857907 | AF93: 3.815580286 | AG93: 1.474875665 | AH93: 5.303609806
A94: Fürstenfeldbruck | B94: Bayern | C94: 2022_Fürstenfeldbruck | D94: 66.72943182 | E94: 59.44472598 | F94: 22.33206188 | G94: 63.31607563 | H94: 51.3085719 | I94: 2.9 | J94: 3.8 | K94: 3 | L94: 74.33265998 | M94: 29.784 | N94: 31.61388067 | O94: 44.48091768 | P94: 67.42000424 | Q94: 20.1026012 | R94: 14.70132025 | S94: 36.09854839 | T94: 15.62226604 | U94: 24.5101922 | V94: 10.9263551 | W94: 25.03023302 | X94: 36.69972745 | Y94: 68.20277631 | Z94: 17.29960471 | AA94: 3.73810824 | AB94: 3.138871949 | AC94: 6.118649384 | AD94: 60.28126188 | AE94: 35.32316169 | AF94: 3.368623677 | AG94: 2.874716737 | AH94: 4.4662329
A95: Fürth | B95: Bayern | C95: 2022_Fürth | D95: 66.69175862 | E95: 58.76573384 | F95: 24.42550183 | G95: 64.25273901 | H95: 32.88306867 | I95: 2.6 | J95: 3.3 | K95: 2.7 | L95: 63.84728796 | M95: 24.3 | N95: 33.49111508 | O95: 53.67812524 | P95: 76.5742232 | Q95: 18.2784288 | R95: 8.861643517 | S95: 32.0579661 | T95: 25.65932923 | U95: 33.36174242 | V95: 5.173472251 | W95: 23.51342111 | X95: 39.82388699 | Y95: 59.04351103 | Z95: 8.935733762 | AA95: 2.908021887 | AB95: 2.500444718 | AC95: 4.45848894 | AD95: 63.64887177 | AE95: 30.85791727 | AF95: 2.570379437 | AG95: -0.952132516 | AH95: 4.276212833
A96: Fürth, Stadt | B96: Bayern | C96: 2022_Fürth, Stadt | D96: 66.35175587 | E96: 58.07546891 | F96: 20.81057239 | G96: 62.87360379 | H96: 26.16177304 | I96: 4.9 | J96: 6.6 | K96: 5.3 | L96: 73.52418173 | M96: 38.951 | N96: 29.1802638 | O96: 66.41524182 | P96: 70.90048519 | Q96: 12.78658054 | R96: 33.22129946 | S96: 35.64734694 | T96: 18.42314155 | U96: 36.75561014 | V96: 15.87963534 | W96: 23.9087596 | X96: 33.7259288 | Y96: 70.89133034 | Z96: 21.8095912 | AA96: 7.401677993 | AB96: 6.313517849 | AC96: 11.52100717 | AD96: 58.04712961 | AE96: 29.68479625 | AF96: 8.714788732 | AG96: 4.8 | AH96: 4.669169861
A97: Garmisch-Partenkirchen | B97: Bayern | C97: 2022_Garmisch-Partenkirchen | D97: 63.41344504 | E97: 54.7642996 | F97: 24.77955129 | G97: 64.28674231 | H97: 32.37117811 | I97: 2.9 | J97: 3.6 | K97: 2.4 | L97: 83.46632208 | M97: 32.002 | N97: 35.97480213 | O97: 17.50282668 | P97: 28.77553298 | Q97: 34.50359066 | R97: 24.11565175 | S97: 32.3781003 | T97: 24.39172662 | U97: 19.92067784 | V97: 1.704617005 | W97: 22.29063485 | X97: 41.61188654 | Y97: 53.56795066 | Z97: 14.32350293 | AA97: 3.124578606 | AB97: 2.714686793 | AC97: 4.866526476 | AD97: 56.81676696 | AE97: 26.38408304 | AF97: 2.114427861 | AG97: 3.35436732 | AH97: 5.210918114
A98: Günzburg | B98: Bayern | C98: 2022_Günzburg | D98: 68.41543698 | E98: 58.99917485 | F98: 22.47044256 | G98: 63.93845186 | H98: 36.47871953 | I98: 1.9 | J98: 2.5 | K98: 1.9 | L98: 60.28572952 | M98: 49.611 | N98: 28.55695933 | O98: 29.91808376 | P98: 33.16540295 | Q98: 29.29117137 | R98: 33.96414166 | S98: 34.20317073 | T98: 17.00322203 | U98: 19.84985518 | V98: 6.257247856 | W98: 25.17369651 | X98: 35.96516847 | Y98: 69.99465755 | Z98: 15.8086879 | AA98: 2.22264986 | AB98: 1.911724591 | AC98: 3.372816968 | AD98: 58.04896613 | AE98: 20.37894594 | AF98: 7.217210271 | AG98: 2.312257008 | AH98: 4.865828653
A99: Haßberge | B99: Bayern | C99: 2022_Haßberge | D99: 66.23469948 | E99: 53.98218015 | F99: 24.07048747 | G99: 61.23679493 | H99: 25.69600706 | I99: 2.7 | J99: 3.3 | K99: 2.5 | L99: 49.03296009 | M99: 33.458 | N99: 30.14496823 | O99: 28.51275931 | P99: 44.47475381 | Q99: 16.35845661 | R99: 33.16016708 | S99: 34.56836806 | T99: 17.34273789 | U99: 26.96057125 | V99: -2.994052987 | W99: 23.65268756 | X99: 40.17344441 | Y99: 58.87642424 | Z99: 6.084674762 | AA99: 2.487453551 | AB99: 2.195209185 | AC99: 3.51966435 | AD99: 67.33018674 | AE99: 21.50358711 | AF99: 5.635359116 | AG99: -0.06759040216 | AH99: 4.988123515
A100: Hof | B100: Bayern | C100: 2022_Hof | D100: 64.95386439 | E100: 55.80063984 | F100: 26.54986175 | G100: 63.59053009 | H100: 23.48819351 | I100: 3.3 | J100: 4.1 | K100: 3.3 | L100: 52.63116984 | M100: 36.703 | N100: 26.82212722 | O100: 42.17644773 | P100: 42.38571465 | Q100: 34.39136718 | R100: 35.09521959 | S100: 30.17483696 | T100: 28.06448756 | U100: 25.24841915 | V100: -10.52452348 | W100: 21.44329679 | X100: 43.97974394 | Y100: 48.75721154 | Z100: 7.813804988 | AA100: 3.850551882 | AB100: 3.328868687 | AC100: 6.145901047 | AD100: 63.54916067 | AE100: 21.03005401 | AF100: 5.873261206 | AG100: 0.06498781478 | AH100: 4.371336163
A101: Hof, Stadt | B101: Bayern | C101: 2022_Hof, Stadt | D101: 64.86391879 | E101: 54.80524833 | F101: 22.24064171 | G101: 60.31163853 | H101: 12.06659877 | I101: 5.5 | J101: 8.3 | K101: 6.8 | L101: 79.91149044 | M101: 46.228 | N101: 34.64912281 | O101: 58.59412044 | P101: 44.01069519 | Q101: 14.9041915 | R101: 23.49454718 | S101: 31.15961847 | T101: 26.37190216 | U101: 24.12198475 | V101: -4.242349609 | W101: 24.36556927 | X101: 38.29518176 | Y101: 63.62567863 | Z101: 22.83307613 | AA101: 11.55408664 | AB101: 9.397876673 | AC101: 19.84425421 | AD101: 65.625 | AE101: 20.6631016 | AF101: 12.97935103 | AG101: 11.61473088 | AH101: 4.648342765
A102: Ingolstadt, Stadt | B102: Bayern | C102: 2022_Ingolstadt, Stadt | D102: =IFERROR(INDEX(Datenmatrix_Daten,MATCH($C102,Datenmatrix_Regionen,0),MATCH(D$1,Datenmatrix_Indikatoren,0)),"") -> 68.36838091 | E102: 56.30205441 | F102: 17.5594913 | G102: 60.6798267 | H102: 40.43887572 | I102: 3.3 | J102: 4.2 | K102: 3.8 | L102: 49.79793401 | M102: 130.509 | N102: =IFERROR(INDEX(Datenmatrix_Daten,MATCH($C102,Datenmatrix_Regionen,0),MATCH(N$1,Datenmatrix_Indikatoren,0)),"") -> 21.84241746 | O102: 60.39699457 | P102: 36.00842631 | Q102: 20.99355807 | R102: 60.70853307 | S102: 52.81999133 | T102: 9.117590169 | U102: 28.09868194 | V102: =IFERROR(INDEX(Datenmatrix_Daten,MATCH(IF(AND($A$4=Akt_Jahr,Version_Frühjahr_Herbst="Frühjahr"),Akt_Jahr-1&"_"&$A102,$C102),Datenmatrix_Regionen,0),MATCH(V$1,Datenmatrix_Indikatoren,0)),"") -> 16.25121585 | W102: 25.53871899 | X102: 31.51621298 | Y102: 81.03359057 | Z102: 22.28832368 | AA102: 5.735143418 | AB102: 4.771218519 | AC102: 9.469523511 | AD102: 57.48728157 | AE102: 34.46360303 | AF102: 4.0361865 | AG102: 9.683426443 | AH102: 4.431766625
A103: Kaufbeuren, Stadt | B103: Bayern | C103: 2022_Kaufbeuren, Stadt | D103: 65.52529183 | E103: 57.10004767 | F103: 22.99300553 | G103: 60.22994451 | H103: 37.28836889 | I103: 4.1 | J103: 5.5 | K103: 5.4 | L103: 74.42851414 | M103: 38.914 | N103: 34.614999 | O103: 52.19570884 | P103: 50.24010857 | Q103: 23.62713551 | R103: 31.40665731 | S103: 35.04642857 | T103: 20.04282375 | U103: 32.97558578 | V103: 8.555579262 | W103: 24.58071279 | X103: 37.8865304 | Y103: 64.87982016 | Z103: 19.43352551 | AA103: 5.024932738 | AB103: 4.490440073 | AC103: 6.999074503 | AD103: 53.14097882 | AE103: 20.11170268 | AF103: 6.485671192 | AG103: 2.155936208 | AH103: 5.882055943
A104: Kelheim | B104: Bayern | C104: 2022_Kelheim | D104: 66.81485393 | E104: 55.68053169 | F104: 21.20248617 | G104: 60.19653861 | H104: 36.01925218 | I104: 2.6 | J104: 3.2 | K104: 2.7 | L104: 55.61225718 | M104: 35.821 | N104: 28.96035433 | O104: 30.41908384 | P104: 48.12459582 | Q104: 34.49707533 | R104: 29.09996871 | S104: 34.70632325 | T104: 14.06015243 | U104: 25.05651191 | V104: 11.00700301 | W104: 25.52087891 | X104: 35.09598173 | Y104: 72.71738145 | Z104: 14.45652779 | AA104: 2.155635033 | AB104: 1.852961932 | AC104: 3.223295616 | AD104: 54.79948254 | AE104: 23.08866853 | AF104: 5.34150613 | AG104: 2.284372331 | AH104: 5.507085703
A105: Kempten (Allgäu), Stadt | B105: Bayern | C105: 2022_Kempten (Allgäu), Stadt | D105: 66.13896999 | E105: 57.54170236 | F105: 20.0086373 | G105: 63.26886071 | H105: 28.44472495 | I105: 3.3 | J105: 4.5 | K105: 3.8 | L105: 79.65965811 | M105: 53.778 | N105: 32.82126878 | O105: 58.32104896 | P105: 46.54508006 | Q105: 26.80728478 | R105: 25.81788088 | S105: 36.26933121 | T105: 16.80705931 | U105: 20.47887872 | V105: 14.17209909 | W105: 24.1578166 | X105: 35.78993948 | Y105: 67.4989032 | Z105: 19.1032888 | AA105: 4.503254332 | AB105: 3.817824282 | AC105: 7.129115199 | AD105: 57.85327425 | AE105: 24.36050761 | AF105: 6.103763988 | AG105: 5.770571827 | AH105: 5.528001653
A106: Kitzingen | B106: Bayern | C106: 2022_Kitzingen | D106: 66.56429117 | E106: 57.5616917 | F106: 23.70813928 | G106: 63.0400889 | H106: 39.0908033 | I106: 2.3 | J106: 3 | K106: 2.7 | L106: 58.62405533 | M106: 37.952 | N106: 29.08614295 | O106: 33.77394796 | P106: 41.53421552 | Q106: 31.81782509 | R106: 26.55400318 | S106: 34.77850427 | T106: 18.17276243 | U106: 18.58922285 | V106: 4.185428096 | W106: 24.01900329 | X106: 37.97441205 | Y106: 63.25049421 | Z106: 11.57999721 | AA106: 2.552157477 | AB106: 2.144007651 | AC106: 4.081983496 | AD106: 66.95986806 | AE106: 21.93390996 | AF106: 3.985171455 | AG106: 1.506619997 | AH106: 4.235076198
A107: Kronach | B107: Bayern | C107: 2022_Kronach | D107: 66.48272094 | E107: 55.64550711 | F107: 25.75709944 | G107: 64.68433596 | H107: 3.179811237 | I107: 3 | J107: 3.9 | K107: 3.3 | L107: 48.34327889 | M107: 35.295 | N107: 27.52434045 | O107: 27.11212312 | P107: 35.18460302 | Q107: 31.00253586 | R107: 22.63269472 | S107: 30.83387324 | T107: 25.61709708 | U107: 23.93864495 | V107: -9.887619099 | W107: 20.45095115 | X107: 43.76515597 | Y107: 46.72884331 | Z107: 7.164911964 | AA107: 2.803233877 | AB107: 2.41857887 | AC107: 4.437094767 | AD107: 68.6634349 | AE107: 19.03314821 | AF107: 4.504504505 | AG107: -1.116936403 | AH107: 4.351424855
A108: Kulmbach | B108: Bayern | C108: 2022_Kulmbach | D108: 67.29515246 | E108: 56.47828187 | F108: 25.20056479 | G108: 65.87266927 | H108: 22.97475069 | I108: 3.3 | J108: 4.2 | K108: 3.2 | L108: 57.68314987 | M108: 39.198 | N108: 28.74840402 | O108: 34.24893889 | P108: 38.89031513 | Q108: 19.99232162 | R108: 22.95800407 | S108: 33.81536932 | T108: 17.24563852 | U108: 28.23879118 | V108: -7.114245343 | W108: 21.32639247 | X108: 42.84956666 | Y108: 49.77038074 | Z108: 7.117636386 | AA108: 3.415925902 | AB108: 3.08084986 | AC108: 4.756346659 | AD108: 67.62402089 | AE108: 21.73480521 | AF108: 9.454545455 | AG108: -0.02038735984 | AH108: 5.234112566
A109: Landsberg am Lech | B109: Bayern | C109: 2022_Landsberg am Lech | D109: 62.36969958 | E109: 55.20397696 | F109: 24.26699068 | G109: 59.99539108 | H109: 53.26780221 | I109: 2.5 | J109: 3.3 | K109: 2.6 | L109: 66.67972192 | M109: 38.453 | N109: 31.72182512 | O109: 41.53040243 | P109: 52.47390646 | Q109: 19.27151517 | R109: 26.69147165 | S109: 37.32263926 | T109: 14.13926895 | U109: 19.15346535 | V109: 9.77159172 | W109: 24.72933871 | X109: 37.64386501 | Y109: 65.69287904 | Z109: 10.29488263 | AA109: 2.302507533 | AB109: 1.97790527 | AC109: 3.435452208 | AD109: 59.50459226 | AE109: 32.6726954 | AF109: 5.144193297 | AG109: -0.9868043603 | AH109: 4.935014643
A110: Landshut | B110: Bayern | C110: 2022_Landshut | D110: 67.02074919 | E110: 56.01079178 | F110: 21.9368294 | G110: 61.64157197 | H110: 54.86557358 | I110: 2.5 | J110: 3.1 | K110: 2.5 | L110: 53.65535977 | M110: 40.695 | N110: 25.77451947 | O110: 42.10222727 | P110: 57.35709777 | Q110: 29.68025475 | R110: 28.37950989 | S110: 35.22391419 | T110: 15.77022028 | U110: 28.29888162 | V110: 11.2571826 | W110: 25.45926821 | X110: 35.58956868 | Y110: 71.53575935 | Z110: 11.97162156 | AA110: 2.239322046 | AB110: 1.877745094 | AC110: 3.488441849 | AD110: 58.49516932 | AE110: 24.91424494 | AF110: 3.379867744 | AG110: 1.593054619 | AH110: 4.885724991
A111: Landshut, Stadt | B111: Bayern | C111: 2022_Landshut, Stadt | D111: 64.66312753 | E111: 54.87879984 | F111: 19.0477686 | G111: 60.12620254 | H111: 38.42702739 | I111: 4.3 | J111: 5.8 | K111: 4.4 | L111: 81.8503241 | M111: 60.954 | N111: 33.9913573 | O111: 64.92584954 | P111: 55.23381803 | Q111: 22.35547415 | R111: 38.83814575 | S111: 34.62408078 | T111: 18.03593066 | U111: 26.4105036 | V111: 22.95821927 | W111: 24.09584267 | X111: 33.88287369 | Y111: 71.11510932 | Z111: 23.14960839 | AA111: 5.767033261 | AB111: 4.866250625 | AC111: 9.689557855 | AD111: 56.23489609 | AE111: 28.99720486 | AF111: 3.243243243 | AG111: 12.20909416 | AH111: 5.14067809
A112: Lichtenfels | B112: Bayern | C112: 2022_Lichtenfels | D112: =IFERROR(INDEX(Datenmatrix_Daten,MATCH($C112,Datenmatrix_Regionen,0),MATCH(D$1,Datenmatrix_Indikatoren,0)),"") -> 68.08232881 | E112: 55.89780292 | F112: 24.01297999 | G112: 65.35555034 | H112: 14.13288288 | I112: 3.4 | J112: 4.3 | K112: 3.6 | L112: 65.053915 | M112: 37.46 | N112: =IFERROR(INDEX(Datenmatrix_Daten,MATCH($C112,Datenmatrix_Regionen,0),MATCH(N$1,Datenmatrix_Indikatoren,0)),"") -> 31.59489746 | O112: 36.65163155 | P112: 39.29826933 | Q112: 14.49887597 | R112: 33.62816266 | S112: 30.88085034 | T112: 26.64974364 | U112: 26.55406692 | V112: =IFERROR(INDEX(Datenmatrix_Daten,MATCH(IF(AND($A$4=Akt_Jahr,Version_Frühjahr_Herbst="Frühjahr"),Akt_Jahr-1&"_"&$A112,$C112),Datenmatrix_Regionen,0),MATCH(V$1,Datenmatrix_Indikatoren,0)),"") -> -3.89539946 | W112: 22.41266635 | X112: 40.87155418 | Y112: 54.83683407 | Z112: 8.457105513 | AA112: =IFERROR(INDEX(Datenmatrix_Daten,MATCH($C112,Datenmatrix_Regionen,0),MATCH(AA$1,Datenmatrix_Indikatoren,0)),"") -> 3.267307102 | AB112: 2.930655403 | AC112: 4.531989962 | AD112: 67.65957447 | AE112: 19.83166577 | AF112: 5.723905724 | AG112: =IFERROR(INDEX(Datenmatrix_Daten,MATCH(IF(AND($A$4=Akt_Jahr,Version_Frühjahr_Herbst="Frühjahr"),Akt_Jahr-1&"_"&$A112,$C112),Datenmatrix_Regionen,0),MATCH(AG$1,Datenmatrix_Indikatoren,0)),"") -> 0.8408940031 | AH112: 3.961130742
A113: Lindau (Bodensee) | B113: Bayern | C113: 2022_Lindau (Bodensee) | D113: 62.60643345 | E113: 56.01037491 | F113: 24.65818713 | G113: 60.67950688 | H113: 32.74101307 | I113: 2.4 | J113: 3.3 | K113: 2.1 | L113: 53.83905216 | M113: 38.769 | N113: 28.03200492 | O113: 30.94322203 | P113: 33.19233863 | Q113: 37.0497916 | R113: 26.89644561 | S113: 37.24009934 | T113: 15.23212704 | U113: 18.60339088 | V113: 4.940415518 | W113: 23.39165158 | X113: 39.37500749 | Y113: 59.40735778 | Z113: 15.32982385 | AA113: 2.939225254 | AB113: 2.494523085 | AC113: 4.758134283 | AD113: 60.99744246 | AE113: 25.24202437 | AF113: 6.227758007 | AG113: -0.3280953203 | AH113: 4.906383242
A114: Main-Spessart | B114: Bayern | C114: 2022_Main-Spessart | D114: 67.89307248 | E114: 57.22387234 | F114: 25.15411733 | G114: 63.74789227 | H114: 22.65502006 | I114: 1.8 | J114: 2.5 | K114: 2.1 | L114: 45.52625041 | M114: 40.895 | N114: 28.27095065 | O114: 28.24610798 | P114: 37.36780259 | Q114: 25.02884323 | R114: 36.22888374 | S114: 38.31951613 | T114: 13.43792333 | U114: 19.14148619 | V114: -3.113902056 | W114: 22.3956203 | X114: 41.79356889 | Y114: 53.58628348 | Z114: 8.723216814 | AA114: 2.424276086 | AB114: 1.978822405 | AC114: 4.314119482 | AD114: 68.80311105 | AE114: 23.00099431 | AF114: 2.607232969 | AG114: -0.04789845527 | AH114: 4.46402533
A115: Memmingen, Stadt | B115: Bayern | C115: 2022_Memmingen, Stadt | D115: 66.97824668 | E115: 58.40834405 | F115: 21.75768352 | G115: 60.79741278 | H115: 30.50690857 | I115: 3.2 | J115: 4.1 | K115: 3.8 | L115: 59.93242156 | M115: 64.737 | N115: 25.49637973 | O115: 62.4456959 | P115: 40.75692151 | Q115: 18.8540607 | R115: 42.27192277 | S115: 36.88867052 | T115: 14.20055248 | U115: 24.15184113 | V115: 11.55520958 | W115: 24.74649454 | X115: 36.29544017 | Y115: 68.18072579 | Z115: 22.6443073 | AA115: 3.99910997 | AB115: 3.49382744 | AC115: 5.887506119 | AD115: 52.36889693 | AE115: 21.29540259 | AF115: 6.167400881 | AG115: 4.642962092 | AH115: 6.750675068
A116: Miesbach | B116: Bayern | C116: 2022_Miesbach | D116: 63.89620099 | E116: 54.02638897 | F116: 23.31129013 | G116: 62.76995061 | H116: 48.0132581 | I116: 2.3 | J116: 2.6 | K116: 1.6 | L116: 69.20636613 | M116: 39.343 | N116: 29.69528938 | O116: 36.31734691 | P116: 42.62113743 | Q116: 39.35579578 | R116: 18.19999467 | S116: 35.15055256 | T116: 17.39112123 | U116: 24.07480058 | V116: 6.713699063 | W116: 23.5776449 | X116: 39.04051467 | Y116: 60.39276146 | Z116: 13.85254475 | AA116: 2.020635944 | AB116: 1.741418845 | AC116: 3.100761508 | AD116: 57.52414399 | AE116: 31.18672598 | AF116: 2.628918099 | AG116: 1.710545887 | AH116: 4.418277773
A117: Miltenberg | B117: Bayern | C117: 2022_Miltenberg | D117: 65.43011288 | E117: 55.59985449 | F117: 23.87600268 | G117: 60.0123847 | H117: 34.05110028 | I117: 3.1 | J117: 3.9 | K117: 3.3 | L117: 54.92364982 | M117: 38.408 | N117: 28.69797061 | O117: 30.57532556 | P117: 42.99708476 | Q117: 20.87413003 | R117: 27.2194434 | S117: 34.70800752 | T117: 19.14888101 | U117: 23.02950724 | V117: -1.172969188 | W117: 23.6477067 | X117: 39.41541187 | Y117: 59.99609184 | Z117: 12.72230138 | AA117: 3.568770435 | AB117: 3.055219337 | AC117: 5.371459361 | AD117: 64.96841527 | AE117: 22.79319898 | AF117: 4.571903574 | AG117: -0.4958677686 | AH117: 4.712796629
A118: Mühldorf a.Inn | B118: Bayern | C118: 2022_Mühldorf a.Inn | D118: 66.00217028 | E118: 54.82386883 | F118: 21.48535484 | G118: 61.23110875 | H118: 49.94280331 | I118: 3.2 | J118: 4 | K118: 3.2 | L118: 56.51393439 | M118: 37.618 | N118: 28.99968586 | O118: 31.39837544 | P118: 41.56793887 | Q118: 20.78011751 | R118: 27.1821568 | S118: 34.84639785 | T118: 18.33095336 | U118: 31.95703125 | V118: 8.066348147 | W118: 25.04546289 | X118: 35.88565041 | Y118: 69.7924173 | Z118: 14.73915147 | AA118: 3.560027532 | AB118: 3.020324078 | AC118: 5.571417695 | AD118: 57.60323661 | AE118: 22.41538996 | AF118: 7.431192661 | AG118: 2.503128911 | AH118: 5.143931593
A119: München | B119: Bayern | C119: 2022_München | D119: 65.95886529 | E119: 59.59078205 | F119: 21.30411198 | G119: 63.72831004 | H119: 58.77706685 | I119: 2.5 | J119: 3.1 | K119: 2.3 | L119: 78.97576585 | M119: 119.496 | N119: 22.15733139 | O119: 78.66172243 | P119: 64.59634314 | Q119: 10.11184776 | R119: 35.65008179 | S119: 47.80373418 | T119: 8.851737012 | U119: 33.78003055 | V119: 15.14494629 | W119: 25.97825171 | X119: 34.90938211 | Y119: 74.41624611 | Z119: 20.19865689 | AA119: 3.222109244 | AB119: 2.704176279 | AC119: 5.248452877 | AD119: 69.16383082 | AE119: 43.09377646 | AF119: 2.941176471 | AG119: 3.937450782 | AH119: 2.732757508
A120: München, Landeshauptstadt | B120: Bayern | C120: 2022_München, Landeshauptstadt | D120: 66.37323478 | E120: 58.1445504 | F120: 16.71225884 | G120: 63.3056092 | H120: 41.66519655 | I120: 4.3 | J120: 5.8 | K120: 4.5 | L120: 85.10965981 | M120: 86.529 | N120: 25.98180816 | O120: 47.57605301 | P120: 29.06598295 | Q120: 15.56342514 | R120: 46.84601646 | S120: 48.92455723 | T120: 9.143215755 | U120: 28.42955762 | V120: 20.06974804 | W120: 24.43274043 | X120: 29.10866908 | Y120: 83.93630214 | Z120: 27.94244726 | AA120: 5.758406423 | AB120: 4.812938527 | AC120: 9.900252589 | AD120: 62.33028035 | AE120: 46.48022184 | AF120: 5.643160879 | AG120: 12.54092063 | AH120: 2.96480915
A121: Neuburg-Schrobenhausen | B121: Bayern | C121: 2022_Neuburg-Schrobenhausen | D121: 67.33453693 | E121: 55.8385568 | F121: 21.40640221 | G121: 61.72112794 | H121: 39.44078673 | I121: 2.2 | J121: 2.8 | K121: 2.6 | L121: 54.24797538 | M121: 40.661 | N121: 27.87257568 | O121: 36.41634044 | P121: 51.84748873 | Q121: 26.33882908 | R121: 24.28951379 | S121: 35.54838235 | T121: 15.70912878 | U121: 18.84647678 | V121: 9.624812187 | W121: 25.71805877 | X121: 35.52127415 | Y121: 72.40184758 | Z121: 12.50137559 | AA121: 2.4788275 | AB121: 2.041803816 | AC121: 4.135482318 | AD121: 57.85771383 | AE121: 23.62656034 | AF121: 4.112337011 | AG121: 1.922028353 | AH121: 5.221892596
A122: Neumarkt i.d.OPf. | B122: Bayern | C122: 2022_Neumarkt i.d.OPf. | D122: =IFERROR(INDEX(Datenmatrix_Daten,MATCH($C122,Datenmatrix_Regionen,0),MATCH(D$1,Datenmatrix_Indikatoren,0)),"") -> 66.17112805 | E122: 55.50047732 | F122: 22.33804914 | G122: 62.41648383 | H122: 46.57379622 | I122: 2 | J122: 2.5 | K122: 1.9 | L122: 57.06235913 | M122: 42.175 | N122: =IFERROR(INDEX(Datenmatrix_Daten,MATCH($C122,Datenmatrix_Regionen,0),MATCH(N$1,Datenmatrix_Indikatoren,0)),"") -> 28.6269722 | O122: 25.97295267 | P122: 34.83577397 | Q122: 34.31615279 | R122: 31.459429 | S122: 36.02060062 | T122: 15.72084099 | U122: 19.91815196 | V122: =IFERROR(INDEX(Datenmatrix_Daten,MATCH(IF(AND($A$4=Akt_Jahr,Version_Frühjahr_Herbst="Frühjahr"),Akt_Jahr-1&"_"&$A122,$C122),Datenmatrix_Regionen,0),MATCH(V$1,Datenmatrix_Indikatoren,0)),"") -> 7.365507375 | W122: 24.87652622 | X122: 36.5033385 | Y122: 68.1486331 | Z122: 11.05542923 | AA122: 1.929398934 | AB122: 1.640487922 | AC122: 2.994862872 | AD122: 58.71221138 | AE122: 24.32034417 | AF122: 3.151421983 | AG122: 1.673803036 | AH122: 5.646168472
A123: Neustadt a.d.Aisch-Bad Windsheim | B123: Bayern | C123: 2022_Neustadt a.d.Aisch-Bad Windsheim | D123: 67.31555451 | E123: 57.61265288 | F123: 23.93736018 | G123: 63.82723086 | H123: 40.83173489 | I123: 2.1 | J123: 2.7 | K123: 2.3 | L123: 62.834705 | M123: 33.185 | N123: 32.911209 | O123: 26.4315521 | P123: 43.80136 | Q123: 24.51966825 | R123: 18.77825432 | S123: 31.4272973 | T123: 24.27782422 | U123: 24.12233324 | V123: 3.324698187 | W123: 24.2248531 | X123: 38.5680958 | Y123: 62.81060188 | Z123: 10.50114711 | AA123: 2.926961905 | AB123: 2.354005097 | AC123: 5.16463227 | AD123: 65.98264932 | AE123: 21.5540346 | AF123: 6.134969325 | AG123: 0.5663430421 | AH123: 4.735045702
A124: Neustadt a.d.Waldnaab | B124: Bayern | C124: 2022_Neustadt a.d.Waldnaab | D124: 64.08092622 | E124: 53.50047031 | F124: 24.0117788 | G124: 61.8951867 | H124: 38.70994835 | I124: 2.9 | J124: 3.7 | K124: 3.1 | L124: 50.36783628 | M124: 36.85 | N124: 25.54872695 | O124: 41.88792347 | P124: 52.14114594 | Q124: 33.59944423 | R124: 35.06403076 | S124: 33.73988372 | T124: 18.28887384 | U124: 29.54998427 | V124: -4.123659836 | W124: 24.13969194 | X124: 39.15313588 | Y124: 61.65455562 | Z124: 7.427517352 | AA124: 2.839277553 | AB124: 2.411111789 | AC124: 4.242769468 | AD124: 55.86471176 | AE124: 21.53873029 | AF124: 6.039325843 | AG124: -0.01472320377 | AH124: 5.854673785
A125: Neu-Ulm | B125: Bayern | C125: 2022_Neu-Ulm | D125: 67.95473578 | E125: 60.19096254 | F125: 21.86063407 | G125: 62.45296033 | H125: 33.40967535 | I125: 2.2 | J125: 3 | K125: 1.8 | L125: 60.67674608 | M125: 38.284 | N125: 26.26118122 | O125: 44.04873054 | P125: 53.51922137 | Q125: 17.65791113 | R125: 31.45498901 | S125: 37.76120861 | T125: 14.95282948 | U125: 19.0513948 | V125: 10.42800223 | W125: 25.17167798 | X125: 35.35097686 | Y125: 71.20504217 | Z125: 17.26368297 | AA125: 2.848834818 | AB125: 2.473902271 | AC125: 4.316314721 | AD125: 57.94425706 | AE125: 25.99301041 | AF125: 8.912280702 | AG125: 4.785005513 | AH125: 4.557264447
A126: Nürnberg, Stadt | B126: Bayern | C126: 2022_Nürnberg, Stadt | D126: 66.6450597 | E126: 57.50579589 | F126: 19.04612461 | G126: 62.05430626 | H126: 25.74197982 | I126: 5.4 | J126: 7.5 | K126: 6 | L126: 80.65940832 | M126: 62.997 | N126: 29.08753369 | O126: 52.30346855 | P126: 33.9261274 | Q126: 8.211440943 | R126: 43.47156867 | S126: 38.6536149 | T126: 17.53302649 | U126: 32.50441872 | V126: 4.765071499 | W126: 24.4049053 | X126: 33.42529817 | Y126: 73.01327629 | Z126: 26.11476294 | AA126: 9.386079606 | AB126: 8.051848353 | AC126: 14.20419386 | AD126: 59.31211123 | AE126: 30.86539216 | AF126: 8.21458508 | AG126: 11.69881455 | AH126: 4.072798727
A127: Nürnberger Land | B127: Bayern | C127: 2022_Nürnberger Land | D127: 66.35788861 | E127: 57.58008433 | F127: 24.09083496 | G127: 63.55470179 | H127: 26.87361617 | I127: 2.4 | J127: 3.2 | K127: 3 | L127: 59.96227679 | M127: 33.743 | N127: 31.57115408 | O127: 41.07775565 | P127: 54.61513372 | Q127: 18.64991252 | R127: 28.36820674 | S127: 35.37446494 | T127: 16.97177184 | U127: 23.61106038 | V127: 2.539358272 | W127: 23.33593954 | X127: 39.54536241 | Y127: 59.01055931 | Z127: 10.28291779 | AA127: 2.89036336 | AB127: 2.471426471 | AC127: 4.562529133 | AD127: 67.89357872 | AE127: 29.63959556 | AF127: 6.068601583 | AG127: -0.9935243502 | AH127: 4.235371307
A128: Oberallgäu | B128: Bayern | C128: 2022_Oberallgäu | D128: 65.33658133 | E128: 56.04234376 | F128: 23.91844853 | G128: 63.25636929 | H128: 45.76947843 | I128: 2.3 | J128: 2.7 | K128: 1.8 | L128: 62.41364078 | M128: 35.292 | N128: 30.90025621 | O128: 29.28173867 | P128: 39.79325829 | Q128: 25.70381487 | R128: 23.12571782 | S128: 34.20443289 | T128: 19.38726631 | U128: 25.87804175 | V128: 5.604390493 | W128: 23.46264675 | X128: 39.64339193 | Y128: 59.18425647 | Z128: 9.993582565 | AA128: 2.021791952 | AB128: 1.759652304 | AC128: 3.038973668 | AD128: 56.51534258 | AE128: 25.09078854 | AF128: 2.373581011 | AG128: 0.0651102223 | AH128: 5.609653578
A129: Ostallgäu | B129: Bayern | C129: 2022_Ostallgäu | D129: 64.92877416 | E129: 55.64753227 | F129: 22.9825545 | G129: 60.89114892 | H129: 44.05829906 | I129: 2.4 | J129: 3.1 | K129: 2.4 | L129: 50.85077029 | M129: 38.019 | N129: 27.65003449 | O129: 33.48087683 | P129: 42.82228012 | Q129: 21.0449374 | R129: 29.02008124 | S129: 36.33249077 | T129: 15.44994146 | U129: 23.3499979 | V129: 7.874389683 | W129: 25.10696254 | X129: 37.65975595 | Y129: 66.66788434 | Z129: 10.44931145 | AA129: 2.391012819 | AB129: 2.05127332 | AC129: 3.565788863 | AD129: 55.36593371 | AE129: 22.85723708 | AF129: 2.759134974 | AG129: 1.459501257 | AH129: 5.67451211
A130: Passau | B130: Bayern | C130: 2022_Passau | D130: 63.11066998 | E130: 50.63646764 | F130: 22.71049941 | G130: 59.8410667 | H130: 35.51697264 | I130: 2.9 | J130: 3.5 | K130: 2.5 | L130: 57.36764753 | M130: 32.559 | N130: 28.63030768 | O130: 27.06955494 | P130: 43.14334156 | Q130: 49.19346857 | R130: 15.7720694 | S130: 31.42404467 | T130: 24.23411351 | U130: 22.62540594 | V130: 4.134988527 | W130: 23.09113894 | X130: 39.92475744 | Y130: 57.83664178 | Z130: 10.45577088 | AA130: 3.321606172 | AB130: 2.683697945 | AC130: 5.977423664 | AD130: 58.72769589 | AE130: 19.48662328 | AF130: 4.738461538 | AG130: 1.689774697 | AH130: 5.013269467
A131: Passau, Stadt | B131: Bayern | C131: 2022_Passau, Stadt | D131: 56.45027395 | E131: 51.06068743 | F131: 19.45455428 | G131: 53.73788043 | H131: 36.99129578 | I131: 4.7 | J131: 6.1 | K131: 4.7 | L131: 76.1646726 | M131: 70.466 | N131: 31.95866401 | O131: 67.90946364 | P131: 35.21133595 | Q131: 21.88457363 | R131: 42.6595056 | S131: 36.73036232 | T131: 16.59825482 | U131: 27.6868371 | V131: 6.428303489 | W131: 24.40128369 | X131: 34.54653385 | Y131: 70.63308812 | Z131: 20.11798097 | AA131: 6.813035133 | AB131: 5.78234641 | AC131: 12.21157259 | AD131: 60.10823348 | AE131: 28.68442762 | AF131: 5.444126074 | AG131: 10.6127285 | AH131: 4.987489173
A132: Pfaffenhofen a.d.Ilm | B132: Bayern | C132: 2022_Pfaffenhofen a.d.Ilm | D132: =IFERROR(INDEX(Datenmatrix_Daten,MATCH($C132,Datenmatrix_Regionen,0),MATCH(D$1,Datenmatrix_Indikatoren,0)),"") -> 67.50813223 | E132: 56.41033636 | F132: 21.10230084 | G132: 61.89779742 | H132: 70.40076547 | I132: 1.9 | J132: 2.4 | K132: 2.2 | L132: 60.59002656 | M132: 41.926 | N132: =IFERROR(INDEX(Datenmatrix_Daten,MATCH($C132,Datenmatrix_Regionen,0),MATCH(N$1,Datenmatrix_Indikatoren,0)),"") -> 26.056627 | O132: 48.70742716 | P132: 59.82684423 | Q132: 28.25724202 | R132: 34.89838671 | S132: 36.65560241 | T132: 17.2329343 | U132: 14.52130096 | V132: =IFERROR(INDEX(Datenmatrix_Daten,MATCH(IF(AND($A$4=Akt_Jahr,Version_Frühjahr_Herbst="Frühjahr"),Akt_Jahr-1&"_"&$A132,$C132),Datenmatrix_Regionen,0),MATCH(V$1,Datenmatrix_Indikatoren,0)),"") -> 14.05158494 | W132: 25.35016126 | X132: 34.51643676 | Y132: 73.44373766 | Z132: 13.60139913 | AA132: =IFERROR(INDEX(Datenmatrix_Daten,MATCH($C132,Datenmatrix_Regionen,0),MATCH(AA$1,Datenmatrix_Indikatoren,0)),"") -> 1.626453276 | AB132: 1.443308494 | AC132: 2.314146892 | AD132: 59.81418323 | AE132: 28.99427332 | AF132: 7.109004739 | AG132: =IFERROR(INDEX(Datenmatrix_Daten,MATCH(IF(AND($A$4=Akt_Jahr,Version_Frühjahr_Herbst="Frühjahr"),Akt_Jahr-1&"_"&$A132,$C132),Datenmatrix_Regionen,0),MATCH(AG$1,Datenmatrix_Indikatoren,0)),"") -> 4.573961938 | AH132: 4.925198939
A133: Regen | B133: Bayern | C133: 2022_Regen | D133: 63.58194661 | E133: 49.54564816 | F133: 22.47765006 | G133: 59.58501253 | H133: 38.60260407 | I133: 3.3 | J133: 4 | K133: 3.1 | L133: 53.07621064 | M133: 36.987 | N133: 30.52394813 | O133: 25.08600159 | P133: 29.51749058 | Q133: 69.39611941 | R133: 25.87655464 | S133: 32.72229651 | T133: 20.8200211 | U133: 21.5569568 | V133: -4.152746389 | W133: 22.82181073 | X133: 40.4856795 | Y133: 56.37008198 | Z133: 8.229640546 | AA133: 3.250412992 | AB133: 2.754097383 | AC133: 5.319201502 | AD133: 56.21088108 | AE133: 18.05127247 | AF133: 7.671232877 | AG133: 1.163847972 | AH133: 5.193321912
A134: Regensburg | B134: Bayern | C134: 2022_Regensburg | D134: 66.17551665 | E134: 55.95873267 | F134: 22.85997204 | G134: 62.01622064 | H134: 54.2366757 | I134: 2.4 | J134: 3.1 | K134: 3 | L134: 61.20026551 | M134: 27.375 | N134: 28.75717465 | O134: 45.45898247 | P134: 67.49417521 | Q134: 29.44909443 | R134: 27.35152864 | S134: 34.15888655 | T134: 17.80442003 | U134: 19.54137277 | V134: 8.76378346 | W134: 24.73153008 | X134: 36.9388373 | Y134: 66.95264898 | Z134: 10.58235769 | AA134: 2.622329308 | AB134: 2.246175647 | AC134: 4.053923078 | AD134: 59.48377333 | AE134: 27.86346692 | AF134: 4.739776952 | AG134: 1.349567258 | AH134: 4.822996045
A135: Regensburg, Stadt | B135: Bayern | C135: 2022_Regensburg, Stadt | D135: 62.88578679 | E135: 55.18289881 | F135: 16.71896464 | G135: 59.03991779 | H135: 39.68641758 | I135: 3.8 | J135: 5.3 | K135: 4.8 | L135: 70.17886154 | M135: 90.529 | N135: 30.98867443 | O135: 63.35009755 | P135: 31.9412913 | Q135: 20.33730769 | R135: 48.67661119 | S135: 41.27080796 | T135: 12.52019699 | U135: 24.24578581 | V135: 21.2415004 | W135: 24.56825645 | X135: 29.52560609 | Y135: 83.20999871 | Z135: 20.09489148 | AA135: 5.366385872 | AB135: 4.547141188 | AC135: 9.32410001 | AD135: 59.39159826 | AE135: 38.17800593 | AF135: 5.02283105 | AG135: 12.36580257 | AH135: 4.392294274
A136: Rhön-Grabfeld | B136: Bayern | C136: 2022_Rhön-Grabfeld | D136: 66.66362287 | E136: 54.78807085 | F136: 24.23067957 | G136: 63.54893482 | H136: 28.7914874 | I136: 2.7 | J136: 3.5 | K136: 2.6 | L136: 56.58424553 | M136: 44.245 | N136: 30.05338981 | O136: 28.76785874 | P136: 30.45809535 | Q136: 23.09457984 | R136: 34.16351001 | S136: 34.76916431 | T136: 16.93612397 | U136: 26.81238121 | V136: -6.68223105 | W136: 23.6280355 | X136: 40.64176448 | Y136: 58.13732696 | Z136: 7.241632541 | AA136: 2.829461801 | AB136: 2.477143036 | AC136: 4.182417149 | AD136: 69.2758854 | AE136: 22.87271244 | AF136: 3.789731051 | AG136: 1.141924959 | AH136: 5.181162646
A137: Rosenheim | B137: Bayern | C137: 2022_Rosenheim | D137: 62.80051016 | E137: 54.3051914 | F137: 23.4887243 | G137: 61.20519376 | H137: 46.04040604 | I137: 2.4 | J137: 2.9 | K137: 2.2 | L137: 65.04856567 | M137: 36.604 | N137: 31.85409921 | O137: 31.30278262 | P137: 44.13128198 | Q137: 25.20010776 | R137: 21.84436344 | S137: 34.74738149 | T137: 17.34027046 | U137: 23.2851555 | V137: 8.049964178 | W137: 24.37730619 | X137: 38.24083613 | Y137: 63.74679179 | Z137: 11.61999663 | AA137: 2.279803501 | AB137: 1.924799482 | AC137: 3.584424084 | AD137: 58.09877175 | AE137: 28.38594093 | AF137: 4.740608229 | AG137: 0.1582612365 | AH137: 5.157881637
A138: Rosenheim, Stadt | B138: Bayern | C138: 2022_Rosenheim, Stadt | D138: 64.32993101 | E138: 55.26983777 | F138: 19.15954157 | G138: 62.17800301 | H138: 31.04339399 | I138: 4.1 | J138: 5.2 | K138: 4.4 | L138: 81.3037524 | M138: 54.85 | N138: 34.52204875 | O138: 67.64995892 | P138: 57.16208841 | Q138: 16.12417835 | R138: 35.18761983 | S138: 36.91165584 | T138: 16.10170173 | U138: 27.5519321 | V138: 6.935542789 | W138: 24.74263621 | X138: 33.73911153 | Y138: 73.33517419 | Z138: 23.97248575 | AA138: 5.575496878 | AB138: 4.637134189 | AC138: 9.439882316 | AD138: 53.20813772 | AE138: 28.97580498 | AF138: 4.78781284 | AG138: 6.192794547 | AH138: 5.401247287
A139: Roth | B139: Bayern | C139: 2022_Roth | D139: 66.66599725 | E139: 57.27610839 | F139: 24.01821082 | G139: 63.67526413 | H139: 43.06881566 | I139: 2.2 | J139: 2.8 | K139: 2 | L139: 59.6689708 | M139: 33.523 | N139: 30.23272501 | O139: 41.45997273 | P139: 56.15601083 | Q139: 22.40210765 | R139: 18.80456361 | S139: 33.31240741 | T139: 19.27427912 | U139: 24.06973718 | V139: 2.37534604 | W139: 23.98402412 | X139: 38.74928124 | Y139: 61.89540387 | Z139: 8.39122259 | AA139: 1.979041154 | AB139: 1.733991964 | AC139: 2.785447458 | AD139: 65.52080641 | AE139: 27.26246169 | AF139: 6.941838649 | AG139: -1.261160714 | AH139: 4.828660436
A140: =IFERROR(IF(Auswahl_Gebietsstruktur=1,INDEX(Agenturliste_mit_RD,ROW()-11),INDEX(Kreisliste_ohne_Einrücken,ROW()-11)),"") -> Rottal-Inn | B140: =IF(IFERROR(IF(Auswahl_Gebietsstruktur=1,VLOOKUP(A140,Zuordnung_RD_AA,2,FALSE),VLOOKUP(A140,Zuordnung_BL_Kreise,2,FALSE)),"")=A140,"",IFERROR(IF(Auswahl_Gebietsstruktur=1,VLOOKUP(A140,Zuordnung_RD_AA,2,FALSE),VLOOKUP(A140,Zuordnung_BL_Kreise,2,FALSE)),"")) -> Bayern | C140: =$A$4&"_"&A140 -> 2022_Rottal-Inn | D140: 63.50357682 | E140: 51.3832998 | F140: 22.0163647 | G140: 58.36717907 | H140: 34.12563667 | I140: 3.2 | J140: 3.9 | K140: 2.7 | L140: 60.81304771 | M140: =IFERROR(INDEX(Datenmatrix_Daten,MATCH(IF(Version_Frühjahr_Herbst="Herbst",IF($A$4<Akt_Jahr,$C140,Akt_Jahr-1&"_"&$A140),IF($A$4<Akt_Jahr-1,$C140,Akt_Jahr-2&"_"&$A140)),Datenmatrix_Regionen,0),MATCH(M$1,Datenmatrix_Indikatoren,0)),"") -> 36.745 | N140: 31.12463486 | O140: 24.34761441 | P140: 39.51879992 | Q140: =IFERROR(INDEX(Datenmatrix_Daten,MATCH(IF(AND($A$4=Akt_Jahr,Version_Frühjahr_Herbst="Frühjahr"),Akt_Jahr-1&"_"&$A140,$C140),Datenmatrix_Regionen,0),MATCH(Q$1,Datenmatrix_Indikatoren,0)),"") -> 34.41599843 | R140: 16.30477118 | S140: =IFERROR(INDEX(Datenmatrix_Daten,MATCH(IF(AND($A$4=Akt_Jahr,Version_Frühjahr_Herbst="Frühjahr"),Akt_Jahr-1&"_"&$A140,$C140),Datenmatrix_Regionen,0),MATCH(S$1,Datenmatrix_Indikatoren,0)),"") -> 32.11848684 | T140: 22.4923204 | U140: =IFERROR(INDEX(Datenmatrix_Daten,MATCH($C140,Datenmatrix_Regionen,0),MATCH(U$1,Datenmatrix_Indikatoren,0)),"") -> 31.87781109 | V140: 4.045218147 | W140: 23.98341316 | X140: 38.16982224 | Y140: 62.83344211 | Z140: 13.02115144 | AA140: 3.390132541 | AB140: 2.830804381 | AC140: 5.787803532 | AD140: 58.0371508 | AE140: 18.58367426 | AF140: =IFERROR(INDEX(Datenmatrix_Daten,MATCH(IF(AND($A$4=Akt_Jahr),Akt_Jahr-1&"_"&$A140,$C140),Datenmatrix_Regionen,0),MATCH(AF$1,Datenmatrix_Indikatoren,0)),"") -> 4.860486049 | AG140: 2.70964978 | AH140: 5.505549457
A141: Schwabach, Stadt | B141: Bayern | C141: 2022_Schwabach, Stadt | D141: 65.33294905 | E141: 60.22671508 | F141: 24.16823603 | G141: 61.48718859 | H141: 38.35705571 | I141: 3.3 | J141: 4.7 | K141: 4.1 | L141: 64.0291576 | M141: 38.43 | N141: 29.04591147 | O141: 66.29827759 | P141: 67.34006734 | Q141: 11.31171859 | R141: 21.31561931 | S141: 33.71815789 | T141: 20.6852978 | U141: 34.5627539 | V141: 6.279807172 | W141: 24.29718388 | X141: 38.20554491 | Y141: 63.59596216 | Z141: 14.80825672 | AA141: 5.334617138 | AB141: 4.632040608 | AC141: 8.05876122 | AD141: 56.13246116 | AE141: 27.86623295 | AF141: 5.719237435 | AG141: -1.498127341 | AH141: 5.202481273
A142: Schwandorf | B142: Bayern | C142: 2022_Schwandorf | D142: =IFERROR(INDEX(Datenmatrix_Daten,MATCH($C142,Datenmatrix_Regionen,0),MATCH(D$1,Datenmatrix_Indikatoren,0)),"") -> 66.44763445 | E142: 54.39638875 | F142: 21.97219284 | G142: 62.20550206 | H142: 32.69640993 | I142: 2.9 | J142: 3.7 | K142: 3 | L142: 56.39942539 | M142: 39.695 | N142: =IFERROR(INDEX(Datenmatrix_Daten,MATCH($C142,Datenmatrix_Regionen,0),MATCH(N$1,Datenmatrix_Indikatoren,0)),"") -> 25.80634128 | O142: 29.97400554 | P142: 38.16684298 | Q142: 27.34013322 | R142: 32.5888429 | S142: 33.70776498 | T142: 18.24138559 | U142: 23.76397683 | V142: =IFERROR(INDEX(Datenmatrix_Daten,MATCH(IF(AND($A$4=Akt_Jahr,Version_Frühjahr_Herbst="Frühjahr"),Akt_Jahr-1&"_"&$A142,$C142),Datenmatrix_Regionen,0),MATCH(V$1,Datenmatrix_Indikatoren,0)),"") -> 4.81042916 | W142: 23.91454806 | X142: 37.47322211 | Y142: 63.8176989 | Z142: 10.77706956 | AA142: 3.065524202 | AB142: 2.598529894 | AC142: 4.901818534 | AD142: 58.79958125 | AE142: 20.9112891 | AF142: 5.708092486 | AG142: 2.865148228 | AH142: 4.750784127
